Workbook

Sheet Índice
B9: Informe Trimestral - Seguros Generales y de Vida
B12: Seleccionar Moneda:
B13: Cifras en UF al 31.03.2021
B16: Mercado de Seguros
B17: Resumen
B18: Prima Directa
B19: Siniestros Directos
B20: Número de Pólizas Emitidas
B21: Número de Siniestros
B24: Seguros Generales | D24: Seguros de Vida
B26: Balance | D26: Balance
B27: Activos | D27: Activos
B28: Pasivos | D28: Pasivos
B29: Estado de Resultados | D29: Estado de Resultados
B30: Estado de Flujos | D30: Estado de Flujos
B33: Cuadros Técnicos | D33: Cuadros Técnicos
B34: Prima Directa | D34: Prima Directa
B35: Participación | D35: Participación
B36: Prima Directa Promedio | D36: Prima Directa Promedio
B37: Prima Retenida Neta | D37: Prima Retenida Neta
B38: Retención
B40: Número de Pólizas Emitidas | D40: Número de Pólizas Emitidas
B41: Número de Pólizas Vigentes | D41: Número de Pólizas Vigentes
B43: Siniestros Directos | D43: Siniestros Directos
B44: Siniestro Directo Promedio | D44: Siniestro Directo Promedio
B45: Número de Siniestros | D45: Número de Siniestros
B46: Siniestralidad
B49: Indicadores de Gestión | D49: Indicadores de Gestión
F51: Y(-1) | G51: Y(0)
E52: =IF(B13=H53,E53,IF(B13=H54,E54,IF(B13=H55,E55))) -> 1 | F52: =VLOOKUP(E52,E53:G55,2,FALSE) -> 0.0350 | G52: =VLOOKUP(E52,E53:G55,3,FALSE) -> 0.0340 | H52: =VLOOKUP(E52,E53:H55,4,FALSE) -> Cifras en UF al 31.03.2021
E53: 1 | F53: =1000/F60 -> 0.0350 | G53: =1000/G60 -> 0.0340 | H53: =CONCATENATE("Cifras en UF al ",$H$57) -> Cifras en UF al 31.03.2021
E54: 2 | F54: =1*F62 -> 1.0285 | G54: 1.0000 | H54: =CONCATENATE("Cifras en M$ al ",$H$57) -> Cifras en M$ al 31.03.2021
E55: 3 | F55: =1000/F61 -> 1.1816 | G55: =1000/G61 -> 1.3659 | H55: =CONCATENATE("Cifras en US$ al ",$H$57) -> Cifras en US$ al 31.03.2021
H56: =CONCATENATE("Cifras al ",$H$57) -> Cifras al 31.03.2021
H57: 31.03.2021
H58: =CONCATENATE(MID(H57,1,6),MID(H57,7,4)-1) -> 31.03.2020
F60: 28,597.46 | G60: 29,394.77 | H60: UF
F61: 846.30 | G61: 732.11 | H61: USDCLP
F62: =ROUND(107.69/104.71,4) -> 1.0285 | G62: =G60/F60 -> 1.0279 | H62: Aplicar IPC a M$(-1). Tomar IPC de meses anteriores (Por ejemplo, para septiembre, usar agosto-agosto).
B64: =CONCATENATE("Versión 1.",COUNTA(B65:B104)-1) -> Versión 1.1
B65: 2021/05/03 - Publicación del archivo
B66: 2021/10/07 - Se actualiza información de Renta Nacional Vida

Sheet Benchmark
C2: Instrucciones
C3: En la columna "Personalizado", poner "1" para elegir las compañías a comparar en los gráficos.
C4: En la celda D8 y D53, elegir si comparar todas las compañías o las ingresadas en "Personalizado".
C6: Seguros Generales
C8: Compañía | D8: Todas | E8: Todas | F8: Personalizado
B9: 1 | C9: =INDEX('Datos Generales'!$C$7:$AP$7,,ROWS('Datos Generales'!$C$7:AP7)) -> Assurant Chile | D9: =HLOOKUP($D$8,$E$8:$F$48,G9,FALSE) -> 1 | E9: 1 | F9: 1 | G9: 2
B10: 2 | C10: =INDEX('Datos Generales'!$C$7:$AP$7,,ROWS('Datos Generales'!$C$7:AP8)) -> AVLA Crédito | D10: =HLOOKUP($D$8,$E$8:$F$48,G10,FALSE) -> 1 | E10: 1 | F10: 1 | G10: 3
B11: 3 | C11: =INDEX('Datos Generales'!$C$7:$AP$7,,ROWS('Datos Generales'!$C$7:AP9)) -> BCI Seguros | D11: 1 | E11: 1 | F11: 1 | G11: 4
B12: 4 | C12: =INDEX('Datos Generales'!$C$7:$AP$7,,ROWS('Datos Generales'!$C$7:AP10)) -> BNP Paribas Cardif | D12: 1 | E12: 1 | F12: 1 | G12: 5
B13: 5 | C13: =INDEX('Datos Generales'!$C$7:$AP$7,,ROWS('Datos Generales'!$C$7:AP11)) -> Cesce Chile | D13: 1 | E13: 1 | F13: 1 | G13: 6
B14: 6 | C14: =INDEX('Datos Generales'!$C$7:$AP$7,,ROWS('Datos Generales'!$C$7:AP12)) -> Chilena Consolidada | D14: 1 | E14: 1 | G14: 7
B15: 7 | C15: =INDEX('Datos Generales'!$C$7:$AP$7,,ROWS('Datos Generales'!$C$7:AP13)) -> Chubb Generales | D15: 1 | E15: 1 | G15: 8
B16: 8 | C16: =INDEX('Datos Generales'!$C$7:$AP$7,,ROWS('Datos Generales'!$C$7:AP14)) -> Coface Chile | D16: 1 | E16: 1 | G16: 9
B17: 9 | C17: =INDEX('Datos Generales'!$C$7:$AP$7,,ROWS('Datos Generales'!$C$7:AP15)) -> Consorcio Nacional | D17: 1 | E17: 1 | G17: 10
B18: 10 | C18: =INDEX('Datos Generales'!$C$7:$AP$7,,ROWS('Datos Generales'!$C$7:AP16)) -> Contempora | D18: 1 | E18: 1 | G18: 11
B19: 11 | C19: =INDEX('Datos Generales'!$C$7:$AP$7,,ROWS('Datos Generales'!$C$7:AP17)) -> Continental Crédito | D19: 1 | E19: 1 | G19: 12
B20: 12 | C20: =INDEX('Datos Generales'!$C$7:$AP$7,,ROWS('Datos Generales'!$C$7:AP18)) -> Continental Generales | D20: 1 | E20: 1 | G20: 13
B21: 13 | C21: =INDEX('Datos Generales'!$C$7:$AP$7,,ROWS('Datos Generales'!$C$7:AP19)) -> FID Chile | D21: 1 | E21: 1 | G21: 14
B22: 14 | C22: =INDEX('Datos Generales'!$C$7:$AP$7,,ROWS('Datos Generales'!$C$7:AP20)) -> HDI Gar. y Cré. | D22: 1 | E22: 1 | G22: 15
B23: 15 | C23: =INDEX('Datos Generales'!$C$7:$AP$7,,ROWS('Datos Generales'!$C$7:AP21)) -> HDI Seguros | D23: 1 | E23: 1 | G23: 16
B24: 16 | C24: =INDEX('Datos Generales'!$C$7:$AP$7,,ROWS('Datos Generales'!$C$7:AP22)) -> Huelen | D24: 1 | E24: 1 | G24: 17
B25: 17 | C25: =INDEX('Datos Generales'!$C$7:$AP$7,,ROWS('Datos Generales'!$C$7:AP23)) -> Liberty Seguros | D25: 1 | E25: 1 | G25: 18
B26: 18 | C26: =INDEX('Datos Generales'!$C$7:$AP$7,,ROWS('Datos Generales'!$C$7:AP24)) -> M. de Carabineros | D26: 1 | E26: 1 | G26: 19
B27: 19 | C27: =INDEX('Datos Generales'!$C$7:$AP$7,,ROWS('Datos Generales'!$C$7:AP25)) -> Mapfre | D27: 1 | E27: 1 | G27: 20
B28: 20 | C28: =INDEX('Datos Generales'!$C$7:$AP$7,,ROWS('Datos Generales'!$C$7:AP26)) -> MetLife Generales | D28: 1 | E28: 1 | G28: 21
B29: 21 | C29: =INDEX('Datos Generales'!$C$7:$AP$7,,ROWS('Datos Generales'!$C$7:AP27)) -> Orion Seguros | D29: 1 | E29: 1 | G29: 22
B30: 22 | C30: =INDEX('Datos Generales'!$C$7:$AP$7,,ROWS('Datos Generales'!$C$7:AP28)) -> Orsan Crédito | D30: 1 | E30: 1 | G30: 23
B31: 23 | C31: =INDEX('Datos Generales'!$C$7:$AP$7,,ROWS('Datos Generales'!$C$7:AP29)) -> Porvenir | D31: 1 | E31: 1 | G31: 24
B32: 24 | C32: =INDEX('Datos Generales'!$C$7:$AP$7,,ROWS('Datos Generales'!$C$7:AP30)) -> Reale Chile | D32: 1 | E32: 1 | G32: 25
B33: 25 | C33: =INDEX('Datos Generales'!$C$7:$AP$7,,ROWS('Datos Generales'!$C$7:AP31)) -> Renta Nacional | D33: 1 | E33: 1 | G33: 26
B34: 26 | C34: =INDEX('Datos Generales'!$C$7:$AP$7,,ROWS('Datos Generales'!$C$7:AP32)) -> SegChile | D34: 1 | E34: 1 | G34: 27
B35: 27 | C35: =INDEX('Datos Generales'!$C$7:$AP$7,,ROWS('Datos Generales'!$C$7:AP33)) -> Solunión Chile | D35: 1 | E35: 1 | G35: 28
B36: 28 | C36: =INDEX('Datos Generales'!$C$7:$AP$7,,ROWS('Datos Generales'!$C$7:AP34)) -> Southbridge | D36: 1 | E36: 1 | G36: 29
B37: 29 | C37: =INDEX('Datos Generales'!$C$7:$AP$7,,ROWS('Datos Generales'!$C$7:AP35)) -> Starr International | D37: 1 | E37: 1 | G37: 30
B38: 30 | C38: =INDEX('Datos Generales'!$C$7:$AP$7,,ROWS('Datos Generales'!$C$7:AP36)) -> Suaval | D38: 1 | E38: 1 | G38: 31
B39: 31 | C39: =INDEX('Datos Generales'!$C$7:$AP$7,,ROWS('Datos Generales'!$C$7:AP37)) -> Suramericana | D39: 1 | E39: 1 | G39: 32
B40: 32 | C40: =INDEX('Datos Generales'!$C$7:$AP$7,,ROWS('Datos Generales'!$C$7:AP38)) -> Unnio | D40: 1 | E40: 1 | G40: 33
B41: 33 | C41: =INDEX('Datos Generales'!$C$7:$AP$7,,ROWS('Datos Generales'!$C$7:AP39)) -> Zenit Seguros | D41: =HLOOKUP($D$8,$E$8:$F$48,G41,FALSE) -> 1 | E41: 1 | G41: 34
B42: 34 | C42: =INDEX('Datos Generales'!$C$7:$AP$7,,ROWS('Datos Generales'!$C$7:AP40)) -> Zurich Santander | D42: 1 | E42: 1 | G42: 35
B43: 35 | C43: =INDEX('Datos Generales'!$C$7:$AP$7,,ROWS('Datos Generales'!$C$7:AP41)) -> 0 | D43: 0 | G43: 36
B44: 36 | C44: =INDEX('Datos Generales'!$C$7:$AP$7,,ROWS('Datos Generales'!$C$7:AP42)) -> 0 | D44: 0 | G44: 37
B45: 37 | C45: =INDEX('Datos Generales'!$C$7:$AP$7,,ROWS('Datos Generales'!$C$7:AP43)) -> 0 | D45: 0 | G45: 38
B46: 38 | C46: =INDEX('Datos Generales'!$C$7:$AP$7,,ROWS('Datos Generales'!$C$7:AP44)) -> 0 | D46: 0 | G46: 39
B47: 39 | C47: =INDEX('Datos Generales'!$C$7:$AP$7,,ROWS('Datos Generales'!$C$7:AP45)) -> 0 | D47: 0 | G47: 40
B48: 40 | C48: =INDEX('Datos Generales'!$C$7:$AP$7,,ROWS('Datos Generales'!$C$7:AP45)) -> 0 | D48: 0 | G48: 41
C51: Seguros de Vida
C53: Compañía | D53: Todas | E53: Todas | F53: Personalizado
B54: 1 | C54: =INDEX('Datos Vida'!$C$7:$AP$7,,ROWS('Datos Vida'!$C$7:AP7)) -> 4 Life Seguros | D54: =HLOOKUP($D$53,$E$53:$F$93,G54,FALSE) -> 1 | E54: 1 | F54: 1 | G54: 2
B55: 2 | C55: =INDEX('Datos Vida'!$C$7:$AP$7,,ROWS('Datos Vida'!$C$7:AP8)) -> Alemana Seguros | D55: =HLOOKUP($D$53,$E$53:$F$93,G55,FALSE) -> 1 | E55: 1 | F55: 1 | G55: 3
B56: 3 | C56: =INDEX('Datos Vida'!$C$7:$AP$7,,ROWS('Datos Vida'!$C$7:AP9)) -> BanChile | D56: 1 | E56: 1 | F56: 1 | G56: 4
B57: 4 | C57: =INDEX('Datos Vida'!$C$7:$AP$7,,ROWS('Datos Vida'!$C$7:AP10)) -> BCI Seguros Vida | D57: 1 | E57: 1 | F57: 1 | G57: 5
B58: 5 | C58: =INDEX('Datos Vida'!$C$7:$AP$7,,ROWS('Datos Vida'!$C$7:AP11)) -> BICE Vida | D58: 1 | E58: 1 | F58: 1 | G58: 6
B59: 6 | C59: =INDEX('Datos Vida'!$C$7:$AP$7,,ROWS('Datos Vida'!$C$7:AP12)) -> BNP Paribas Cardif | D59: 1 | E59: 1 | G59: 7
B60: 7 | C60: =INDEX('Datos Vida'!$C$7:$AP$7,,ROWS('Datos Vida'!$C$7:AP13)) -> Bupa | D60: 1 | E60: 1 | G60: 8
B61: 8 | C61: =INDEX('Datos Vida'!$C$7:$AP$7,,ROWS('Datos Vida'!$C$7:AP14)) -> Cámara | D61: 1 | E61: 1 | G61: 9
B62: 9 | C62: =INDEX('Datos Vida'!$C$7:$AP$7,,ROWS('Datos Vida'!$C$7:AP15)) -> CF Seguros de Vida | D62: 1 | E62: 1 | G62: 10
B63: 10 | C63: =INDEX('Datos Vida'!$C$7:$AP$7,,ROWS('Datos Vida'!$C$7:AP16)) -> Chilena Consolidada | D63: 1 | E63: 1 | G63: 11
B64: 11 | C64: =INDEX('Datos Vida'!$C$7:$AP$7,,ROWS('Datos Vida'!$C$7:AP17)) -> Chubb Vida | D64: 1 | E64: 1 | G64: 12
B65: 12 | C65: =INDEX('Datos Vida'!$C$7:$AP$7,,ROWS('Datos Vida'!$C$7:AP18)) -> CLC | D65: 1 | E65: 1 | G65: 13
B66: 13 | C66: =INDEX('Datos Vida'!$C$7:$AP$7,,ROWS('Datos Vida'!$C$7:AP19)) -> CN Life | D66: 1 | E66: 1 | G66: 14
B67: 14 | C67: =INDEX('Datos Vida'!$C$7:$AP$7,,ROWS('Datos Vida'!$C$7:AP20)) -> Colmena Seguros | D67: 1 | E67: 1 | G67: 15
B68: 15 | C68: =INDEX('Datos Vida'!$C$7:$AP$7,,ROWS('Datos Vida'!$C$7:AP21)) -> Confuturo | D68: 1 | E68: 1 | G68: 16
B69: 16 | C69: =INDEX('Datos Vida'!$C$7:$AP$7,,ROWS('Datos Vida'!$C$7:AP22)) -> Consorcio Nacional | D69: 1 | E69: 1 | G69: 17
B70: 17 | C70: =INDEX('Datos Vida'!$C$7:$AP$7,,ROWS('Datos Vida'!$C$7:AP23)) -> Divina Pastora | D70: 1 | E70: 1 | G70: 18
B71: 18 | C71: =INDEX('Datos Vida'!$C$7:$AP$7,,ROWS('Datos Vida'!$C$7:AP24)) -> EuroAmérica | D71: 1 | E71: 1 | G71: 19
B72: 19 | C72: =INDEX('Datos Vida'!$C$7:$AP$7,,ROWS('Datos Vida'!$C$7:AP25)) -> HDI Vida | D72: 1 | E72: 1 | G72: 20
B73: 20 | C73: =INDEX('Datos Vida'!$C$7:$AP$7,,ROWS('Datos Vida'!$C$7:AP26)) -> Huelen | D73: 1 | E73: 1 | G73: 21
B74: 21 | C74: =INDEX('Datos Vida'!$C$7:$AP$7,,ROWS('Datos Vida'!$C$7:AP27)) -> M. de Carabineros | D74: 1 | E74: 1 | G74: 22
B75: 22 | C75: =INDEX('Datos Vida'!$C$7:$AP$7,,ROWS('Datos Vida'!$C$7:AP28)) -> M. del Ej. y Av. | D75: 1 | E75: 1 | G75: 23
B76: 23 | C76: =INDEX('Datos Vida'!$C$7:$AP$7,,ROWS('Datos Vida'!$C$7:AP29)) -> Mapfre Vida | D76: 1 | E76: 1 | G76: 24
B77: 24 | C77: =INDEX('Datos Vida'!$C$7:$AP$7,,ROWS('Datos Vida'!$C$7:AP30)) -> MetLife | D77: 1 | E77: 1 | G77: 25
B78: 25 | C78: =INDEX('Datos Vida'!$C$7:$AP$7,,ROWS('Datos Vida'!$C$7:AP31)) -> Mutual de Seguros | D78: 1 | E78: 1 | G78: 26
B79: 26 | C79: =INDEX('Datos Vida'!$C$7:$AP$7,,ROWS('Datos Vida'!$C$7:AP32)) -> Ohio National | D79: 1 | E79: 1 | G79: 27
B80: 27 | C80: =INDEX('Datos Vida'!$C$7:$AP$7,,ROWS('Datos Vida'!$C$7:AP33)) -> Penta Vida | D80: 1 | E80: 1 | G80: 28
B81: 28 | C81: =INDEX('Datos Vida'!$C$7:$AP$7,,ROWS('Datos Vida'!$C$7:AP34)) -> Principal | D81: 1 | E81: 1 | G81: 29
B82: 29 | C82: =INDEX('Datos Vida'!$C$7:$AP$7,,ROWS('Datos Vida'!$C$7:AP35)) -> Renta Nacional | D82: 1 | E82: 1 | G82: 30
B83: 30 | C83: =INDEX('Datos Vida'!$C$7:$AP$7,,ROWS('Datos Vida'!$C$7:AP36)) -> Rigel | D83: 1 | E83: 1 | G83: 31
B84: 31 | C84: =INDEX('Datos Vida'!$C$7:$AP$7,,ROWS('Datos Vida'!$C$7:AP37)) -> Save Seguros | D84: 1 | E84: 1 | G84: 32
B85: 32 | C85: =INDEX('Datos Vida'!$C$7:$AP$7,,ROWS('Datos Vida'!$C$7:AP38)) -> Security Previsión | D85: =HLOOKUP($D$53,$E$53:$F$93,G85,FALSE) -> 1 | E85: 1 | G85: 33
B86: 33 | C86: =INDEX('Datos Vida'!$C$7:$AP$7,,ROWS('Datos Vida'!$C$7:AP39)) -> Sura | D86: =HLOOKUP($D$53,$E$53:$F$93,G86,FALSE) -> 1 | E86: 1 | G86: 34
B87: 34 | C87: =INDEX('Datos Vida'!$C$7:$AP$7,,ROWS('Datos Vida'!$C$7:AP40)) -> Suramericana | D87: 1 | E87: 1 | G87: 35
B88: 35 | C88: =INDEX('Datos Vida'!$C$7:$AP$7,,ROWS('Datos Vida'!$C$7:AP41)) -> Zurich Santander | D88: 1 | E88: 1 | G88: 36
B89: 36 | C89: =INDEX('Datos Vida'!$C$7:$AP$7,,ROWS('Datos Vida'!$C$7:AP42)) -> 0 | D89: 0 | G89: 37
B90: 37 | C90: =INDEX('Datos Vida'!$C$7:$AP$7,,ROWS('Datos Vida'!$C$7:AP43)) -> 0 | D90: 0 | G90: 38
B91: 38 | C91: =INDEX('Datos Vida'!$C$7:$AP$7,,ROWS('Datos Vida'!$C$7:AP44)) -> 0 | D91: 0 | G91: 39
B92: 39 | C92: =INDEX('Datos Vida'!$C$7:$AP$7,,ROWS('Datos Vida'!$C$7:AP45)) -> 0 | D92: 0 | G92: 40
B93: 40 | C93: =INDEX('Datos Vida'!$C$7:$AP$7,,ROWS('Datos Vida'!$C$7:AP46)) -> 0 | D93: 0 | G93: 41

Sheet Mer. Resumen
C2: Volver al Índice
B8: Resumen Mercado de Seguros
B9: =Índice!H52 -> Cifras en UF al 31.03.2021
B11: Grupo | C11: Prima Directa | D11: Resultado de Operaciones | E11: Utilidad | F11: Producto de Inversiones | G11: Siniestros Directos | H11: Patrimonio | I11: Inversiones
B12: Seguros Generales | C12: =C58 -> 25,177,272 | D12: 726,948 | E12: 1,354,910 | F12: 440,124 | G12: 10,044,239 | H12: 41,391,363 | I12: 67,649,945
B13: Seguros de Vida | C13: =C102 -> 37,151,053 | D13: =D102 -> -9,479,495 | E13: 13,049,868 | F13: 25,747,179 | G13: 35,187,867 | H13: 157,441,049 | I13: 1,604,691,649
B14: Total | C14: =SUM(C12:C13) -> 62,328,325 | D14: =SUM(D12:D13) -> -8,752,546 | E14: 14,404,778 | F14: 26,187,304 | G14: 45,232,106 | H14: 198,832,412 | I14: 1,672,341,595
B17: Seguros Generales | C17: Prima Directa | D17: Resultado de Operaciones | E17: Utilidad | F17: Producto de Inversiones | G17: Siniestros Directos | H17: Patrimonio | I17: Inversiones | K17: Fecha de Descarga de EEFF
B18: =INDEX('Datos Generales'!$C$7:$AP$7,,ROWS('Datos Generales'!$C$7:AP7)) -> Assurant Chile | C18: =INDEX('Datos Generales'!$C$118:$AP$118,,ROWS('Datos Generales'!$C$118:AP118))*Índice!$G$52 -> 69,410 | D18: =(INDEX('Datos Generales'!$C$116:$AP$116,,ROWS('Datos Generales'!$C$116:AP116))-INDEX('Datos Generales'!$C$144:$AP$144,,ROWS('Datos Generales'!$C$144:AP144)))*Índice!$G$52 -> 7,302 | E18: =INDEX('Datos Generales'!$C$170:$AP$170,,ROWS('Datos Generales'!$C$170:AP170))*Índice!$G$52 -> 7,340 | F18: =INDEX('Datos Generales'!$C$147:$AP$147,,ROWS('Datos Generales'!$C$147:AP147))*Índice!$G$52 -> 544 | G18: =INDEX('Datos Generales'!$C$129:$AP$129,,ROWS('Datos Generales'!$C$129:AP129))*Índice!$G$52 -> 2,379 | H18: =INDEX('Datos Generales'!$C$101:$AP$101,,ROWS('Datos Generales'!$C$101:AP101))*Índice!$G$52 -> 241,191 | I18: =(INDEX('Datos Generales'!$C$9:$AP$9,,ROWS('Datos Generales'!$C$9:AP9))+INDEX('Datos Generales'!$C$20:$AP$20,,ROWS('Datos Generales'!$C$20:AP20)))*Índice!$G$52 -> 242,996 | K18: =TRANSPOSE('Datos Generales'!C910:AJ910) -> 2021-05-01
B19: =INDEX('Datos Generales'!$C$7:$AP$7,,ROWS('Datos Generales'!$C$7:AP8)) -> AVLA Crédito | C19: =INDEX('Datos Generales'!$C$118:$AP$118,,ROWS('Datos Generales'!$C$118:AP119))*Índice!$G$52 -> 217,829 | D19: =(INDEX('Datos Generales'!$C$116:$AP$116,,ROWS('Datos Generales'!$C$116:AP117))-INDEX('Datos Generales'!$C$144:$AP$144,,ROWS('Datos Generales'!$C$144:AP145)))*Índice!$G$52 -> -16,382 | E19: =INDEX('Datos Generales'!$C$170:$AP$170,,ROWS('Datos Generales'!$C$170:AP171))*Índice!$G$52 -> 9,850 | F19: =INDEX('Datos Generales'!$C$147:$AP$147,,ROWS('Datos Generales'!$C$147:AP148))*Índice!$G$52 -> 3,083 | G19: =INDEX('Datos Generales'!$C$129:$AP$129,,ROWS('Datos Generales'!$C$129:AP130))*Índice!$G$52 -> 201,526 | H19: =INDEX('Datos Generales'!$C$101:$AP$101,,ROWS('Datos Generales'!$C$101:AP102))*Índice!$G$52 -> 260,197 | I19: =(INDEX('Datos Generales'!$C$9:$AP$9,,ROWS('Datos Generales'!$C$9:AP10))+INDEX('Datos Generales'!$C$20:$AP$20,,ROWS('Datos Generales'!$C$20:AP21)))*Índice!$G$52 -> 617,590 | K19: 2021-05-01
B20: =INDEX('Datos Generales'!$C$7:$AP$7,,ROWS('Datos Generales'!$C$7:AP9)) -> BCI Seguros | C20: =INDEX('Datos Generales'!$C$118:$AP$118,,ROWS('Datos Generales'!$C$118:AP120))*Índice!$G$52 -> 3,436,212 | D20: =(INDEX('Datos Generales'!$C$116:$AP$116,,ROWS('Datos Generales'!$C$116:AP118))-INDEX('Datos Generales'!$C$144:$AP$144,,ROWS('Datos Generales'!$C$144:AP146)))*Índice!$G$52 -> 310,829 | E20: =INDEX('Datos Generales'!$C$170:$AP$170,,ROWS('Datos Generales'!$C$170:AP172))*Índice!$G$52 -> 290,818 | F20: =INDEX('Datos Generales'!$C$147:$AP$147,,ROWS('Datos Generales'!$C$147:AP149))*Índice!$G$52 -> 27,280 | G20: =INDEX('Datos Generales'!$C$129:$AP$129,,ROWS('Datos Generales'!$C$129:AP131))*Índice!$G$52 -> 1,436,948 | H20: =INDEX('Datos Generales'!$C$101:$AP$101,,ROWS('Datos Generales'!$C$101:AP103))*Índice!$G$52 -> 4,098,947 | I20: =(INDEX('Datos Generales'!$C$9:$AP$9,,ROWS('Datos Generales'!$C$9:AP11))+INDEX('Datos Generales'!$C$20:$AP$20,,ROWS('Datos Generales'!$C$20:AP22)))*Índice!$G$52 -> 8,882,134 | K20: 2021-05-01
B21: =INDEX('Datos Generales'!$C$7:$AP$7,,ROWS('Datos Generales'!$C$7:AP10)) -> BNP Paribas Cardif | C21: =INDEX('Datos Generales'!$C$118:$AP$118,,ROWS('Datos Generales'!$C$118:AP121))*Índice!$G$52 -> 1,003,667 | D21: =(INDEX('Datos Generales'!$C$116:$AP$116,,ROWS('Datos Generales'!$C$116:AP119))-INDEX('Datos Generales'!$C$144:$AP$144,,ROWS('Datos Generales'!$C$144:AP147)))*Índice!$G$52 -> 249,980 | E21: =INDEX('Datos Generales'!$C$170:$AP$170,,ROWS('Datos Generales'!$C$170:AP173))*Índice!$G$52 -> 265,493 | F21: =INDEX('Datos Generales'!$C$147:$AP$147,,ROWS('Datos Generales'!$C$147:AP150))*Índice!$G$52 -> 129,104 | G21: =INDEX('Datos Generales'!$C$129:$AP$129,,ROWS('Datos Generales'!$C$129:AP132))*Índice!$G$52 -> 261,661 | H21: =INDEX('Datos Generales'!$C$101:$AP$101,,ROWS('Datos Generales'!$C$101:AP104))*Índice!$G$52 -> 6,479,482 | I21: =(INDEX('Datos Generales'!$C$9:$AP$9,,ROWS('Datos Generales'!$C$9:AP12))+INDEX('Datos Generales'!$C$20:$AP$20,,ROWS('Datos Generales'!$C$20:AP23)))*Índice!$G$52 -> 10,774,236 | K21: 2021-05-01
B22: =INDEX('Datos Generales'!$C$7:$AP$7,,ROWS('Datos Generales'!$C$7:AP11)) -> Cesce Chile | C22: =INDEX('Datos Generales'!$C$118:$AP$118,,ROWS('Datos Generales'!$C$118:AP122))*Índice!$G$52 -> 34,257 | D22: =(INDEX('Datos Generales'!$C$116:$AP$116,,ROWS('Datos Generales'!$C$116:AP120))-INDEX('Datos Generales'!$C$144:$AP$144,,ROWS('Datos Generales'!$C$144:AP148)))*Índice!$G$52 -> -5,846 | E22: =INDEX('Datos Generales'!$C$170:$AP$170,,ROWS('Datos Generales'!$C$170:AP174))*Índice!$G$52 -> -1,316 | F22: =INDEX('Datos Generales'!$C$147:$AP$147,,ROWS('Datos Generales'!$C$147:AP151))*Índice!$G$52 -> 303 | G22: =INDEX('Datos Generales'!$C$129:$AP$129,,ROWS('Datos Generales'!$C$129:AP133))*Índice!$G$52 -> 64,294 | H22: =INDEX('Datos Generales'!$C$101:$AP$101,,ROWS('Datos Generales'!$C$101:AP105))*Índice!$G$52 -> 115,630 | I22: =(INDEX('Datos Generales'!$C$9:$AP$9,,ROWS('Datos Generales'!$C$9:AP13))+INDEX('Datos Generales'!$C$20:$AP$20,,ROWS('Datos Generales'!$C$20:AP24)))*Índice!$G$52 -> 161,599 | K22: 2021-05-01
B23: =INDEX('Datos Generales'!$C$7:$AP$7,,ROWS('Datos Generales'!$C$7:AP12)) -> Chilena Consolidada | C23: =INDEX('Datos Generales'!$C$118:$AP$118,,ROWS('Datos Generales'!$C$118:AP123))*Índice!$G$52 -> 1,308,923 | D23: =(INDEX('Datos Generales'!$C$116:$AP$116,,ROWS('Datos Generales'!$C$116:AP121))-INDEX('Datos Generales'!$C$144:$AP$144,,ROWS('Datos Generales'!$C$144:AP149)))*Índice!$G$52 -> -195,663 | E23: =INDEX('Datos Generales'!$C$170:$AP$170,,ROWS('Datos Generales'!$C$170:AP175))*Índice!$G$52 -> -90,903 | F23: =INDEX('Datos Generales'!$C$147:$AP$147,,ROWS('Datos Generales'!$C$147:AP152))*Índice!$G$52 -> 17,003 | G23: =INDEX('Datos Generales'!$C$129:$AP$129,,ROWS('Datos Generales'!$C$129:AP134))*Índice!$G$52 -> 598,725 | H23: =INDEX('Datos Generales'!$C$101:$AP$101,,ROWS('Datos Generales'!$C$101:AP106))*Índice!$G$52 -> 1,452,788 | I23: =(INDEX('Datos Generales'!$C$9:$AP$9,,ROWS('Datos Generales'!$C$9:AP14))+INDEX('Datos Generales'!$C$20:$AP$20,,ROWS('Datos Generales'!$C$20:AP25)))*Índice!$G$52 -> 3,082,497 | K23: 2021-05-01
B24: =INDEX('Datos Generales'!$C$7:$AP$7,,ROWS('Datos Generales'!$C$7:AP13)) -> Chubb Generales | C24: =INDEX('Datos Generales'!$C$118:$AP$118,,ROWS('Datos Generales'!$C$118:AP124))*Índice!$G$52 -> 1,896,178 | D24: =(INDEX('Datos Generales'!$C$116:$AP$116,,ROWS('Datos Generales'!$C$116:AP122))-INDEX('Datos Generales'!$C$144:$AP$144,,ROWS('Datos Generales'!$C$144:AP150)))*Índice!$G$52 -> -42,236 | E24: =INDEX('Datos Generales'!$C$170:$AP$170,,ROWS('Datos Generales'!$C$170:AP176))*Índice!$G$52 -> 32,959 | F24: =INDEX('Datos Generales'!$C$147:$AP$147,,ROWS('Datos Generales'!$C$147:AP153))*Índice!$G$52 -> 306 | G24: =INDEX('Datos Generales'!$C$129:$AP$129,,ROWS('Datos Generales'!$C$129:AP135))*Índice!$G$52 -> 508,173 | H24: =INDEX('Datos Generales'!$C$101:$AP$101,,ROWS('Datos Generales'!$C$101:AP107))*Índice!$G$52 -> 5,532,885 | I24: =(INDEX('Datos Generales'!$C$9:$AP$9,,ROWS('Datos Generales'!$C$9:AP15))+INDEX('Datos Generales'!$C$20:$AP$20,,ROWS('Datos Generales'!$C$20:AP26)))*Índice!$G$52 -> 4,952,791 | K24: 2021-05-01
B25: =INDEX('Datos Generales'!$C$7:$AP$7,,ROWS('Datos Generales'!$C$7:AP14)) -> Coface Chile | C25: =INDEX('Datos Generales'!$C$118:$AP$118,,ROWS('Datos Generales'!$C$118:AP125))*Índice!$G$52 -> 117,335 | D25: =(INDEX('Datos Generales'!$C$116:$AP$116,,ROWS('Datos Generales'!$C$116:AP123))-INDEX('Datos Generales'!$C$144:$AP$144,,ROWS('Datos Generales'!$C$144:AP151)))*Índice!$G$52 -> 43,514 | E25: =INDEX('Datos Generales'!$C$170:$AP$170,,ROWS('Datos Generales'!$C$170:AP177))*Índice!$G$52 -> 28,641 | F25: =INDEX('Datos Generales'!$C$147:$AP$147,,ROWS('Datos Generales'!$C$147:AP154))*Índice!$G$52 -> 3,815 | G25: =INDEX('Datos Generales'!$C$129:$AP$129,,ROWS('Datos Generales'!$C$129:AP136))*Índice!$G$52 -> -10,110 | H25: =INDEX('Datos Generales'!$C$101:$AP$101,,ROWS('Datos Generales'!$C$101:AP108))*Índice!$G$52 -> 324,613 | I25: =(INDEX('Datos Generales'!$C$9:$AP$9,,ROWS('Datos Generales'!$C$9:AP16))+INDEX('Datos Generales'!$C$20:$AP$20,,ROWS('Datos Generales'!$C$20:AP27)))*Índice!$G$52 -> 458,683 | K25: 2021-05-01
B26: =INDEX('Datos Generales'!$C$7:$AP$7,,ROWS('Datos Generales'!$C$7:AP15)) -> Consorcio Nacional | C26: =INDEX('Datos Generales'!$C$118:$AP$118,,ROWS('Datos Generales'!$C$118:AP126))*Índice!$G$52 -> 747,480 | D26: =(INDEX('Datos Generales'!$C$116:$AP$116,,ROWS('Datos Generales'!$C$116:AP124))-INDEX('Datos Generales'!$C$144:$AP$144,,ROWS('Datos Generales'!$C$144:AP152)))*Índice!$G$52 -> 81,875 | E26: =INDEX('Datos Generales'!$C$170:$AP$170,,ROWS('Datos Generales'!$C$170:AP178))*Índice!$G$52 -> 79,031 | F26: =INDEX('Datos Generales'!$C$147:$AP$147,,ROWS('Datos Generales'!$C$147:AP155))*Índice!$G$52 -> 12,217 | G26: =INDEX('Datos Generales'!$C$129:$AP$129,,ROWS('Datos Generales'!$C$129:AP137))*Índice!$G$52 -> 265,610 | H26: =INDEX('Datos Generales'!$C$101:$AP$101,,ROWS('Datos Generales'!$C$101:AP109))*Índice!$G$52 -> 1,190,793 | I26: =(INDEX('Datos Generales'!$C$9:$AP$9,,ROWS('Datos Generales'!$C$9:AP17))+INDEX('Datos Generales'!$C$20:$AP$20,,ROWS('Datos Generales'!$C$20:AP28)))*Índice!$G$52 -> 1,535,694 | K26: 2021-05-01
B27: =INDEX('Datos Generales'!$C$7:$AP$7,,ROWS('Datos Generales'!$C$7:AP16)) -> Contempora | C27: =INDEX('Datos Generales'!$C$118:$AP$118,,ROWS('Datos Generales'!$C$118:AP127))*Índice!$G$52 -> 118,182 | D27: =(INDEX('Datos Generales'!$C$116:$AP$116,,ROWS('Datos Generales'!$C$116:AP125))-INDEX('Datos Generales'!$C$144:$AP$144,,ROWS('Datos Generales'!$C$144:AP153)))*Índice!$G$52 -> -14,454 | E27: =INDEX('Datos Generales'!$C$170:$AP$170,,ROWS('Datos Generales'!$C$170:AP179))*Índice!$G$52 -> -8,347 | F27: =INDEX('Datos Generales'!$C$147:$AP$147,,ROWS('Datos Generales'!$C$147:AP156))*Índice!$G$52 -> -22 | G27: =INDEX('Datos Generales'!$C$129:$AP$129,,ROWS('Datos Generales'!$C$129:AP138))*Índice!$G$52 -> 68,874 | H27: =INDEX('Datos Generales'!$C$101:$AP$101,,ROWS('Datos Generales'!$C$101:AP110))*Índice!$G$52 -> 136,825 | I27: =(INDEX('Datos Generales'!$C$9:$AP$9,,ROWS('Datos Generales'!$C$9:AP18))+INDEX('Datos Generales'!$C$20:$AP$20,,ROWS('Datos Generales'!$C$20:AP29)))*Índice!$G$52 -> 163,860 | K27: 2021-05-01
B28: =INDEX('Datos Generales'!$C$7:$AP$7,,ROWS('Datos Generales'!$C$7:AP17)) -> Continental Crédito | C28: =INDEX('Datos Generales'!$C$118:$AP$118,,ROWS('Datos Generales'!$C$118:AP128))*Índice!$G$52 -> 368,205 | D28: =(INDEX('Datos Generales'!$C$116:$AP$116,,ROWS('Datos Generales'!$C$116:AP126))-INDEX('Datos Generales'!$C$144:$AP$144,,ROWS('Datos Generales'!$C$144:AP154)))*Índice!$G$52 -> 68,578 | E28: =INDEX('Datos Generales'!$C$170:$AP$170,,ROWS('Datos Generales'!$C$170:AP180))*Índice!$G$52 -> 139,783 | F28: =INDEX('Datos Generales'!$C$147:$AP$147,,ROWS('Datos Generales'!$C$147:AP157))*Índice!$G$52 -> 62,788 | G28: =INDEX('Datos Generales'!$C$129:$AP$129,,ROWS('Datos Generales'!$C$129:AP139))*Índice!$G$52 -> 48,263 | H28: =INDEX('Datos Generales'!$C$101:$AP$101,,ROWS('Datos Generales'!$C$101:AP111))*Índice!$G$52 -> 2,003,697 | I28: =(INDEX('Datos Generales'!$C$9:$AP$9,,ROWS('Datos Generales'!$C$9:AP19))+INDEX('Datos Generales'!$C$20:$AP$20,,ROWS('Datos Generales'!$C$20:AP30)))*Índice!$G$52 -> 2,285,462 | K28: 2021-05-01
B29: =INDEX('Datos Generales'!$C$7:$AP$7,,ROWS('Datos Generales'!$C$7:AP18)) -> Continental Generales | C29: =INDEX('Datos Generales'!$C$118:$AP$118,,ROWS('Datos Generales'!$C$118:AP129))*Índice!$G$52 -> 297,370 | D29: =(INDEX('Datos Generales'!$C$116:$AP$116,,ROWS('Datos Generales'!$C$116:AP127))-INDEX('Datos Generales'!$C$144:$AP$144,,ROWS('Datos Generales'!$C$144:AP155)))*Índice!$G$52 -> 12,324 | E29: =INDEX('Datos Generales'!$C$170:$AP$170,,ROWS('Datos Generales'!$C$170:AP181))*Índice!$G$52 -> 10,740 | F29: =INDEX('Datos Generales'!$C$147:$AP$147,,ROWS('Datos Generales'!$C$147:AP158))*Índice!$G$52 -> 256 | G29: =INDEX('Datos Generales'!$C$129:$AP$129,,ROWS('Datos Generales'!$C$129:AP140))*Índice!$G$52 -> -127,978 | H29: =INDEX('Datos Generales'!$C$101:$AP$101,,ROWS('Datos Generales'!$C$101:AP112))*Índice!$G$52 -> 276,028 | I29: =(INDEX('Datos Generales'!$C$9:$AP$9,,ROWS('Datos Generales'!$C$9:AP20))+INDEX('Datos Generales'!$C$20:$AP$20,,ROWS('Datos Generales'!$C$20:AP31)))*Índice!$G$52 -> 526,553 | K29: 2021-05-01
B30: =INDEX('Datos Generales'!$C$7:$AP$7,,ROWS('Datos Generales'!$C$7:AP19)) -> FID Chile | C30: =INDEX('Datos Generales'!$C$118:$AP$118,,ROWS('Datos Generales'!$C$118:AP130))*Índice!$G$52 -> 293,934 | D30: =(INDEX('Datos Generales'!$C$116:$AP$116,,ROWS('Datos Generales'!$C$116:AP128))-INDEX('Datos Generales'!$C$144:$AP$144,,ROWS('Datos Generales'!$C$144:AP156)))*Índice!$G$52 -> -24,543 | E30: =INDEX('Datos Generales'!$C$170:$AP$170,,ROWS('Datos Generales'!$C$170:AP182))*Índice!$G$52 -> -18,329 | F30: =INDEX('Datos Generales'!$C$147:$AP$147,,ROWS('Datos Generales'!$C$147:AP159))*Índice!$G$52 -> -2,443 | G30: =INDEX('Datos Generales'!$C$129:$AP$129,,ROWS('Datos Generales'!$C$129:AP141))*Índice!$G$52 -> 174,857 | H30: =INDEX('Datos Generales'!$C$101:$AP$101,,ROWS('Datos Generales'!$C$101:AP113))*Índice!$G$52 -> 184,570 | I30: =(INDEX('Datos Generales'!$C$9:$AP$9,,ROWS('Datos Generales'!$C$9:AP21))+INDEX('Datos Generales'!$C$20:$AP$20,,ROWS('Datos Generales'!$C$20:AP32)))*Índice!$G$52 -> 212,179 | K30: 2021-05-01
B31: =INDEX('Datos Generales'!$C$7:$AP$7,,ROWS('Datos Generales'!$C$7:AP20)) -> HDI Gar. y Cré. | C31: =INDEX('Datos Generales'!$C$118:$AP$118,,ROWS('Datos Generales'!$C$118:AP131))*Índice!$G$52 -> 14,794 | D31: =(INDEX('Datos Generales'!$C$116:$AP$116,,ROWS('Datos Generales'!$C$116:AP129))-INDEX('Datos Generales'!$C$144:$AP$144,,ROWS('Datos Generales'!$C$144:AP157)))*Índice!$G$52 -> -8,005 | E31: =INDEX('Datos Generales'!$C$170:$AP$170,,ROWS('Datos Generales'!$C$170:AP183))*Índice!$G$52 -> 2,397 | F31: =INDEX('Datos Generales'!$C$147:$AP$147,,ROWS('Datos Generales'!$C$147:AP160))*Índice!$G$52 -> 1,827 | G31: =INDEX('Datos Generales'!$C$129:$AP$129,,ROWS('Datos Generales'!$C$129:AP142))*Índice!$G$52 -> 35,616 | H31: =INDEX('Datos Generales'!$C$101:$AP$101,,ROWS('Datos Generales'!$C$101:AP114))*Índice!$G$52 -> 275,716 | I31: =(INDEX('Datos Generales'!$C$9:$AP$9,,ROWS('Datos Generales'!$C$9:AP22))+INDEX('Datos Generales'!$C$20:$AP$20,,ROWS('Datos Generales'!$C$20:AP33)))*Índice!$G$52 -> 362,273 | K31: 2021-05-01
B32: =INDEX('Datos Generales'!$C$7:$AP$7,,ROWS('Datos Generales'!$C$7:AP21)) -> HDI Seguros | C32: =INDEX('Datos Generales'!$C$118:$AP$118,,ROWS('Datos Generales'!$C$118:AP132))*Índice!$G$52 -> 2,359,892 | D32: =(INDEX('Datos Generales'!$C$116:$AP$116,,ROWS('Datos Generales'!$C$116:AP130))-INDEX('Datos Generales'!$C$144:$AP$144,,ROWS('Datos Generales'!$C$144:AP158)))*Índice!$G$52 -> 150,303 | E32: =INDEX('Datos Generales'!$C$170:$AP$170,,ROWS('Datos Generales'!$C$170:AP184))*Índice!$G$52 -> 202,998 | F32: =INDEX('Datos Generales'!$C$147:$AP$147,,ROWS('Datos Generales'!$C$147:AP161))*Índice!$G$52 -> 22,704 | G32: =INDEX('Datos Generales'!$C$129:$AP$129,,ROWS('Datos Generales'!$C$129:AP143))*Índice!$G$52 -> 1,409,315 | H32: =INDEX('Datos Generales'!$C$101:$AP$101,,ROWS('Datos Generales'!$C$101:AP115))*Índice!$G$52 -> 2,737,481 | I32: =(INDEX('Datos Generales'!$C$9:$AP$9,,ROWS('Datos Generales'!$C$9:AP23))+INDEX('Datos Generales'!$C$20:$AP$20,,ROWS('Datos Generales'!$C$20:AP34)))*Índice!$G$52 -> 6,089,264 | K32: 2021-05-01
B33: =INDEX('Datos Generales'!$C$7:$AP$7,,ROWS('Datos Generales'!$C$7:AP22)) -> Huelen | C33: =INDEX('Datos Generales'!$C$118:$AP$118,,ROWS('Datos Generales'!$C$118:AP133))*Índice!$G$52 -> 2,291 | D33: =(INDEX('Datos Generales'!$C$116:$AP$116,,ROWS('Datos Generales'!$C$116:AP131))-INDEX('Datos Generales'!$C$144:$AP$144,,ROWS('Datos Generales'!$C$144:AP159)))*Índice!$G$52 -> 1,269 | E33: =INDEX('Datos Generales'!$C$170:$AP$170,,ROWS('Datos Generales'!$C$170:AP185))*Índice!$G$52 -> 1,378 | F33: =INDEX('Datos Generales'!$C$147:$AP$147,,ROWS('Datos Generales'!$C$147:AP162))*Índice!$G$52 -> 109 | G33: =INDEX('Datos Generales'!$C$129:$AP$129,,ROWS('Datos Generales'!$C$129:AP144))*Índice!$G$52 -> -60 | H33: =INDEX('Datos Generales'!$C$101:$AP$101,,ROWS('Datos Generales'!$C$101:AP116))*Índice!$G$52 -> 110,338 | I33: =(INDEX('Datos Generales'!$C$9:$AP$9,,ROWS('Datos Generales'!$C$9:AP24))+INDEX('Datos Generales'!$C$20:$AP$20,,ROWS('Datos Generales'!$C$20:AP35)))*Índice!$G$52 -> 113,087 | K33: 2021-05-01
B34: =INDEX('Datos Generales'!$C$7:$AP$7,,ROWS('Datos Generales'!$C$7:AP23)) -> Liberty Seguros | C34: =INDEX('Datos Generales'!$C$118:$AP$118,,ROWS('Datos Generales'!$C$118:AP134))*Índice!$G$52 -> 2,367,187 | D34: =(INDEX('Datos Generales'!$C$116:$AP$116,,ROWS('Datos Generales'!$C$116:AP132))-INDEX('Datos Generales'!$C$144:$AP$144,,ROWS('Datos Generales'!$C$144:AP160)))*Índice!$G$52 -> -152,436 | E34: =INDEX('Datos Generales'!$C$170:$AP$170,,ROWS('Datos Generales'!$C$170:AP186))*Índice!$G$52 -> 4,777 | F34: =INDEX('Datos Generales'!$C$147:$AP$147,,ROWS('Datos Generales'!$C$147:AP163))*Índice!$G$52 -> 51,051 | G34: =INDEX('Datos Generales'!$C$129:$AP$129,,ROWS('Datos Generales'!$C$129:AP145))*Índice!$G$52 -> 1,068,603 | H34: =INDEX('Datos Generales'!$C$101:$AP$101,,ROWS('Datos Generales'!$C$101:AP117))*Índice!$G$52 -> 3,534,170 | I34: =(INDEX('Datos Generales'!$C$9:$AP$9,,ROWS('Datos Generales'!$C$9:AP25))+INDEX('Datos Generales'!$C$20:$AP$20,,ROWS('Datos Generales'!$C$20:AP36)))*Índice!$G$52 -> 7,420,927 | K34: 2021-05-01
B35: =INDEX('Datos Generales'!$C$7:$AP$7,,ROWS('Datos Generales'!$C$7:AP24)) -> M. de Carabineros | C35: =INDEX('Datos Generales'!$C$118:$AP$118,,ROWS('Datos Generales'!$C$118:AP135))*Índice!$G$52 -> 0 | D35: =(INDEX('Datos Generales'!$C$116:$AP$116,,ROWS('Datos Generales'!$C$116:AP133))-INDEX('Datos Generales'!$C$144:$AP$144,,ROWS('Datos Generales'!$C$144:AP161)))*Índice!$G$52 -> 0 | E35: =INDEX('Datos Generales'!$C$170:$AP$170,,ROWS('Datos Generales'!$C$170:AP187))*Índice!$G$52 -> 0 | F35: =INDEX('Datos Generales'!$C$147:$AP$147,,ROWS('Datos Generales'!$C$147:AP164))*Índice!$G$52 -> 0 | G35: =INDEX('Datos Generales'!$C$129:$AP$129,,ROWS('Datos Generales'!$C$129:AP146))*Índice!$G$52 -> 0 | H35: =INDEX('Datos Generales'!$C$101:$AP$101,,ROWS('Datos Generales'!$C$101:AP118))*Índice!$G$52 -> 0 | I35: =(INDEX('Datos Generales'!$C$9:$AP$9,,ROWS('Datos Generales'!$C$9:AP26))+INDEX('Datos Generales'!$C$20:$AP$20,,ROWS('Datos Generales'!$C$20:AP37)))*Índice!$G$52 -> 0 | K35: 00:00:00
B36: =INDEX('Datos Generales'!$C$7:$AP$7,,ROWS('Datos Generales'!$C$7:AP25)) -> Mapfre | C36: =INDEX('Datos Generales'!$C$118:$AP$118,,ROWS('Datos Generales'!$C$118:AP136))*Índice!$G$52 -> 1,694,164 | D36: =(INDEX('Datos Generales'!$C$116:$AP$116,,ROWS('Datos Generales'!$C$116:AP134))-INDEX('Datos Generales'!$C$144:$AP$144,,ROWS('Datos Generales'!$C$144:AP162)))*Índice!$G$52 -> 13,273 | E36: =INDEX('Datos Generales'!$C$170:$AP$170,,ROWS('Datos Generales'!$C$170:AP188))*Índice!$G$52 -> 40,018 | F36: =INDEX('Datos Generales'!$C$147:$AP$147,,ROWS('Datos Generales'!$C$147:AP165))*Índice!$G$52 -> 10,093 | G36: =INDEX('Datos Generales'!$C$129:$AP$129,,ROWS('Datos Generales'!$C$129:AP147))*Índice!$G$52 -> 627,760 | H36: =INDEX('Datos Generales'!$C$101:$AP$101,,ROWS('Datos Generales'!$C$101:AP119))*Índice!$G$52 -> 1,927,479 | I36: =(INDEX('Datos Generales'!$C$9:$AP$9,,ROWS('Datos Generales'!$C$9:AP27))+INDEX('Datos Generales'!$C$20:$AP$20,,ROWS('Datos Generales'!$C$20:AP38)))*Índice!$G$52 -> 3,573,491 | K36: 2021-05-01
B37: =INDEX('Datos Generales'!$C$7:$AP$7,,ROWS('Datos Generales'!$C$7:AP26)) -> MetLife Generales | C37: =INDEX('Datos Generales'!$C$118:$AP$118,,ROWS('Datos Generales'!$C$118:AP137))*Índice!$G$52 -> 44,915 | D37: =(INDEX('Datos Generales'!$C$116:$AP$116,,ROWS('Datos Generales'!$C$116:AP135))-INDEX('Datos Generales'!$C$144:$AP$144,,ROWS('Datos Generales'!$C$144:AP163)))*Índice!$G$52 -> 30,645 | E37: =INDEX('Datos Generales'!$C$170:$AP$170,,ROWS('Datos Generales'!$C$170:AP189))*Índice!$G$52 -> 24,318 | F37: =INDEX('Datos Generales'!$C$147:$AP$147,,ROWS('Datos Generales'!$C$147:AP166))*Índice!$G$52 -> 361 | G37: =INDEX('Datos Generales'!$C$129:$AP$129,,ROWS('Datos Generales'!$C$129:AP148))*Índice!$G$52 -> -1,173 | H37: =INDEX('Datos Generales'!$C$101:$AP$101,,ROWS('Datos Generales'!$C$101:AP120))*Índice!$G$52 -> 270,595 | I37: =(INDEX('Datos Generales'!$C$9:$AP$9,,ROWS('Datos Generales'!$C$9:AP28))+INDEX('Datos Generales'!$C$20:$AP$20,,ROWS('Datos Generales'!$C$20:AP39)))*Índice!$G$52 -> 330,620 | K37: 2021-05-01
B38: =INDEX('Datos Generales'!$C$7:$AP$7,,ROWS('Datos Generales'!$C$7:AP27)) -> Orion Seguros | C38: =INDEX('Datos Generales'!$C$118:$AP$118,,ROWS('Datos Generales'!$C$118:AP138))*Índice!$G$52 -> 487,362 | D38: =(INDEX('Datos Generales'!$C$116:$AP$116,,ROWS('Datos Generales'!$C$116:AP136))-INDEX('Datos Generales'!$C$144:$AP$144,,ROWS('Datos Generales'!$C$144:AP164)))*Índice!$G$52 -> 17,456 | E38: =INDEX('Datos Generales'!$C$170:$AP$170,,ROWS('Datos Generales'!$C$170:AP190))*Índice!$G$52 -> 18,298 | F38: =INDEX('Datos Generales'!$C$147:$AP$147,,ROWS('Datos Generales'!$C$147:AP167))*Índice!$G$52 -> 544 | G38: =INDEX('Datos Generales'!$C$129:$AP$129,,ROWS('Datos Generales'!$C$129:AP149))*Índice!$G$52 -> 428,149 | H38: =INDEX('Datos Generales'!$C$101:$AP$101,,ROWS('Datos Generales'!$C$101:AP121))*Índice!$G$52 -> 379,995 | I38: =(INDEX('Datos Generales'!$C$9:$AP$9,,ROWS('Datos Generales'!$C$9:AP29))+INDEX('Datos Generales'!$C$20:$AP$20,,ROWS('Datos Generales'!$C$20:AP40)))*Índice!$G$52 -> 732,506 | K38: 2021-05-01
B39: =INDEX('Datos Generales'!$C$7:$AP$7,,ROWS('Datos Generales'!$C$7:AP28)) -> Orsan Crédito | C39: =INDEX('Datos Generales'!$C$118:$AP$118,,ROWS('Datos Generales'!$C$118:AP139))*Índice!$G$52 -> 38,865 | D39: =(INDEX('Datos Generales'!$C$116:$AP$116,,ROWS('Datos Generales'!$C$116:AP137))-INDEX('Datos Generales'!$C$144:$AP$144,,ROWS('Datos Generales'!$C$144:AP165)))*Índice!$G$52 -> -25,144 | E39: =INDEX('Datos Generales'!$C$170:$AP$170,,ROWS('Datos Generales'!$C$170:AP191))*Índice!$G$52 -> -11,269 | F39: =INDEX('Datos Generales'!$C$147:$AP$147,,ROWS('Datos Generales'!$C$147:AP168))*Índice!$G$52 -> 6,726 | G39: =INDEX('Datos Generales'!$C$129:$AP$129,,ROWS('Datos Generales'!$C$129:AP150))*Índice!$G$52 -> 91,229 | H39: =INDEX('Datos Generales'!$C$101:$AP$101,,ROWS('Datos Generales'!$C$101:AP122))*Índice!$G$52 -> 104,896 | I39: =(INDEX('Datos Generales'!$C$9:$AP$9,,ROWS('Datos Generales'!$C$9:AP30))+INDEX('Datos Generales'!$C$20:$AP$20,,ROWS('Datos Generales'!$C$20:AP41)))*Índice!$G$52 -> 164,913 | K39: 2021-05-01
B40: =INDEX('Datos Generales'!$C$7:$AP$7,,ROWS('Datos Generales'!$C$7:AP29)) -> Porvenir | C40: =INDEX('Datos Generales'!$C$118:$AP$118,,ROWS('Datos Generales'!$C$118:AP140))*Índice!$G$52 -> 205,959 | D40: =(INDEX('Datos Generales'!$C$116:$AP$116,,ROWS('Datos Generales'!$C$116:AP138))-INDEX('Datos Generales'!$C$144:$AP$144,,ROWS('Datos Generales'!$C$144:AP166)))*Índice!$G$52 -> 6,077 | E40: =INDEX('Datos Generales'!$C$170:$AP$170,,ROWS('Datos Generales'!$C$170:AP192))*Índice!$G$52 -> 11,084 | F40: =INDEX('Datos Generales'!$C$147:$AP$147,,ROWS('Datos Generales'!$C$147:AP169))*Índice!$G$52 -> 3,167 | G40: =INDEX('Datos Generales'!$C$129:$AP$129,,ROWS('Datos Generales'!$C$129:AP151))*Índice!$G$52 -> 108,269 | H40: =INDEX('Datos Generales'!$C$101:$AP$101,,ROWS('Datos Generales'!$C$101:AP123))*Índice!$G$52 -> 197,509 | I40: =(INDEX('Datos Generales'!$C$9:$AP$9,,ROWS('Datos Generales'!$C$9:AP31))+INDEX('Datos Generales'!$C$20:$AP$20,,ROWS('Datos Generales'!$C$20:AP42)))*Índice!$G$52 -> 414,912 | K40: 2021-05-01
B41: =INDEX('Datos Generales'!$C$7:$AP$7,,ROWS('Datos Generales'!$C$7:AP30)) -> Reale Chile | C41: =INDEX('Datos Generales'!$C$118:$AP$118,,ROWS('Datos Generales'!$C$118:AP141))*Índice!$G$52 -> 541,484 | D41: =(INDEX('Datos Generales'!$C$116:$AP$116,,ROWS('Datos Generales'!$C$116:AP139))-INDEX('Datos Generales'!$C$144:$AP$144,,ROWS('Datos Generales'!$C$144:AP167)))*Índice!$G$52 -> -39,726 | E41: =INDEX('Datos Generales'!$C$170:$AP$170,,ROWS('Datos Generales'!$C$170:AP193))*Índice!$G$52 -> -21,092 | F41: =INDEX('Datos Generales'!$C$147:$AP$147,,ROWS('Datos Generales'!$C$147:AP170))*Índice!$G$52 -> 692 | G41: =INDEX('Datos Generales'!$C$129:$AP$129,,ROWS('Datos Generales'!$C$129:AP152))*Índice!$G$52 -> 556,957 | H41: =INDEX('Datos Generales'!$C$101:$AP$101,,ROWS('Datos Generales'!$C$101:AP124))*Índice!$G$52 -> 628,612 | I41: =(INDEX('Datos Generales'!$C$9:$AP$9,,ROWS('Datos Generales'!$C$9:AP32))+INDEX('Datos Generales'!$C$20:$AP$20,,ROWS('Datos Generales'!$C$20:AP43)))*Índice!$G$52 -> 867,021 | K41: 2021-05-01
B42: =INDEX('Datos Generales'!$C$7:$AP$7,,ROWS('Datos Generales'!$C$7:AP31)) -> Renta Nacional | C42: =INDEX('Datos Generales'!$C$118:$AP$118,,ROWS('Datos Generales'!$C$118:AP142))*Índice!$G$52 -> 656,527 | D42: =(INDEX('Datos Generales'!$C$116:$AP$116,,ROWS('Datos Generales'!$C$116:AP140))-INDEX('Datos Generales'!$C$144:$AP$144,,ROWS('Datos Generales'!$C$144:AP168)))*Índice!$G$52 -> 38,164 | E42: =INDEX('Datos Generales'!$C$170:$AP$170,,ROWS('Datos Generales'!$C$170:AP194))*Índice!$G$52 -> 39,050 | F42: =INDEX('Datos Generales'!$C$147:$AP$147,,ROWS('Datos Generales'!$C$147:AP171))*Índice!$G$52 -> 1,647 | G42: =INDEX('Datos Generales'!$C$129:$AP$129,,ROWS('Datos Generales'!$C$129:AP153))*Índice!$G$52 -> 243,963 | H42: =INDEX('Datos Generales'!$C$101:$AP$101,,ROWS('Datos Generales'!$C$101:AP125))*Índice!$G$52 -> 539,591 | I42: =(INDEX('Datos Generales'!$C$9:$AP$9,,ROWS('Datos Generales'!$C$9:AP33))+INDEX('Datos Generales'!$C$20:$AP$20,,ROWS('Datos Generales'!$C$20:AP44)))*Índice!$G$52 -> 764,719 | K42: 2021-05-01
B43: =INDEX('Datos Generales'!$C$7:$AP$7,,ROWS('Datos Generales'!$C$7:AP32)) -> SegChile | C43: =INDEX('Datos Generales'!$C$118:$AP$118,,ROWS('Datos Generales'!$C$118:AP143))*Índice!$G$52 -> 4,021 | D43: =(INDEX('Datos Generales'!$C$116:$AP$116,,ROWS('Datos Generales'!$C$116:AP141))-INDEX('Datos Generales'!$C$144:$AP$144,,ROWS('Datos Generales'!$C$144:AP169)))*Índice!$G$52 -> 2,455 | E43: =INDEX('Datos Generales'!$C$170:$AP$170,,ROWS('Datos Generales'!$C$170:AP195))*Índice!$G$52 -> 2,581 | F43: =INDEX('Datos Generales'!$C$147:$AP$147,,ROWS('Datos Generales'!$C$147:AP172))*Índice!$G$52 -> -80 | G43: =INDEX('Datos Generales'!$C$129:$AP$129,,ROWS('Datos Generales'!$C$129:AP154))*Índice!$G$52 -> 1 | H43: =INDEX('Datos Generales'!$C$101:$AP$101,,ROWS('Datos Generales'!$C$101:AP126))*Índice!$G$52 -> 147,142 | I43: =(INDEX('Datos Generales'!$C$9:$AP$9,,ROWS('Datos Generales'!$C$9:AP34))+INDEX('Datos Generales'!$C$20:$AP$20,,ROWS('Datos Generales'!$C$20:AP45)))*Índice!$G$52 -> 203,379 | K43: 2021-05-01
B44: =INDEX('Datos Generales'!$C$7:$AP$7,,ROWS('Datos Generales'!$C$7:AP33)) -> Solunión Chile | C44: =INDEX('Datos Generales'!$C$118:$AP$118,,ROWS('Datos Generales'!$C$118:AP144))*Índice!$G$52 -> 80,143 | D44: =(INDEX('Datos Generales'!$C$116:$AP$116,,ROWS('Datos Generales'!$C$116:AP142))-INDEX('Datos Generales'!$C$144:$AP$144,,ROWS('Datos Generales'!$C$144:AP170)))*Índice!$G$52 -> 4,054 | E44: =INDEX('Datos Generales'!$C$170:$AP$170,,ROWS('Datos Generales'!$C$170:AP196))*Índice!$G$52 -> 6,434 | F44: =INDEX('Datos Generales'!$C$147:$AP$147,,ROWS('Datos Generales'!$C$147:AP173))*Índice!$G$52 -> -272 | G44: =INDEX('Datos Generales'!$C$129:$AP$129,,ROWS('Datos Generales'!$C$129:AP155))*Índice!$G$52 -> -5,907 | H44: =INDEX('Datos Generales'!$C$101:$AP$101,,ROWS('Datos Generales'!$C$101:AP127))*Índice!$G$52 -> 188,431 | I44: =(INDEX('Datos Generales'!$C$9:$AP$9,,ROWS('Datos Generales'!$C$9:AP35))+INDEX('Datos Generales'!$C$20:$AP$20,,ROWS('Datos Generales'!$C$20:AP46)))*Índice!$G$52 -> 125,420 | K44: 2021-05-01
B45: =INDEX('Datos Generales'!$C$7:$AP$7,,ROWS('Datos Generales'!$C$7:AP34)) -> Southbridge | C45: =INDEX('Datos Generales'!$C$118:$AP$118,,ROWS('Datos Generales'!$C$118:AP145))*Índice!$G$52 -> 2,074,493 | D45: =(INDEX('Datos Generales'!$C$116:$AP$116,,ROWS('Datos Generales'!$C$116:AP143))-INDEX('Datos Generales'!$C$144:$AP$144,,ROWS('Datos Generales'!$C$144:AP171)))*Índice!$G$52 -> 43,386 | E45: =INDEX('Datos Generales'!$C$170:$AP$170,,ROWS('Datos Generales'!$C$170:AP197))*Índice!$G$52 -> 89,606 | F45: =INDEX('Datos Generales'!$C$147:$AP$147,,ROWS('Datos Generales'!$C$147:AP174))*Índice!$G$52 -> 62,655 | G45: =INDEX('Datos Generales'!$C$129:$AP$129,,ROWS('Datos Generales'!$C$129:AP156))*Índice!$G$52 -> 328,349 | H45: =INDEX('Datos Generales'!$C$101:$AP$101,,ROWS('Datos Generales'!$C$101:AP128))*Índice!$G$52 -> 1,220,006 | I45: =(INDEX('Datos Generales'!$C$9:$AP$9,,ROWS('Datos Generales'!$C$9:AP36))+INDEX('Datos Generales'!$C$20:$AP$20,,ROWS('Datos Generales'!$C$20:AP47)))*Índice!$G$52 -> 2,198,958 | K45: 2021-05-01
B46: =INDEX('Datos Generales'!$C$7:$AP$7,,ROWS('Datos Generales'!$C$7:AP35)) -> Starr International | C46: =INDEX('Datos Generales'!$C$118:$AP$118,,ROWS('Datos Generales'!$C$118:AP146))*Índice!$G$52 -> 305,804 | D46: =(INDEX('Datos Generales'!$C$116:$AP$116,,ROWS('Datos Generales'!$C$116:AP144))-INDEX('Datos Generales'!$C$144:$AP$144,,ROWS('Datos Generales'!$C$144:AP172)))*Índice!$G$52 -> 14,522 | E46: =INDEX('Datos Generales'!$C$170:$AP$170,,ROWS('Datos Generales'!$C$170:AP198))*Índice!$G$52 -> 15,743 | F46: =INDEX('Datos Generales'!$C$147:$AP$147,,ROWS('Datos Generales'!$C$147:AP175))*Índice!$G$52 -> -20 | G46: =INDEX('Datos Generales'!$C$129:$AP$129,,ROWS('Datos Generales'!$C$129:AP157))*Índice!$G$52 -> 60,075 | H46: =INDEX('Datos Generales'!$C$101:$AP$101,,ROWS('Datos Generales'!$C$101:AP129))*Índice!$G$52 -> 201,345 | I46: =(INDEX('Datos Generales'!$C$9:$AP$9,,ROWS('Datos Generales'!$C$9:AP37))+INDEX('Datos Generales'!$C$20:$AP$20,,ROWS('Datos Generales'!$C$20:AP48)))*Índice!$G$52 -> 373,411 | K46: 2021-05-01
B47: =INDEX('Datos Generales'!$C$7:$AP$7,,ROWS('Datos Generales'!$C$7:AP36)) -> Suaval | C47: =INDEX('Datos Generales'!$C$118:$AP$118,,ROWS('Datos Generales'!$C$118:AP147))*Índice!$G$52 -> 43,718 | D47: =(INDEX('Datos Generales'!$C$116:$AP$116,,ROWS('Datos Generales'!$C$116:AP145))-INDEX('Datos Generales'!$C$144:$AP$144,,ROWS('Datos Generales'!$C$144:AP173)))*Índice!$G$52 -> -181 | E47: =INDEX('Datos Generales'!$C$170:$AP$170,,ROWS('Datos Generales'!$C$170:AP199))*Índice!$G$52 -> 1,995 | F47: =INDEX('Datos Generales'!$C$147:$AP$147,,ROWS('Datos Generales'!$C$147:AP176))*Índice!$G$52 -> 308 | G47: =INDEX('Datos Generales'!$C$129:$AP$129,,ROWS('Datos Generales'!$C$129:AP158))*Índice!$G$52 -> -16,333 | H47: =INDEX('Datos Generales'!$C$101:$AP$101,,ROWS('Datos Generales'!$C$101:AP130))*Índice!$G$52 -> 113,401 | I47: =(INDEX('Datos Generales'!$C$9:$AP$9,,ROWS('Datos Generales'!$C$9:AP38))+INDEX('Datos Generales'!$C$20:$AP$20,,ROWS('Datos Generales'!$C$20:AP49)))*Índice!$G$52 -> 160,912 | K47: 2021-05-01
B48: =INDEX('Datos Generales'!$C$7:$AP$7,,ROWS('Datos Generales'!$C$7:AP37)) -> Suramericana | C48: =INDEX('Datos Generales'!$C$118:$AP$118,,ROWS('Datos Generales'!$C$118:AP148))*Índice!$G$52 -> 2,935,008 | D48: =(INDEX('Datos Generales'!$C$116:$AP$116,,ROWS('Datos Generales'!$C$116:AP146))-INDEX('Datos Generales'!$C$144:$AP$144,,ROWS('Datos Generales'!$C$144:AP174)))*Índice!$G$52 -> -7,531 | E48: =INDEX('Datos Generales'!$C$170:$AP$170,,ROWS('Datos Generales'!$C$170:AP200))*Índice!$G$52 -> 47,437 | F48: =INDEX('Datos Generales'!$C$147:$AP$147,,ROWS('Datos Generales'!$C$147:AP177))*Índice!$G$52 -> 15,772 | G48: =INDEX('Datos Generales'!$C$129:$AP$129,,ROWS('Datos Generales'!$C$129:AP159))*Índice!$G$52 -> 945,828 | H48: =INDEX('Datos Generales'!$C$101:$AP$101,,ROWS('Datos Generales'!$C$101:AP131))*Índice!$G$52 -> 3,915,443 | I48: =(INDEX('Datos Generales'!$C$9:$AP$9,,ROWS('Datos Generales'!$C$9:AP39))+INDEX('Datos Generales'!$C$20:$AP$20,,ROWS('Datos Generales'!$C$20:AP50)))*Índice!$G$52 -> 5,838,169 | K48: 2021-05-01
B49: =INDEX('Datos Generales'!$C$7:$AP$7,,ROWS('Datos Generales'!$C$7:AP38)) -> Unnio | C49: =INDEX('Datos Generales'!$C$118:$AP$118,,ROWS('Datos Generales'!$C$118:AP149))*Índice!$G$52 -> 687,794 | D49: =(INDEX('Datos Generales'!$C$116:$AP$116,,ROWS('Datos Generales'!$C$116:AP147))-INDEX('Datos Generales'!$C$144:$AP$144,,ROWS('Datos Generales'!$C$144:AP175)))*Índice!$G$52 -> 2,134 | E49: =INDEX('Datos Generales'!$C$170:$AP$170,,ROWS('Datos Generales'!$C$170:AP201))*Índice!$G$52 -> 4,480 | F49: =INDEX('Datos Generales'!$C$147:$AP$147,,ROWS('Datos Generales'!$C$147:AP178))*Índice!$G$52 -> -102 | G49: =INDEX('Datos Generales'!$C$129:$AP$129,,ROWS('Datos Generales'!$C$129:AP160))*Índice!$G$52 -> 181,977 | H49: =INDEX('Datos Generales'!$C$101:$AP$101,,ROWS('Datos Generales'!$C$101:AP132))*Índice!$G$52 -> 255,416 | I49: =(INDEX('Datos Generales'!$C$9:$AP$9,,ROWS('Datos Generales'!$C$9:AP40))+INDEX('Datos Generales'!$C$20:$AP$20,,ROWS('Datos Generales'!$C$20:AP51)))*Índice!$G$52 -> 395,954 | K49: 2021-05-01
B50: =INDEX('Datos Generales'!$C$7:$AP$7,,ROWS('Datos Generales'!$C$7:AP39)) -> Zenit Seguros | C50: =INDEX('Datos Generales'!$C$118:$AP$118,,ROWS('Datos Generales'!$C$118:AP150))*Índice!$G$52 -> 301,598 | D50: =(INDEX('Datos Generales'!$C$116:$AP$116,,ROWS('Datos Generales'!$C$116:AP148))-INDEX('Datos Generales'!$C$144:$AP$144,,ROWS('Datos Generales'!$C$144:AP176)))*Índice!$G$52 -> 47,329 | E50: =INDEX('Datos Generales'!$C$170:$AP$170,,ROWS('Datos Generales'!$C$170:AP202))*Índice!$G$52 -> 40,097 | F50: =INDEX('Datos Generales'!$C$147:$AP$147,,ROWS('Datos Generales'!$C$147:AP179))*Índice!$G$52 -> 1,891 | G50: =INDEX('Datos Generales'!$C$129:$AP$129,,ROWS('Datos Generales'!$C$129:AP161))*Índice!$G$52 -> 123,476 | H50: =INDEX('Datos Generales'!$C$101:$AP$101,,ROWS('Datos Generales'!$C$101:AP133))*Índice!$G$52 -> 430,350 | I50: =(INDEX('Datos Generales'!$C$9:$AP$9,,ROWS('Datos Generales'!$C$9:AP41))+INDEX('Datos Generales'!$C$20:$AP$20,,ROWS('Datos Generales'!$C$20:AP52)))*Índice!$G$52 -> 816,532 | K50: 2021-05-01
B51: =INDEX('Datos Generales'!$C$7:$AP$7,,ROWS('Datos Generales'!$C$7:AP40)) -> Zurich Santander | C51: =INDEX('Datos Generales'!$C$118:$AP$118,,ROWS('Datos Generales'!$C$118:AP151))*Índice!$G$52 -> 422,271 | D51: =(INDEX('Datos Generales'!$C$116:$AP$116,,ROWS('Datos Generales'!$C$116:AP149))-INDEX('Datos Generales'!$C$144:$AP$144,,ROWS('Datos Generales'!$C$144:AP177)))*Índice!$G$52 -> 113,628 | E51: =INDEX('Datos Generales'!$C$170:$AP$170,,ROWS('Datos Generales'!$C$170:AP203))*Índice!$G$52 -> 88,817 | F51: =INDEX('Datos Generales'!$C$147:$AP$147,,ROWS('Datos Generales'!$C$147:AP180))*Índice!$G$52 -> 6,817 | G51: =INDEX('Datos Generales'!$C$129:$AP$129,,ROWS('Datos Generales'!$C$129:AP162))*Índice!$G$52 -> 364,921 | H51: =INDEX('Datos Generales'!$C$101:$AP$101,,ROWS('Datos Generales'!$C$101:AP134))*Índice!$G$52 -> 1,915,803 | I51: =(INDEX('Datos Generales'!$C$9:$AP$9,,ROWS('Datos Generales'!$C$9:AP42))+INDEX('Datos Generales'!$C$20:$AP$20,,ROWS('Datos Generales'!$C$20:AP53)))*Índice!$G$52 -> 2,807,204 | K51: 2021-05-01
B52: =INDEX('Datos Generales'!$C$7:$AP$7,,ROWS('Datos Generales'!$C$7:AP41)) -> 0 | C52: =INDEX('Datos Generales'!$C$118:$AP$118,,ROWS('Datos Generales'!$C$118:AP152))*Índice!$G$52 -> 0 | D52: =(INDEX('Datos Generales'!$C$116:$AP$116,,ROWS('Datos Generales'!$C$116:AP150))-INDEX('Datos Generales'!$C$144:$AP$144,,ROWS('Datos Generales'!$C$144:AP178)))*Índice!$G$52 -> 0 | E52: =INDEX('Datos Generales'!$C$170:$AP$170,,ROWS('Datos Generales'!$C$170:AP204))*Índice!$G$52 -> 0 | F52: =INDEX('Datos Generales'!$C$147:$AP$147,,ROWS('Datos Generales'!$C$147:AP181))*Índice!$G$52 -> 0 | G52: =INDEX('Datos Generales'!$C$129:$AP$129,,ROWS('Datos Generales'!$C$129:AP163))*Índice!$G$52 -> 0 | H52: =INDEX('Datos Generales'!$C$101:$AP$101,,ROWS('Datos Generales'!$C$101:AP135))*Índice!$G$52 -> 0 | I52: =(INDEX('Datos Generales'!$C$9:$AP$9,,ROWS('Datos Generales'!$C$9:AP43))+INDEX('Datos Generales'!$C$20:$AP$20,,ROWS('Datos Generales'!$C$20:AP54)))*Índice!$G$52 -> 0
B53: =INDEX('Datos Generales'!$C$7:$AP$7,,ROWS('Datos Generales'!$C$7:AP42)) -> 0 | C53: =INDEX('Datos Generales'!$C$118:$AP$118,,ROWS('Datos Generales'!$C$118:AP153))*Índice!$G$52 -> 0 | D53: =(INDEX('Datos Generales'!$C$116:$AP$116,,ROWS('Datos Generales'!$C$116:AP151))-INDEX('Datos Generales'!$C$144:$AP$144,,ROWS('Datos Generales'!$C$144:AP179)))*Índice!$G$52 -> 0 | E53: =INDEX('Datos Generales'!$C$170:$AP$170,,ROWS('Datos Generales'!$C$170:AP205))*Índice!$G$52 -> 0 | F53: =INDEX('Datos Generales'!$C$147:$AP$147,,ROWS('Datos Generales'!$C$147:AP182))*Índice!$G$52 -> 0 | G53: =INDEX('Datos Generales'!$C$129:$AP$129,,ROWS('Datos Generales'!$C$129:AP164))*Índice!$G$52 -> 0 | H53: =INDEX('Datos Generales'!$C$101:$AP$101,,ROWS('Datos Generales'!$C$101:AP136))*Índice!$G$52 -> 0 | I53: =(INDEX('Datos Generales'!$C$9:$AP$9,,ROWS('Datos Generales'!$C$9:AP44))+INDEX('Datos Generales'!$C$20:$AP$20,,ROWS('Datos Generales'!$C$20:AP55)))*Índice!$G$52 -> 0
B54: =INDEX('Datos Generales'!$C$7:$AP$7,,ROWS('Datos Generales'!$C$7:AP43)) -> 0 | C54: =INDEX('Datos Generales'!$C$118:$AP$118,,ROWS('Datos Generales'!$C$118:AP154))*Índice!$G$52 -> 0 | D54: =(INDEX('Datos Generales'!$C$116:$AP$116,,ROWS('Datos Generales'!$C$116:AP152))-INDEX('Datos Generales'!$C$144:$AP$144,,ROWS('Datos Generales'!$C$144:AP180)))*Índice!$G$52 -> 0 | E54: =INDEX('Datos Generales'!$C$170:$AP$170,,ROWS('Datos Generales'!$C$170:AP206))*Índice!$G$52 -> 0 | F54: =INDEX('Datos Generales'!$C$147:$AP$147,,ROWS('Datos Generales'!$C$147:AP183))*Índice!$G$52 -> 0 | G54: =INDEX('Datos Generales'!$C$129:$AP$129,,ROWS('Datos Generales'!$C$129:AP165))*Índice!$G$52 -> 0 | H54: =INDEX('Datos Generales'!$C$101:$AP$101,,ROWS('Datos Generales'!$C$101:AP137))*Índice!$G$52 -> 0 | I54: =(INDEX('Datos Generales'!$C$9:$AP$9,,ROWS('Datos Generales'!$C$9:AP45))+INDEX('Datos Generales'!$C$20:$AP$20,,ROWS('Datos Generales'!$C$20:AP56)))*Índice!$G$52 -> 0
B55: =INDEX('Datos Generales'!$C$7:$AP$7,,ROWS('Datos Generales'!$C$7:AP44)) -> 0 | C55: =INDEX('Datos Generales'!$C$118:$AP$118,,ROWS('Datos Generales'!$C$118:AP155))*Índice!$G$52 -> 0 | D55: =(INDEX('Datos Generales'!$C$116:$AP$116,,ROWS('Datos Generales'!$C$116:AP153))-INDEX('Datos Generales'!$C$144:$AP$144,,ROWS('Datos Generales'!$C$144:AP181)))*Índice!$G$52 -> 0 | E55: =INDEX('Datos Generales'!$C$170:$AP$170,,ROWS('Datos Generales'!$C$170:AP207))*Índice!$G$52 -> 0 | F55: =INDEX('Datos Generales'!$C$147:$AP$147,,ROWS('Datos Generales'!$C$147:AP184))*Índice!$G$52 -> 0 | G55: =INDEX('Datos Generales'!$C$129:$AP$129,,ROWS('Datos Generales'!$C$129:AP166))*Índice!$G$52 -> 0 | H55: =INDEX('Datos Generales'!$C$101:$AP$101,,ROWS('Datos Generales'!$C$101:AP138))*Índice!$G$52 -> 0 | I55: =(INDEX('Datos Generales'!$C$9:$AP$9,,ROWS('Datos Generales'!$C$9:AP46))+INDEX('Datos Generales'!$C$20:$AP$20,,ROWS('Datos Generales'!$C$20:AP57)))*Índice!$G$52 -> 0
B56: =INDEX('Datos Generales'!$C$7:$AP$7,,ROWS('Datos Generales'!$C$7:AP45)) -> 0 | C56: =INDEX('Datos Generales'!$C$118:$AP$118,,ROWS('Datos Generales'!$C$118:AP156))*Índice!$G$52 -> 0 | D56: =(INDEX('Datos Generales'!$C$116:$AP$116,,ROWS('Datos Generales'!$C$116:AP154))-INDEX('Datos Generales'!$C$144:$AP$144,,ROWS('Datos Generales'!$C$144:AP182)))*Índice!$G$52 -> 0 | E56: =INDEX('Datos Generales'!$C$170:$AP$170,,ROWS('Datos Generales'!$C$170:AP208))*Índice!$G$52 -> 0 | F56: =INDEX('Datos Generales'!$C$147:$AP$147,,ROWS('Datos Generales'!$C$147:AP185))*Índice!$G$52 -> 0 | G56: =INDEX('Datos Generales'!$C$129:$AP$129,,ROWS('Datos Generales'!$C$129:AP167))*Índice!$G$52 -> 0 | H56: =INDEX('Datos Generales'!$C$101:$AP$101,,ROWS('Datos Generales'!$C$101:AP139))*Índice!$G$52 -> 0 | I56: =(INDEX('Datos Generales'!$C$9:$AP$9,,ROWS('Datos Generales'!$C$9:AP47))+INDEX('Datos Generales'!$C$20:$AP$20,,ROWS('Datos Generales'!$C$20:AP58)))*Índice!$G$52 -> 0
B57: =INDEX('Datos Generales'!$C$7:$AP$7,,ROWS('Datos Generales'!$C$7:AP45)) -> 0 | C57: =INDEX('Datos Generales'!$C$118:$AP$118,,ROWS('Datos Generales'!$C$118:AP157))*Índice!$G$52 -> 0 | D57: =(INDEX('Datos Generales'!$C$116:$AP$116,,ROWS('Datos Generales'!$C$116:AP155))-INDEX('Datos Generales'!$C$144:$AP$144,,ROWS('Datos Generales'!$C$144:AP183)))*Índice!$G$52 -> 0 | E57: =INDEX('Datos Generales'!$C$170:$AP$170,,ROWS('Datos Generales'!$C$170:AP209))*Índice!$G$52 -> 0 | F57: =INDEX('Datos Generales'!$C$147:$AP$147,,ROWS('Datos Generales'!$C$147:AP186))*Índice!$G$52 -> 0 | G57: =INDEX('Datos Generales'!$C$129:$AP$129,,ROWS('Datos Generales'!$C$129:AP168))*Índice!$G$52 -> 0 | H57: =INDEX('Datos Generales'!$C$101:$AP$101,,ROWS('Datos Generales'!$C$101:AP140))*Índice!$G$52 -> 0 | I57: =(INDEX('Datos Generales'!$C$9:$AP$9,,ROWS('Datos Generales'!$C$9:AP48))+INDEX('Datos Generales'!$C$20:$AP$20,,ROWS('Datos Generales'!$C$20:AP59)))*Índice!$G$52 -> 0
B58: Total | C58: =SUM(C18:C57) -> 25,177,272 | D58: 726,948 | E58: 1,354,910 | F58: 440,124 | G58: 10,044,239 | H58: 41,391,363 | I58: 67,649,945
B61: Seguros de Vida | C61: Prima Directa | D61: Resultado de Operaciones | E61: Utilidad | F61: Producto de Inversiones | G61: Siniestros Directos | H61: Patrimonio | I61: Inversiones | K61: Fecha de Descarga de EEFF
B62: =INDEX('Datos Vida'!$C$7:$AP$7,,ROWS('Datos Vida'!$C$7:AP7)) -> 4 Life Seguros | C62: =INDEX('Datos Vida'!$C$118:$AP$118,,ROWS('Datos Vida'!$C$118:AP118))*Índice!$G$52 -> 977,000 | D62: =(INDEX('Datos Vida'!$C$116:$AP$116,,ROWS('Datos Vida'!$C$116:AP116))-INDEX('Datos Vida'!$C$144:$AP$144,,ROWS('Datos Vida'!$C$144:AP144)))*Índice!$G$52 -> 123,518 | E62: =INDEX('Datos Vida'!$C$170:$AP$170,,ROWS('Datos Vida'!$C$170:AP170))*Índice!$G$52 -> 271,743 | F62: =INDEX('Datos Vida'!$C$147:$AP$147,,ROWS('Datos Vida'!$C$147:AP147))*Índice!$G$52 -> 239,425 | G62: =(INDEX('Datos Vida'!$C$129:$AP$129,,ROWS('Datos Vida'!$C$129:AP129))+INDEX('Datos Vida'!$C$133:$AP$133,,ROWS('Datos Vida'!$C$133:AP133)))*Índice!$G$52 -> 780,829 | H62: =INDEX('Datos Vida'!$C$101:$AP$101,,ROWS('Datos Vida'!$C$101:AP101))*Índice!$G$52 -> 1,866,841 | I62: =(INDEX('Datos Vida'!$C$9:$AP$9,,ROWS('Datos Vida'!$C$9:AP9))+INDEX('Datos Vida'!$C$20:$AP$20,,ROWS('Datos Vida'!$C$20:AP20)))*Índice!$G$52 -> 16,333,054 | K62: =TRANSPOSE('Datos Vida'!C651:AP651) -> 2021-05-01
B63: =INDEX('Datos Vida'!$C$7:$AP$7,,ROWS('Datos Vida'!$C$7:AP8)) -> Alemana Seguros | C63: =INDEX('Datos Vida'!$C$118:$AP$118,,ROWS('Datos Vida'!$C$118:AP119))*Índice!$G$52 -> 47,154 | D63: =(INDEX('Datos Vida'!$C$116:$AP$116,,ROWS('Datos Vida'!$C$116:AP117))-INDEX('Datos Vida'!$C$144:$AP$144,,ROWS('Datos Vida'!$C$144:AP145)))*Índice!$G$52 -> 2,647 | E63: =INDEX('Datos Vida'!$C$170:$AP$170,,ROWS('Datos Vida'!$C$170:AP171))*Índice!$G$52 -> 3,329 | F63: =INDEX('Datos Vida'!$C$147:$AP$147,,ROWS('Datos Vida'!$C$147:AP148))*Índice!$G$52 -> -385 | G63: =(INDEX('Datos Vida'!$C$129:$AP$129,,ROWS('Datos Vida'!$C$129:AP130))+INDEX('Datos Vida'!$C$133:$AP$133,,ROWS('Datos Vida'!$C$133:AP134)))*Índice!$G$52 -> 17,932 | H63: =INDEX('Datos Vida'!$C$101:$AP$101,,ROWS('Datos Vida'!$C$101:AP102))*Índice!$G$52 -> 164,534 | I63: =(INDEX('Datos Vida'!$C$9:$AP$9,,ROWS('Datos Vida'!$C$9:AP10))+INDEX('Datos Vida'!$C$20:$AP$20,,ROWS('Datos Vida'!$C$20:AP21)))*Índice!$G$52 -> 171,815 | K63: 2021-05-01
B64: =INDEX('Datos Vida'!$C$7:$AP$7,,ROWS('Datos Vida'!$C$7:AP9)) -> BanChile | C64: =INDEX('Datos Vida'!$C$118:$AP$118,,ROWS('Datos Vida'!$C$118:AP120))*Índice!$G$52 -> 1,421,616 | D64: =(INDEX('Datos Vida'!$C$116:$AP$116,,ROWS('Datos Vida'!$C$116:AP118))-INDEX('Datos Vida'!$C$144:$AP$144,,ROWS('Datos Vida'!$C$144:AP146)))*Índice!$G$52 -> 143,202 | E64: =INDEX('Datos Vida'!$C$170:$AP$170,,ROWS('Datos Vida'!$C$170:AP172))*Índice!$G$52 -> 121,179 | F64: =INDEX('Datos Vida'!$C$147:$AP$147,,ROWS('Datos Vida'!$C$147:AP149))*Índice!$G$52 -> 16,945 | G64: =(INDEX('Datos Vida'!$C$129:$AP$129,,ROWS('Datos Vida'!$C$129:AP131))+INDEX('Datos Vida'!$C$133:$AP$133,,ROWS('Datos Vida'!$C$133:AP135)))*Índice!$G$52 -> 473,007 | H64: =INDEX('Datos Vida'!$C$101:$AP$101,,ROWS('Datos Vida'!$C$101:AP103))*Índice!$G$52 -> 1,007,625 | I64: =(INDEX('Datos Vida'!$C$9:$AP$9,,ROWS('Datos Vida'!$C$9:AP11))+INDEX('Datos Vida'!$C$20:$AP$20,,ROWS('Datos Vida'!$C$20:AP22)))*Índice!$G$52 -> 4,619,850 | K64: 2021-05-01
B65: =INDEX('Datos Vida'!$C$7:$AP$7,,ROWS('Datos Vida'!$C$7:AP10)) -> BCI Seguros Vida | C65: =INDEX('Datos Vida'!$C$118:$AP$118,,ROWS('Datos Vida'!$C$118:AP121))*Índice!$G$52 -> 1,312,103 | D65: =(INDEX('Datos Vida'!$C$116:$AP$116,,ROWS('Datos Vida'!$C$116:AP119))-INDEX('Datos Vida'!$C$144:$AP$144,,ROWS('Datos Vida'!$C$144:AP147)))*Índice!$G$52 -> 174,226 | E65: =INDEX('Datos Vida'!$C$170:$AP$170,,ROWS('Datos Vida'!$C$170:AP173))*Índice!$G$52 -> 191,349 | F65: =INDEX('Datos Vida'!$C$147:$AP$147,,ROWS('Datos Vida'!$C$147:AP150))*Índice!$G$52 -> 65,847 | G65: =(INDEX('Datos Vida'!$C$129:$AP$129,,ROWS('Datos Vida'!$C$129:AP132))+INDEX('Datos Vida'!$C$133:$AP$133,,ROWS('Datos Vida'!$C$133:AP136)))*Índice!$G$52 -> 442,946 | H65: =INDEX('Datos Vida'!$C$101:$AP$101,,ROWS('Datos Vida'!$C$101:AP104))*Índice!$G$52 -> 2,190,629 | I65: =(INDEX('Datos Vida'!$C$9:$AP$9,,ROWS('Datos Vida'!$C$9:AP12))+INDEX('Datos Vida'!$C$20:$AP$20,,ROWS('Datos Vida'!$C$20:AP23)))*Índice!$G$52 -> 8,210,753 | K65: 2021-05-01
B66: =INDEX('Datos Vida'!$C$7:$AP$7,,ROWS('Datos Vida'!$C$7:AP11)) -> BICE Vida | C66: =INDEX('Datos Vida'!$C$118:$AP$118,,ROWS('Datos Vida'!$C$118:AP122))*Índice!$G$52 -> 1,813,109 | D66: =(INDEX('Datos Vida'!$C$116:$AP$116,,ROWS('Datos Vida'!$C$116:AP120))-INDEX('Datos Vida'!$C$144:$AP$144,,ROWS('Datos Vida'!$C$144:AP148)))*Índice!$G$52 -> -2,936,253 | E66: =INDEX('Datos Vida'!$C$170:$AP$170,,ROWS('Datos Vida'!$C$170:AP174))*Índice!$G$52 -> 1,037,993 | F66: =INDEX('Datos Vida'!$C$147:$AP$147,,ROWS('Datos Vida'!$C$147:AP151))*Índice!$G$52 -> 3,802,947 | G66: =(INDEX('Datos Vida'!$C$129:$AP$129,,ROWS('Datos Vida'!$C$129:AP133))+INDEX('Datos Vida'!$C$133:$AP$133,,ROWS('Datos Vida'!$C$133:AP137)))*Índice!$G$52 -> 3,924,971 | H66: =INDEX('Datos Vida'!$C$101:$AP$101,,ROWS('Datos Vida'!$C$101:AP105))*Índice!$G$52 -> 14,682,239 | I66: =(INDEX('Datos Vida'!$C$9:$AP$9,,ROWS('Datos Vida'!$C$9:AP13))+INDEX('Datos Vida'!$C$20:$AP$20,,ROWS('Datos Vida'!$C$20:AP24)))*Índice!$G$52 -> 165,880,584 | K66: 2021-05-01
B67: =INDEX('Datos Vida'!$C$7:$AP$7,,ROWS('Datos Vida'!$C$7:AP12)) -> BNP Paribas Cardif | C67: =INDEX('Datos Vida'!$C$118:$AP$118,,ROWS('Datos Vida'!$C$118:AP123))*Índice!$G$52 -> 1,350,451 | D67: =(INDEX('Datos Vida'!$C$116:$AP$116,,ROWS('Datos Vida'!$C$116:AP121))-INDEX('Datos Vida'!$C$144:$AP$144,,ROWS('Datos Vida'!$C$144:AP149)))*Índice!$G$52 -> -278,757 | E67: =INDEX('Datos Vida'!$C$170:$AP$170,,ROWS('Datos Vida'!$C$170:AP175))*Índice!$G$52 -> -121,923 | F67: =INDEX('Datos Vida'!$C$147:$AP$147,,ROWS('Datos Vida'!$C$147:AP152))*Índice!$G$52 -> 139,382 | G67: =(INDEX('Datos Vida'!$C$129:$AP$129,,ROWS('Datos Vida'!$C$129:AP134))+INDEX('Datos Vida'!$C$133:$AP$133,,ROWS('Datos Vida'!$C$133:AP138)))*Índice!$G$52 -> 401,599 | H67: =INDEX('Datos Vida'!$C$101:$AP$101,,ROWS('Datos Vida'!$C$101:AP106))*Índice!$G$52 -> 3,220,006 | I67: =(INDEX('Datos Vida'!$C$9:$AP$9,,ROWS('Datos Vida'!$C$9:AP14))+INDEX('Datos Vida'!$C$20:$AP$20,,ROWS('Datos Vida'!$C$20:AP25)))*Índice!$G$52 -> 10,844,996 | K67: 2021-05-01
B68: =INDEX('Datos Vida'!$C$7:$AP$7,,ROWS('Datos Vida'!$C$7:AP13)) -> Bupa | C68: =INDEX('Datos Vida'!$C$118:$AP$118,,ROWS('Datos Vida'!$C$118:AP124))*Índice!$G$52 -> 136,557 | D68: =(INDEX('Datos Vida'!$C$116:$AP$116,,ROWS('Datos Vida'!$C$116:AP122))-INDEX('Datos Vida'!$C$144:$AP$144,,ROWS('Datos Vida'!$C$144:AP150)))*Índice!$G$52 -> 8,601 | E68: =INDEX('Datos Vida'!$C$170:$AP$170,,ROWS('Datos Vida'!$C$170:AP176))*Índice!$G$52 -> 8,761 | F68: =INDEX('Datos Vida'!$C$147:$AP$147,,ROWS('Datos Vida'!$C$147:AP153))*Índice!$G$52 -> -403 | G68: =(INDEX('Datos Vida'!$C$129:$AP$129,,ROWS('Datos Vida'!$C$129:AP135))+INDEX('Datos Vida'!$C$133:$AP$133,,ROWS('Datos Vida'!$C$133:AP139)))*Índice!$G$52 -> 76,945 | H68: =INDEX('Datos Vida'!$C$101:$AP$101,,ROWS('Datos Vida'!$C$101:AP107))*Índice!$G$52 -> 229,448 | I68: =(INDEX('Datos Vida'!$C$9:$AP$9,,ROWS('Datos Vida'!$C$9:AP15))+INDEX('Datos Vida'!$C$20:$AP$20,,ROWS('Datos Vida'!$C$20:AP26)))*Índice!$G$52 -> 239,159 | K68: 2021-05-01
B69: =INDEX('Datos Vida'!$C$7:$AP$7,,ROWS('Datos Vida'!$C$7:AP14)) -> Cámara | C69: =INDEX('Datos Vida'!$C$118:$AP$118,,ROWS('Datos Vida'!$C$118:AP125))*Índice!$G$52 -> 1,750,722 | D69: =(INDEX('Datos Vida'!$C$116:$AP$116,,ROWS('Datos Vida'!$C$116:AP123))-INDEX('Datos Vida'!$C$144:$AP$144,,ROWS('Datos Vida'!$C$144:AP151)))*Índice!$G$52 -> 261,332 | E69: =INDEX('Datos Vida'!$C$170:$AP$170,,ROWS('Datos Vida'!$C$170:AP177))*Índice!$G$52 -> 197,977 | F69: =INDEX('Datos Vida'!$C$147:$AP$147,,ROWS('Datos Vida'!$C$147:AP154))*Índice!$G$52 -> -1,357 | G69: =(INDEX('Datos Vida'!$C$129:$AP$129,,ROWS('Datos Vida'!$C$129:AP136))+INDEX('Datos Vida'!$C$133:$AP$133,,ROWS('Datos Vida'!$C$133:AP140)))*Índice!$G$52 -> 1,326,401 | H69: =INDEX('Datos Vida'!$C$101:$AP$101,,ROWS('Datos Vida'!$C$101:AP108))*Índice!$G$52 -> 1,363,926 | I69: =(INDEX('Datos Vida'!$C$9:$AP$9,,ROWS('Datos Vida'!$C$9:AP16))+INDEX('Datos Vida'!$C$20:$AP$20,,ROWS('Datos Vida'!$C$20:AP27)))*Índice!$G$52 -> 3,514,297 | K69: 2021-05-01
B70: =INDEX('Datos Vida'!$C$7:$AP$7,,ROWS('Datos Vida'!$C$7:AP15)) -> CF Seguros de Vida | C70: =INDEX('Datos Vida'!$C$118:$AP$118,,ROWS('Datos Vida'!$C$118:AP126))*Índice!$G$52 -> 350,303 | D70: =(INDEX('Datos Vida'!$C$116:$AP$116,,ROWS('Datos Vida'!$C$116:AP124))-INDEX('Datos Vida'!$C$144:$AP$144,,ROWS('Datos Vida'!$C$144:AP152)))*Índice!$G$52 -> 174,402 | E70: =INDEX('Datos Vida'!$C$170:$AP$170,,ROWS('Datos Vida'!$C$170:AP178))*Índice!$G$52 -> 131,196 | F70: =INDEX('Datos Vida'!$C$147:$AP$147,,ROWS('Datos Vida'!$C$147:AP155))*Índice!$G$52 -> 3,345 | G70: =(INDEX('Datos Vida'!$C$129:$AP$129,,ROWS('Datos Vida'!$C$129:AP137))+INDEX('Datos Vida'!$C$133:$AP$133,,ROWS('Datos Vida'!$C$133:AP141)))*Índice!$G$52 -> 77,684 | H70: =INDEX('Datos Vida'!$C$101:$AP$101,,ROWS('Datos Vida'!$C$101:AP109))*Índice!$G$52 -> 570,870 | I70: =(INDEX('Datos Vida'!$C$9:$AP$9,,ROWS('Datos Vida'!$C$9:AP17))+INDEX('Datos Vida'!$C$20:$AP$20,,ROWS('Datos Vida'!$C$20:AP28)))*Índice!$G$52 -> 687,842 | K70: 2021-05-01
B71: =INDEX('Datos Vida'!$C$7:$AP$7,,ROWS('Datos Vida'!$C$7:AP16)) -> Chilena Consolidada | C71: =INDEX('Datos Vida'!$C$118:$AP$118,,ROWS('Datos Vida'!$C$118:AP127))*Índice!$G$52 -> 2,054,047 | D71: =(INDEX('Datos Vida'!$C$116:$AP$116,,ROWS('Datos Vida'!$C$116:AP125))-INDEX('Datos Vida'!$C$144:$AP$144,,ROWS('Datos Vida'!$C$144:AP153)))*Índice!$G$52 -> -880,982 | E71: =INDEX('Datos Vida'!$C$170:$AP$170,,ROWS('Datos Vida'!$C$170:AP179))*Índice!$G$52 -> 846,627 | F71: =INDEX('Datos Vida'!$C$147:$AP$147,,ROWS('Datos Vida'!$C$147:AP156))*Índice!$G$52 -> 1,797,025 | G71: =(INDEX('Datos Vida'!$C$129:$AP$129,,ROWS('Datos Vida'!$C$129:AP138))+INDEX('Datos Vida'!$C$133:$AP$133,,ROWS('Datos Vida'!$C$133:AP142)))*Índice!$G$52 -> 1,723,852 | H71: =INDEX('Datos Vida'!$C$101:$AP$101,,ROWS('Datos Vida'!$C$101:AP110))*Índice!$G$52 -> 9,378,945 | I71: =(INDEX('Datos Vida'!$C$9:$AP$9,,ROWS('Datos Vida'!$C$9:AP18))+INDEX('Datos Vida'!$C$20:$AP$20,,ROWS('Datos Vida'!$C$20:AP29)))*Índice!$G$52 -> 100,630,840 | K71: 2021-05-01
B72: =INDEX('Datos Vida'!$C$7:$AP$7,,ROWS('Datos Vida'!$C$7:AP17)) -> Chubb Vida | C72: =INDEX('Datos Vida'!$C$118:$AP$118,,ROWS('Datos Vida'!$C$118:AP128))*Índice!$G$52 -> 17,915 | D72: =(INDEX('Datos Vida'!$C$116:$AP$116,,ROWS('Datos Vida'!$C$116:AP126))-INDEX('Datos Vida'!$C$144:$AP$144,,ROWS('Datos Vida'!$C$144:AP154)))*Índice!$G$52 -> -41,594 | E72: =INDEX('Datos Vida'!$C$170:$AP$170,,ROWS('Datos Vida'!$C$170:AP180))*Índice!$G$52 -> 9,395 | F72: =INDEX('Datos Vida'!$C$147:$AP$147,,ROWS('Datos Vida'!$C$147:AP157))*Índice!$G$52 -> 1,721 | G72: =(INDEX('Datos Vida'!$C$129:$AP$129,,ROWS('Datos Vida'!$C$129:AP139))+INDEX('Datos Vida'!$C$133:$AP$133,,ROWS('Datos Vida'!$C$133:AP143)))*Índice!$G$52 -> 13,538 | H72: =INDEX('Datos Vida'!$C$101:$AP$101,,ROWS('Datos Vida'!$C$101:AP111))*Índice!$G$52 -> 2,524,199 | I72: =(INDEX('Datos Vida'!$C$9:$AP$9,,ROWS('Datos Vida'!$C$9:AP19))+INDEX('Datos Vida'!$C$20:$AP$20,,ROWS('Datos Vida'!$C$20:AP30)))*Índice!$G$52 -> 392,162 | K72: 2021-05-01
B73: =INDEX('Datos Vida'!$C$7:$AP$7,,ROWS('Datos Vida'!$C$7:AP18)) -> CLC | C73: =INDEX('Datos Vida'!$C$118:$AP$118,,ROWS('Datos Vida'!$C$118:AP129))*Índice!$G$52 -> 261,283 | D73: =(INDEX('Datos Vida'!$C$116:$AP$116,,ROWS('Datos Vida'!$C$116:AP127))-INDEX('Datos Vida'!$C$144:$AP$144,,ROWS('Datos Vida'!$C$144:AP155)))*Índice!$G$52 -> 130,934 | E73: =INDEX('Datos Vida'!$C$170:$AP$170,,ROWS('Datos Vida'!$C$170:AP181))*Índice!$G$52 -> 98,637 | F73: =INDEX('Datos Vida'!$C$147:$AP$147,,ROWS('Datos Vida'!$C$147:AP158))*Índice!$G$52 -> 1,669 | G73: =(INDEX('Datos Vida'!$C$129:$AP$129,,ROWS('Datos Vida'!$C$129:AP140))+INDEX('Datos Vida'!$C$133:$AP$133,,ROWS('Datos Vida'!$C$133:AP144)))*Índice!$G$52 -> 87,895 | H73: =INDEX('Datos Vida'!$C$101:$AP$101,,ROWS('Datos Vida'!$C$101:AP112))*Índice!$G$52 -> 488,060 | I73: =(INDEX('Datos Vida'!$C$9:$AP$9,,ROWS('Datos Vida'!$C$9:AP20))+INDEX('Datos Vida'!$C$20:$AP$20,,ROWS('Datos Vida'!$C$20:AP31)))*Índice!$G$52 -> 834,227 | K73: 2021-05-01
B74: =INDEX('Datos Vida'!$C$7:$AP$7,,ROWS('Datos Vida'!$C$7:AP19)) -> CN Life | C74: =INDEX('Datos Vida'!$C$118:$AP$118,,ROWS('Datos Vida'!$C$118:AP130))*Índice!$G$52 -> 340,975 | D74: =(INDEX('Datos Vida'!$C$116:$AP$116,,ROWS('Datos Vida'!$C$116:AP128))-INDEX('Datos Vida'!$C$144:$AP$144,,ROWS('Datos Vida'!$C$144:AP156)))*Índice!$G$52 -> 36,289 | E74: =INDEX('Datos Vida'!$C$170:$AP$170,,ROWS('Datos Vida'!$C$170:AP182))*Índice!$G$52 -> 461,155 | F74: =INDEX('Datos Vida'!$C$147:$AP$147,,ROWS('Datos Vida'!$C$147:AP159))*Índice!$G$52 -> 559,027 | G74: =(INDEX('Datos Vida'!$C$129:$AP$129,,ROWS('Datos Vida'!$C$129:AP141))+INDEX('Datos Vida'!$C$133:$AP$133,,ROWS('Datos Vida'!$C$133:AP145)))*Índice!$G$52 -> 278,843 | H74: =INDEX('Datos Vida'!$C$101:$AP$101,,ROWS('Datos Vida'!$C$101:AP113))*Índice!$G$52 -> 4,164,932 | I74: =(INDEX('Datos Vida'!$C$9:$AP$9,,ROWS('Datos Vida'!$C$9:AP21))+INDEX('Datos Vida'!$C$20:$AP$20,,ROWS('Datos Vida'!$C$20:AP32)))*Índice!$G$52 -> 27,468,213 | K74: 2021-05-01
B75: =INDEX('Datos Vida'!$C$7:$AP$7,,ROWS('Datos Vida'!$C$7:AP20)) -> Colmena Seguros | C75: =INDEX('Datos Vida'!$C$118:$AP$118,,ROWS('Datos Vida'!$C$118:AP131))*Índice!$G$52 -> 72,044 | D75: =(INDEX('Datos Vida'!$C$116:$AP$116,,ROWS('Datos Vida'!$C$116:AP129))-INDEX('Datos Vida'!$C$144:$AP$144,,ROWS('Datos Vida'!$C$144:AP157)))*Índice!$G$52 -> -4,758 | E75: =INDEX('Datos Vida'!$C$170:$AP$170,,ROWS('Datos Vida'!$C$170:AP183))*Índice!$G$52 -> -33 | F75: =INDEX('Datos Vida'!$C$147:$AP$147,,ROWS('Datos Vida'!$C$147:AP160))*Índice!$G$52 -> 1,547 | G75: =(INDEX('Datos Vida'!$C$129:$AP$129,,ROWS('Datos Vida'!$C$129:AP142))+INDEX('Datos Vida'!$C$133:$AP$133,,ROWS('Datos Vida'!$C$133:AP146)))*Índice!$G$52 -> 24,273 | H75: =INDEX('Datos Vida'!$C$101:$AP$101,,ROWS('Datos Vida'!$C$101:AP114))*Índice!$G$52 -> 308,660 | I75: =(INDEX('Datos Vida'!$C$9:$AP$9,,ROWS('Datos Vida'!$C$9:AP22))+INDEX('Datos Vida'!$C$20:$AP$20,,ROWS('Datos Vida'!$C$20:AP33)))*Índice!$G$52 -> 376,038 | K75: 2021-05-01
B76: =INDEX('Datos Vida'!$C$7:$AP$7,,ROWS('Datos Vida'!$C$7:AP21)) -> Confuturo | C76: =INDEX('Datos Vida'!$C$118:$AP$118,,ROWS('Datos Vida'!$C$118:AP132))*Índice!$G$52 -> 1,768,404 | D76: =(INDEX('Datos Vida'!$C$116:$AP$116,,ROWS('Datos Vida'!$C$116:AP130))-INDEX('Datos Vida'!$C$144:$AP$144,,ROWS('Datos Vida'!$C$144:AP158)))*Índice!$G$52 -> -1,948,807 | E76: =INDEX('Datos Vida'!$C$170:$AP$170,,ROWS('Datos Vida'!$C$170:AP184))*Índice!$G$52 -> 1,413,938 | F76: =INDEX('Datos Vida'!$C$147:$AP$147,,ROWS('Datos Vida'!$C$147:AP161))*Índice!$G$52 -> 3,757,268 | G76: =(INDEX('Datos Vida'!$C$129:$AP$129,,ROWS('Datos Vida'!$C$129:AP143))+INDEX('Datos Vida'!$C$133:$AP$133,,ROWS('Datos Vida'!$C$133:AP147)))*Índice!$G$52 -> 3,197,574 | H76: =INDEX('Datos Vida'!$C$101:$AP$101,,ROWS('Datos Vida'!$C$101:AP115))*Índice!$G$52 -> 16,242,728 | I76: =(INDEX('Datos Vida'!$C$9:$AP$9,,ROWS('Datos Vida'!$C$9:AP23))+INDEX('Datos Vida'!$C$20:$AP$20,,ROWS('Datos Vida'!$C$20:AP34)))*Índice!$G$52 -> 226,011,048 | K76: 2021-05-01
B77: =INDEX('Datos Vida'!$C$7:$AP$7,,ROWS('Datos Vida'!$C$7:AP22)) -> Consorcio Nacional | C77: =INDEX('Datos Vida'!$C$118:$AP$118,,ROWS('Datos Vida'!$C$118:AP133))*Índice!$G$52 -> 4,998,875 | D77: =(INDEX('Datos Vida'!$C$116:$AP$116,,ROWS('Datos Vida'!$C$116:AP131))-INDEX('Datos Vida'!$C$144:$AP$144,,ROWS('Datos Vida'!$C$144:AP159)))*Índice!$G$52 -> -997,639 | E77: =INDEX('Datos Vida'!$C$170:$AP$170,,ROWS('Datos Vida'!$C$170:AP185))*Índice!$G$52 -> 3,475,475 | F77: =INDEX('Datos Vida'!$C$147:$AP$147,,ROWS('Datos Vida'!$C$147:AP162))*Índice!$G$52 -> 5,286,657 | G77: =(INDEX('Datos Vida'!$C$129:$AP$129,,ROWS('Datos Vida'!$C$129:AP144))+INDEX('Datos Vida'!$C$133:$AP$133,,ROWS('Datos Vida'!$C$133:AP148)))*Índice!$G$52 -> 5,242,555 | H77: =INDEX('Datos Vida'!$C$101:$AP$101,,ROWS('Datos Vida'!$C$101:AP116))*Índice!$G$52 -> 25,943,656 | I77: =(INDEX('Datos Vida'!$C$9:$AP$9,,ROWS('Datos Vida'!$C$9:AP24))+INDEX('Datos Vida'!$C$20:$AP$20,,ROWS('Datos Vida'!$C$20:AP35)))*Índice!$G$52 -> 239,302,804 | K77: 2021-05-01
B78: =INDEX('Datos Vida'!$C$7:$AP$7,,ROWS('Datos Vida'!$C$7:AP23)) -> Divina Pastora | C78: =INDEX('Datos Vida'!$C$118:$AP$118,,ROWS('Datos Vida'!$C$118:AP134))*Índice!$G$52 -> 0 | D78: =(INDEX('Datos Vida'!$C$116:$AP$116,,ROWS('Datos Vida'!$C$116:AP132))-INDEX('Datos Vida'!$C$144:$AP$144,,ROWS('Datos Vida'!$C$144:AP160)))*Índice!$G$52 -> -3,119 | E78: =INDEX('Datos Vida'!$C$170:$AP$170,,ROWS('Datos Vida'!$C$170:AP186))*Índice!$G$52 -> -2,925 | F78: =INDEX('Datos Vida'!$C$147:$AP$147,,ROWS('Datos Vida'!$C$147:AP163))*Índice!$G$52 -> 0 | G78: =(INDEX('Datos Vida'!$C$129:$AP$129,,ROWS('Datos Vida'!$C$129:AP145))+INDEX('Datos Vida'!$C$133:$AP$133,,ROWS('Datos Vida'!$C$133:AP149)))*Índice!$G$52 -> 0 | H78: =INDEX('Datos Vida'!$C$101:$AP$101,,ROWS('Datos Vida'!$C$101:AP117))*Índice!$G$52 -> 109,036 | I78: =(INDEX('Datos Vida'!$C$9:$AP$9,,ROWS('Datos Vida'!$C$9:AP25))+INDEX('Datos Vida'!$C$20:$AP$20,,ROWS('Datos Vida'!$C$20:AP36)))*Índice!$G$52 -> 107,210 | K78: 2021-05-01
B79: =INDEX('Datos Vida'!$C$7:$AP$7,,ROWS('Datos Vida'!$C$7:AP24)) -> EuroAmérica | C79: =INDEX('Datos Vida'!$C$118:$AP$118,,ROWS('Datos Vida'!$C$118:AP135))*Índice!$G$52 -> 489,622 | D79: =(INDEX('Datos Vida'!$C$116:$AP$116,,ROWS('Datos Vida'!$C$116:AP133))-INDEX('Datos Vida'!$C$144:$AP$144,,ROWS('Datos Vida'!$C$144:AP161)))*Índice!$G$52 -> -282,746 | E79: =INDEX('Datos Vida'!$C$170:$AP$170,,ROWS('Datos Vida'!$C$170:AP187))*Índice!$G$52 -> 511,198 | F79: =INDEX('Datos Vida'!$C$147:$AP$147,,ROWS('Datos Vida'!$C$147:AP164))*Índice!$G$52 -> 888,450 | G79: =(INDEX('Datos Vida'!$C$129:$AP$129,,ROWS('Datos Vida'!$C$129:AP146))+INDEX('Datos Vida'!$C$133:$AP$133,,ROWS('Datos Vida'!$C$133:AP150)))*Índice!$G$52 -> 699,065 | H79: =INDEX('Datos Vida'!$C$101:$AP$101,,ROWS('Datos Vida'!$C$101:AP118))*Índice!$G$52 -> 5,224,779 | I79: =(INDEX('Datos Vida'!$C$9:$AP$9,,ROWS('Datos Vida'!$C$9:AP26))+INDEX('Datos Vida'!$C$20:$AP$20,,ROWS('Datos Vida'!$C$20:AP37)))*Índice!$G$52 -> 39,544,567 | K79: 2021-05-01
B80: =INDEX('Datos Vida'!$C$7:$AP$7,,ROWS('Datos Vida'!$C$7:AP25)) -> HDI Vida | C80: =INDEX('Datos Vida'!$C$118:$AP$118,,ROWS('Datos Vida'!$C$118:AP136))*Índice!$G$52 -> 71,572 | D80: =(INDEX('Datos Vida'!$C$116:$AP$116,,ROWS('Datos Vida'!$C$116:AP134))-INDEX('Datos Vida'!$C$144:$AP$144,,ROWS('Datos Vida'!$C$144:AP162)))*Índice!$G$52 -> 11,039 | E80: =INDEX('Datos Vida'!$C$170:$AP$170,,ROWS('Datos Vida'!$C$170:AP188))*Índice!$G$52 -> 8,960 | F80: =INDEX('Datos Vida'!$C$147:$AP$147,,ROWS('Datos Vida'!$C$147:AP165))*Índice!$G$52 -> 1,525 | G80: =(INDEX('Datos Vida'!$C$129:$AP$129,,ROWS('Datos Vida'!$C$129:AP147))+INDEX('Datos Vida'!$C$133:$AP$133,,ROWS('Datos Vida'!$C$133:AP151)))*Índice!$G$52 -> 53,250 | H80: =INDEX('Datos Vida'!$C$101:$AP$101,,ROWS('Datos Vida'!$C$101:AP119))*Índice!$G$52 -> 172,597 | I80: =(INDEX('Datos Vida'!$C$9:$AP$9,,ROWS('Datos Vida'!$C$9:AP27))+INDEX('Datos Vida'!$C$20:$AP$20,,ROWS('Datos Vida'!$C$20:AP38)))*Índice!$G$52 -> 328,329 | K80: 2021-05-01
B81: =INDEX('Datos Vida'!$C$7:$AP$7,,ROWS('Datos Vida'!$C$7:AP26)) -> Huelen | C81: =INDEX('Datos Vida'!$C$118:$AP$118,,ROWS('Datos Vida'!$C$118:AP137))*Índice!$G$52 -> 5,942 | D81: =(INDEX('Datos Vida'!$C$116:$AP$116,,ROWS('Datos Vida'!$C$116:AP135))-INDEX('Datos Vida'!$C$144:$AP$144,,ROWS('Datos Vida'!$C$144:AP163)))*Índice!$G$52 -> -194 | E81: =INDEX('Datos Vida'!$C$170:$AP$170,,ROWS('Datos Vida'!$C$170:AP189))*Índice!$G$52 -> -181 | F81: =INDEX('Datos Vida'!$C$147:$AP$147,,ROWS('Datos Vida'!$C$147:AP166))*Índice!$G$52 -> 97 | G81: =(INDEX('Datos Vida'!$C$129:$AP$129,,ROWS('Datos Vida'!$C$129:AP148))+INDEX('Datos Vida'!$C$133:$AP$133,,ROWS('Datos Vida'!$C$133:AP152)))*Índice!$G$52 -> 3 | H81: =INDEX('Datos Vida'!$C$101:$AP$101,,ROWS('Datos Vida'!$C$101:AP120))*Índice!$G$52 -> 130,485 | I81: =(INDEX('Datos Vida'!$C$9:$AP$9,,ROWS('Datos Vida'!$C$9:AP28))+INDEX('Datos Vida'!$C$20:$AP$20,,ROWS('Datos Vida'!$C$20:AP39)))*Índice!$G$52 -> 145,611 | K81: 2021-05-01
B82: =INDEX('Datos Vida'!$C$7:$AP$7,,ROWS('Datos Vida'!$C$7:AP27)) -> M. de Carabineros | C82: =INDEX('Datos Vida'!$C$118:$AP$118,,ROWS('Datos Vida'!$C$118:AP138))*Índice!$G$52 -> 0 | D82: =(INDEX('Datos Vida'!$C$116:$AP$116,,ROWS('Datos Vida'!$C$116:AP136))-INDEX('Datos Vida'!$C$144:$AP$144,,ROWS('Datos Vida'!$C$144:AP164)))*Índice!$G$52 -> 0 | E82: =INDEX('Datos Vida'!$C$170:$AP$170,,ROWS('Datos Vida'!$C$170:AP190))*Índice!$G$52 -> 0 | F82: =INDEX('Datos Vida'!$C$147:$AP$147,,ROWS('Datos Vida'!$C$147:AP167))*Índice!$G$52 -> 0 | G82: =(INDEX('Datos Vida'!$C$129:$AP$129,,ROWS('Datos Vida'!$C$129:AP149))+INDEX('Datos Vida'!$C$133:$AP$133,,ROWS('Datos Vida'!$C$133:AP153)))*Índice!$G$52 -> 0 | H82: =INDEX('Datos Vida'!$C$101:$AP$101,,ROWS('Datos Vida'!$C$101:AP121))*Índice!$G$52 -> 0 | I82: =(INDEX('Datos Vida'!$C$9:$AP$9,,ROWS('Datos Vida'!$C$9:AP29))+INDEX('Datos Vida'!$C$20:$AP$20,,ROWS('Datos Vida'!$C$20:AP40)))*Índice!$G$52 -> 0 | K82: 00:00:00
B83: =INDEX('Datos Vida'!$C$7:$AP$7,,ROWS('Datos Vida'!$C$7:AP28)) -> M. del Ej. y Av. | C83: =INDEX('Datos Vida'!$C$118:$AP$118,,ROWS('Datos Vida'!$C$118:AP139))*Índice!$G$52 -> 216,195 | D83: =(INDEX('Datos Vida'!$C$116:$AP$116,,ROWS('Datos Vida'!$C$116:AP137))-INDEX('Datos Vida'!$C$144:$AP$144,,ROWS('Datos Vida'!$C$144:AP165)))*Índice!$G$52 -> -6,200 | E83: =INDEX('Datos Vida'!$C$170:$AP$170,,ROWS('Datos Vida'!$C$170:AP191))*Índice!$G$52 -> 123,451 | F83: =INDEX('Datos Vida'!$C$147:$AP$147,,ROWS('Datos Vida'!$C$147:AP168))*Índice!$G$52 -> 116,129 | G83: =(INDEX('Datos Vida'!$C$129:$AP$129,,ROWS('Datos Vida'!$C$129:AP150))+INDEX('Datos Vida'!$C$133:$AP$133,,ROWS('Datos Vida'!$C$133:AP154)))*Índice!$G$52 -> 161,009 | H83: =INDEX('Datos Vida'!$C$101:$AP$101,,ROWS('Datos Vida'!$C$101:AP122))*Índice!$G$52 -> 5,159,040 | I83: =(INDEX('Datos Vida'!$C$9:$AP$9,,ROWS('Datos Vida'!$C$9:AP30))+INDEX('Datos Vida'!$C$20:$AP$20,,ROWS('Datos Vida'!$C$20:AP41)))*Índice!$G$52 -> 6,779,163 | K83: 2021-05-01
B84: =INDEX('Datos Vida'!$C$7:$AP$7,,ROWS('Datos Vida'!$C$7:AP29)) -> Mapfre Vida | C84: =INDEX('Datos Vida'!$C$118:$AP$118,,ROWS('Datos Vida'!$C$118:AP140))*Índice!$G$52 -> 172,831 | D84: =(INDEX('Datos Vida'!$C$116:$AP$116,,ROWS('Datos Vida'!$C$116:AP138))-INDEX('Datos Vida'!$C$144:$AP$144,,ROWS('Datos Vida'!$C$144:AP166)))*Índice!$G$52 -> 4,448 | E84: =INDEX('Datos Vida'!$C$170:$AP$170,,ROWS('Datos Vida'!$C$170:AP192))*Índice!$G$52 -> 12,544 | F84: =INDEX('Datos Vida'!$C$147:$AP$147,,ROWS('Datos Vida'!$C$147:AP169))*Índice!$G$52 -> 10,446 | G84: =(INDEX('Datos Vida'!$C$129:$AP$129,,ROWS('Datos Vida'!$C$129:AP151))+INDEX('Datos Vida'!$C$133:$AP$133,,ROWS('Datos Vida'!$C$133:AP155)))*Índice!$G$52 -> 63,058 | H84: =INDEX('Datos Vida'!$C$101:$AP$101,,ROWS('Datos Vida'!$C$101:AP123))*Índice!$G$52 -> 415,223 | I84: =(INDEX('Datos Vida'!$C$9:$AP$9,,ROWS('Datos Vida'!$C$9:AP31))+INDEX('Datos Vida'!$C$20:$AP$20,,ROWS('Datos Vida'!$C$20:AP42)))*Índice!$G$52 -> 1,481,529 | K84: 2021-05-01
B85: =INDEX('Datos Vida'!$C$7:$AP$7,,ROWS('Datos Vida'!$C$7:AP30)) -> MetLife | C85: =INDEX('Datos Vida'!$C$118:$AP$118,,ROWS('Datos Vida'!$C$118:AP141))*Índice!$G$52 -> 5,626,077 | D85: =(INDEX('Datos Vida'!$C$116:$AP$116,,ROWS('Datos Vida'!$C$116:AP139))-INDEX('Datos Vida'!$C$144:$AP$144,,ROWS('Datos Vida'!$C$144:AP167)))*Índice!$G$52 -> -1,108,761 | E85: =INDEX('Datos Vida'!$C$170:$AP$170,,ROWS('Datos Vida'!$C$170:AP193))*Índice!$G$52 -> 1,517,926 | F85: =INDEX('Datos Vida'!$C$147:$AP$147,,ROWS('Datos Vida'!$C$147:AP170))*Índice!$G$52 -> 2,974,612 | G85: =(INDEX('Datos Vida'!$C$129:$AP$129,,ROWS('Datos Vida'!$C$129:AP152))+INDEX('Datos Vida'!$C$133:$AP$133,,ROWS('Datos Vida'!$C$133:AP156)))*Índice!$G$52 -> 4,711,410 | H85: =INDEX('Datos Vida'!$C$101:$AP$101,,ROWS('Datos Vida'!$C$101:AP124))*Índice!$G$52 -> 17,373,794 | I85: =(INDEX('Datos Vida'!$C$9:$AP$9,,ROWS('Datos Vida'!$C$9:AP32))+INDEX('Datos Vida'!$C$20:$AP$20,,ROWS('Datos Vida'!$C$20:AP43)))*Índice!$G$52 -> 247,784,486 | K85: 2021-05-01
B86: =INDEX('Datos Vida'!$C$7:$AP$7,,ROWS('Datos Vida'!$C$7:AP31)) -> Mutual de Seguros | C86: =INDEX('Datos Vida'!$C$118:$AP$118,,ROWS('Datos Vida'!$C$118:AP142))*Índice!$G$52 -> 610,705 | D86: =(INDEX('Datos Vida'!$C$116:$AP$116,,ROWS('Datos Vida'!$C$116:AP140))-INDEX('Datos Vida'!$C$144:$AP$144,,ROWS('Datos Vida'!$C$144:AP168)))*Índice!$G$52 -> -14,557 | E86: =INDEX('Datos Vida'!$C$170:$AP$170,,ROWS('Datos Vida'!$C$170:AP194))*Índice!$G$52 -> 149,362 | F86: =INDEX('Datos Vida'!$C$147:$AP$147,,ROWS('Datos Vida'!$C$147:AP171))*Índice!$G$52 -> 102,615 | G86: =(INDEX('Datos Vida'!$C$129:$AP$129,,ROWS('Datos Vida'!$C$129:AP153))+INDEX('Datos Vida'!$C$133:$AP$133,,ROWS('Datos Vida'!$C$133:AP157)))*Índice!$G$52 -> 413,356 | H86: =INDEX('Datos Vida'!$C$101:$AP$101,,ROWS('Datos Vida'!$C$101:AP125))*Índice!$G$52 -> 5,794,855 | I86: =(INDEX('Datos Vida'!$C$9:$AP$9,,ROWS('Datos Vida'!$C$9:AP33))+INDEX('Datos Vida'!$C$20:$AP$20,,ROWS('Datos Vida'!$C$20:AP44)))*Índice!$G$52 -> 10,810,837 | K86: 2021-05-01
B87: =INDEX('Datos Vida'!$C$7:$AP$7,,ROWS('Datos Vida'!$C$7:AP32)) -> Ohio National | C87: =INDEX('Datos Vida'!$C$118:$AP$118,,ROWS('Datos Vida'!$C$118:AP143))*Índice!$G$52 -> 1,548,987 | D87: =(INDEX('Datos Vida'!$C$116:$AP$116,,ROWS('Datos Vida'!$C$116:AP141))-INDEX('Datos Vida'!$C$144:$AP$144,,ROWS('Datos Vida'!$C$144:AP169)))*Índice!$G$52 -> 65,320 | E87: =INDEX('Datos Vida'!$C$170:$AP$170,,ROWS('Datos Vida'!$C$170:AP195))*Índice!$G$52 -> 251,570 | F87: =INDEX('Datos Vida'!$C$147:$AP$147,,ROWS('Datos Vida'!$C$147:AP172))*Índice!$G$52 -> 288,805 | G87: =(INDEX('Datos Vida'!$C$129:$AP$129,,ROWS('Datos Vida'!$C$129:AP154))+INDEX('Datos Vida'!$C$133:$AP$133,,ROWS('Datos Vida'!$C$133:AP158)))*Índice!$G$52 -> 1,133,092 | H87: =INDEX('Datos Vida'!$C$101:$AP$101,,ROWS('Datos Vida'!$C$101:AP126))*Índice!$G$52 -> 2,490,902 | I87: =(INDEX('Datos Vida'!$C$9:$AP$9,,ROWS('Datos Vida'!$C$9:AP34))+INDEX('Datos Vida'!$C$20:$AP$20,,ROWS('Datos Vida'!$C$20:AP45)))*Índice!$G$52 -> 29,680,824 | K87: 2021-05-01
B88: =INDEX('Datos Vida'!$C$7:$AP$7,,ROWS('Datos Vida'!$C$7:AP33)) -> Penta Vida | C88: =INDEX('Datos Vida'!$C$118:$AP$118,,ROWS('Datos Vida'!$C$118:AP144))*Índice!$G$52 -> 2,186,383 | D88: =(INDEX('Datos Vida'!$C$116:$AP$116,,ROWS('Datos Vida'!$C$116:AP142))-INDEX('Datos Vida'!$C$144:$AP$144,,ROWS('Datos Vida'!$C$144:AP170)))*Índice!$G$52 -> -825,704 | E88: =INDEX('Datos Vida'!$C$170:$AP$170,,ROWS('Datos Vida'!$C$170:AP196))*Índice!$G$52 -> 1,035,661 | F88: =INDEX('Datos Vida'!$C$147:$AP$147,,ROWS('Datos Vida'!$C$147:AP173))*Índice!$G$52 -> 2,269,073 | G88: =(INDEX('Datos Vida'!$C$129:$AP$129,,ROWS('Datos Vida'!$C$129:AP155))+INDEX('Datos Vida'!$C$133:$AP$133,,ROWS('Datos Vida'!$C$133:AP159)))*Índice!$G$52 -> 3,019,289 | H88: =INDEX('Datos Vida'!$C$101:$AP$101,,ROWS('Datos Vida'!$C$101:AP127))*Índice!$G$52 -> 12,328,326 | I88: =(INDEX('Datos Vida'!$C$9:$AP$9,,ROWS('Datos Vida'!$C$9:AP35))+INDEX('Datos Vida'!$C$20:$AP$20,,ROWS('Datos Vida'!$C$20:AP46)))*Índice!$G$52 -> 162,506,503 | K88: 2021-05-01
B89: =INDEX('Datos Vida'!$C$7:$AP$7,,ROWS('Datos Vida'!$C$7:AP34)) -> Principal | C89: =INDEX('Datos Vida'!$C$118:$AP$118,,ROWS('Datos Vida'!$C$118:AP145))*Índice!$G$52 -> 1,223,584 | D89: =(INDEX('Datos Vida'!$C$116:$AP$116,,ROWS('Datos Vida'!$C$116:AP143))-INDEX('Datos Vida'!$C$144:$AP$144,,ROWS('Datos Vida'!$C$144:AP171)))*Índice!$G$52 -> -1,005,502 | E89: =INDEX('Datos Vida'!$C$170:$AP$170,,ROWS('Datos Vida'!$C$170:AP197))*Índice!$G$52 -> 453,331 | F89: =INDEX('Datos Vida'!$C$147:$AP$147,,ROWS('Datos Vida'!$C$147:AP174))*Índice!$G$52 -> 1,613,665 | G89: =(INDEX('Datos Vida'!$C$129:$AP$129,,ROWS('Datos Vida'!$C$129:AP156))+INDEX('Datos Vida'!$C$133:$AP$133,,ROWS('Datos Vida'!$C$133:AP160)))*Índice!$G$52 -> 1,919,913 | H89: =INDEX('Datos Vida'!$C$101:$AP$101,,ROWS('Datos Vida'!$C$101:AP128))*Índice!$G$52 -> 8,483,229 | I89: =(INDEX('Datos Vida'!$C$9:$AP$9,,ROWS('Datos Vida'!$C$9:AP36))+INDEX('Datos Vida'!$C$20:$AP$20,,ROWS('Datos Vida'!$C$20:AP47)))*Índice!$G$52 -> 133,840,949 | K89: 2021-05-01
B90: =INDEX('Datos Vida'!$C$7:$AP$7,,ROWS('Datos Vida'!$C$7:AP35)) -> Renta Nacional | C90: =INDEX('Datos Vida'!$C$118:$AP$118,,ROWS('Datos Vida'!$C$118:AP146))*Índice!$G$52 -> 31,345 | D90: =(INDEX('Datos Vida'!$C$116:$AP$116,,ROWS('Datos Vida'!$C$116:AP144))-INDEX('Datos Vida'!$C$144:$AP$144,,ROWS('Datos Vida'!$C$144:AP172)))*Índice!$G$52 -> -235,859 | E90: =INDEX('Datos Vida'!$C$170:$AP$170,,ROWS('Datos Vida'!$C$170:AP198))*Índice!$G$52 -> -183,014 | F90: =INDEX('Datos Vida'!$C$147:$AP$147,,ROWS('Datos Vida'!$C$147:AP175))*Índice!$G$52 -> 240,444 | G90: =(INDEX('Datos Vida'!$C$129:$AP$129,,ROWS('Datos Vida'!$C$129:AP157))+INDEX('Datos Vida'!$C$133:$AP$133,,ROWS('Datos Vida'!$C$133:AP161)))*Índice!$G$52 -> 237,925 | H90: =INDEX('Datos Vida'!$C$101:$AP$101,,ROWS('Datos Vida'!$C$101:AP129))*Índice!$G$52 -> 2,368,467 | I90: =(INDEX('Datos Vida'!$C$9:$AP$9,,ROWS('Datos Vida'!$C$9:AP37))+INDEX('Datos Vida'!$C$20:$AP$20,,ROWS('Datos Vida'!$C$20:AP48)))*Índice!$G$52 -> 28,332,871 | K90: 2021-05-01
B91: =INDEX('Datos Vida'!$C$7:$AP$7,,ROWS('Datos Vida'!$C$7:AP36)) -> Rigel | C91: =INDEX('Datos Vida'!$C$118:$AP$118,,ROWS('Datos Vida'!$C$118:AP147))*Índice!$G$52 -> 994,497 | D91: =(INDEX('Datos Vida'!$C$116:$AP$116,,ROWS('Datos Vida'!$C$116:AP145))-INDEX('Datos Vida'!$C$144:$AP$144,,ROWS('Datos Vida'!$C$144:AP173)))*Índice!$G$52 -> 157,462 | E91: =INDEX('Datos Vida'!$C$170:$AP$170,,ROWS('Datos Vida'!$C$170:AP199))*Índice!$G$52 -> 118,973 | F91: =INDEX('Datos Vida'!$C$147:$AP$147,,ROWS('Datos Vida'!$C$147:AP176))*Índice!$G$52 -> 11,901 | G91: =(INDEX('Datos Vida'!$C$129:$AP$129,,ROWS('Datos Vida'!$C$129:AP158))+INDEX('Datos Vida'!$C$133:$AP$133,,ROWS('Datos Vida'!$C$133:AP162)))*Índice!$G$52 -> 839,839 | H91: =INDEX('Datos Vida'!$C$101:$AP$101,,ROWS('Datos Vida'!$C$101:AP130))*Índice!$G$52 -> 1,041,891 | I91: =(INDEX('Datos Vida'!$C$9:$AP$9,,ROWS('Datos Vida'!$C$9:AP38))+INDEX('Datos Vida'!$C$20:$AP$20,,ROWS('Datos Vida'!$C$20:AP49)))*Índice!$G$52 -> 3,366,922 | K91: 2021-05-01
B92: =INDEX('Datos Vida'!$C$7:$AP$7,,ROWS('Datos Vida'!$C$7:AP37)) -> Save Seguros | C92: =INDEX('Datos Vida'!$C$118:$AP$118,,ROWS('Datos Vida'!$C$118:AP148))*Índice!$G$52 -> 630,731 | D92: =(INDEX('Datos Vida'!$C$116:$AP$116,,ROWS('Datos Vida'!$C$116:AP146))-INDEX('Datos Vida'!$C$144:$AP$144,,ROWS('Datos Vida'!$C$144:AP174)))*Índice!$G$52 -> 58,367 | E92: =INDEX('Datos Vida'!$C$170:$AP$170,,ROWS('Datos Vida'!$C$170:AP200))*Índice!$G$52 -> 68,408 | F92: =INDEX('Datos Vida'!$C$147:$AP$147,,ROWS('Datos Vida'!$C$147:AP177))*Índice!$G$52 -> 13,867 | G92: =(INDEX('Datos Vida'!$C$129:$AP$129,,ROWS('Datos Vida'!$C$129:AP159))+INDEX('Datos Vida'!$C$133:$AP$133,,ROWS('Datos Vida'!$C$133:AP163)))*Índice!$G$52 -> 486,199 | H92: =INDEX('Datos Vida'!$C$101:$AP$101,,ROWS('Datos Vida'!$C$101:AP131))*Índice!$G$52 -> 388,178 | I92: =(INDEX('Datos Vida'!$C$9:$AP$9,,ROWS('Datos Vida'!$C$9:AP39))+INDEX('Datos Vida'!$C$20:$AP$20,,ROWS('Datos Vida'!$C$20:AP50)))*Índice!$G$52 -> 2,091,088 | K92: 2021-05-01
B93: =INDEX('Datos Vida'!$C$7:$AP$7,,ROWS('Datos Vida'!$C$7:AP38)) -> Security Previsión | C93: =INDEX('Datos Vida'!$C$118:$AP$118,,ROWS('Datos Vida'!$C$118:AP149))*Índice!$G$52 -> 2,354,632 | D93: =(INDEX('Datos Vida'!$C$116:$AP$116,,ROWS('Datos Vida'!$C$116:AP147))-INDEX('Datos Vida'!$C$144:$AP$144,,ROWS('Datos Vida'!$C$144:AP175)))*Índice!$G$52 -> -652,869 | E93: =INDEX('Datos Vida'!$C$170:$AP$170,,ROWS('Datos Vida'!$C$170:AP201))*Índice!$G$52 -> 521,249 | F93: =INDEX('Datos Vida'!$C$147:$AP$147,,ROWS('Datos Vida'!$C$147:AP178))*Índice!$G$52 -> 1,325,488 | G93: =(INDEX('Datos Vida'!$C$129:$AP$129,,ROWS('Datos Vida'!$C$129:AP160))+INDEX('Datos Vida'!$C$133:$AP$133,,ROWS('Datos Vida'!$C$133:AP164)))*Índice!$G$52 -> 2,045,914 | H93: =INDEX('Datos Vida'!$C$101:$AP$101,,ROWS('Datos Vida'!$C$101:AP132))*Índice!$G$52 -> 7,133,530 | I93: =(INDEX('Datos Vida'!$C$9:$AP$9,,ROWS('Datos Vida'!$C$9:AP40))+INDEX('Datos Vida'!$C$20:$AP$20,,ROWS('Datos Vida'!$C$20:AP51)))*Índice!$G$52 -> 91,384,951 | K93: 2021-05-01
B94: =INDEX('Datos Vida'!$C$7:$AP$7,,ROWS('Datos Vida'!$C$7:AP39)) -> Sura | C94: =INDEX('Datos Vida'!$C$118:$AP$118,,ROWS('Datos Vida'!$C$118:AP150))*Índice!$G$52 -> 1,059,997 | D94: =(INDEX('Datos Vida'!$C$116:$AP$116,,ROWS('Datos Vida'!$C$116:AP148))-INDEX('Datos Vida'!$C$144:$AP$144,,ROWS('Datos Vida'!$C$144:AP176)))*Índice!$G$52 -> 58,246 | E94: =INDEX('Datos Vida'!$C$170:$AP$170,,ROWS('Datos Vida'!$C$170:AP202))*Índice!$G$52 -> -5,460 | F94: =INDEX('Datos Vida'!$C$147:$AP$147,,ROWS('Datos Vida'!$C$147:AP179))*Índice!$G$52 -> 150,982 | G94: =(INDEX('Datos Vida'!$C$129:$AP$129,,ROWS('Datos Vida'!$C$129:AP161))+INDEX('Datos Vida'!$C$133:$AP$133,,ROWS('Datos Vida'!$C$133:AP165)))*Índice!$G$52 -> 865,422 | H94: =INDEX('Datos Vida'!$C$101:$AP$101,,ROWS('Datos Vida'!$C$101:AP133))*Índice!$G$52 -> 1,767,159 | I94: =(INDEX('Datos Vida'!$C$9:$AP$9,,ROWS('Datos Vida'!$C$9:AP41))+INDEX('Datos Vida'!$C$20:$AP$20,,ROWS('Datos Vida'!$C$20:AP52)))*Índice!$G$52 -> 34,104,396 | K94: 2021-05-01
B95: =INDEX('Datos Vida'!$C$7:$AP$7,,ROWS('Datos Vida'!$C$7:AP40)) -> Suramericana | C95: =INDEX('Datos Vida'!$C$118:$AP$118,,ROWS('Datos Vida'!$C$118:AP151))*Índice!$G$52 -> 501,855 | D95: =(INDEX('Datos Vida'!$C$116:$AP$116,,ROWS('Datos Vida'!$C$116:AP149))-INDEX('Datos Vida'!$C$144:$AP$144,,ROWS('Datos Vida'!$C$144:AP177)))*Índice!$G$52 -> -3,112 | E95: =INDEX('Datos Vida'!$C$170:$AP$170,,ROWS('Datos Vida'!$C$170:AP203))*Índice!$G$52 -> 7,482 | F95: =INDEX('Datos Vida'!$C$147:$AP$147,,ROWS('Datos Vida'!$C$147:AP180))*Índice!$G$52 -> 1,975 | G95: =(INDEX('Datos Vida'!$C$129:$AP$129,,ROWS('Datos Vida'!$C$129:AP162))+INDEX('Datos Vida'!$C$133:$AP$133,,ROWS('Datos Vida'!$C$133:AP166)))*Índice!$G$52 -> 324,492 | H95: =INDEX('Datos Vida'!$C$101:$AP$101,,ROWS('Datos Vida'!$C$101:AP134))*Índice!$G$52 -> 739,996 | I95: =(INDEX('Datos Vida'!$C$9:$AP$9,,ROWS('Datos Vida'!$C$9:AP42))+INDEX('Datos Vida'!$C$20:$AP$20,,ROWS('Datos Vida'!$C$20:AP53)))*Índice!$G$52 -> 1,090,043 | K95: 2021-05-01
B96: =INDEX('Datos Vida'!$C$7:$AP$7,,ROWS('Datos Vida'!$C$7:AP41)) -> Zurich Santander | C96: =INDEX('Datos Vida'!$C$118:$AP$118,,ROWS('Datos Vida'!$C$118:AP152))*Índice!$G$52 -> 753,541 | D96: =(INDEX('Datos Vida'!$C$116:$AP$116,,ROWS('Datos Vida'!$C$116:AP150))-INDEX('Datos Vida'!$C$144:$AP$144,,ROWS('Datos Vida'!$C$144:AP178)))*Índice!$G$52 -> 337,886 | E96: =INDEX('Datos Vida'!$C$170:$AP$170,,ROWS('Datos Vida'!$C$170:AP204))*Índice!$G$52 -> 314,537 | F96: =INDEX('Datos Vida'!$C$147:$AP$147,,ROWS('Datos Vida'!$C$147:AP181))*Índice!$G$52 -> 66,444 | G96: =(INDEX('Datos Vida'!$C$129:$AP$129,,ROWS('Datos Vida'!$C$129:AP163))+INDEX('Datos Vida'!$C$133:$AP$133,,ROWS('Datos Vida'!$C$133:AP167)))*Índice!$G$52 -> 123,789 | H96: =INDEX('Datos Vida'!$C$101:$AP$101,,ROWS('Datos Vida'!$C$101:AP135))*Índice!$G$52 -> 1,972,267 | I96: =(INDEX('Datos Vida'!$C$9:$AP$9,,ROWS('Datos Vida'!$C$9:AP43))+INDEX('Datos Vida'!$C$20:$AP$20,,ROWS('Datos Vida'!$C$20:AP54)))*Índice!$G$52 -> 5,793,690 | K96: 2021-05-01
B97: =INDEX('Datos Vida'!$C$7:$AP$7,,ROWS('Datos Vida'!$C$7:AP42)) -> 0 | C97: =INDEX('Datos Vida'!$C$118:$AP$118,,ROWS('Datos Vida'!$C$118:AP153))*Índice!$G$52 -> 0 | D97: =(INDEX('Datos Vida'!$C$116:$AP$116,,ROWS('Datos Vida'!$C$116:AP151))-INDEX('Datos Vida'!$C$144:$AP$144,,ROWS('Datos Vida'!$C$144:AP179)))*Índice!$G$52 -> 0 | E97: =INDEX('Datos Vida'!$C$170:$AP$170,,ROWS('Datos Vida'!$C$170:AP205))*Índice!$G$52 -> 0 | F97: =INDEX('Datos Vida'!$C$147:$AP$147,,ROWS('Datos Vida'!$C$147:AP182))*Índice!$G$52 -> 0 | G97: =(INDEX('Datos Vida'!$C$129:$AP$129,,ROWS('Datos Vida'!$C$129:AP164))+INDEX('Datos Vida'!$C$133:$AP$133,,ROWS('Datos Vida'!$C$133:AP168)))*Índice!$G$52 -> 0 | H97: =INDEX('Datos Vida'!$C$101:$AP$101,,ROWS('Datos Vida'!$C$101:AP136))*Índice!$G$52 -> 0 | I97: =(INDEX('Datos Vida'!$C$9:$AP$9,,ROWS('Datos Vida'!$C$9:AP44))+INDEX('Datos Vida'!$C$20:$AP$20,,ROWS('Datos Vida'!$C$20:AP55)))*Índice!$G$52 -> 0 | K97: 00:00:00
B98: =INDEX('Datos Vida'!$C$7:$AP$7,,ROWS('Datos Vida'!$C$7:AP43)) -> 0 | C98: =INDEX('Datos Vida'!$C$118:$AP$118,,ROWS('Datos Vida'!$C$118:AP154))*Índice!$G$52 -> 0 | D98: =(INDEX('Datos Vida'!$C$116:$AP$116,,ROWS('Datos Vida'!$C$116:AP152))-INDEX('Datos Vida'!$C$144:$AP$144,,ROWS('Datos Vida'!$C$144:AP180)))*Índice!$G$52 -> 0 | E98: =INDEX('Datos Vida'!$C$170:$AP$170,,ROWS('Datos Vida'!$C$170:AP206))*Índice!$G$52 -> 0 | F98: =INDEX('Datos Vida'!$C$147:$AP$147,,ROWS('Datos Vida'!$C$147:AP183))*Índice!$G$52 -> 0 | G98: =(INDEX('Datos Vida'!$C$129:$AP$129,,ROWS('Datos Vida'!$C$129:AP165))+INDEX('Datos Vida'!$C$133:$AP$133,,ROWS('Datos Vida'!$C$133:AP169)))*Índice!$G$52 -> 0 | H98: =INDEX('Datos Vida'!$C$101:$AP$101,,ROWS('Datos Vida'!$C$101:AP137))*Índice!$G$52 -> 0 | I98: =(INDEX('Datos Vida'!$C$9:$AP$9,,ROWS('Datos Vida'!$C$9:AP45))+INDEX('Datos Vida'!$C$20:$AP$20,,ROWS('Datos Vida'!$C$20:AP56)))*Índice!$G$52 -> 0 | K98: 00:00:00
B99: =INDEX('Datos Vida'!$C$7:$AP$7,,ROWS('Datos Vida'!$C$7:AP44)) -> 0 | C99: =INDEX('Datos Vida'!$C$118:$AP$118,,ROWS('Datos Vida'!$C$118:AP155))*Índice!$G$52 -> 0 | D99: =(INDEX('Datos Vida'!$C$116:$AP$116,,ROWS('Datos Vida'!$C$116:AP153))-INDEX('Datos Vida'!$C$144:$AP$144,,ROWS('Datos Vida'!$C$144:AP181)))*Índice!$G$52 -> 0 | E99: =INDEX('Datos Vida'!$C$170:$AP$170,,ROWS('Datos Vida'!$C$170:AP207))*Índice!$G$52 -> 0 | F99: =INDEX('Datos Vida'!$C$147:$AP$147,,ROWS('Datos Vida'!$C$147:AP184))*Índice!$G$52 -> 0 | G99: =(INDEX('Datos Vida'!$C$129:$AP$129,,ROWS('Datos Vida'!$C$129:AP166))+INDEX('Datos Vida'!$C$133:$AP$133,,ROWS('Datos Vida'!$C$133:AP170)))*Índice!$G$52 -> 0 | H99: =INDEX('Datos Vida'!$C$101:$AP$101,,ROWS('Datos Vida'!$C$101:AP138))*Índice!$G$52 -> 0 | I99: =(INDEX('Datos Vida'!$C$9:$AP$9,,ROWS('Datos Vida'!$C$9:AP46))+INDEX('Datos Vida'!$C$20:$AP$20,,ROWS('Datos Vida'!$C$20:AP57)))*Índice!$G$52 -> 0 | K99: 00:00:00
B100: =INDEX('Datos Vida'!$C$7:$AP$7,,ROWS('Datos Vida'!$C$7:AP45)) -> 0 | C100: =INDEX('Datos Vida'!$C$118:$AP$118,,ROWS('Datos Vida'!$C$118:AP156))*Índice!$G$52 -> 0 | D100: =(INDEX('Datos Vida'!$C$116:$AP$116,,ROWS('Datos Vida'!$C$116:AP154))-INDEX('Datos Vida'!$C$144:$AP$144,,ROWS('Datos Vida'!$C$144:AP182)))*Índice!$G$52 -> 0 | E100: =INDEX('Datos Vida'!$C$170:$AP$170,,ROWS('Datos Vida'!$C$170:AP208))*Índice!$G$52 -> 0 | F100: =INDEX('Datos Vida'!$C$147:$AP$147,,ROWS('Datos Vida'!$C$147:AP185))*Índice!$G$52 -> 0 | G100: =(INDEX('Datos Vida'!$C$129:$AP$129,,ROWS('Datos Vida'!$C$129:AP167))+INDEX('Datos Vida'!$C$133:$AP$133,,ROWS('Datos Vida'!$C$133:AP171)))*Índice!$G$52 -> 0 | H100: =INDEX('Datos Vida'!$C$101:$AP$101,,ROWS('Datos Vida'!$C$101:AP139))*Índice!$G$52 -> 0 | I100: =(INDEX('Datos Vida'!$C$9:$AP$9,,ROWS('Datos Vida'!$C$9:AP47))+INDEX('Datos Vida'!$C$20:$AP$20,,ROWS('Datos Vida'!$C$20:AP58)))*Índice!$G$52 -> 0 | K100: 00:00:00
B101: =INDEX('Datos Vida'!$C$7:$AP$7,,ROWS('Datos Vida'!$C$7:AP45)) -> 0 | C101: =INDEX('Datos Vida'!$C$118:$AP$118,,ROWS('Datos Vida'!$C$118:AP157))*Índice!$G$52 -> 0 | D101: =(INDEX('Datos Vida'!$C$116:$AP$116,,ROWS('Datos Vida'!$C$116:AP155))-INDEX('Datos Vida'!$C$144:$AP$144,,ROWS('Datos Vida'!$C$144:AP183)))*Índice!$G$52 -> 0 | E101: =INDEX('Datos Vida'!$C$170:$AP$170,,ROWS('Datos Vida'!$C$170:AP209))*Índice!$G$52 -> 0 | F101: =INDEX('Datos Vida'!$C$147:$AP$147,,ROWS('Datos Vida'!$C$147:AP186))*Índice!$G$52 -> 0 | G101: =(INDEX('Datos Vida'!$C$129:$AP$129,,ROWS('Datos Vida'!$C$129:AP168))+INDEX('Datos Vida'!$C$133:$AP$133,,ROWS('Datos Vida'!$C$133:AP172)))*Índice!$G$52 -> 0 | H101: =INDEX('Datos Vida'!$C$101:$AP$101,,ROWS('Datos Vida'!$C$101:AP140))*Índice!$G$52 -> 0 | I101: =(INDEX('Datos Vida'!$C$9:$AP$9,,ROWS('Datos Vida'!$C$9:AP48))+INDEX('Datos Vida'!$C$20:$AP$20,,ROWS('Datos Vida'!$C$20:AP59)))*Índice!$G$52 -> 0 | K101: 00:00:00
B102: Total | C102: =SUM(C62:C101) -> 37,151,053 | D102: =SUM(D62:D101) -> -9,479,495 | E102: 13,049,868 | F102: 25,747,179 | G102: 35,187,867 | H102: 157,441,049 | I102: 1,604,691,649
B104: Nota
B105: Resultado de Operaciones = Margen de Contribución - Costos de Administración
B106: Siniestros Directos (Seguros de Vida) = Siniestros Directos + Rentas Directas
B107: Inversiones = Total Inversiones Financieras + Total Inversiones Inmobiliarias

Sheet Mer. Prima Directa
C2: Volver al Índice
B8: Prima Directa del Mercado de Seguros
B9: =Índice!H52 -> Cifras en UF al 31.03.2021
B11: Grupo | C11: =Índice!H58 -> 31.03.2020 | E11: =Índice!H57 -> 31.03.2021 | G11: =CONCATENATE("Variación ",MID(C11,7,4),"/",MID(E11,7,4)) -> Variación 2020/2021
C12: Cifra | D12: Part. (%) | E12: Cifra | F12: Part. (%)
B13: Seguros Generales | C13: ='Gen. Prima Directa'!AS49 -> 24,094,328 | D13: =C13/C$15 -> 32.7% | E13: ='Gen. Prima Directa'!AQ49 -> 25,177,272 | F13: =E13/E$15 -> 40.4% | G13: =E13/C13-1 -> 4.5%
B14: Seguros de Vida | C14: ='Vida Prima Directa'!AS70 -> 49,561,372 | D14: =C14/C$15 -> 67.3% | E14: ='Vida Prima Directa'!AQ70 -> 37,151,053 | F14: =E14/E$15 -> 59.6% | G14: =E14/C14-1 -> -25.0%
B15: Total | C15: =SUM(C13:C14) -> 73,655,700 | D15: =C15/C$15 -> 100.0% | E15: =SUM(E13:E14) -> 62,328,325 | F15: =E15/E$15 -> 100.0% | G15: =E15/C15-1 -> -15.4%
B18: Seguros Generales | C18: =Índice!H58 -> 31.03.2020 | E18: =Índice!H57 -> 31.03.2021 | G18: =CONCATENATE("Variación ",MID(C18,7,4),"/",MID(E18,7,4)) -> Variación 2020/2021
C19: Cifra | D19: Part. (%) | E19: Cifra | F19: Part. (%)
B20: Incendio y Adicionales | C20: ='Gen. Prima Directa'!AS58 -> 7,513,611 | D20: =C20/C$30 -> 31.2% | E20: ='Gen. Prima Directa'!AQ58 -> 9,180,564 | F20: =E20/E$30 -> 36.5% | G20: =E20/C20-1 -> 22.2%
B21: Vehículos | C21: ='Gen. Prima Directa'!AS61 -> 7,354,391 | D21: =C21/C$30 -> 30.5% | E21: ='Gen. Prima Directa'!AQ61 -> 7,183,827 | F21: =E21/E$30 -> 28.5% | G21: =E21/C21-1 -> -2.3%
B22: Transporte | C22: ='Gen. Prima Directa'!AS63 -> 864,246 | D22: 3.6% | E22: ='Gen. Prima Directa'!AQ63 -> 938,420 | F22: 3.7% | G22: 8.6%
B23: Robo con Fractura | C23: ='Gen. Prima Directa'!AS19 -> 1,108,093 | D23: 4.6% | E23: ='Gen. Prima Directa'!AQ19 -> 748,864 | F23: 3.0% | G23: -32.4%
B24: SOAP | C24: ='Gen. Prima Directa'!AS43 -> 706,378 | D24: 2.9% | E24: ='Gen. Prima Directa'!AQ43 -> 965,650 | F24: 3.8% | G24: 36.7%
B25: Garantía y Crédito | C25: =SUM('Gen. Prima Directa'!AS35,'Gen. Prima Directa'!AS38:AS40) -> 1,156,724 | D25: 4.8% | E25: =SUM('Gen. Prima Directa'!AQ35,'Gen. Prima Directa'!AQ38:AQ40) -> 1,265,999 | F25: 5.0% | G25: 9.4%
B26: Responsabilidad Civil | C26: ='Gen. Prima Directa'!AS66 -> 1,041,136 | D26: 4.3% | E26: =SUM('Gen. Prima Directa'!AQ24:AQ26) -> 1,065,073 | F26: 4.2% | G26: 2.3%
B27: Casco | C27: ='Gen. Prima Directa'!AS62 -> 329,101 | D27: 1.4% | E27: =SUM('Gen. Prima Directa'!AQ22:AQ23) -> 241,715 | F27: 1.0% | G27: -26.6%
B28: Ingeniería | C28: ='Gen. Prima Directa'!AS64 -> 732,965 | D28: 3.0% | E28: =SUM('Gen. Prima Directa'!AQ64) -> 862,344 | F28: 3.4% | G28: 17.7%
B29: Otros | C29: =Índice!$F$52*'Datos Generales'!AT285 -> 3,287,682 | D29: 13.6% | E29: =SUM('Gen. Prima Directa'!AQ20,'Gen. Prima Directa'!AQ36:AQ37,'Gen. Prima Directa'!AQ41:AQ42,'Gen. Prima Directa'!AQ44:AQ48) -> 2,724,816 | F29: 10.8% | G29: -17.1%
B30: Total | C30: =SUM(C20:C29) -> 24,094,328 | D30: 100.0% | E30: =SUM(E20:E29) -> 25,177,272 | F30: 100.0% | G30: 4.5%
B33: Seguros de Vida | C33: =Índice!H58 -> 31.03.2020 | E33: =Índice!H57 -> 31.03.2021 | G33: =CONCATENATE("Variación ",MID(C33,7,4),"/",MID(E33,7,4)) -> Variación 2020/2021
C34: Cifra | D34: Part. (%) | E34: Cifra | F34: Part. (%)
B35: Vida | C35: ='Vida Prima Directa'!AS72 -> 3,529,154 | D35: =C35/C$46 -> 7.1% | E35: ='Vida Prima Directa'!AQ72 -> 3,223,480 | F35: =E35/E$46 -> 8.7% | G35: =E35/C35-1 -> -8.7%
B36: Salud | C36: ='Vida Prima Directa'!AS78 -> 5,617,258 | D36: =C36/C$46 -> 11.3% | E36: ='Vida Prima Directa'!AQ78 -> 5,397,040 | F36: =E36/E$46 -> 14.5% | G36: =E36/C36-1 -> -3.9%
B37: Accidentes Personales | C37: ='Vida Prima Directa'!AS79 -> 1,401,850 | D37: 2.8% | E37: ='Vida Prima Directa'!AQ79 -> 1,446,339 | F37: 3.9% | G37: 3.2%
B38: Desgravamen | C38: ='Vida Prima Directa'!AS80 -> 4,728,825 | D38: 9.5% | E38: ='Vida Prima Directa'!AQ80 -> 3,630,615 | F38: 9.8% | G38: -23.2%
B39: Seguros con CUI | C39: ='Vida Prima Directa'!AS81 -> 5,873,822 | D39: 11.9% | E39: ='Vida Prima Directa'!AQ81 -> 5,189,783 | F39: 14.0% | G39: -11.6%
B40: Seguros con Ahorro Previsional | C40: ='Vida Prima Directa'!AS84 -> 3,117,372 | D40: 6.3% | E40: ='Vida Prima Directa'!AQ84 -> 2,500,242 | F40: 6.7% | G40: -19.8%
B41: Rentas Vitalicias Vejez | C41: ='Vida Prima Directa'!AS89 -> 12,504,735 | D41: 25.2% | E41: ='Vida Prima Directa'!AQ89 -> 4,511,611 | F41: 12.1% | G41: -63.9%
B42: Rentas Vitalicias Invalidez | C42: ='Vida Prima Directa'!AS90 -> 3,760,837 | D42: 7.6% | E42: ='Vida Prima Directa'!AQ90 -> 2,237,295 | F42: 6.0% | G42: -40.5%
B43: Rentas Vitalicias Sobrevivencia | C43: ='Vida Prima Directa'!AS91 -> 941,692 | D43: 1.9% | E43: ='Vida Prima Directa'!AQ91 -> 548,546 | F43: 1.5% | G43: -41.7%
B44: Seguro de AFP + Inv. y Sobr. | C44: ='Vida Prima Directa'!AS92 -> 7,417,023 | D44: 15.0% | E44: ='Vida Prima Directa'!AQ92 -> 7,813,883 | F44: 21.0% | G44: 5.4%
B45: Otros | C45: =SUM('Vida Prima Directa'!AS82:AS83,'Vida Prima Directa'!AS85,'Vida Prima Directa'!AS86,'Vida Prima Directa'!AS87) -> 668,804 | D45: 1.3% | E45: =SUM('Vida Prima Directa'!AQ82:AQ83,'Vida Prima Directa'!AQ85,'Vida Prima Directa'!AQ86,'Vida Prima Directa'!AQ87) -> 652,218 | F45: 1.8% | G45: -2.5%
B46: Total | C46: =SUM(C35:C45) -> 49,561,372 | D46: =C46/C$46 -> 100.0% | E46: =SUM(E35:E45) -> 37,151,053 | F46: =E46/E$46 -> 100.0% | G46: =E46/C46-1 -> -25.0%
B48: Rentas Vitalicias | C48: =SUM(C41:C43) -> 17,207,264 | D48: =C48/C46 -> 34.7% | E48: =SUM(E41:E43) -> 7,297,452 | F48: =E48/E46 -> 19.6% | G48: =E48/C48-1 -> -57.6%

Sheet Mer. Siniestros Directos
C2: Volver al Índice
B8: Siniestros Directos del Mercado de Seguros
B9: =Índice!H52 -> Cifras en UF al 31.03.2021
B11: Grupo | C11: =Índice!H58 -> 31.03.2020 | E11: =Índice!H57 -> 31.03.2021 | G11: =CONCATENATE("Variación ",MID(C11,7,4),"/",MID(E11,7,4)) -> Variación 2020/2021
C12: Cifra | D12: Part. (%) | E12: Cifra | F12: Part. (%)
B13: Seguros Generales | C13: ='Gen. Siniestros Directos'!AS49 -> 14,858,497 | D13: =C13/C$15 -> 21.6% | E13: ='Gen. Siniestros Directos'!AQ49 -> 10,044,239 | F13: =E13/E$15 -> 22.2% | G13: =E13/C13-1 -> -32.4%
B14: Seguros de Vida | C14: ='Vida Siniestros Directos'!AS70 -> 53,875,281 | D14: =C14/C$15 -> 78.4% | E14: ='Vida Siniestros Directos'!AQ70 -> 35,187,867 | F14: =E14/E$15 -> 77.8% | G14: =E14/C14-1 -> -34.7%
B15: Total | C15: =SUM(C13:C14) -> 68,733,778 | D15: =C15/C$15 -> 100.0% | E15: =SUM(E13:E14) -> 45,232,106 | F15: =E15/E$15 -> 100.0% | G15: =E15/C15-1 -> -34.2%
B18: Seguros Generales | C18: =Índice!H58 -> 31.03.2020 | E18: =Índice!H57 -> 31.03.2021 | G18: =CONCATENATE("Variación ",MID(C18,7,4),"/",MID(E18,7,4)) -> Variación 2020/2021
C19: Cifra | D19: Part. (%) | E19: Cifra | F19: Part. (%)
B20: ='Mer. Prima Directa'!B20 -> Incendio y Adicionales | C20: ='Gen. Siniestros Directos'!AS58 -> 3,435,290 | D20: =C20/C$30 -> 23.1% | E20: ='Gen. Siniestros Directos'!AQ58 -> 1,461,979 | F20: =E20/E$30 -> 14.6% | G20: =E20/C20-1 -> -57.4%
B21: ='Mer. Prima Directa'!B21 -> Vehículos | C21: ='Gen. Siniestros Directos'!AS61 -> 5,069,724 | D21: =C21/C$30 -> 34.1% | E21: ='Gen. Siniestros Directos'!AQ61 -> 4,567,909 | F21: =E21/E$30 -> 45.5% | G21: =E21/C21-1 -> -9.9%
B22: ='Mer. Prima Directa'!B22 -> Transporte | C22: ='Gen. Siniestros Directos'!AS63 -> 587,490 | D22: 4.0% | E22: ='Gen. Siniestros Directos'!AQ63 -> 474,526 | F22: 4.7% | G22: -19.2%
B23: ='Mer. Prima Directa'!B23 -> Robo con Fractura | C23: ='Gen. Siniestros Directos'!AS19 -> 298,327 | D23: 2.0% | E23: ='Gen. Siniestros Directos'!AQ19 -> 140,593 | F23: 1.4% | G23: -52.9%
B24: ='Mer. Prima Directa'!B24 -> SOAP | C24: ='Gen. Siniestros Directos'!AS43 -> 322,339 | D24: 2.2% | E24: ='Gen. Siniestros Directos'!AQ43 -> 173,623 | F24: 1.7% | G24: -46.1%
B25: ='Mer. Prima Directa'!B25 -> Garantía y Crédito | C25: =SUM('Gen. Siniestros Directos'!AS35,'Gen. Siniestros Directos'!AS38:AS40) -> 1,426,452 | D25: 9.6% | E25: =SUM('Gen. Siniestros Directos'!AQ35,'Gen. Siniestros Directos'!AQ38:AQ40) -> 679,411 | F25: 6.8% | G25: -52.4%
B26: ='Mer. Prima Directa'!B26 -> Responsabilidad Civil | C26: ='Gen. Siniestros Directos'!AS66 -> 613,785 | D26: 4.1% | E26: =SUM('Gen. Siniestros Directos'!AQ24:AQ26) -> 564,098 | F26: 5.6% | G26: -8.1%
B27: ='Mer. Prima Directa'!B27 -> Casco | C27: ='Gen. Siniestros Directos'!AS62 -> 504,994 | D27: 3.4% | E27: =SUM('Gen. Siniestros Directos'!AQ22:AQ23) -> 96,766 | F27: 1.0% | G27: -80.8%
B28: ='Mer. Prima Directa'!B28 -> Ingeniería | C28: ='Gen. Siniestros Directos'!AS64 -> 1,238,304 | D28: 8.3% | E28: =SUM('Gen. Siniestros Directos'!AQ64) -> 467,043 | F28: 4.6% | G28: -62.3%
B29: ='Mer. Prima Directa'!B29 -> Otros | C29: =Índice!$F$52*'Datos Generales'!AT489 -> 1,361,790 | D29: 9.2% | E29: =SUM('Gen. Siniestros Directos'!AQ20,'Gen. Siniestros Directos'!AQ36:AQ37,'Gen. Siniestros Directos'!AQ41:AQ42,'Gen. Siniestros Directos'!AQ44:AQ48) -> 1,418,290 | F29: 14.1% | G29: 4.1%
B30: Total | C30: =SUM(C20:C29) -> 14,858,497 | D30: 100.0% | E30: =SUM(E20:E29) -> 10,044,239 | F30: 100.0% | G30: -32.4%
B33: Seguros de Vida | C33: =Índice!H58 -> 31.03.2020 | E33: =Índice!H57 -> 31.03.2021 | G33: =CONCATENATE("Variación ",MID(C33,7,4),"/",MID(E33,7,4)) -> Variación 2020/2021
C34: Cifra | D34: Part. (%) | E34: Cifra | F34: Part. (%)
B35: ='Mer. Prima Directa'!B35 -> Vida | C35: ='Vida Siniestros Directos'!AS72 -> 1,449,728 | D35: =C35/C$46 -> 2.7% | E35: ='Vida Siniestros Directos'!AQ72 -> 1,315,425 | F35: =E35/E$46 -> 3.7% | G35: =E35/C35-1 -> -9.3%
B36: ='Mer. Prima Directa'!B36 -> Salud | C36: ='Vida Siniestros Directos'!AS78 -> 3,724,514 | D36: =C36/C$46 -> 6.9% | E36: ='Vida Siniestros Directos'!AQ78 -> 3,187,660 | F36: =E36/E$46 -> 9.1% | G36: =E36/C36-1 -> -14.4%
B37: ='Mer. Prima Directa'!B37 -> Accidentes Personales | C37: ='Vida Siniestros Directos'!AS79 -> 207,520 | D37: 0.4% | E37: ='Vida Siniestros Directos'!AQ79 -> 147,512 | F37: 0.4% | G37: -28.9%
B38: ='Mer. Prima Directa'!B38 -> Desgravamen | C38: ='Vida Siniestros Directos'!AS80 -> 1,216,569 | D38: 2.3% | E38: ='Vida Siniestros Directos'!AQ80 -> 1,451,823 | F38: 4.1% | G38: 19.3%
B39: ='Mer. Prima Directa'!B39 -> Seguros con CUI | C39: ='Vida Siniestros Directos'!AS81 -> 5,185,113 | D39: 9.6% | E39: ='Vida Siniestros Directos'!AQ81 -> 3,213,773 | F39: 9.1% | G39: -38.0%
B40: ='Mer. Prima Directa'!B40 -> Seguros con Ahorro Previsional | C40: ='Vida Siniestros Directos'!AS84 -> 2,548,056 | D40: 4.7% | E40: ='Vida Siniestros Directos'!AQ84 -> 1,842,769 | F40: 5.2% | G40: -27.7%
B41: ='Mer. Prima Directa'!B41 -> Rentas Vitalicias Vejez | C41: ='Vida Siniestros Directos'!AS89 -> 20,460,507 | D41: 38.0% | E41: ='Vida Siniestros Directos'!AQ89 -> 12,593,750 | F41: 35.8% | G41: -38.4%
B42: ='Mer. Prima Directa'!B42 -> Rentas Vitalicias Invalidez | C42: ='Vida Siniestros Directos'!AS90 -> 5,461,630 | D42: 10.1% | E42: ='Vida Siniestros Directos'!AQ90 -> 2,858,626 | F42: 8.1% | G42: -47.7%
B43: ='Mer. Prima Directa'!B43 -> Rentas Vitalicias Sobrevivencia | C43: ='Vida Siniestros Directos'!AS91 -> 2,961,381 | D43: 5.5% | E43: ='Vida Siniestros Directos'!AQ91 -> 2,399,582 | F43: 6.8% | G43: -19.0%
B44: ='Mer. Prima Directa'!B44 -> Seguro de AFP + Inv. y Sobr. | C44: ='Vida Siniestros Directos'!AS92 -> 9,840,474 | D44: 18.3% | E44: ='Vida Siniestros Directos'!AQ92 -> 5,403,655 | F44: 15.4% | G44: -45.1%
B45: ='Mer. Prima Directa'!B45 -> Otros | C45: =SUM('Vida Siniestros Directos'!AS82:AS83,'Vida Siniestros Directos'!AS85,'Vida Siniestros Directos'!AS86,'Vida Siniestros Directos'!AS87) -> 819,790 | D45: 1.5% | E45: =SUM('Vida Siniestros Directos'!AQ82:AQ83,'Vida Siniestros Directos'!AQ85,'Vida Siniestros Directos'!AQ86,'Vida Siniestros Directos'!AQ87) -> 773,292 | F45: 2.2% | G45: -5.7%
B46: Total | C46: =SUM(C35:C45) -> 53,875,281 | D46: =C46/C$46 -> 100.0% | E46: =SUM(E35:E45) -> 35,187,867 | F46: =E46/E$46 -> 100.0% | G46: =E46/C46-1 -> -34.7%
B48: Rentas Vitalicias | C48: =SUM(C41:C43) -> 28,883,518 | D48: =C48/C46 -> 53.6% | E48: =SUM(E41:E43) -> 17,851,959 | F48: =E48/E46 -> 50.7% | G48: =E48/C48-1 -> -38.2%

Sheet Mer. Pólizas Emitidas
C2: Volver al Índice
B8: Número de Pólizas Emitidas del Mercado de Seguros
B9: =Índice!H56 -> Cifras al 31.03.2021
B11: Grupo | C11: =Índice!H58 -> 31.03.2020 | E11: =Índice!H57 -> 31.03.2021 | G11: =CONCATENATE("Variación ",MID(C11,7,4),"/",MID(E11,7,4)) -> Variación 2020/2021
C12: Cifra | D12: Part. (%) | E12: Cifra | F12: Part. (%)
B13: Seguros Generales | C13: ='Gen. Pólizas Emitidas'!AS49 -> 5,566,228 | D13: =C13/C$15 -> 91.8% | E13: ='Gen. Pólizas Emitidas'!AQ49 -> 6,639,083 | F13: =E13/E$15 -> 92.6% | G13: =E13/C13-1 -> 19.3%
B14: Seguros de Vida | C14: ='Vida Pólizas Emitidas'!AS70 -> 500,035 | D14: =C14/C$15 -> 8.2% | E14: ='Vida Pólizas Emitidas'!AQ70 -> 529,815 | F14: =E14/E$15 -> 7.4% | G14: =E14/C14-1 -> 6.0%
B15: Total | C15: =SUM(C13:C14) -> 6,066,263 | D15: =C15/C$15 -> 100.0% | E15: =SUM(E13:E14) -> 7,168,898 | F15: =E15/E$15 -> 100.0% | G15: =E15/C15-1 -> 18.2%
B18: Seguros Generales | C18: =Índice!H58 -> 31.03.2020 | E18: =Índice!H57 -> 31.03.2021 | G18: =CONCATENATE("Variación ",MID(C18,7,4),"/",MID(E18,7,4)) -> Variación 2020/2021
C19: Cifra | D19: Part. (%) | E19: Cifra | F19: Part. (%)
B20: ='Mer. Prima Directa'!B20 -> Incendio y Adicionales | C20: ='Gen. Pólizas Emitidas'!AS58 -> 506,841 | D20: =C20/C$30 -> 9.1% | E20: ='Gen. Pólizas Emitidas'!AQ58 -> 646,083 | F20: =E20/E$30 -> 9.7% | G20: =E20/C20-1 -> 27.5%
B21: ='Mer. Prima Directa'!B21 -> Vehículos | C21: ='Gen. Pólizas Emitidas'!AS61 -> 744,602 | D21: =C21/C$30 -> 13.4% | E21: ='Gen. Pólizas Emitidas'!AQ61 -> 869,909 | F21: =E21/E$30 -> 13.1% | G21: =E21/C21-1 -> 16.8%
B22: ='Mer. Prima Directa'!B22 -> Transporte | C22: ='Gen. Pólizas Emitidas'!AS63 -> 18,665 | D22: 0.3% | E22: ='Gen. Pólizas Emitidas'!AQ63 -> 19,248 | F22: 0.3% | G22: 3.1%
B23: ='Mer. Prima Directa'!B23 -> Robo con Fractura | C23: ='Gen. Pólizas Emitidas'!AS19 -> 87,841 | D23: 1.6% | E23: ='Gen. Pólizas Emitidas'!AQ19 -> 109,675 | F23: 1.7% | G23: 24.9%
B24: ='Mer. Prima Directa'!B24 -> SOAP | C24: ='Gen. Pólizas Emitidas'!AS43 -> 2,854,395 | D24: 51.3% | E24: ='Gen. Pólizas Emitidas'!AQ43 -> 3,571,252 | F24: 53.8% | G24: 25.1%
B25: ='Mer. Prima Directa'!B25 -> Garantía y Crédito | C25: =SUM('Gen. Pólizas Emitidas'!AS35,'Gen. Pólizas Emitidas'!AS38:AS40) -> 30,256 | D25: 0.5% | E25: =SUM('Gen. Pólizas Emitidas'!AQ35,'Gen. Pólizas Emitidas'!AQ38:AQ40) -> 30,611 | F25: 0.5% | G25: 1.2%
B26: ='Mer. Prima Directa'!B26 -> Responsabilidad Civil | C26: ='Gen. Pólizas Emitidas'!AS66 -> 76,451 | D26: 1.4% | E26: =SUM('Gen. Pólizas Emitidas'!AQ24:AQ26) -> 80,477 | F26: 1.2% | G26: 5.3%
B27: ='Mer. Prima Directa'!B27 -> Casco | C27: ='Gen. Pólizas Emitidas'!AS62 -> 571 | D27: 0.0% | E27: =SUM('Gen. Pólizas Emitidas'!AQ22:AQ23) -> 746 | F27: 0.0% | G27: 30.6%
B28: ='Mer. Prima Directa'!B28 -> Ingeniería | C28: ='Gen. Pólizas Emitidas'!AS64 -> 19,927 | D28: 0.4% | E28: =SUM('Gen. Pólizas Emitidas'!AQ64) -> 23,228 | F28: 0.3% | G28: 16.6%
B29: ='Mer. Prima Directa'!B29 -> Otros | C29: ='Datos Generales'!AT387 -> 1,226,679 | D29: 22.0% | E29: =SUM('Gen. Pólizas Emitidas'!AQ20,'Gen. Pólizas Emitidas'!AQ36:AQ37,'Gen. Pólizas Emitidas'!AQ41:AQ42,'Gen. Pólizas Emitidas'!AQ44:AQ48) -> 1,287,854 | F29: 19.4% | G29: 5.0%
B30: Total | C30: =SUM(C20:C29) -> 5,566,228 | D30: 100.0% | E30: =SUM(E20:E29) -> 6,639,083 | F30: 100.0% | G30: 19.3%
B33: Seguros de Vida | C33: =Índice!H58 -> 31.03.2020 | E33: =Índice!H57 -> 31.03.2021 | G33: =CONCATENATE("Variación ",MID(C33,7,4),"/",MID(E33,7,4)) -> Variación 2020/2021
C34: Cifra | D34: Part. (%) | E34: Cifra | F34: Part. (%)
B35: ='Mer. Prima Directa'!B35 -> Vida | C35: ='Vida Pólizas Emitidas'!AS72 -> 148,352 | D35: =C35/C$46 -> 29.7% | E35: ='Vida Pólizas Emitidas'!AQ72 -> 144,869 | F35: =E35/E$46 -> 27.3% | G35: =E35/C35-1 -> -2.3%
B36: ='Mer. Prima Directa'!B36 -> Salud | C36: ='Vida Pólizas Emitidas'!AS78 -> 64,045 | D36: =C36/C$46 -> 12.8% | E36: ='Vida Pólizas Emitidas'!AQ78 -> 107,042 | F36: =E36/E$46 -> 20.2% | G36: =E36/C36-1 -> 67.1%
B37: ='Mer. Prima Directa'!B37 -> Accidentes Personales | C37: ='Vida Pólizas Emitidas'!AS79 -> 124,773 | D37: 25.0% | E37: ='Vida Pólizas Emitidas'!AQ79 -> 149,272 | F37: 28.2% | G37: 19.6%
B38: ='Mer. Prima Directa'!B38 -> Desgravamen | C38: ='Vida Pólizas Emitidas'!AS80 -> 65,911 | D38: 13.2% | E38: ='Vida Pólizas Emitidas'!AQ80 -> 41,032 | F38: 7.7% | G38: -37.7%
B39: ='Mer. Prima Directa'!B39 -> Seguros con CUI | C39: ='Vida Pólizas Emitidas'!AS81 -> 38,246 | D39: 7.6% | E39: ='Vida Pólizas Emitidas'!AQ81 -> 28,732 | F39: 5.4% | G39: -24.9%
B40: ='Mer. Prima Directa'!B40 -> Seguros con Ahorro Previsional | C40: ='Vida Pólizas Emitidas'!AS84 -> 5,314 | D40: 1.1% | E40: ='Vida Pólizas Emitidas'!AQ84 -> 5,596 | F40: 1.1% | G40: 5.3%
B41: ='Mer. Prima Directa'!B41 -> Rentas Vitalicias Vejez | C41: ='Vida Pólizas Emitidas'!AS89 -> 4,478 | D41: 0.9% | E41: ='Vida Pólizas Emitidas'!AQ89 -> 1,622 | F41: 0.3% | G41: -63.8%
B42: ='Mer. Prima Directa'!B42 -> Rentas Vitalicias Invalidez | C42: ='Vida Pólizas Emitidas'!AS90 -> 1,193 | D42: 0.2% | E42: ='Vida Pólizas Emitidas'!AQ90 -> 446 | F42: 0.1% | G42: -62.6%
B43: ='Mer. Prima Directa'!B43 -> Rentas Vitalicias Sobrevivencia | C43: ='Vida Pólizas Emitidas'!AS91 -> 339 | D43: 0.1% | E43: ='Vida Pólizas Emitidas'!AQ91 -> 163 | F43: 0.0% | G43: -51.9%
B44: ='Mer. Prima Directa'!B44 -> Seguro de AFP + Inv. y Sobr. | C44: ='Vida Pólizas Emitidas'!AS92 -> 2,929 | D44: 0.6% | E44: ='Vida Pólizas Emitidas'!AQ92 -> 2,805 | F44: 0.5% | G44: -4.2%
B45: ='Mer. Prima Directa'!B45 -> Otros | C45: =SUM('Vida Pólizas Emitidas'!AS82:AS83,'Vida Pólizas Emitidas'!AS85,'Vida Pólizas Emitidas'!AS86,'Vida Pólizas Emitidas'!AS87) -> 44,455 | D45: 8.9% | E45: =SUM('Vida Pólizas Emitidas'!AQ82:AQ83,'Vida Pólizas Emitidas'!AQ85,'Vida Pólizas Emitidas'!AQ86,'Vida Pólizas Emitidas'!AQ87) -> 48,236 | F45: 9.1% | G45: 8.5%
B46: Total | C46: =SUM(C35:C45) -> 500,035 | D46: =C46/C$46 -> 100.0% | E46: =SUM(E35:E45) -> 529,815 | F46: =E46/E$46 -> 100.0% | G46: =E46/C46-1 -> 6.0%
B48: Rentas Vitalicias | C48: =SUM(C41:C43) -> 6,010 | D48: =C48/C46 -> 1.2% | E48: =SUM(E41:E43) -> 2,231 | F48: =E48/E46 -> 0.4% | G48: =E48/C48-1 -> -62.9%

Sheet Mer. Número de Siniestros
C2: Volver al Índice
B8: Número de Siniestros del Mercado de Seguros
B9: =Índice!H56 -> Cifras al 31.03.2021
B11: Grupo | C11: =Índice!H58 -> 31.03.2020 | E11: =Índice!H57 -> 31.03.2021 | G11: =CONCATENATE("Variación ",MID(C11,7,4),"/",MID(E11,7,4)) -> Variación 2020/2021
C12: Cifra | D12: Part. (%) | E12: Cifra | F12: Part. (%)
B13: Seguros Generales | C13: ='Gen. Número de Siniestros'!AS49 -> 292,783 | D13: =C13/C$15 -> 6.3% | E13: ='Gen. Número de Siniestros'!AQ49 -> 255,754 | F13: =E13/E$15 -> 4.8% | G13: =E13/C13-1 -> -12.6%
B14: Seguros de Vida | C14: ='Vida Número de Siniestros'!AS70 -> 4,390,993 | D14: =C14/C$15 -> 93.7% | E14: ='Vida Número de Siniestros'!AQ70 -> 5,097,326 | F14: =E14/E$15 -> 95.2% | G14: =E14/C14-1 -> 16.1%
B15: Total | C15: =SUM(C13:C14) -> 4,683,776 | D15: =C15/C$15 -> 100.0% | E15: =SUM(E13:E14) -> 5,353,080 | F15: =E15/E$15 -> 100.0% | G15: =E15/C15-1 -> 14.3%
B18: Seguros Generales | C18: =Índice!H58 -> 31.03.2020 | E18: =Índice!H57 -> 31.03.2021 | G18: =CONCATENATE("Variación ",MID(C18,7,4),"/",MID(E18,7,4)) -> Variación 2020/2021
C19: Cifra | D19: Part. (%) | E19: Cifra | F19: Part. (%)
B20: ='Mer. Prima Directa'!B20 -> Incendio y Adicionales | C20: ='Gen. Número de Siniestros'!AS58 -> 24,204 | D20: =C20/C$30 -> 8.3% | E20: ='Gen. Número de Siniestros'!AQ58 -> 26,696 | F20: =E20/E$30 -> 10.4% | G20: =E20/C20-1 -> 10.3%
B21: ='Mer. Prima Directa'!B21 -> Vehículos | C21: ='Gen. Número de Siniestros'!AS61 -> 150,068 | D21: =C21/C$30 -> 51.3% | E21: ='Gen. Número de Siniestros'!AQ61 -> 122,606 | F21: =E21/E$30 -> 47.9% | G21: =E21/C21-1 -> -18.3%
B22: ='Mer. Prima Directa'!B22 -> Transporte | C22: ='Gen. Número de Siniestros'!AS63 -> 5,387 | D22: 1.8% | E22: ='Gen. Número de Siniestros'!AQ63 -> 8,658 | F22: 3.4% | G22: 60.7%
B23: ='Mer. Prima Directa'!B23 -> Robo con Fractura | C23: ='Gen. Número de Siniestros'!AS19 -> 9,546 | D23: 3.3% | E23: ='Gen. Número de Siniestros'!AQ19 -> 5,028 | F23: 2.0% | G23: -47.3%
B24: ='Mer. Prima Directa'!B24 -> SOAP | C24: ='Gen. Número de Siniestros'!AS43 -> 7,722 | D24: 2.6% | E24: ='Gen. Número de Siniestros'!AQ43 -> 5,766 | F24: 2.3% | G24: -25.3%
B25: ='Mer. Prima Directa'!B25 -> Garantía y Crédito | C25: =SUM('Gen. Número de Siniestros'!AS35,'Gen. Número de Siniestros'!AS38:AS40) -> 4,823 | D25: 1.6% | E25: =SUM('Gen. Número de Siniestros'!AQ35,'Gen. Número de Siniestros'!AQ38:AQ40) -> 2,820 | F25: 1.1% | G25: -41.5%
B26: ='Mer. Prima Directa'!B26 -> Responsabilidad Civil | C26: ='Gen. Número de Siniestros'!AS66 -> 3,183 | D26: 1.1% | E26: =SUM('Gen. Número de Siniestros'!AQ24:AQ26) -> 3,876 | F26: 1.5% | G26: 21.8%
B27: ='Mer. Prima Directa'!B27 -> Casco | C27: ='Gen. Número de Siniestros'!AS62 -> 289 | D27: 0.1% | E27: =SUM('Gen. Número de Siniestros'!AQ22:AQ23) -> 112 | F27: 0.0% | G27: -61.2%
B28: ='Mer. Prima Directa'!B28 -> Ingeniería | C28: ='Gen. Número de Siniestros'!AS64 -> 1,238 | D28: 0.4% | E28: =SUM('Gen. Número de Siniestros'!AQ64) -> 1,386 | F28: 0.5% | G28: 12.0%
B29: ='Mer. Prima Directa'!B29 -> Otros | C29: ='Datos Generales'!AT540 -> 86,323 | D29: 29.5% | E29: =SUM('Gen. Número de Siniestros'!AQ20,'Gen. Número de Siniestros'!AQ36:AQ37,'Gen. Número de Siniestros'!AQ41:AQ42,'Gen. Número de Siniestros'!AQ44:AQ48) -> 78,806 | F29: 30.8% | G29: -8.7%
B30: Total | C30: =SUM(C20:C29) -> 292,783 | D30: 100.0% | E30: =SUM(E20:E29) -> 255,754 | F30: 100.0% | G30: -12.6%
B33: Seguros de Vida | C33: =Índice!H58 -> 31.03.2020 | E33: =Índice!H57 -> 31.03.2021 | G33: =CONCATENATE("Variación ",MID(C33,7,4),"/",MID(E33,7,4)) -> Variación 2020/2021
C34: Cifra | D34: Part. (%) | E34: Cifra | F34: Part. (%)
B35: ='Mer. Prima Directa'!B35 -> Vida | C35: ='Vida Número de Siniestros'!AS72 -> 223,243 | D35: =C35/C$46 -> 5.1% | E35: ='Vida Número de Siniestros'!AQ72 -> 17,932 | F35: =E35/E$46 -> 0.4% | G35: =E35/C35-1 -> -92.0%
B36: ='Mer. Prima Directa'!B36 -> Salud | C36: ='Vida Número de Siniestros'!AS78 -> 3,950,692 | D36: =C36/C$46 -> 90.0% | E36: ='Vida Número de Siniestros'!AQ78 -> 4,887,601 | F36: =E36/E$46 -> 95.9% | G36: =E36/C36-1 -> 23.7%
B37: ='Mer. Prima Directa'!B37 -> Accidentes Personales | C37: ='Vida Número de Siniestros'!AS79 -> 4,414 | D37: 0.1% | E37: ='Vida Número de Siniestros'!AQ79 -> 2,668 | F37: 0.1% | G37: -39.6%
B38: ='Mer. Prima Directa'!B38 -> Desgravamen | C38: ='Vida Número de Siniestros'!AS80 -> 45,504 | D38: 1.0% | E38: ='Vida Número de Siniestros'!AQ80 -> 16,998 | F38: 0.3% | G38: -62.6%
B39: ='Mer. Prima Directa'!B39 -> Seguros con CUI | C39: ='Vida Número de Siniestros'!AS81 -> 50,882 | D39: 1.2% | E39: ='Vida Número de Siniestros'!AQ81 -> 41,706 | F39: 0.8% | G39: -18.0%
B40: ='Mer. Prima Directa'!B40 -> Seguros con Ahorro Previsional | C40: ='Vida Número de Siniestros'!AS84 -> 16,382 | D40: 0.4% | E40: ='Vida Número de Siniestros'!AQ84 -> 12,018 | F40: 0.2% | G40: -26.6%
B41: ='Mer. Prima Directa'!B41 -> Rentas Vitalicias Vejez | C41: ='Vida Número de Siniestros'!AS89 -> 16,401 | D41: 0.4% | E41: ='Vida Número de Siniestros'!AQ89 -> 1,615 | F41: 0.0% | G41: -90.2%
B42: ='Mer. Prima Directa'!B42 -> Rentas Vitalicias Invalidez | C42: ='Vida Número de Siniestros'!AS90 -> 1,936 | D42: 0.0% | E42: ='Vida Número de Siniestros'!AQ90 -> 441 | F42: 0.0% | G42: -77.2%
B43: ='Mer. Prima Directa'!B43 -> Rentas Vitalicias Sobrevivencia | C43: ='Vida Número de Siniestros'!AS91 -> 540 | D43: 0.0% | E43: ='Vida Número de Siniestros'!AQ91 -> 165 | F43: 0.0% | G43: -69.4%
B44: ='Mer. Prima Directa'!B44 -> Seguro de AFP + Inv. y Sobr. | C44: ='Vida Número de Siniestros'!AS92 -> 62,336 | D44: 1.4% | E44: ='Vida Número de Siniestros'!AQ92 -> 106,667 | F44: 2.1% | G44: 71.1%
B45: ='Mer. Prima Directa'!B45 -> Otros | C45: =SUM('Vida Número de Siniestros'!AS82:AS83,'Vida Número de Siniestros'!AS85,'Vida Número de Siniestros'!AS86,'Vida Número de Siniestros'!AS87) -> 18,663 | D45: 0.4% | E45: =SUM('Vida Número de Siniestros'!AQ82:AQ83,'Vida Número de Siniestros'!AQ85,'Vida Número de Siniestros'!AQ86,'Vida Número de Siniestros'!AQ87) -> 9,515 | F45: 0.2% | G45: -49.0%
B46: Total | C46: =SUM(C35:C45) -> 4,390,993 | D46: =C46/C$46 -> 100.0% | E46: =SUM(E35:E45) -> 5,097,326 | F46: =E46/E$46 -> 100.0% | G46: =E46/C46-1 -> 16.1%
B48: Rentas Vitalicias | C48: =SUM(C41:C43) -> 18,877 | D48: =C48/C46 -> 0.4% | E48: =SUM(E41:E43) -> 2,221 | F48: =E48/E46 -> 0.0% | G48: =E48/C48-1 -> -88.2%

Sheet Gen. Activos
C2: Volver al Índice
B8: Activos en Seguros Generales
B9: =Índice!H52 -> Cifras en UF al 31.03.2021
C11: =IF('Datos Generales'!C7="","",'Datos Generales'!C7) -> Assurant Chile | D11: =IF('Datos Generales'!D7="","",'Datos Generales'!D7) -> AVLA Crédito | E11: =IF('Datos Generales'!E7="","",'Datos Generales'!E7) -> BCI Seguros | F11: =IF('Datos Generales'!F7="","",'Datos Generales'!F7) -> BNP Paribas Cardif | G11: =IF('Datos Generales'!G7="","",'Datos Generales'!G7) -> Cesce Chile | H11: =IF('Datos Generales'!H7="","",'Datos Generales'!H7) -> Chilena Consolidada | I11: =IF('Datos Generales'!I7="","",'Datos Generales'!I7) -> Chubb Generales | J11: =IF('Datos Generales'!J7="","",'Datos Generales'!J7) -> Coface Chile | K11: =IF('Datos Generales'!K7="","",'Datos Generales'!K7) -> Consorcio Nacional | L11: =IF('Datos Generales'!L7="","",'Datos Generales'!L7) -> Contempora | M11: =IF('Datos Generales'!M7="","",'Datos Generales'!M7) -> Continental Crédito | N11: =IF('Datos Generales'!N7="","",'Datos Generales'!N7) -> Continental Generales | O11: =IF('Datos Generales'!O7="","",'Datos Generales'!O7) -> FID Chile | P11: =IF('Datos Generales'!P7="","",'Datos Generales'!P7) -> HDI Gar. y Cré. | Q11: =IF('Datos Generales'!Q7="","",'Datos Generales'!Q7) -> HDI Seguros | R11: =IF('Datos Generales'!R7="","",'Datos Generales'!R7) -> Huelen | S11: =IF('Datos Generales'!S7="","",'Datos Generales'!S7) -> Liberty Seguros | T11: =IF('Datos Generales'!T7="","",'Datos Generales'!T7) -> M. de Carabineros | U11: =IF('Datos Generales'!U7="","",'Datos Generales'!U7) -> Mapfre | V11: =IF('Datos Generales'!V7="","",'Datos Generales'!V7) -> MetLife Generales | W11: =IF('Datos Generales'!W7="","",'Datos Generales'!W7) -> Orion Seguros | X11: =IF('Datos Generales'!X7="","",'Datos Generales'!X7) -> Orsan Crédito | Y11: =IF('Datos Generales'!Y7="","",'Datos Generales'!Y7) -> Porvenir | Z11: =IF('Datos Generales'!Z7="","",'Datos Generales'!Z7) -> Reale Chile | AA11: =IF('Datos Generales'!AA7="","",'Datos Generales'!AA7) -> Renta Nacional | AB11: =IF('Datos Generales'!AB7="","",'Datos Generales'!AB7) -> SegChile | AC11: =IF('Datos Generales'!AC7="","",'Datos Generales'!AC7) -> Solunión Chile | AD11: =IF('Datos Generales'!AD7="","",'Datos Generales'!AD7) -> Southbridge | AE11: =IF('Datos Generales'!AE7="","",'Datos Generales'!AE7) -> Starr International | AF11: =IF('Datos Generales'!AF7="","",'Datos Generales'!AF7) -> Suaval | AG11: =IF('Datos Generales'!AG7="","",'Datos Generales'!AG7) -> Suramericana | AH11: =IF('Datos Generales'!AH7="","",'Datos Generales'!AH7) -> Unnio | AI11: =IF('Datos Generales'!AI7="","",'Datos Generales'!AI7) -> Zenit Seguros | AJ11: =IF('Datos Generales'!AJ7="","",'Datos Generales'!AJ7) -> Zurich Santander | AK11: =IF('Datos Generales'!AK7="","",'Datos Generales'!AK7) ->  | AL11: =IF('Datos Generales'!AL7="","",'Datos Generales'!AL7) ->  | AM11: =IF('Datos Generales'!AM7="","",'Datos Generales'!AM7) ->  | AN11: =IF('Datos Generales'!AN7="","",'Datos Generales'!AN7) ->  | AO11: =IF('Datos Generales'!AO7="","",'Datos Generales'!AO7) ->  | AP11: =IF('Datos Generales'!AP7="","",'Datos Generales'!AP7) ->  | AQ11: =IF('Datos Generales'!AQ7="","",'Datos Generales'!AQ7) -> Mercado
B12: ='Datos Generales'!B8 -> 5.10.00.00 Total Activo | C12: =Índice!$G$52*'Datos Generales'!C8 -> 404,588 | D12: =Índice!$G$52*'Datos Generales'!D8 -> 1,915,646 | E12: =Índice!$G$52*'Datos Generales'!E8 -> 22,725,751 | F12: =Índice!$G$52*'Datos Generales'!F8 -> 12,319,421 | G12: =Índice!$G$52*'Datos Generales'!G8 -> 506,460 | H12: =Índice!$G$52*'Datos Generales'!H8 -> 8,847,472 | I12: =Índice!$G$52*'Datos Generales'!I8 -> 16,859,175 | J12: =Índice!$G$52*'Datos Generales'!J8 -> 1,100,694 | K12: =Índice!$G$52*'Datos Generales'!K8 -> 4,054,994 | L12: =Índice!$G$52*'Datos Generales'!L8 -> 815,220 | M12: =Índice!$G$52*'Datos Generales'!M8 -> 3,643,627 | N12: =Índice!$G$52*'Datos Generales'!N8 -> 3,630,305 | O12: =Índice!$G$52*'Datos Generales'!O8 -> 2,436,560 | P12: =Índice!$G$52*'Datos Generales'!P8 -> 806,227 | Q12: =Índice!$G$52*'Datos Generales'!Q8 -> 15,862,464 | R12: =Índice!$G$52*'Datos Generales'!R8 -> 118,575 | S12: =Índice!$G$52*'Datos Generales'!S8 -> 16,516,469 | T12: =Índice!$G$52*'Datos Generales'!T8 -> 0 | U12: =Índice!$G$52*'Datos Generales'!U8 -> 15,394,125 | V12: =Índice!$G$52*'Datos Generales'!V8 -> 460,068 | W12: =Índice!$G$52*'Datos Generales'!W8 -> 3,039,719 | X12: =Índice!$G$52*'Datos Generales'!X8 -> 444,922 | Y12: =Índice!$G$52*'Datos Generales'!Y8 -> 1,335,176 | Z12: =Índice!$G$52*'Datos Generales'!Z8 -> 4,724,367 | AA12: =Índice!$G$52*'Datos Generales'!AA8 -> 3,094,407 | AB12: =Índice!$G$52*'Datos Generales'!AB8 -> 241,387 | AC12: =Índice!$G$52*'Datos Generales'!AC8 -> 671,451 | AD12: =Índice!$G$52*'Datos Generales'!AD8 -> 20,791,013 | AE12: =Índice!$G$52*'Datos Generales'!AE8 -> 1,858,509 | AF12: =Índice!$G$52*'Datos Generales'!AF8 -> 383,103 | AG12: =Índice!$G$52*'Datos Generales'!AG8 -> 24,815,597 | AH12: =Índice!$G$52*'Datos Generales'!AH8 -> 3,485,287 | AI12: =Índice!$G$52*'Datos Generales'!AI8 -> 1,727,778 | AJ12: =Índice!$G$52*'Datos Generales'!AJ8 -> 6,677,103 | AK12: =Índice!$G$52*'Datos Generales'!AK8 -> 0 | AL12: =Índice!$G$52*'Datos Generales'!AL8 -> 0 | AM12: =Índice!$G$52*'Datos Generales'!AM8 -> 0 | AN12: =Índice!$G$52*'Datos Generales'!AN8 -> 0 | AO12: =Índice!$G$52*'Datos Generales'!AO8 -> 0 | AP12: =Índice!$G$52*'Datos Generales'!AP8 -> 0 | AQ12: =Índice!$G$52*'Datos Generales'!AQ8 -> 201,707,661
B13: ='Datos Generales'!B9 -> 5.11.00.00 Total Inversiones Financieras | C13: =Índice!$G$52*'Datos Generales'!C9 -> 242,996 | D13: =Índice!$G$52*'Datos Generales'!D9 -> 478,480 | E13: =Índice!$G$52*'Datos Generales'!E9 -> 8,810,288 | F13: =Índice!$G$52*'Datos Generales'!F9 -> 10,523,505 | G13: =Índice!$G$52*'Datos Generales'!G9 -> 147,026 | H13: =Índice!$G$52*'Datos Generales'!H9 -> 3,071,461 | I13: =Índice!$G$52*'Datos Generales'!I9 -> 4,871,276 | J13: =Índice!$G$52*'Datos Generales'!J9 -> 454,829 | K13: =Índice!$G$52*'Datos Generales'!K9 -> 1,408,464 | L13: =Índice!$G$52*'Datos Generales'!L9 -> 163,098 | M13: =Índice!$G$52*'Datos Generales'!M9 -> 2,112,963 | N13: =Índice!$G$52*'Datos Generales'!N9 -> 495,002 | O13: =Índice!$G$52*'Datos Generales'!O9 -> 202,396 | P13: =Índice!$G$52*'Datos Generales'!P9 -> 362,247 | Q13: =Índice!$G$52*'Datos Generales'!Q9 -> 5,837,148 | R13: =Índice!$G$52*'Datos Generales'!R9 -> 112,475 | S13: =Índice!$G$52*'Datos Generales'!S9 -> 7,112,781 | T13: =Índice!$G$52*'Datos Generales'!T9 -> 0 | U13: =Índice!$G$52*'Datos Generales'!U9 -> 3,522,234 | V13: =Índice!$G$52*'Datos Generales'!V9 -> 330,620 | W13: =Índice!$G$52*'Datos Generales'!W9 -> 731,250 | X13: =Índice!$G$52*'Datos Generales'!X9 -> 132,699 | Y13: =Índice!$G$52*'Datos Generales'!Y9 -> 414,445 | Z13: =Índice!$G$52*'Datos Generales'!Z9 -> 835,337 | AA13: =Índice!$G$52*'Datos Generales'!AA9 -> 688,583 | AB13: =Índice!$G$52*'Datos Generales'!AB9 -> 203,059 | AC13: =Índice!$G$52*'Datos Generales'!AC9 -> 123,966 | AD13: =Índice!$G$52*'Datos Generales'!AD9 -> 2,171,994 | AE13: =Índice!$G$52*'Datos Generales'!AE9 -> 362,669 | AF13: =Índice!$G$52*'Datos Generales'!AF9 -> 158,710 | AG13: =Índice!$G$52*'Datos Generales'!AG9 -> 5,605,176 | AH13: =Índice!$G$52*'Datos Generales'!AH9 -> 393,989 | AI13: =Índice!$G$52*'Datos Generales'!AI9 -> 816,515 | AJ13: =Índice!$G$52*'Datos Generales'!AJ9 -> 2,727,905 | AK13: =Índice!$G$52*'Datos Generales'!AK9 -> 0 | AL13: =Índice!$G$52*'Datos Generales'!AL9 -> 0 | AM13: =Índice!$G$52*'Datos Generales'!AM9 -> 0 | AN13: =Índice!$G$52*'Datos Generales'!AN9 -> 0 | AO13: =Índice!$G$52*'Datos Generales'!AO9 -> 0 | AP13: =Índice!$G$52*'Datos Generales'!AP9 -> 0 | AQ13: =Índice!$G$52*'Datos Generales'!AQ9 -> 65,625,591
B14: ='Datos Generales'!B10 -> 5.11.10.00 Efectivo Y Efectivo Equivalente | C14: =Índice!$G$52*'Datos Generales'!C10 -> 225,028 | D14: =Índice!$G$52*'Datos Generales'!D10 -> 98,946 | E14: =Índice!$G$52*'Datos Generales'!E10 -> 4,148,060 | F14: =Índice!$G$52*'Datos Generales'!F10 -> 384,473 | G14: =Índice!$G$52*'Datos Generales'!G10 -> 29,695 | H14: =Índice!$G$52*'Datos Generales'!H10 -> 449,718 | I14: =Índice!$G$52*'Datos Generales'!I10 -> 1,992,548 | J14: =Índice!$G$52*'Datos Generales'!J10 -> 24,153 | K14: =Índice!$G$52*'Datos Generales'!K10 -> 91,730 | L14: =Índice!$G$52*'Datos Generales'!L10 -> 35,987 | M14: =Índice!$G$52*'Datos Generales'!M10 -> 384,869 | N14: =Índice!$G$52*'Datos Generales'!N10 -> 426,090 | O14: =Índice!$G$52*'Datos Generales'!O10 -> 34,740 | P14: =Índice!$G$52*'Datos Generales'!P10 -> 39,098 | Q14: =Índice!$G$52*'Datos Generales'!Q10 -> 440,108 | R14: =Índice!$G$52*'Datos Generales'!R10 -> 1,293 | S14: =Índice!$G$52*'Datos Generales'!S10 -> 1,260,317 | T14: =Índice!$G$52*'Datos Generales'!T10 -> 0 | U14: =Índice!$G$52*'Datos Generales'!U10 -> 442,164 | V14: =Índice!$G$52*'Datos Generales'!V10 -> 181,713 | W14: =Índice!$G$52*'Datos Generales'!W10 -> 333,851 | X14: =Índice!$G$52*'Datos Generales'!X10 -> 5,634 | Y14: =Índice!$G$52*'Datos Generales'!Y10 -> 204,148 | Z14: =Índice!$G$52*'Datos Generales'!Z10 -> 728,040 | AA14: =Índice!$G$52*'Datos Generales'!AA10 -> 62,328 | AB14: =Índice!$G$52*'Datos Generales'!AB10 -> 6,160 | AC14: =Índice!$G$52*'Datos Generales'!AC10 -> 15,100 | AD14: =Índice!$G$52*'Datos Generales'!AD10 -> 256,821 | AE14: =Índice!$G$52*'Datos Generales'!AE10 -> 309,882 | AF14: =Índice!$G$52*'Datos Generales'!AF10 -> 21,768 | AG14: =Índice!$G$52*'Datos Generales'!AG10 -> 614,430 | AH14: =Índice!$G$52*'Datos Generales'!AH10 -> 393,989 | AI14: =Índice!$G$52*'Datos Generales'!AI10 -> 350,915 | AJ14: =Índice!$G$52*'Datos Generales'!AJ10 -> 30,672 | AK14: =Índice!$G$52*'Datos Generales'!AK10 -> 0 | AL14: =Índice!$G$52*'Datos Generales'!AL10 -> 0 | AM14: =Índice!$G$52*'Datos Generales'!AM10 -> 0 | AN14: =Índice!$G$52*'Datos Generales'!AN10 -> 0 | AO14: =Índice!$G$52*'Datos Generales'!AO10 -> 0 | AP14: =Índice!$G$52*'Datos Generales'!AP10 -> 0 | AQ14: =Índice!$G$52*'Datos Generales'!AQ10 -> 14,024,468
B15: ='Datos Generales'!B11 -> 5.11.20.00 Activos Financieros A Valor Razonable | C15: =Índice!$G$52*'Datos Generales'!C11 -> 0 | D15: =Índice!$G$52*'Datos Generales'!D11 -> 335,384 | E15: =Índice!$G$52*'Datos Generales'!E11 -> 4,662,228 | F15: =Índice!$G$52*'Datos Generales'!F11 -> 10,135,326 | G15: =Índice!$G$52*'Datos Generales'!G11 -> 117,167 | H15: =Índice!$G$52*'Datos Generales'!H11 -> 2,422,402 | I15: =Índice!$G$52*'Datos Generales'!I11 -> 2,878,728 | J15: =Índice!$G$52*'Datos Generales'!J11 -> 430,675 | K15: =Índice!$G$52*'Datos Generales'!K11 -> 1,316,734 | L15: =Índice!$G$52*'Datos Generales'!L11 -> 127,110 | M15: =Índice!$G$52*'Datos Generales'!M11 -> 33,689 | N15: =Índice!$G$52*'Datos Generales'!N11 -> 0 | O15: =Índice!$G$52*'Datos Generales'!O11 -> 167,656 | P15: =Índice!$G$52*'Datos Generales'!P11 -> 323,149 | Q15: =Índice!$G$52*'Datos Generales'!Q11 -> 5,397,040 | R15: =Índice!$G$52*'Datos Generales'!R11 -> 111,182 | S15: =Índice!$G$52*'Datos Generales'!S11 -> 5,852,464 | T15: =Índice!$G$52*'Datos Generales'!T11 -> 0 | U15: =Índice!$G$52*'Datos Generales'!U11 -> 3,080,071 | V15: =Índice!$G$52*'Datos Generales'!V11 -> 148,907 | W15: =Índice!$G$52*'Datos Generales'!W11 -> 397,400 | X15: =Índice!$G$52*'Datos Generales'!X11 -> 127,065 | Y15: =Índice!$G$52*'Datos Generales'!Y11 -> 210,297 | Z15: =Índice!$G$52*'Datos Generales'!Z11 -> 107,298 | AA15: =Índice!$G$52*'Datos Generales'!AA11 -> 626,256 | AB15: =Índice!$G$52*'Datos Generales'!AB11 -> 196,899 | AC15: =Índice!$G$52*'Datos Generales'!AC11 -> 108,866 | AD15: =Índice!$G$52*'Datos Generales'!AD11 -> 1,915,173 | AE15: =Índice!$G$52*'Datos Generales'!AE11 -> 52,787 | AF15: =Índice!$G$52*'Datos Generales'!AF11 -> 136,943 | AG15: =Índice!$G$52*'Datos Generales'!AG11 -> 4,206,807 | AH15: =Índice!$G$52*'Datos Generales'!AH11 -> 0 | AI15: =Índice!$G$52*'Datos Generales'!AI11 -> 465,600 | AJ15: =Índice!$G$52*'Datos Generales'!AJ11 -> 2,476,856 | AK15: =Índice!$G$52*'Datos Generales'!AK11 -> 0 | AL15: =Índice!$G$52*'Datos Generales'!AL11 -> 0 | AM15: =Índice!$G$52*'Datos Generales'!AM11 -> 0 | AN15: =Índice!$G$52*'Datos Generales'!AN11 -> 0 | AO15: =Índice!$G$52*'Datos Generales'!AO11 -> 0 | AP15: =Índice!$G$52*'Datos Generales'!AP11 -> 0 | AQ15: =Índice!$G$52*'Datos Generales'!AQ11 -> 48,568,160
B16: ='Datos Generales'!B12 -> 5.11.30.00 Activos Financieros A Costo Amortizado | C16: =Índice!$G$52*'Datos Generales'!C12 -> 17,968 | D16: =Índice!$G$52*'Datos Generales'!D12 -> 44,151 | E16: =Índice!$G$52*'Datos Generales'!E12 -> 0 | F16: =Índice!$G$52*'Datos Generales'!F12 -> 3,706 | G16: =Índice!$G$52*'Datos Generales'!G12 -> 0 | H16: =Índice!$G$52*'Datos Generales'!H12 -> 199,341 | I16: =Índice!$G$52*'Datos Generales'!I12 -> 0 | J16: =Índice!$G$52*'Datos Generales'!J12 -> 0 | K16: =Índice!$G$52*'Datos Generales'!K12 -> 0 | L16: =Índice!$G$52*'Datos Generales'!L12 -> 0 | M16: =Índice!$G$52*'Datos Generales'!M12 -> 215,921 | N16: =Índice!$G$52*'Datos Generales'!N12 -> 68,912 | O16: =Índice!$G$52*'Datos Generales'!O12 -> 0 | P16: =Índice!$G$52*'Datos Generales'!P12 -> 0 | Q16: =Índice!$G$52*'Datos Generales'!Q12 -> 0 | R16: =Índice!$G$52*'Datos Generales'!R12 -> 0 | S16: =Índice!$G$52*'Datos Generales'!S12 -> 0 | T16: =Índice!$G$52*'Datos Generales'!T12 -> 0 | U16: =Índice!$G$52*'Datos Generales'!U12 -> 0 | V16: =Índice!$G$52*'Datos Generales'!V12 -> 0 | W16: =Índice!$G$52*'Datos Generales'!W12 -> 0 | X16: =Índice!$G$52*'Datos Generales'!X12 -> 0 | Y16: =Índice!$G$52*'Datos Generales'!Y12 -> 0 | Z16: =Índice!$G$52*'Datos Generales'!Z12 -> 0 | AA16: =Índice!$G$52*'Datos Generales'!AA12 -> 0 | AB16: =Índice!$G$52*'Datos Generales'!AB12 -> 0 | AC16: =Índice!$G$52*'Datos Generales'!AC12 -> 0 | AD16: =Índice!$G$52*'Datos Generales'!AD12 -> 0 | AE16: =Índice!$G$52*'Datos Generales'!AE12 -> 0 | AF16: =Índice!$G$52*'Datos Generales'!AF12 -> 0 | AG16: =Índice!$G$52*'Datos Generales'!AG12 -> 491,659 | AH16: =Índice!$G$52*'Datos Generales'!AH12 -> 0 | AI16: =Índice!$G$52*'Datos Generales'!AI12 -> 0 | AJ16: =Índice!$G$52*'Datos Generales'!AJ12 -> 220,377 | AK16: =Índice!$G$52*'Datos Generales'!AK12 -> 0 | AL16: =Índice!$G$52*'Datos Generales'!AL12 -> 0 | AM16: =Índice!$G$52*'Datos Generales'!AM12 -> 0 | AN16: =Índice!$G$52*'Datos Generales'!AN12 -> 0 | AO16: =Índice!$G$52*'Datos Generales'!AO12 -> 0 | AP16: =Índice!$G$52*'Datos Generales'!AP12 -> 0 | AQ16: =Índice!$G$52*'Datos Generales'!AQ12 -> 1,262,034
B17: ='Datos Generales'!B13 -> 5.11.40.00 Préstamos | C17: =Índice!$G$52*'Datos Generales'!C13 -> 0 | D17: =Índice!$G$52*'Datos Generales'!D13 -> 0 | E17: =Índice!$G$52*'Datos Generales'!E13 -> 0 | F17: =Índice!$G$52*'Datos Generales'!F13 -> 0 | G17: =Índice!$G$52*'Datos Generales'!G13 -> 0 | H17: =Índice!$G$52*'Datos Generales'!H13 -> 0 | I17: =Índice!$G$52*'Datos Generales'!I13 -> 0 | J17: =Índice!$G$52*'Datos Generales'!J13 -> 0 | K17: =Índice!$G$52*'Datos Generales'!K13 -> 0 | L17: =Índice!$G$52*'Datos Generales'!L13 -> 0 | M17: =Índice!$G$52*'Datos Generales'!M13 -> 0 | N17: =Índice!$G$52*'Datos Generales'!N13 -> 0 | O17: =Índice!$G$52*'Datos Generales'!O13 -> 0 | P17: =Índice!$G$52*'Datos Generales'!P13 -> 0 | Q17: =Índice!$G$52*'Datos Generales'!Q13 -> 0 | R17: =Índice!$G$52*'Datos Generales'!R13 -> 0 | S17: =Índice!$G$52*'Datos Generales'!S13 -> 0 | T17: =Índice!$G$52*'Datos Generales'!T13 -> 0 | U17: =Índice!$G$52*'Datos Generales'!U13 -> 0 | V17: =Índice!$G$52*'Datos Generales'!V13 -> 0 | W17: =Índice!$G$52*'Datos Generales'!W13 -> 0 | X17: =Índice!$G$52*'Datos Generales'!X13 -> 0 | Y17: =Índice!$G$52*'Datos Generales'!Y13 -> 0 | Z17: =Índice!$G$52*'Datos Generales'!Z13 -> 0 | AA17: =Índice!$G$52*'Datos Generales'!AA13 -> 0 | AB17: =Índice!$G$52*'Datos Generales'!AB13 -> 0 | AC17: =Índice!$G$52*'Datos Generales'!AC13 -> 0 | AD17: =Índice!$G$52*'Datos Generales'!AD13 -> 0 | AE17: =Índice!$G$52*'Datos Generales'!AE13 -> 0 | AF17: =Índice!$G$52*'Datos Generales'!AF13 -> 0 | AG17: =Índice!$G$52*'Datos Generales'!AG13 -> 0 | AH17: =Índice!$G$52*'Datos Generales'!AH13 -> 0 | AI17: =Índice!$G$52*'Datos Generales'!AI13 -> 0 | AJ17: =Índice!$G$52*'Datos Generales'!AJ13 -> 0 | AK17: =Índice!$G$52*'Datos Generales'!AK13 -> 0 | AL17: =Índice!$G$52*'Datos Generales'!AL13 -> 0 | AM17: =Índice!$G$52*'Datos Generales'!AM13 -> 0 | AN17: =Índice!$G$52*'Datos Generales'!AN13 -> 0 | AO17: =Índice!$G$52*'Datos Generales'!AO13 -> 0 | AP17: =Índice!$G$52*'Datos Generales'!AP13 -> 0 | AQ17: =Índice!$G$52*'Datos Generales'!AQ13 -> 0
B18: ='Datos Generales'!B14 -> 5.11.41.00 Avance Tenedores De Pólizas | C18: =Índice!$G$52*'Datos Generales'!C14 -> 0 | D18: =Índice!$G$52*'Datos Generales'!D14 -> 0 | E18: =Índice!$G$52*'Datos Generales'!E14 -> 0 | F18: =Índice!$G$52*'Datos Generales'!F14 -> 0 | G18: =Índice!$G$52*'Datos Generales'!G14 -> 0 | H18: =Índice!$G$52*'Datos Generales'!H14 -> 0 | I18: =Índice!$G$52*'Datos Generales'!I14 -> 0 | J18: =Índice!$G$52*'Datos Generales'!J14 -> 0 | K18: =Índice!$G$52*'Datos Generales'!K14 -> 0 | L18: =Índice!$G$52*'Datos Generales'!L14 -> 0 | M18: =Índice!$G$52*'Datos Generales'!M14 -> 0 | N18: =Índice!$G$52*'Datos Generales'!N14 -> 0 | O18: =Índice!$G$52*'Datos Generales'!O14 -> 0 | P18: =Índice!$G$52*'Datos Generales'!P14 -> 0 | Q18: =Índice!$G$52*'Datos Generales'!Q14 -> 0 | R18: =Índice!$G$52*'Datos Generales'!R14 -> 0 | S18: =Índice!$G$52*'Datos Generales'!S14 -> 0 | T18: =Índice!$G$52*'Datos Generales'!T14 -> 0 | U18: =Índice!$G$52*'Datos Generales'!U14 -> 0 | V18: =Índice!$G$52*'Datos Generales'!V14 -> 0 | W18: =Índice!$G$52*'Datos Generales'!W14 -> 0 | X18: =Índice!$G$52*'Datos Generales'!X14 -> 0 | Y18: =Índice!$G$52*'Datos Generales'!Y14 -> 0 | Z18: =Índice!$G$52*'Datos Generales'!Z14 -> 0 | AA18: =Índice!$G$52*'Datos Generales'!AA14 -> 0 | AB18: =Índice!$G$52*'Datos Generales'!AB14 -> 0 | AC18: =Índice!$G$52*'Datos Generales'!AC14 -> 0 | AD18: =Índice!$G$52*'Datos Generales'!AD14 -> 0 | AE18: =Índice!$G$52*'Datos Generales'!AE14 -> 0 | AF18: =Índice!$G$52*'Datos Generales'!AF14 -> 0 | AG18: =Índice!$G$52*'Datos Generales'!AG14 -> 0 | AH18: =Índice!$G$52*'Datos Generales'!AH14 -> 0 | AI18: =Índice!$G$52*'Datos Generales'!AI14 -> 0 | AJ18: =Índice!$G$52*'Datos Generales'!AJ14 -> 0 | AK18: =Índice!$G$52*'Datos Generales'!AK14 -> 0 | AL18: =Índice!$G$52*'Datos Generales'!AL14 -> 0 | AM18: =Índice!$G$52*'Datos Generales'!AM14 -> 0 | AN18: =Índice!$G$52*'Datos Generales'!AN14 -> 0 | AO18: =Índice!$G$52*'Datos Generales'!AO14 -> 0 | AP18: =Índice!$G$52*'Datos Generales'!AP14 -> 0 | AQ18: =Índice!$G$52*'Datos Generales'!AQ14 -> 0
B19: ='Datos Generales'!B15 -> 5.11.42.00 Préstamos Otorgados | C19: =Índice!$G$52*'Datos Generales'!C15 -> 0 | D19: =Índice!$G$52*'Datos Generales'!D15 -> 0 | E19: =Índice!$G$52*'Datos Generales'!E15 -> 0 | F19: =Índice!$G$52*'Datos Generales'!F15 -> 0 | G19: =Índice!$G$52*'Datos Generales'!G15 -> 0 | H19: =Índice!$G$52*'Datos Generales'!H15 -> 0 | I19: =Índice!$G$52*'Datos Generales'!I15 -> 0 | J19: =Índice!$G$52*'Datos Generales'!J15 -> 0 | K19: =Índice!$G$52*'Datos Generales'!K15 -> 0 | L19: =Índice!$G$52*'Datos Generales'!L15 -> 0 | M19: =Índice!$G$52*'Datos Generales'!M15 -> 0 | N19: =Índice!$G$52*'Datos Generales'!N15 -> 0 | O19: =Índice!$G$52*'Datos Generales'!O15 -> 0 | P19: =Índice!$G$52*'Datos Generales'!P15 -> 0 | Q19: =Índice!$G$52*'Datos Generales'!Q15 -> 0 | R19: =Índice!$G$52*'Datos Generales'!R15 -> 0 | S19: =Índice!$G$52*'Datos Generales'!S15 -> 0 | T19: =Índice!$G$52*'Datos Generales'!T15 -> 0 | U19: =Índice!$G$52*'Datos Generales'!U15 -> 0 | V19: =Índice!$G$52*'Datos Generales'!V15 -> 0 | W19: =Índice!$G$52*'Datos Generales'!W15 -> 0 | X19: =Índice!$G$52*'Datos Generales'!X15 -> 0 | Y19: =Índice!$G$52*'Datos Generales'!Y15 -> 0 | Z19: =Índice!$G$52*'Datos Generales'!Z15 -> 0 | AA19: =Índice!$G$52*'Datos Generales'!AA15 -> 0 | AB19: =Índice!$G$52*'Datos Generales'!AB15 -> 0 | AC19: =Índice!$G$52*'Datos Generales'!AC15 -> 0 | AD19: =Índice!$G$52*'Datos Generales'!AD15 -> 0 | AE19: =Índice!$G$52*'Datos Generales'!AE15 -> 0 | AF19: =Índice!$G$52*'Datos Generales'!AF15 -> 0 | AG19: =Índice!$G$52*'Datos Generales'!AG15 -> 0 | AH19: =Índice!$G$52*'Datos Generales'!AH15 -> 0 | AI19: =Índice!$G$52*'Datos Generales'!AI15 -> 0 | AJ19: =Índice!$G$52*'Datos Generales'!AJ15 -> 0 | AK19: =Índice!$G$52*'Datos Generales'!AK15 -> 0 | AL19: =Índice!$G$52*'Datos Generales'!AL15 -> 0 | AM19: =Índice!$G$52*'Datos Generales'!AM15 -> 0 | AN19: =Índice!$G$52*'Datos Generales'!AN15 -> 0 | AO19: =Índice!$G$52*'Datos Generales'!AO15 -> 0 | AP19: =Índice!$G$52*'Datos Generales'!AP15 -> 0 | AQ19: =Índice!$G$52*'Datos Generales'!AQ15 -> 0
B20: ='Datos Generales'!B16 -> 5.11.50.00 Inversiones Seguros Cuenta Única De Inversión (Cui) | C20: =Índice!$G$52*'Datos Generales'!C16 -> 0 | D20: =Índice!$G$52*'Datos Generales'!D16 -> 0 | E20: =Índice!$G$52*'Datos Generales'!E16 -> 0 | F20: =Índice!$G$52*'Datos Generales'!F16 -> 0 | G20: =Índice!$G$52*'Datos Generales'!G16 -> 0 | H20: =Índice!$G$52*'Datos Generales'!H16 -> 0 | I20: =Índice!$G$52*'Datos Generales'!I16 -> 0 | J20: =Índice!$G$52*'Datos Generales'!J16 -> 0 | K20: =Índice!$G$52*'Datos Generales'!K16 -> 0 | L20: =Índice!$G$52*'Datos Generales'!L16 -> 0 | M20: =Índice!$G$52*'Datos Generales'!M16 -> 0 | N20: =Índice!$G$52*'Datos Generales'!N16 -> 0 | O20: =Índice!$G$52*'Datos Generales'!O16 -> 0 | P20: =Índice!$G$52*'Datos Generales'!P16 -> 0 | Q20: =Índice!$G$52*'Datos Generales'!Q16 -> 0 | R20: =Índice!$G$52*'Datos Generales'!R16 -> 0 | S20: =Índice!$G$52*'Datos Generales'!S16 -> 0 | T20: =Índice!$G$52*'Datos Generales'!T16 -> 0 | U20: =Índice!$G$52*'Datos Generales'!U16 -> 0 | V20: =Índice!$G$52*'Datos Generales'!V16 -> 0 | W20: =Índice!$G$52*'Datos Generales'!W16 -> 0 | X20: =Índice!$G$52*'Datos Generales'!X16 -> 0 | Y20: =Índice!$G$52*'Datos Generales'!Y16 -> 0 | Z20: =Índice!$G$52*'Datos Generales'!Z16 -> 0 | AA20: =Índice!$G$52*'Datos Generales'!AA16 -> 0 | AB20: =Índice!$G$52*'Datos Generales'!AB16 -> 0 | AC20: =Índice!$G$52*'Datos Generales'!AC16 -> 0 | AD20: =Índice!$G$52*'Datos Generales'!AD16 -> 0 | AE20: =Índice!$G$52*'Datos Generales'!AE16 -> 0 | AF20: =Índice!$G$52*'Datos Generales'!AF16 -> 0 | AG20: =Índice!$G$52*'Datos Generales'!AG16 -> 0 | AH20: =Índice!$G$52*'Datos Generales'!AH16 -> 0 | AI20: =Índice!$G$52*'Datos Generales'!AI16 -> 0 | AJ20: =Índice!$G$52*'Datos Generales'!AJ16 -> 0 | AK20: =Índice!$G$52*'Datos Generales'!AK16 -> 0 | AL20: =Índice!$G$52*'Datos Generales'!AL16 -> 0 | AM20: =Índice!$G$52*'Datos Generales'!AM16 -> 0 | AN20: =Índice!$G$52*'Datos Generales'!AN16 -> 0 | AO20: =Índice!$G$52*'Datos Generales'!AO16 -> 0 | AP20: =Índice!$G$52*'Datos Generales'!AP16 -> 0 | AQ20: =Índice!$G$52*'Datos Generales'!AQ16 -> 0
B21: ='Datos Generales'!B17 -> 5.11.60.00 Participaciones En Entidades Del Grupo | C21: =Índice!$G$52*'Datos Generales'!C17 -> 0 | D21: =Índice!$G$52*'Datos Generales'!D17 -> 0 | E21: =Índice!$G$52*'Datos Generales'!E17 -> 0 | F21: =Índice!$G$52*'Datos Generales'!F17 -> 0 | G21: =Índice!$G$52*'Datos Generales'!G17 -> 164 | H21: =Índice!$G$52*'Datos Generales'!H17 -> 0 | I21: =Índice!$G$52*'Datos Generales'!I17 -> 0 | J21: =Índice!$G$52*'Datos Generales'!J17 -> 0 | K21: =Índice!$G$52*'Datos Generales'!K17 -> 0 | L21: =Índice!$G$52*'Datos Generales'!L17 -> 0 | M21: =Índice!$G$52*'Datos Generales'!M17 -> 1,478,484 | N21: =Índice!$G$52*'Datos Generales'!N17 -> 0 | O21: =Índice!$G$52*'Datos Generales'!O17 -> 0 | P21: =Índice!$G$52*'Datos Generales'!P17 -> 0 | Q21: =Índice!$G$52*'Datos Generales'!Q17 -> 0 | R21: =Índice!$G$52*'Datos Generales'!R17 -> 0 | S21: =Índice!$G$52*'Datos Generales'!S17 -> 0 | T21: =Índice!$G$52*'Datos Generales'!T17 -> 0 | U21: =Índice!$G$52*'Datos Generales'!U17 -> 0 | V21: =Índice!$G$52*'Datos Generales'!V17 -> 0 | W21: =Índice!$G$52*'Datos Generales'!W17 -> 0 | X21: =Índice!$G$52*'Datos Generales'!X17 -> 0 | Y21: =Índice!$G$52*'Datos Generales'!Y17 -> 0 | Z21: =Índice!$G$52*'Datos Generales'!Z17 -> 0 | AA21: =Índice!$G$52*'Datos Generales'!AA17 -> 0 | AB21: =Índice!$G$52*'Datos Generales'!AB17 -> 0 | AC21: =Índice!$G$52*'Datos Generales'!AC17 -> 0 | AD21: =Índice!$G$52*'Datos Generales'!AD17 -> 0 | AE21: =Índice!$G$52*'Datos Generales'!AE17 -> 0 | AF21: =Índice!$G$52*'Datos Generales'!AF17 -> 0 | AG21: =Índice!$G$52*'Datos Generales'!AG17 -> 292,281 | AH21: =Índice!$G$52*'Datos Generales'!AH17 -> 0 | AI21: =Índice!$G$52*'Datos Generales'!AI17 -> 0 | AJ21: =Índice!$G$52*'Datos Generales'!AJ17 -> 0 | AK21: =Índice!$G$52*'Datos Generales'!AK17 -> 0 | AL21: =Índice!$G$52*'Datos Generales'!AL17 -> 0 | AM21: =Índice!$G$52*'Datos Generales'!AM17 -> 0 | AN21: =Índice!$G$52*'Datos Generales'!AN17 -> 0 | AO21: =Índice!$G$52*'Datos Generales'!AO17 -> 0 | AP21: =Índice!$G$52*'Datos Generales'!AP17 -> 0 | AQ21: =Índice!$G$52*'Datos Generales'!AQ17 -> 1,770,928
B22: ='Datos Generales'!B18 -> 5.11.61.00 Participaciones En Empresas Subsidiarias (Filiales) | C22: =Índice!$G$52*'Datos Generales'!C18 -> 0 | D22: =Índice!$G$52*'Datos Generales'!D18 -> 0 | E22: =Índice!$G$52*'Datos Generales'!E18 -> 0 | F22: =Índice!$G$52*'Datos Generales'!F18 -> 0 | G22: =Índice!$G$52*'Datos Generales'!G18 -> 164 | H22: =Índice!$G$52*'Datos Generales'!H18 -> 0 | I22: =Índice!$G$52*'Datos Generales'!I18 -> 0 | J22: =Índice!$G$52*'Datos Generales'!J18 -> 0 | K22: =Índice!$G$52*'Datos Generales'!K18 -> 0 | L22: =Índice!$G$52*'Datos Generales'!L18 -> 0 | M22: =Índice!$G$52*'Datos Generales'!M18 -> 1,478,484 | N22: =Índice!$G$52*'Datos Generales'!N18 -> 0 | O22: =Índice!$G$52*'Datos Generales'!O18 -> 0 | P22: =Índice!$G$52*'Datos Generales'!P18 -> 0 | Q22: =Índice!$G$52*'Datos Generales'!Q18 -> 0 | R22: =Índice!$G$52*'Datos Generales'!R18 -> 0 | S22: =Índice!$G$52*'Datos Generales'!S18 -> 0 | T22: =Índice!$G$52*'Datos Generales'!T18 -> 0 | U22: =Índice!$G$52*'Datos Generales'!U18 -> 0 | V22: =Índice!$G$52*'Datos Generales'!V18 -> 0 | W22: =Índice!$G$52*'Datos Generales'!W18 -> 0 | X22: =Índice!$G$52*'Datos Generales'!X18 -> 0 | Y22: =Índice!$G$52*'Datos Generales'!Y18 -> 0 | Z22: =Índice!$G$52*'Datos Generales'!Z18 -> 0 | AA22: =Índice!$G$52*'Datos Generales'!AA18 -> 0 | AB22: =Índice!$G$52*'Datos Generales'!AB18 -> 0 | AC22: =Índice!$G$52*'Datos Generales'!AC18 -> 0 | AD22: =Índice!$G$52*'Datos Generales'!AD18 -> 0 | AE22: =Índice!$G$52*'Datos Generales'!AE18 -> 0 | AF22: =Índice!$G$52*'Datos Generales'!AF18 -> 0 | AG22: =Índice!$G$52*'Datos Generales'!AG18 -> 0 | AH22: =Índice!$G$52*'Datos Generales'!AH18 -> 0 | AI22: =Índice!$G$52*'Datos Generales'!AI18 -> 0 | AJ22: =Índice!$G$52*'Datos Generales'!AJ18 -> 0 | AK22: =Índice!$G$52*'Datos Generales'!AK18 -> 0 | AL22: =Índice!$G$52*'Datos Generales'!AL18 -> 0 | AM22: =Índice!$G$52*'Datos Generales'!AM18 -> 0 | AN22: =Índice!$G$52*'Datos Generales'!AN18 -> 0 | AO22: =Índice!$G$52*'Datos Generales'!AO18 -> 0 | AP22: =Índice!$G$52*'Datos Generales'!AP18 -> 0 | AQ22: =Índice!$G$52*'Datos Generales'!AQ18 -> 1,478,648
B23: ='Datos Generales'!B19 -> 5.11.62.00 Participaciones En Empresas Asociadas (Coligadas) | C23: =Índice!$G$52*'Datos Generales'!C19 -> 0 | D23: =Índice!$G$52*'Datos Generales'!D19 -> 0 | E23: =Índice!$G$52*'Datos Generales'!E19 -> 0 | F23: =Índice!$G$52*'Datos Generales'!F19 -> 0 | G23: =Índice!$G$52*'Datos Generales'!G19 -> 0 | H23: =Índice!$G$52*'Datos Generales'!H19 -> 0 | I23: =Índice!$G$52*'Datos Generales'!I19 -> 0 | J23: =Índice!$G$52*'Datos Generales'!J19 -> 0 | K23: =Índice!$G$52*'Datos Generales'!K19 -> 0 | L23: =Índice!$G$52*'Datos Generales'!L19 -> 0 | M23: =Índice!$G$52*'Datos Generales'!M19 -> 0 | N23: =Índice!$G$52*'Datos Generales'!N19 -> 0 | O23: =Índice!$G$52*'Datos Generales'!O19 -> 0 | P23: =Índice!$G$52*'Datos Generales'!P19 -> 0 | Q23: =Índice!$G$52*'Datos Generales'!Q19 -> 0 | R23: =Índice!$G$52*'Datos Generales'!R19 -> 0 | S23: =Índice!$G$52*'Datos Generales'!S19 -> 0 | T23: =Índice!$G$52*'Datos Generales'!T19 -> 0 | U23: =Índice!$G$52*'Datos Generales'!U19 -> 0 | V23: =Índice!$G$52*'Datos Generales'!V19 -> 0 | W23: =Índice!$G$52*'Datos Generales'!W19 -> 0 | X23: =Índice!$G$52*'Datos Generales'!X19 -> 0 | Y23: =Índice!$G$52*'Datos Generales'!Y19 -> 0 | Z23: =Índice!$G$52*'Datos Generales'!Z19 -> 0 | AA23: =Índice!$G$52*'Datos Generales'!AA19 -> 0 | AB23: =Índice!$G$52*'Datos Generales'!AB19 -> 0 | AC23: =Índice!$G$52*'Datos Generales'!AC19 -> 0 | AD23: =Índice!$G$52*'Datos Generales'!AD19 -> 0 | AE23: =Índice!$G$52*'Datos Generales'!AE19 -> 0 | AF23: =Índice!$G$52*'Datos Generales'!AF19 -> 0 | AG23: =Índice!$G$52*'Datos Generales'!AG19 -> 292,281 | AH23: =Índice!$G$52*'Datos Generales'!AH19 -> 0 | AI23: =Índice!$G$52*'Datos Generales'!AI19 -> 0 | AJ23: =Índice!$G$52*'Datos Generales'!AJ19 -> 0 | AK23: =Índice!$G$52*'Datos Generales'!AK19 -> 0 | AL23: =Índice!$G$52*'Datos Generales'!AL19 -> 0 | AM23: =Índice!$G$52*'Datos Generales'!AM19 -> 0 | AN23: =Índice!$G$52*'Datos Generales'!AN19 -> 0 | AO23: =Índice!$G$52*'Datos Generales'!AO19 -> 0 | AP23: =Índice!$G$52*'Datos Generales'!AP19 -> 0 | AQ23: =Índice!$G$52*'Datos Generales'!AQ19 -> 292,281
B24: ='Datos Generales'!B20 -> 5.12.00.00 Total Inversiones Inmobiliarias | C24: =Índice!$G$52*'Datos Generales'!C20 -> 0 | D24: =Índice!$G$52*'Datos Generales'!D20 -> 139,109 | E24: =Índice!$G$52*'Datos Generales'!E20 -> 71,846 | F24: =Índice!$G$52*'Datos Generales'!F20 -> 250,730 | G24: =Índice!$G$52*'Datos Generales'!G20 -> 14,574 | H24: =Índice!$G$52*'Datos Generales'!H20 -> 11,035 | I24: =Índice!$G$52*'Datos Generales'!I20 -> 81,515 | J24: =Índice!$G$52*'Datos Generales'!J20 -> 3,854 | K24: =Índice!$G$52*'Datos Generales'!K20 -> 127,230 | L24: =Índice!$G$52*'Datos Generales'!L20 -> 762 | M24: =Índice!$G$52*'Datos Generales'!M20 -> 172,499 | N24: =Índice!$G$52*'Datos Generales'!N20 -> 31,550 | O24: =Índice!$G$52*'Datos Generales'!O20 -> 9,783 | P24: =Índice!$G$52*'Datos Generales'!P20 -> 26 | Q24: =Índice!$G$52*'Datos Generales'!Q20 -> 252,116 | R24: =Índice!$G$52*'Datos Generales'!R20 -> 612 | S24: =Índice!$G$52*'Datos Generales'!S20 -> 308,146 | T24: =Índice!$G$52*'Datos Generales'!T20 -> 0 | U24: =Índice!$G$52*'Datos Generales'!U20 -> 51,256 | V24: =Índice!$G$52*'Datos Generales'!V20 -> 0 | W24: =Índice!$G$52*'Datos Generales'!W20 -> 1,256 | X24: =Índice!$G$52*'Datos Generales'!X20 -> 32,214 | Y24: =Índice!$G$52*'Datos Generales'!Y20 -> 467 | Z24: =Índice!$G$52*'Datos Generales'!Z20 -> 31,683 | AA24: =Índice!$G$52*'Datos Generales'!AA20 -> 76,135 | AB24: =Índice!$G$52*'Datos Generales'!AB20 -> 320 | AC24: =Índice!$G$52*'Datos Generales'!AC20 -> 1,454 | AD24: =Índice!$G$52*'Datos Generales'!AD20 -> 26,963 | AE24: =Índice!$G$52*'Datos Generales'!AE20 -> 10,742 | AF24: =Índice!$G$52*'Datos Generales'!AF20 -> 2,201 | AG24: =Índice!$G$52*'Datos Generales'!AG20 -> 232,993 | AH24: =Índice!$G$52*'Datos Generales'!AH20 -> 1,965 | AI24: =Índice!$G$52*'Datos Generales'!AI20 -> 17 | AJ24: =Índice!$G$52*'Datos Generales'!AJ20 -> 79,299 | AK24: =Índice!$G$52*'Datos Generales'!AK20 -> 0 | AL24: =Índice!$G$52*'Datos Generales'!AL20 -> 0 | AM24: =Índice!$G$52*'Datos Generales'!AM20 -> 0 | AN24: =Índice!$G$52*'Datos Generales'!AN20 -> 0 | AO24: =Índice!$G$52*'Datos Generales'!AO20 -> 0 | AP24: =Índice!$G$52*'Datos Generales'!AP20 -> 0 | AQ24: =Índice!$G$52*'Datos Generales'!AQ20 -> 2,024,354
B25: ='Datos Generales'!B21 -> 5.12.10.00 Propiedades De Inversión | C25: =Índice!$G$52*'Datos Generales'!C21 -> 0 | D25: =Índice!$G$52*'Datos Generales'!D21 -> 137,827 | E25: =Índice!$G$52*'Datos Generales'!E21 -> 41,729 | F25: =Índice!$G$52*'Datos Generales'!F21 -> 71,297 | G25: =Índice!$G$52*'Datos Generales'!G21 -> 0 | H25: =Índice!$G$52*'Datos Generales'!H21 -> 0 | I25: =Índice!$G$52*'Datos Generales'!I21 -> 0 | J25: =Índice!$G$52*'Datos Generales'!J21 -> 0 | K25: =Índice!$G$52*'Datos Generales'!K21 -> 99,168 | L25: =Índice!$G$52*'Datos Generales'!L21 -> 0 | M25: =Índice!$G$52*'Datos Generales'!M21 -> 59,679 | N25: =Índice!$G$52*'Datos Generales'!N21 -> 0 | O25: =Índice!$G$52*'Datos Generales'!O21 -> 0 | P25: =Índice!$G$52*'Datos Generales'!P21 -> 0 | Q25: =Índice!$G$52*'Datos Generales'!Q21 -> 82,628 | R25: =Índice!$G$52*'Datos Generales'!R21 -> 604 | S25: =Índice!$G$52*'Datos Generales'!S21 -> 19,819 | T25: =Índice!$G$52*'Datos Generales'!T21 -> 0 | U25: =Índice!$G$52*'Datos Generales'!U21 -> 0 | V25: =Índice!$G$52*'Datos Generales'!V21 -> 0 | W25: =Índice!$G$52*'Datos Generales'!W21 -> 0 | X25: =Índice!$G$52*'Datos Generales'!X21 -> 29,011 | Y25: =Índice!$G$52*'Datos Generales'!Y21 -> 0 | Z25: =Índice!$G$52*'Datos Generales'!Z21 -> 0 | AA25: =Índice!$G$52*'Datos Generales'!AA21 -> 0 | AB25: =Índice!$G$52*'Datos Generales'!AB21 -> 0 | AC25: =Índice!$G$52*'Datos Generales'!AC21 -> 0 | AD25: =Índice!$G$52*'Datos Generales'!AD21 -> 26,858 | AE25: =Índice!$G$52*'Datos Generales'!AE21 -> 0 | AF25: =Índice!$G$52*'Datos Generales'!AF21 -> 0 | AG25: =Índice!$G$52*'Datos Generales'!AG21 -> 0 | AH25: =Índice!$G$52*'Datos Generales'!AH21 -> 0 | AI25: =Índice!$G$52*'Datos Generales'!AI21 -> 0 | AJ25: =Índice!$G$52*'Datos Generales'!AJ21 -> 0 | AK25: =Índice!$G$52*'Datos Generales'!AK21 -> 0 | AL25: =Índice!$G$52*'Datos Generales'!AL21 -> 0 | AM25: =Índice!$G$52*'Datos Generales'!AM21 -> 0 | AN25: =Índice!$G$52*'Datos Generales'!AN21 -> 0 | AO25: =Índice!$G$52*'Datos Generales'!AO21 -> 0 | AP25: =Índice!$G$52*'Datos Generales'!AP21 -> 0 | AQ25: =Índice!$G$52*'Datos Generales'!AQ21 -> 568,620
B26: ='Datos Generales'!B22 -> 5.12.20.00 Cuentas Por Cobrar Leasing | C26: =Índice!$G$52*'Datos Generales'!C22 -> 0 | D26: =Índice!$G$52*'Datos Generales'!D22 -> 0 | E26: =Índice!$G$52*'Datos Generales'!E22 -> 0 | F26: =Índice!$G$52*'Datos Generales'!F22 -> 0 | G26: =Índice!$G$52*'Datos Generales'!G22 -> 0 | H26: =Índice!$G$52*'Datos Generales'!H22 -> 0 | I26: =Índice!$G$52*'Datos Generales'!I22 -> 0 | J26: =Índice!$G$52*'Datos Generales'!J22 -> 0 | K26: =Índice!$G$52*'Datos Generales'!K22 -> 0 | L26: =Índice!$G$52*'Datos Generales'!L22 -> 0 | M26: =Índice!$G$52*'Datos Generales'!M22 -> 0 | N26: =Índice!$G$52*'Datos Generales'!N22 -> 0 | O26: =Índice!$G$52*'Datos Generales'!O22 -> 0 | P26: =Índice!$G$52*'Datos Generales'!P22 -> 0 | Q26: =Índice!$G$52*'Datos Generales'!Q22 -> 0 | R26: =Índice!$G$52*'Datos Generales'!R22 -> 0 | S26: =Índice!$G$52*'Datos Generales'!S22 -> 0 | T26: =Índice!$G$52*'Datos Generales'!T22 -> 0 | U26: =Índice!$G$52*'Datos Generales'!U22 -> 0 | V26: =Índice!$G$52*'Datos Generales'!V22 -> 0 | W26: =Índice!$G$52*'Datos Generales'!W22 -> 0 | X26: =Índice!$G$52*'Datos Generales'!X22 -> 0 | Y26: =Índice!$G$52*'Datos Generales'!Y22 -> 0 | Z26: =Índice!$G$52*'Datos Generales'!Z22 -> 0 | AA26: =Índice!$G$52*'Datos Generales'!AA22 -> 0 | AB26: =Índice!$G$52*'Datos Generales'!AB22 -> 0 | AC26: =Índice!$G$52*'Datos Generales'!AC22 -> 0 | AD26: =Índice!$G$52*'Datos Generales'!AD22 -> 0 | AE26: =Índice!$G$52*'Datos Generales'!AE22 -> 0 | AF26: =Índice!$G$52*'Datos Generales'!AF22 -> 0 | AG26: =Índice!$G$52*'Datos Generales'!AG22 -> 0 | AH26: =Índice!$G$52*'Datos Generales'!AH22 -> 0 | AI26: =Índice!$G$52*'Datos Generales'!AI22 -> 0 | AJ26: =Índice!$G$52*'Datos Generales'!AJ22 -> 70,134 | AK26: =Índice!$G$52*'Datos Generales'!AK22 -> 0 | AL26: =Índice!$G$52*'Datos Generales'!AL22 -> 0 | AM26: =Índice!$G$52*'Datos Generales'!AM22 -> 0 | AN26: =Índice!$G$52*'Datos Generales'!AN22 -> 0 | AO26: =Índice!$G$52*'Datos Generales'!AO22 -> 0 | AP26: =Índice!$G$52*'Datos Generales'!AP22 -> 0 | AQ26: =Índice!$G$52*'Datos Generales'!AQ22 -> 70,134
B27: ='Datos Generales'!B23 -> 5.12.30.00 Propiedades, Muebles Y Equipos De Uso Propio | C27: =Índice!$G$52*'Datos Generales'!C23 -> 0 | D27: =Índice!$G$52*'Datos Generales'!D23 -> 1,282 | E27: =Índice!$G$52*'Datos Generales'!E23 -> 30,117 | F27: =Índice!$G$52*'Datos Generales'!F23 -> 179,434 | G27: =Índice!$G$52*'Datos Generales'!G23 -> 14,574 | H27: =Índice!$G$52*'Datos Generales'!H23 -> 11,035 | I27: =Índice!$G$52*'Datos Generales'!I23 -> 81,515 | J27: =Índice!$G$52*'Datos Generales'!J23 -> 3,854 | K27: =Índice!$G$52*'Datos Generales'!K23 -> 28,062 | L27: =Índice!$G$52*'Datos Generales'!L23 -> 762 | M27: =Índice!$G$52*'Datos Generales'!M23 -> 112,820 | N27: =Índice!$G$52*'Datos Generales'!N23 -> 31,550 | O27: =Índice!$G$52*'Datos Generales'!O23 -> 9,783 | P27: =Índice!$G$52*'Datos Generales'!P23 -> 26 | Q27: =Índice!$G$52*'Datos Generales'!Q23 -> 169,488 | R27: =Índice!$G$52*'Datos Generales'!R23 -> 8 | S27: =Índice!$G$52*'Datos Generales'!S23 -> 288,328 | T27: =Índice!$G$52*'Datos Generales'!T23 -> 0 | U27: =Índice!$G$52*'Datos Generales'!U23 -> 51,256 | V27: =Índice!$G$52*'Datos Generales'!V23 -> 0 | W27: =Índice!$G$52*'Datos Generales'!W23 -> 1,256 | X27: =Índice!$G$52*'Datos Generales'!X23 -> 3,203 | Y27: =Índice!$G$52*'Datos Generales'!Y23 -> 467 | Z27: =Índice!$G$52*'Datos Generales'!Z23 -> 31,683 | AA27: =Índice!$G$52*'Datos Generales'!AA23 -> 76,135 | AB27: =Índice!$G$52*'Datos Generales'!AB23 -> 320 | AC27: =Índice!$G$52*'Datos Generales'!AC23 -> 1,454 | AD27: =Índice!$G$52*'Datos Generales'!AD23 -> 105 | AE27: =Índice!$G$52*'Datos Generales'!AE23 -> 10,742 | AF27: =Índice!$G$52*'Datos Generales'!AF23 -> 2,201 | AG27: =Índice!$G$52*'Datos Generales'!AG23 -> 232,993 | AH27: =Índice!$G$52*'Datos Generales'!AH23 -> 1,965 | AI27: =Índice!$G$52*'Datos Generales'!AI23 -> 17 | AJ27: =Índice!$G$52*'Datos Generales'!AJ23 -> 9,166 | AK27: =Índice!$G$52*'Datos Generales'!AK23 -> 0 | AL27: =Índice!$G$52*'Datos Generales'!AL23 -> 0 | AM27: =Índice!$G$52*'Datos Generales'!AM23 -> 0 | AN27: =Índice!$G$52*'Datos Generales'!AN23 -> 0 | AO27: =Índice!$G$52*'Datos Generales'!AO23 -> 0 | AP27: =Índice!$G$52*'Datos Generales'!AP23 -> 0 | AQ27: =Índice!$G$52*'Datos Generales'!AQ23 -> 1,385,601
B28: ='Datos Generales'!B24 -> 5.12.31.00 Propiedades De Uso Propio | C28: =Índice!$G$52*'Datos Generales'!C24 -> 0 | D28: =Índice!$G$52*'Datos Generales'!D24 -> 0 | E28: =Índice!$G$52*'Datos Generales'!E24 -> 0 | F28: =Índice!$G$52*'Datos Generales'!F24 -> 165,214 | G28: =Índice!$G$52*'Datos Generales'!G24 -> 14,380 | H28: =Índice!$G$52*'Datos Generales'!H24 -> 0 | I28: =Índice!$G$52*'Datos Generales'!I24 -> 48,054 | J28: =Índice!$G$52*'Datos Generales'!J24 -> 0 | K28: =Índice!$G$52*'Datos Generales'!K24 -> 25,442 | L28: =Índice!$G$52*'Datos Generales'!L24 -> 0 | M28: =Índice!$G$52*'Datos Generales'!M24 -> 108,609 | N28: =Índice!$G$52*'Datos Generales'!N24 -> 30,859 | O28: =Índice!$G$52*'Datos Generales'!O24 -> 0 | P28: =Índice!$G$52*'Datos Generales'!P24 -> 0 | Q28: =Índice!$G$52*'Datos Generales'!Q24 -> 128,788 | R28: =Índice!$G$52*'Datos Generales'!R24 -> 0 | S28: =Índice!$G$52*'Datos Generales'!S24 -> 219,394 | T28: =Índice!$G$52*'Datos Generales'!T24 -> 0 | U28: =Índice!$G$52*'Datos Generales'!U24 -> 36,545 | V28: =Índice!$G$52*'Datos Generales'!V24 -> 0 | W28: =Índice!$G$52*'Datos Generales'!W24 -> 0 | X28: =Índice!$G$52*'Datos Generales'!X24 -> 0 | Y28: =Índice!$G$52*'Datos Generales'!Y24 -> 0 | Z28: =Índice!$G$52*'Datos Generales'!Z24 -> 0 | AA28: =Índice!$G$52*'Datos Generales'!AA24 -> 66,752 | AB28: =Índice!$G$52*'Datos Generales'!AB24 -> 0 | AC28: =Índice!$G$52*'Datos Generales'!AC24 -> 0 | AD28: =Índice!$G$52*'Datos Generales'!AD24 -> 0 | AE28: =Índice!$G$52*'Datos Generales'!AE24 -> 0 | AF28: =Índice!$G$52*'Datos Generales'!AF24 -> 0 | AG28: =Índice!$G$52*'Datos Generales'!AG24 -> 163,128 | AH28: =Índice!$G$52*'Datos Generales'!AH24 -> 0 | AI28: =Índice!$G$52*'Datos Generales'!AI24 -> 0 | AJ28: =Índice!$G$52*'Datos Generales'!AJ24 -> 0 | AK28: =Índice!$G$52*'Datos Generales'!AK24 -> 0 | AL28: =Índice!$G$52*'Datos Generales'!AL24 -> 0 | AM28: =Índice!$G$52*'Datos Generales'!AM24 -> 0 | AN28: =Índice!$G$52*'Datos Generales'!AN24 -> 0 | AO28: =Índice!$G$52*'Datos Generales'!AO24 -> 0 | AP28: =Índice!$G$52*'Datos Generales'!AP24 -> 0 | AQ28: =Índice!$G$52*'Datos Generales'!AQ24 -> 1,007,163
B29: ='Datos Generales'!B25 -> 5.12.32.00 Muebles Y Equipos De Uso Propio | C29: =Índice!$G$52*'Datos Generales'!C25 -> 0 | D29: =Índice!$G$52*'Datos Generales'!D25 -> 1,282 | E29: =Índice!$G$52*'Datos Generales'!E25 -> 30,117 | F29: =Índice!$G$52*'Datos Generales'!F25 -> 14,220 | G29: =Índice!$G$52*'Datos Generales'!G25 -> 194 | H29: =Índice!$G$52*'Datos Generales'!H25 -> 11,035 | I29: =Índice!$G$52*'Datos Generales'!I25 -> 33,462 | J29: =Índice!$G$52*'Datos Generales'!J25 -> 3,854 | K29: =Índice!$G$52*'Datos Generales'!K25 -> 2,620 | L29: =Índice!$G$52*'Datos Generales'!L25 -> 762 | M29: =Índice!$G$52*'Datos Generales'!M25 -> 4,211 | N29: =Índice!$G$52*'Datos Generales'!N25 -> 692 | O29: =Índice!$G$52*'Datos Generales'!O25 -> 9,783 | P29: =Índice!$G$52*'Datos Generales'!P25 -> 26 | Q29: =Índice!$G$52*'Datos Generales'!Q25 -> 40,700 | R29: =Índice!$G$52*'Datos Generales'!R25 -> 8 | S29: =Índice!$G$52*'Datos Generales'!S25 -> 68,933 | T29: =Índice!$G$52*'Datos Generales'!T25 -> 0 | U29: =Índice!$G$52*'Datos Generales'!U25 -> 14,711 | V29: =Índice!$G$52*'Datos Generales'!V25 -> 0 | W29: =Índice!$G$52*'Datos Generales'!W25 -> 1,256 | X29: =Índice!$G$52*'Datos Generales'!X25 -> 3,203 | Y29: =Índice!$G$52*'Datos Generales'!Y25 -> 467 | Z29: =Índice!$G$52*'Datos Generales'!Z25 -> 31,683 | AA29: =Índice!$G$52*'Datos Generales'!AA25 -> 9,383 | AB29: =Índice!$G$52*'Datos Generales'!AB25 -> 320 | AC29: =Índice!$G$52*'Datos Generales'!AC25 -> 1,454 | AD29: =Índice!$G$52*'Datos Generales'!AD25 -> 105 | AE29: =Índice!$G$52*'Datos Generales'!AE25 -> 10,742 | AF29: =Índice!$G$52*'Datos Generales'!AF25 -> 2,201 | AG29: =Índice!$G$52*'Datos Generales'!AG25 -> 69,865 | AH29: =Índice!$G$52*'Datos Generales'!AH25 -> 1,965 | AI29: =Índice!$G$52*'Datos Generales'!AI25 -> 17 | AJ29: =Índice!$G$52*'Datos Generales'!AJ25 -> 9,166 | AK29: =Índice!$G$52*'Datos Generales'!AK25 -> 0 | AL29: =Índice!$G$52*'Datos Generales'!AL25 -> 0 | AM29: =Índice!$G$52*'Datos Generales'!AM25 -> 0 | AN29: =Índice!$G$52*'Datos Generales'!AN25 -> 0 | AO29: =Índice!$G$52*'Datos Generales'!AO25 -> 0 | AP29: =Índice!$G$52*'Datos Generales'!AP25 -> 0 | AQ29: =Índice!$G$52*'Datos Generales'!AQ25 -> 378,437
B30: ='Datos Generales'!B26 -> 5.13.00.00 Activos No Corrientes Mantenidos Para La Venta | C30: =Índice!$G$52*'Datos Generales'!C26 -> 0 | D30: =Índice!$G$52*'Datos Generales'!D26 -> 0 | E30: =Índice!$G$52*'Datos Generales'!E26 -> 0 | F30: =Índice!$G$52*'Datos Generales'!F26 -> 0 | G30: =Índice!$G$52*'Datos Generales'!G26 -> 0 | H30: =Índice!$G$52*'Datos Generales'!H26 -> 0 | I30: =Índice!$G$52*'Datos Generales'!I26 -> 0 | J30: =Índice!$G$52*'Datos Generales'!J26 -> 0 | K30: =Índice!$G$52*'Datos Generales'!K26 -> 0 | L30: =Índice!$G$52*'Datos Generales'!L26 -> 0 | M30: =Índice!$G$52*'Datos Generales'!M26 -> 0 | N30: =Índice!$G$52*'Datos Generales'!N26 -> 0 | O30: =Índice!$G$52*'Datos Generales'!O26 -> 0 | P30: =Índice!$G$52*'Datos Generales'!P26 -> 0 | Q30: =Índice!$G$52*'Datos Generales'!Q26 -> 0 | R30: =Índice!$G$52*'Datos Generales'!R26 -> 0 | S30: =Índice!$G$52*'Datos Generales'!S26 -> 0 | T30: =Índice!$G$52*'Datos Generales'!T26 -> 0 | U30: =Índice!$G$52*'Datos Generales'!U26 -> 0 | V30: =Índice!$G$52*'Datos Generales'!V26 -> 0 | W30: =Índice!$G$52*'Datos Generales'!W26 -> 0 | X30: =Índice!$G$52*'Datos Generales'!X26 -> 0 | Y30: =Índice!$G$52*'Datos Generales'!Y26 -> 0 | Z30: =Índice!$G$52*'Datos Generales'!Z26 -> 0 | AA30: =Índice!$G$52*'Datos Generales'!AA26 -> 0 | AB30: =Índice!$G$52*'Datos Generales'!AB26 -> 0 | AC30: =Índice!$G$52*'Datos Generales'!AC26 -> 0 | AD30: =Índice!$G$52*'Datos Generales'!AD26 -> 0 | AE30: =Índice!$G$52*'Datos Generales'!AE26 -> 0 | AF30: =Índice!$G$52*'Datos Generales'!AF26 -> 0 | AG30: =Índice!$G$52*'Datos Generales'!AG26 -> 0 | AH30: =Índice!$G$52*'Datos Generales'!AH26 -> 0 | AI30: =Índice!$G$52*'Datos Generales'!AI26 -> 0 | AJ30: =Índice!$G$52*'Datos Generales'!AJ26 -> 0 | AK30: =Índice!$G$52*'Datos Generales'!AK26 -> 0 | AL30: =Índice!$G$52*'Datos Generales'!AL26 -> 0 | AM30: =Índice!$G$52*'Datos Generales'!AM26 -> 0 | AN30: =Índice!$G$52*'Datos Generales'!AN26 -> 0 | AO30: =Índice!$G$52*'Datos Generales'!AO26 -> 0 | AP30: =Índice!$G$52*'Datos Generales'!AP26 -> 0 | AQ30: =Índice!$G$52*'Datos Generales'!AQ26 -> 0
B31: ='Datos Generales'!B27 -> 5.14.00.00 Total Cuentas De Seguros | C31: =Índice!$G$52*'Datos Generales'!C27 -> 64,388 | D31: =Índice!$G$52*'Datos Generales'!D27 -> 1,232,404 | E31: =Índice!$G$52*'Datos Generales'!E27 -> 13,008,583 | F31: =Índice!$G$52*'Datos Generales'!F27 -> 676,154 | G31: =Índice!$G$52*'Datos Generales'!G27 -> 300,999 | H31: =Índice!$G$52*'Datos Generales'!H27 -> 5,305,819 | I31: =Índice!$G$52*'Datos Generales'!I27 -> 8,809,751 | J31: =Índice!$G$52*'Datos Generales'!J27 -> 582,488 | K31: =Índice!$G$52*'Datos Generales'!K27 -> 2,242,728 | L31: =Índice!$G$52*'Datos Generales'!L27 -> 562,268 | M31: =Índice!$G$52*'Datos Generales'!M27 -> 1,095,579 | N31: =Índice!$G$52*'Datos Generales'!N27 -> 3,006,067 | O31: =Índice!$G$52*'Datos Generales'!O27 -> 2,034,819 | P31: =Índice!$G$52*'Datos Generales'!P27 -> 386,556 | Q31: =Índice!$G$52*'Datos Generales'!Q27 -> 8,717,914 | R31: =Índice!$G$52*'Datos Generales'!R27 -> 4,718 | S31: =Índice!$G$52*'Datos Generales'!S27 -> 7,825,122 | T31: =Índice!$G$52*'Datos Generales'!T27 -> 0 | U31: =Índice!$G$52*'Datos Generales'!U27 -> 11,179,396 | V31: =Índice!$G$52*'Datos Generales'!V27 -> 44,735 | W31: =Índice!$G$52*'Datos Generales'!W27 -> 2,262,080 | X31: =Índice!$G$52*'Datos Generales'!X27 -> 222,251 | Y31: =Índice!$G$52*'Datos Generales'!Y27 -> 891,771 | Z31: =Índice!$G$52*'Datos Generales'!Z27 -> 3,397,233 | AA31: =Índice!$G$52*'Datos Generales'!AA27 -> 2,238,275 | AB31: =Índice!$G$52*'Datos Generales'!AB27 -> 32,854 | AC31: =Índice!$G$52*'Datos Generales'!AC27 -> 505,017 | AD31: =Índice!$G$52*'Datos Generales'!AD27 -> 18,311,423 | AE31: =Índice!$G$52*'Datos Generales'!AE27 -> 1,435,887 | AF31: =Índice!$G$52*'Datos Generales'!AF27 -> 169,930 | AG31: =Índice!$G$52*'Datos Generales'!AG27 -> 17,988,005 | AH31: =Índice!$G$52*'Datos Generales'!AH27 -> 2,944,408 | AI31: =Índice!$G$52*'Datos Generales'!AI27 -> 875,771 | AJ31: =Índice!$G$52*'Datos Generales'!AJ27 -> 3,527,158 | AK31: =Índice!$G$52*'Datos Generales'!AK27 -> 0 | AL31: =Índice!$G$52*'Datos Generales'!AL27 -> 0 | AM31: =Índice!$G$52*'Datos Generales'!AM27 -> 0 | AN31: =Índice!$G$52*'Datos Generales'!AN27 -> 0 | AO31: =Índice!$G$52*'Datos Generales'!AO27 -> 0 | AP31: =Índice!$G$52*'Datos Generales'!AP27 -> 0 | AQ31: =Índice!$G$52*'Datos Generales'!AQ27 -> 121,882,552
B32: ='Datos Generales'!B28 -> 5.14.10.00 Cuentas Por Cobrar De Seguros | C32: =Índice!$G$52*'Datos Generales'!C28 -> 50,331 | D32: =Índice!$G$52*'Datos Generales'!D28 -> 288,709 | E32: =Índice!$G$52*'Datos Generales'!E28 -> 10,179,223 | F32: =Índice!$G$52*'Datos Generales'!F28 -> 667,415 | G32: =Índice!$G$52*'Datos Generales'!G28 -> 29,031 | H32: =Índice!$G$52*'Datos Generales'!H28 -> 3,242,682 | I32: =Índice!$G$52*'Datos Generales'!I28 -> 3,631,671 | J32: =Índice!$G$52*'Datos Generales'!J28 -> 345,970 | K32: =Índice!$G$52*'Datos Generales'!K28 -> 1,934,760 | L32: =Índice!$G$52*'Datos Generales'!L28 -> 215,747 | M32: =Índice!$G$52*'Datos Generales'!M28 -> 339,653 | N32: =Índice!$G$52*'Datos Generales'!N28 -> 538,404 | O32: =Índice!$G$52*'Datos Generales'!O28 -> 724,302 | P32: =Índice!$G$52*'Datos Generales'!P28 -> 53,300 | Q32: =Índice!$G$52*'Datos Generales'!Q28 -> 4,723,220 | R32: =Índice!$G$52*'Datos Generales'!R28 -> 4,718 | S32: =Índice!$G$52*'Datos Generales'!S28 -> 5,293,825 | T32: =Índice!$G$52*'Datos Generales'!T28 -> 0 | U32: =Índice!$G$52*'Datos Generales'!U28 -> 3,115,902 | V32: =Índice!$G$52*'Datos Generales'!V28 -> 43,434 | W32: =Índice!$G$52*'Datos Generales'!W28 -> 590,728 | X32: =Índice!$G$52*'Datos Generales'!X28 -> 48,657 | Y32: =Índice!$G$52*'Datos Generales'!Y28 -> 252,125 | Z32: =Índice!$G$52*'Datos Generales'!Z28 -> 1,522,352 | AA32: =Índice!$G$52*'Datos Generales'!AA28 -> 1,338,220 | AB32: =Índice!$G$52*'Datos Generales'!AB28 -> 6,952 | AC32: =Índice!$G$52*'Datos Generales'!AC28 -> 165,761 | AD32: =Índice!$G$52*'Datos Generales'!AD28 -> 2,203,012 | AE32: =Índice!$G$52*'Datos Generales'!AE28 -> 206,116 | AF32: =Índice!$G$52*'Datos Generales'!AF28 -> 48,570 | AG32: =Índice!$G$52*'Datos Generales'!AG28 -> 7,703,251 | AH32: =Índice!$G$52*'Datos Generales'!AH28 -> 603,548 | AI32: =Índice!$G$52*'Datos Generales'!AI28 -> 843,958 | AJ32: =Índice!$G$52*'Datos Generales'!AJ28 -> 2,458,232 | AK32: =Índice!$G$52*'Datos Generales'!AK28 -> 0 | AL32: =Índice!$G$52*'Datos Generales'!AL28 -> 0 | AM32: =Índice!$G$52*'Datos Generales'!AM28 -> 0 | AN32: =Índice!$G$52*'Datos Generales'!AN28 -> 0 | AO32: =Índice!$G$52*'Datos Generales'!AO28 -> 0 | AP32: =Índice!$G$52*'Datos Generales'!AP28 -> 0 | AQ32: =Índice!$G$52*'Datos Generales'!AQ28 -> 53,413,780
B33: ='Datos Generales'!B29 -> 5.14.11.00 Cuentas Por Cobrar Asegurados | C33: =Índice!$G$52*'Datos Generales'!C29 -> 50,331 | D33: =Índice!$G$52*'Datos Generales'!D29 -> 89,323 | E33: =Índice!$G$52*'Datos Generales'!E29 -> 9,434,222 | F33: =Índice!$G$52*'Datos Generales'!F29 -> 612,835 | G33: =Índice!$G$52*'Datos Generales'!G29 -> 3,467 | H33: =Índice!$G$52*'Datos Generales'!H29 -> 2,566,388 | I33: =Índice!$G$52*'Datos Generales'!I29 -> 2,359,600 | J33: =Índice!$G$52*'Datos Generales'!J29 -> 207,649 | K33: =Índice!$G$52*'Datos Generales'!K29 -> 1,564,525 | L33: =Índice!$G$52*'Datos Generales'!L29 -> 134,880 | M33: =Índice!$G$52*'Datos Generales'!M29 -> 188,307 | N33: =Índice!$G$52*'Datos Generales'!N29 -> 462,316 | O33: =Índice!$G$52*'Datos Generales'!O29 -> 592,612 | P33: =Índice!$G$52*'Datos Generales'!P29 -> 381 | Q33: =Índice!$G$52*'Datos Generales'!Q29 -> 3,951,077 | R33: =Índice!$G$52*'Datos Generales'!R29 -> 4,718 | S33: =Índice!$G$52*'Datos Generales'!S29 -> 3,918,092 | T33: =Índice!$G$52*'Datos Generales'!T29 -> 0 | U33: =Índice!$G$52*'Datos Generales'!U29 -> 2,709,983 | V33: =Índice!$G$52*'Datos Generales'!V29 -> 1,091 | W33: =Índice!$G$52*'Datos Generales'!W29 -> 531,279 | X33: =Índice!$G$52*'Datos Generales'!X29 -> 35,619 | Y33: =Índice!$G$52*'Datos Generales'!Y29 -> 231,939 | Z33: =Índice!$G$52*'Datos Generales'!Z29 -> 1,394,453 | AA33: =Índice!$G$52*'Datos Generales'!AA29 -> 1,230,431 | AB33: =Índice!$G$52*'Datos Generales'!AB29 -> 1,682 | AC33: =Índice!$G$52*'Datos Generales'!AC29 -> 114,840 | AD33: =Índice!$G$52*'Datos Generales'!AD29 -> 1,128,509 | AE33: =Índice!$G$52*'Datos Generales'!AE29 -> 131,012 | AF33: =Índice!$G$52*'Datos Generales'!AF29 -> 6,602 | AG33: =Índice!$G$52*'Datos Generales'!AG29 -> 5,150,717 | AH33: =Índice!$G$52*'Datos Generales'!AH29 -> 375,835 | AI33: =Índice!$G$52*'Datos Generales'!AI29 -> 771,717 | AJ33: =Índice!$G$52*'Datos Generales'!AJ29 -> 2,327,304 | AK33: =Índice!$G$52*'Datos Generales'!AK29 -> 0 | AL33: =Índice!$G$52*'Datos Generales'!AL29 -> 0 | AM33: =Índice!$G$52*'Datos Generales'!AM29 -> 0 | AN33: =Índice!$G$52*'Datos Generales'!AN29 -> 0 | AO33: =Índice!$G$52*'Datos Generales'!AO29 -> 0 | AP33: =Índice!$G$52*'Datos Generales'!AP29 -> 0 | AQ33: =Índice!$G$52*'Datos Generales'!AQ29 -> 42,283,733
B34: ='Datos Generales'!B30 -> 5.14.12.00 Deudores Por Operaciones De Reaseguro | C34: =Índice!$G$52*'Datos Generales'!C30 -> 0 | D34: =Índice!$G$52*'Datos Generales'!D30 -> 199,387 | E34: =Índice!$G$52*'Datos Generales'!E30 -> 439,438 | F34: =Índice!$G$52*'Datos Generales'!F30 -> 39,681 | G34: =Índice!$G$52*'Datos Generales'!G30 -> 25,564 | H34: =Índice!$G$52*'Datos Generales'!H30 -> 410,835 | I34: =Índice!$G$52*'Datos Generales'!I30 -> 998,561 | J34: =Índice!$G$52*'Datos Generales'!J30 -> 130,051 | K34: =Índice!$G$52*'Datos Generales'!K30 -> 102,936 | L34: =Índice!$G$52*'Datos Generales'!L30 -> 39,620 | M34: =Índice!$G$52*'Datos Generales'!M30 -> 151,346 | N34: =Índice!$G$52*'Datos Generales'!N30 -> 33,908 | O34: =Índice!$G$52*'Datos Generales'!O30 -> 48,454 | P34: =Índice!$G$52*'Datos Generales'!P30 -> 52,826 | Q34: =Índice!$G$52*'Datos Generales'!Q30 -> 361,328 | R34: =Índice!$G$52*'Datos Generales'!R30 -> 0 | S34: =Índice!$G$52*'Datos Generales'!S30 -> 443,817 | T34: =Índice!$G$52*'Datos Generales'!T30 -> 0 | U34: =Índice!$G$52*'Datos Generales'!U30 -> 290,848 | V34: =Índice!$G$52*'Datos Generales'!V30 -> 19,307 | W34: =Índice!$G$52*'Datos Generales'!W30 -> 53,753 | X34: =Índice!$G$52*'Datos Generales'!X30 -> 13,038 | Y34: =Índice!$G$52*'Datos Generales'!Y30 -> 19,639 | Z34: =Índice!$G$52*'Datos Generales'!Z30 -> 88,057 | AA34: =Índice!$G$52*'Datos Generales'!AA30 -> 97,584 | AB34: =Índice!$G$52*'Datos Generales'!AB30 -> 5,269 | AC34: =Índice!$G$52*'Datos Generales'!AC30 -> 50,921 | AD34: =Índice!$G$52*'Datos Generales'!AD30 -> 633,501 | AE34: =Índice!$G$52*'Datos Generales'!AE30 -> 25,346 | AF34: =Índice!$G$52*'Datos Generales'!AF30 -> 41,968 | AG34: =Índice!$G$52*'Datos Generales'!AG30 -> 1,136,476 | AH34: =Índice!$G$52*'Datos Generales'!AH30 -> 70,699 | AI34: =Índice!$G$52*'Datos Generales'!AI30 -> 1,770 | AJ34: =Índice!$G$52*'Datos Generales'!AJ30 -> 124,465 | AK34: =Índice!$G$52*'Datos Generales'!AK30 -> 0 | AL34: =Índice!$G$52*'Datos Generales'!AL30 -> 0 | AM34: =Índice!$G$52*'Datos Generales'!AM30 -> 0 | AN34: =Índice!$G$52*'Datos Generales'!AN30 -> 0 | AO34: =Índice!$G$52*'Datos Generales'!AO30 -> 0 | AP34: =Índice!$G$52*'Datos Generales'!AP30 -> 0 | AQ34: =Índice!$G$52*'Datos Generales'!AQ30 -> 6,150,391
B35: ='Datos Generales'!B31 -> 5.14.12.10 Siniestros Por Cobrar A Reaseguradores | C35: =Índice!$G$52*'Datos Generales'!C31 -> 0 | D35: =Índice!$G$52*'Datos Generales'!D31 -> 150,755 | E35: =Índice!$G$52*'Datos Generales'!E31 -> 239,805 | F35: =Índice!$G$52*'Datos Generales'!F31 -> 22,209 | G35: =Índice!$G$52*'Datos Generales'!G31 -> 25,564 | H35: =Índice!$G$52*'Datos Generales'!H31 -> 248,590 | I35: =Índice!$G$52*'Datos Generales'!I31 -> 454,652 | J35: =Índice!$G$52*'Datos Generales'!J31 -> 130,051 | K35: =Índice!$G$52*'Datos Generales'!K31 -> 66,990 | L35: =Índice!$G$52*'Datos Generales'!L31 -> 39,620 | M35: =Índice!$G$52*'Datos Generales'!M31 -> 143,476 | N35: =Índice!$G$52*'Datos Generales'!N31 -> 33,908 | O35: =Índice!$G$52*'Datos Generales'!O31 -> 41,205 | P35: =Índice!$G$52*'Datos Generales'!P31 -> 11,625 | Q35: =Índice!$G$52*'Datos Generales'!Q31 -> 151,446 | R35: =Índice!$G$52*'Datos Generales'!R31 -> 0 | S35: =Índice!$G$52*'Datos Generales'!S31 -> 430,674 | T35: =Índice!$G$52*'Datos Generales'!T31 -> 0 | U35: =Índice!$G$52*'Datos Generales'!U31 -> 209,645 | V35: =Índice!$G$52*'Datos Generales'!V31 -> 0 | W35: =Índice!$G$52*'Datos Generales'!W31 -> 43,970 | X35: =Índice!$G$52*'Datos Generales'!X31 -> 11,744 | Y35: =Índice!$G$52*'Datos Generales'!Y31 -> 19,639 | Z35: =Índice!$G$52*'Datos Generales'!Z31 -> 78,976 | AA35: =Índice!$G$52*'Datos Generales'!AA31 -> 78,778 | AB35: =Índice!$G$52*'Datos Generales'!AB31 -> 5,269 | AC35: =Índice!$G$52*'Datos Generales'!AC31 -> 25,858 | AD35: =Índice!$G$52*'Datos Generales'!AD31 -> 549,172 | AE35: =Índice!$G$52*'Datos Generales'!AE31 -> 2,355 | AF35: =Índice!$G$52*'Datos Generales'!AF31 -> 38,352 | AG35: =Índice!$G$52*'Datos Generales'!AG31 -> 388,270 | AH35: =Índice!$G$52*'Datos Generales'!AH31 -> 70,699 | AI35: =Índice!$G$52*'Datos Generales'!AI31 -> 1,695 | AJ35: =Índice!$G$52*'Datos Generales'!AJ31 -> 102,587 | AK35: =Índice!$G$52*'Datos Generales'!AK31 -> 0 | AL35: =Índice!$G$52*'Datos Generales'!AL31 -> 0 | AM35: =Índice!$G$52*'Datos Generales'!AM31 -> 0 | AN35: =Índice!$G$52*'Datos Generales'!AN31 -> 0 | AO35: =Índice!$G$52*'Datos Generales'!AO31 -> 0 | AP35: =Índice!$G$52*'Datos Generales'!AP31 -> 0 | AQ35: =Índice!$G$52*'Datos Generales'!AQ31 -> 3,817,578
B36: ='Datos Generales'!B32 -> 5.14.12.20 Primas Por Cobrar Reaseguro Aceptado | C36: =Índice!$G$52*'Datos Generales'!C32 -> 0 | D36: =Índice!$G$52*'Datos Generales'!D32 -> 2,324 | E36: =Índice!$G$52*'Datos Generales'!E32 -> 236 | F36: =Índice!$G$52*'Datos Generales'!F32 -> 0 | G36: =Índice!$G$52*'Datos Generales'!G32 -> 0 | H36: =Índice!$G$52*'Datos Generales'!H32 -> 12,545 | I36: =Índice!$G$52*'Datos Generales'!I32 -> 543,909 | J36: =Índice!$G$52*'Datos Generales'!J32 -> 0 | K36: =Índice!$G$52*'Datos Generales'!K32 -> 0 | L36: =Índice!$G$52*'Datos Generales'!L32 -> 0 | M36: =Índice!$G$52*'Datos Generales'!M32 -> 0 | N36: =Índice!$G$52*'Datos Generales'!N32 -> 0 | O36: =Índice!$G$52*'Datos Generales'!O32 -> 0 | P36: =Índice!$G$52*'Datos Generales'!P32 -> 0 | Q36: =Índice!$G$52*'Datos Generales'!Q32 -> 0 | R36: =Índice!$G$52*'Datos Generales'!R32 -> 0 | S36: =Índice!$G$52*'Datos Generales'!S32 -> 0 | T36: =Índice!$G$52*'Datos Generales'!T32 -> 0 | U36: =Índice!$G$52*'Datos Generales'!U32 -> 0 | V36: =Índice!$G$52*'Datos Generales'!V32 -> 0 | W36: =Índice!$G$52*'Datos Generales'!W32 -> 0 | X36: =Índice!$G$52*'Datos Generales'!X32 -> 0 | Y36: =Índice!$G$52*'Datos Generales'!Y32 -> 0 | Z36: =Índice!$G$52*'Datos Generales'!Z32 -> 0 | AA36: =Índice!$G$52*'Datos Generales'!AA32 -> 0 | AB36: =Índice!$G$52*'Datos Generales'!AB32 -> 0 | AC36: =Índice!$G$52*'Datos Generales'!AC32 -> 0 | AD36: =Índice!$G$52*'Datos Generales'!AD32 -> 84,329 | AE36: =Índice!$G$52*'Datos Generales'!AE32 -> 22,991 | AF36: =Índice!$G$52*'Datos Generales'!AF32 -> 0 | AG36: =Índice!$G$52*'Datos Generales'!AG32 -> 557,971 | AH36: =Índice!$G$52*'Datos Generales'!AH32 -> 0 | AI36: =Índice!$G$52*'Datos Generales'!AI32 -> 0 | AJ36: =Índice!$G$52*'Datos Generales'!AJ32 -> 0 | AK36: =Índice!$G$52*'Datos Generales'!AK32 -> 0 | AL36: =Índice!$G$52*'Datos Generales'!AL32 -> 0 | AM36: =Índice!$G$52*'Datos Generales'!AM32 -> 0 | AN36: =Índice!$G$52*'Datos Generales'!AN32 -> 0 | AO36: =Índice!$G$52*'Datos Generales'!AO32 -> 0 | AP36: =Índice!$G$52*'Datos Generales'!AP32 -> 0 | AQ36: =Índice!$G$52*'Datos Generales'!AQ32 -> 1,224,304
B37: ='Datos Generales'!B33 -> 5.14.12.30 Activo Por Reaseguro No Proporcional | C37: =Índice!$G$52*'Datos Generales'!C33 -> 0 | D37: =Índice!$G$52*'Datos Generales'!D33 -> 0 | E37: =Índice!$G$52*'Datos Generales'!E33 -> 199,397 | F37: =Índice!$G$52*'Datos Generales'!F33 -> 17,472 | G37: =Índice!$G$52*'Datos Generales'!G33 -> 0 | H37: =Índice!$G$52*'Datos Generales'!H33 -> 149,700 | I37: =Índice!$G$52*'Datos Generales'!I33 -> 0 | J37: =Índice!$G$52*'Datos Generales'!J33 -> 0 | K37: =Índice!$G$52*'Datos Generales'!K33 -> 35,946 | L37: =Índice!$G$52*'Datos Generales'!L33 -> 0 | M37: =Índice!$G$52*'Datos Generales'!M33 -> 7,870 | N37: =Índice!$G$52*'Datos Generales'!N33 -> 0 | O37: =Índice!$G$52*'Datos Generales'!O33 -> 828 | P37: =Índice!$G$52*'Datos Generales'!P33 -> 0 | Q37: =Índice!$G$52*'Datos Generales'!Q33 -> 18,380 | R37: =Índice!$G$52*'Datos Generales'!R33 -> 0 | S37: =Índice!$G$52*'Datos Generales'!S33 -> 874 | T37: =Índice!$G$52*'Datos Generales'!T33 -> 0 | U37: =Índice!$G$52*'Datos Generales'!U33 -> 81,202 | V37: =Índice!$G$52*'Datos Generales'!V33 -> 19,307 | W37: =Índice!$G$52*'Datos Generales'!W33 -> 9,758 | X37: =Índice!$G$52*'Datos Generales'!X33 -> 1,295 | Y37: =Índice!$G$52*'Datos Generales'!Y33 -> 0 | Z37: =Índice!$G$52*'Datos Generales'!Z33 -> 1,302 | AA37: =Índice!$G$52*'Datos Generales'!AA33 -> 14,922 | AB37: =Índice!$G$52*'Datos Generales'!AB33 -> 0 | AC37: =Índice!$G$52*'Datos Generales'!AC33 -> 2,883 | AD37: =Índice!$G$52*'Datos Generales'!AD33 -> 0 | AE37: =Índice!$G$52*'Datos Generales'!AE33 -> 0 | AF37: =Índice!$G$52*'Datos Generales'!AF33 -> 744 | AG37: =Índice!$G$52*'Datos Generales'!AG33 -> 176,467 | AH37: =Índice!$G$52*'Datos Generales'!AH33 -> 0 | AI37: =Índice!$G$52*'Datos Generales'!AI33 -> 75 | AJ37: =Índice!$G$52*'Datos Generales'!AJ33 -> 21,878 | AK37: =Índice!$G$52*'Datos Generales'!AK33 -> 0 | AL37: =Índice!$G$52*'Datos Generales'!AL33 -> 0 | AM37: =Índice!$G$52*'Datos Generales'!AM33 -> 0 | AN37: =Índice!$G$52*'Datos Generales'!AN33 -> 0 | AO37: =Índice!$G$52*'Datos Generales'!AO33 -> 0 | AP37: =Índice!$G$52*'Datos Generales'!AP33 -> 0 | AQ37: =Índice!$G$52*'Datos Generales'!AQ33 -> 760,300
B38: ='Datos Generales'!B34 -> 5.14.12.40 Otros Deudores Por Operaciones De Reaseguro | C38: =Índice!$G$52*'Datos Generales'!C34 -> 0 | D38: =Índice!$G$52*'Datos Generales'!D34 -> 46,308 | E38: =Índice!$G$52*'Datos Generales'!E34 -> 0 | F38: =Índice!$G$52*'Datos Generales'!F34 -> 0 | G38: =Índice!$G$52*'Datos Generales'!G34 -> 0 | H38: =Índice!$G$52*'Datos Generales'!H34 -> 0 | I38: =Índice!$G$52*'Datos Generales'!I34 -> 0 | J38: =Índice!$G$52*'Datos Generales'!J34 -> 0 | K38: =Índice!$G$52*'Datos Generales'!K34 -> 0 | L38: =Índice!$G$52*'Datos Generales'!L34 -> 0 | M38: =Índice!$G$52*'Datos Generales'!M34 -> 0 | N38: =Índice!$G$52*'Datos Generales'!N34 -> 0 | O38: =Índice!$G$52*'Datos Generales'!O34 -> 6,420 | P38: =Índice!$G$52*'Datos Generales'!P34 -> 41,201 | Q38: =Índice!$G$52*'Datos Generales'!Q34 -> 191,502 | R38: =Índice!$G$52*'Datos Generales'!R34 -> 0 | S38: =Índice!$G$52*'Datos Generales'!S34 -> 12,269 | T38: =Índice!$G$52*'Datos Generales'!T34 -> 0 | U38: =Índice!$G$52*'Datos Generales'!U34 -> 0 | V38: =Índice!$G$52*'Datos Generales'!V34 -> 0 | W38: =Índice!$G$52*'Datos Generales'!W34 -> 25 | X38: =Índice!$G$52*'Datos Generales'!X34 -> 0 | Y38: =Índice!$G$52*'Datos Generales'!Y34 -> 0 | Z38: =Índice!$G$52*'Datos Generales'!Z34 -> 7,778 | AA38: =Índice!$G$52*'Datos Generales'!AA34 -> 3,885 | AB38: =Índice!$G$52*'Datos Generales'!AB34 -> 0 | AC38: =Índice!$G$52*'Datos Generales'!AC34 -> 22,180 | AD38: =Índice!$G$52*'Datos Generales'!AD34 -> 0 | AE38: =Índice!$G$52*'Datos Generales'!AE34 -> 0 | AF38: =Índice!$G$52*'Datos Generales'!AF34 -> 2,872 | AG38: =Índice!$G$52*'Datos Generales'!AG34 -> 13,768 | AH38: =Índice!$G$52*'Datos Generales'!AH34 -> 0 | AI38: =Índice!$G$52*'Datos Generales'!AI34 -> 0 | AJ38: =Índice!$G$52*'Datos Generales'!AJ34 -> 0 | AK38: =Índice!$G$52*'Datos Generales'!AK34 -> 0 | AL38: =Índice!$G$52*'Datos Generales'!AL34 -> 0 | AM38: =Índice!$G$52*'Datos Generales'!AM34 -> 0 | AN38: =Índice!$G$52*'Datos Generales'!AN34 -> 0 | AO38: =Índice!$G$52*'Datos Generales'!AO34 -> 0 | AP38: =Índice!$G$52*'Datos Generales'!AP34 -> 0 | AQ38: =Índice!$G$52*'Datos Generales'!AQ34 -> 348,209
B39: ='Datos Generales'!B35 -> 5.14.13.00 Deudores Por Operaciones De Coaseguro | C39: =Índice!$G$52*'Datos Generales'!C35 -> 0 | D39: =Índice!$G$52*'Datos Generales'!D35 -> 0 | E39: =Índice!$G$52*'Datos Generales'!E35 -> 13,611 | F39: =Índice!$G$52*'Datos Generales'!F35 -> 201 | G39: =Índice!$G$52*'Datos Generales'!G35 -> 0 | H39: =Índice!$G$52*'Datos Generales'!H35 -> 17,553 | I39: =Índice!$G$52*'Datos Generales'!I35 -> 41,388 | J39: =Índice!$G$52*'Datos Generales'!J35 -> 0 | K39: =Índice!$G$52*'Datos Generales'!K35 -> 56,371 | L39: =Índice!$G$52*'Datos Generales'!L35 -> 41,248 | M39: =Índice!$G$52*'Datos Generales'!M35 -> 0 | N39: =Índice!$G$52*'Datos Generales'!N35 -> 42,180 | O39: =Índice!$G$52*'Datos Generales'!O35 -> 83,237 | P39: =Índice!$G$52*'Datos Generales'!P35 -> 0 | Q39: =Índice!$G$52*'Datos Generales'!Q35 -> 166,365 | R39: =Índice!$G$52*'Datos Generales'!R35 -> 0 | S39: =Índice!$G$52*'Datos Generales'!S35 -> 47,233 | T39: =Índice!$G$52*'Datos Generales'!T35 -> 0 | U39: =Índice!$G$52*'Datos Generales'!U35 -> 85,518 | V39: =Índice!$G$52*'Datos Generales'!V35 -> 23,037 | W39: =Índice!$G$52*'Datos Generales'!W35 -> 3,190 | X39: =Índice!$G$52*'Datos Generales'!X35 -> 0 | Y39: =Índice!$G$52*'Datos Generales'!Y35 -> 0 | Z39: =Índice!$G$52*'Datos Generales'!Z35 -> 33,003 | AA39: =Índice!$G$52*'Datos Generales'!AA35 -> 1,238 | AB39: =Índice!$G$52*'Datos Generales'!AB35 -> 0 | AC39: =Índice!$G$52*'Datos Generales'!AC35 -> 0 | AD39: =Índice!$G$52*'Datos Generales'!AD35 -> 401,945 | AE39: =Índice!$G$52*'Datos Generales'!AE35 -> 49,758 | AF39: =Índice!$G$52*'Datos Generales'!AF35 -> 0 | AG39: =Índice!$G$52*'Datos Generales'!AG35 -> 631,764 | AH39: =Índice!$G$52*'Datos Generales'!AH35 -> 150,983 | AI39: =Índice!$G$52*'Datos Generales'!AI35 -> 0 | AJ39: =Índice!$G$52*'Datos Generales'!AJ35 -> 6,463 | AK39: =Índice!$G$52*'Datos Generales'!AK35 -> 0 | AL39: =Índice!$G$52*'Datos Generales'!AL35 -> 0 | AM39: =Índice!$G$52*'Datos Generales'!AM35 -> 0 | AN39: =Índice!$G$52*'Datos Generales'!AN35 -> 0 | AO39: =Índice!$G$52*'Datos Generales'!AO35 -> 0 | AP39: =Índice!$G$52*'Datos Generales'!AP35 -> 0 | AQ39: =Índice!$G$52*'Datos Generales'!AQ35 -> 1,896,286
B40: ='Datos Generales'!B36 -> 5.14.13.10 Primas Por Cobrar Por Operaciones De Coaseguro | C40: =Índice!$G$52*'Datos Generales'!C36 -> 0 | D40: =Índice!$G$52*'Datos Generales'!D36 -> 0 | E40: =Índice!$G$52*'Datos Generales'!E36 -> 13,128 | F40: =Índice!$G$52*'Datos Generales'!F36 -> 94 | G40: =Índice!$G$52*'Datos Generales'!G36 -> 0 | H40: =Índice!$G$52*'Datos Generales'!H36 -> 4,115 | I40: =Índice!$G$52*'Datos Generales'!I36 -> 27,194 | J40: =Índice!$G$52*'Datos Generales'!J36 -> 0 | K40: =Índice!$G$52*'Datos Generales'!K36 -> 52,329 | L40: =Índice!$G$52*'Datos Generales'!L36 -> 41,125 | M40: =Índice!$G$52*'Datos Generales'!M36 -> 0 | N40: =Índice!$G$52*'Datos Generales'!N36 -> 41,545 | O40: =Índice!$G$52*'Datos Generales'!O36 -> 83,237 | P40: =Índice!$G$52*'Datos Generales'!P36 -> 0 | Q40: =Índice!$G$52*'Datos Generales'!Q36 -> 163,579 | R40: =Índice!$G$52*'Datos Generales'!R36 -> 0 | S40: =Índice!$G$52*'Datos Generales'!S36 -> 11,173 | T40: =Índice!$G$52*'Datos Generales'!T36 -> 0 | U40: =Índice!$G$52*'Datos Generales'!U36 -> 63,472 | V40: =Índice!$G$52*'Datos Generales'!V36 -> 23,037 | W40: =Índice!$G$52*'Datos Generales'!W36 -> 2,946 | X40: =Índice!$G$52*'Datos Generales'!X36 -> 0 | Y40: =Índice!$G$52*'Datos Generales'!Y36 -> 0 | Z40: =Índice!$G$52*'Datos Generales'!Z36 -> 33,003 | AA40: =Índice!$G$52*'Datos Generales'!AA36 -> 1,238 | AB40: =Índice!$G$52*'Datos Generales'!AB36 -> 0 | AC40: =Índice!$G$52*'Datos Generales'!AC36 -> 0 | AD40: =Índice!$G$52*'Datos Generales'!AD36 -> 397,612 | AE40: =Índice!$G$52*'Datos Generales'!AE36 -> 49,758 | AF40: =Índice!$G$52*'Datos Generales'!AF36 -> 0 | AG40: =Índice!$G$52*'Datos Generales'!AG36 -> 582,728 | AH40: =Índice!$G$52*'Datos Generales'!AH36 -> 144,791 | AI40: =Índice!$G$52*'Datos Generales'!AI36 -> 0 | AJ40: =Índice!$G$52*'Datos Generales'!AJ36 -> 0 | AK40: =Índice!$G$52*'Datos Generales'!AK36 -> 0 | AL40: =Índice!$G$52*'Datos Generales'!AL36 -> 0 | AM40: =Índice!$G$52*'Datos Generales'!AM36 -> 0 | AN40: =Índice!$G$52*'Datos Generales'!AN36 -> 0 | AO40: =Índice!$G$52*'Datos Generales'!AO36 -> 0 | AP40: =Índice!$G$52*'Datos Generales'!AP36 -> 0 | AQ40: =Índice!$G$52*'Datos Generales'!AQ36 -> 1,736,104
B41: ='Datos Generales'!B37 -> 5.14.13.20 Siniestros Por Cobrar Por Operaciones De Coaseguro | C41: =Índice!$G$52*'Datos Generales'!C37 -> 0 | D41: =Índice!$G$52*'Datos Generales'!D37 -> 0 | E41: =Índice!$G$52*'Datos Generales'!E37 -> 483 | F41: =Índice!$G$52*'Datos Generales'!F37 -> 107 | G41: =Índice!$G$52*'Datos Generales'!G37 -> 0 | H41: =Índice!$G$52*'Datos Generales'!H37 -> 13,438 | I41: =Índice!$G$52*'Datos Generales'!I37 -> 14,194 | J41: =Índice!$G$52*'Datos Generales'!J37 -> 0 | K41: =Índice!$G$52*'Datos Generales'!K37 -> 4,042 | L41: =Índice!$G$52*'Datos Generales'!L37 -> 123 | M41: =Índice!$G$52*'Datos Generales'!M37 -> 0 | N41: =Índice!$G$52*'Datos Generales'!N37 -> 635 | O41: =Índice!$G$52*'Datos Generales'!O37 -> 0 | P41: =Índice!$G$52*'Datos Generales'!P37 -> 0 | Q41: =Índice!$G$52*'Datos Generales'!Q37 -> 2,787 | R41: =Índice!$G$52*'Datos Generales'!R37 -> 0 | S41: =Índice!$G$52*'Datos Generales'!S37 -> 36,060 | T41: =Índice!$G$52*'Datos Generales'!T37 -> 0 | U41: =Índice!$G$52*'Datos Generales'!U37 -> 22,046 | V41: =Índice!$G$52*'Datos Generales'!V37 -> 0 | W41: =Índice!$G$52*'Datos Generales'!W37 -> 244 | X41: =Índice!$G$52*'Datos Generales'!X37 -> 0 | Y41: =Índice!$G$52*'Datos Generales'!Y37 -> 0 | Z41: =Índice!$G$52*'Datos Generales'!Z37 -> 0 | AA41: =Índice!$G$52*'Datos Generales'!AA37 -> 0 | AB41: =Índice!$G$52*'Datos Generales'!AB37 -> 0 | AC41: =Índice!$G$52*'Datos Generales'!AC37 -> 0 | AD41: =Índice!$G$52*'Datos Generales'!AD37 -> 4,333 | AE41: =Índice!$G$52*'Datos Generales'!AE37 -> 0 | AF41: =Índice!$G$52*'Datos Generales'!AF37 -> 0 | AG41: =Índice!$G$52*'Datos Generales'!AG37 -> 49,036 | AH41: =Índice!$G$52*'Datos Generales'!AH37 -> 6,192 | AI41: =Índice!$G$52*'Datos Generales'!AI37 -> 0 | AJ41: =Índice!$G$52*'Datos Generales'!AJ37 -> 6,463 | AK41: =Índice!$G$52*'Datos Generales'!AK37 -> 0 | AL41: =Índice!$G$52*'Datos Generales'!AL37 -> 0 | AM41: =Índice!$G$52*'Datos Generales'!AM37 -> 0 | AN41: =Índice!$G$52*'Datos Generales'!AN37 -> 0 | AO41: =Índice!$G$52*'Datos Generales'!AO37 -> 0 | AP41: =Índice!$G$52*'Datos Generales'!AP37 -> 0 | AQ41: =Índice!$G$52*'Datos Generales'!AQ37 -> 160,182
B42: ='Datos Generales'!B38 -> 5.14.20.00 Participación Del Reaseguro En Las Reservas Técnicas | C42: =Índice!$G$52*'Datos Generales'!C38 -> 14,058 | D42: =Índice!$G$52*'Datos Generales'!D38 -> 943,695 | E42: =Índice!$G$52*'Datos Generales'!E38 -> 2,829,360 | F42: =Índice!$G$52*'Datos Generales'!F38 -> 8,738 | G42: =Índice!$G$52*'Datos Generales'!G38 -> 271,967 | H42: =Índice!$G$52*'Datos Generales'!H38 -> 2,063,137 | I42: =Índice!$G$52*'Datos Generales'!I38 -> 5,178,080 | J42: =Índice!$G$52*'Datos Generales'!J38 -> 236,518 | K42: =Índice!$G$52*'Datos Generales'!K38 -> 307,968 | L42: =Índice!$G$52*'Datos Generales'!L38 -> 346,521 | M42: =Índice!$G$52*'Datos Generales'!M38 -> 755,926 | N42: =Índice!$G$52*'Datos Generales'!N38 -> 2,467,663 | O42: =Índice!$G$52*'Datos Generales'!O38 -> 1,310,517 | P42: =Índice!$G$52*'Datos Generales'!P38 -> 333,256 | Q42: =Índice!$G$52*'Datos Generales'!Q38 -> 3,994,694 | R42: =Índice!$G$52*'Datos Generales'!R38 -> 0 | S42: =Índice!$G$52*'Datos Generales'!S38 -> 2,531,297 | T42: =Índice!$G$52*'Datos Generales'!T38 -> 0 | U42: =Índice!$G$52*'Datos Generales'!U38 -> 8,063,494 | V42: =Índice!$G$52*'Datos Generales'!V38 -> 1,301 | W42: =Índice!$G$52*'Datos Generales'!W38 -> 1,671,352 | X42: =Índice!$G$52*'Datos Generales'!X38 -> 173,594 | Y42: =Índice!$G$52*'Datos Generales'!Y38 -> 639,646 | Z42: =Índice!$G$52*'Datos Generales'!Z38 -> 1,874,882 | AA42: =Índice!$G$52*'Datos Generales'!AA38 -> 900,055 | AB42: =Índice!$G$52*'Datos Generales'!AB38 -> 25,902 | AC42: =Índice!$G$52*'Datos Generales'!AC38 -> 339,256 | AD42: =Índice!$G$52*'Datos Generales'!AD38 -> 16,108,411 | AE42: =Índice!$G$52*'Datos Generales'!AE38 -> 1,229,771 | AF42: =Índice!$G$52*'Datos Generales'!AF38 -> 121,359 | AG42: =Índice!$G$52*'Datos Generales'!AG38 -> 10,284,753 | AH42: =Índice!$G$52*'Datos Generales'!AH38 -> 2,340,861 | AI42: =Índice!$G$52*'Datos Generales'!AI38 -> 31,814 | AJ42: =Índice!$G$52*'Datos Generales'!AJ38 -> 1,068,926 | AK42: =Índice!$G$52*'Datos Generales'!AK38 -> 0 | AL42: =Índice!$G$52*'Datos Generales'!AL38 -> 0 | AM42: =Índice!$G$52*'Datos Generales'!AM38 -> 0 | AN42: =Índice!$G$52*'Datos Generales'!AN38 -> 0 | AO42: =Índice!$G$52*'Datos Generales'!AO38 -> 0 | AP42: =Índice!$G$52*'Datos Generales'!AP38 -> 0 | AQ42: =Índice!$G$52*'Datos Generales'!AQ38 -> 68,468,772
B43: ='Datos Generales'!B39 -> 5.14.21.00 Participación Del Reaseguro En La Reserva Riesgos En Curso | C43: =Índice!$G$52*'Datos Generales'!C39 -> 10 | D43: =Índice!$G$52*'Datos Generales'!D39 -> 430,693 | E43: =Índice!$G$52*'Datos Generales'!E39 -> 1,355,809 | F43: =Índice!$G$52*'Datos Generales'!F39 -> 1,426 | G43: =Índice!$G$52*'Datos Generales'!G39 -> 154,500 | H43: =Índice!$G$52*'Datos Generales'!H39 -> 687,885 | I43: =Índice!$G$52*'Datos Generales'!I39 -> 2,425,547 | J43: =Índice!$G$52*'Datos Generales'!J39 -> 77,390 | K43: =Índice!$G$52*'Datos Generales'!K39 -> 177,776 | L43: =Índice!$G$52*'Datos Generales'!L39 -> 186,777 | M43: =Índice!$G$52*'Datos Generales'!M39 -> 318,061 | N43: =Índice!$G$52*'Datos Generales'!N39 -> 881,063 | O43: =Índice!$G$52*'Datos Generales'!O39 -> 572,756 | P43: =Índice!$G$52*'Datos Generales'!P39 -> 78,693 | Q43: =Índice!$G$52*'Datos Generales'!Q39 -> 1,335,039 | R43: =Índice!$G$52*'Datos Generales'!R39 -> 0 | S43: =Índice!$G$52*'Datos Generales'!S39 -> 508,739 | T43: =Índice!$G$52*'Datos Generales'!T39 -> 0 | U43: =Índice!$G$52*'Datos Generales'!U39 -> 3,175,774 | V43: =Índice!$G$52*'Datos Generales'!V39 -> 30 | W43: =Índice!$G$52*'Datos Generales'!W39 -> 971,099 | X43: =Índice!$G$52*'Datos Generales'!X39 -> 98,905 | Y43: =Índice!$G$52*'Datos Generales'!Y39 -> 396,353 | Z43: =Índice!$G$52*'Datos Generales'!Z39 -> 550,978 | AA43: =Índice!$G$52*'Datos Generales'!AA39 -> 604,094 | AB43: =Índice!$G$52*'Datos Generales'!AB39 -> 24,004 | AC43: =Índice!$G$52*'Datos Generales'!AC39 -> 57,881 | AD43: =Índice!$G$52*'Datos Generales'!AD39 -> 2,900,234 | AE43: =Índice!$G$52*'Datos Generales'!AE39 -> 721,099 | AF43: =Índice!$G$52*'Datos Generales'!AF39 -> 99,824 | AG43: =Índice!$G$52*'Datos Generales'!AG39 -> 4,138,242 | AH43: =Índice!$G$52*'Datos Generales'!AH39 -> 1,136,883 | AI43: =Índice!$G$52*'Datos Generales'!AI39 -> 27,887 | AJ43: =Índice!$G$52*'Datos Generales'!AJ39 -> 1,008,679 | AK43: =Índice!$G$52*'Datos Generales'!AK39 -> 0 | AL43: =Índice!$G$52*'Datos Generales'!AL39 -> 0 | AM43: =Índice!$G$52*'Datos Generales'!AM39 -> 0 | AN43: =Índice!$G$52*'Datos Generales'!AN39 -> 0 | AO43: =Índice!$G$52*'Datos Generales'!AO39 -> 0 | AP43: =Índice!$G$52*'Datos Generales'!AP39 -> 0 | AQ43: =Índice!$G$52*'Datos Generales'!AQ39 -> 25,104,128
B44: ='Datos Generales'!B40 -> 5.14.22.00 Participación Del Reaseguro En Las Reservas Seguros Previsionales | C44: =Índice!$G$52*'Datos Generales'!C40 -> 0 | D44: =Índice!$G$52*'Datos Generales'!D40 -> 0 | E44: =Índice!$G$52*'Datos Generales'!E40 -> 0 | F44: =Índice!$G$52*'Datos Generales'!F40 -> 0 | G44: =Índice!$G$52*'Datos Generales'!G40 -> 0 | H44: =Índice!$G$52*'Datos Generales'!H40 -> 0 | I44: =Índice!$G$52*'Datos Generales'!I40 -> 0 | J44: =Índice!$G$52*'Datos Generales'!J40 -> 0 | K44: =Índice!$G$52*'Datos Generales'!K40 -> 0 | L44: =Índice!$G$52*'Datos Generales'!L40 -> 0 | M44: =Índice!$G$52*'Datos Generales'!M40 -> 0 | N44: =Índice!$G$52*'Datos Generales'!N40 -> 0 | O44: =Índice!$G$52*'Datos Generales'!O40 -> 0 | P44: =Índice!$G$52*'Datos Generales'!P40 -> 0 | Q44: =Índice!$G$52*'Datos Generales'!Q40 -> 0 | R44: =Índice!$G$52*'Datos Generales'!R40 -> 0 | S44: =Índice!$G$52*'Datos Generales'!S40 -> 0 | T44: =Índice!$G$52*'Datos Generales'!T40 -> 0 | U44: =Índice!$G$52*'Datos Generales'!U40 -> 0 | V44: =Índice!$G$52*'Datos Generales'!V40 -> 0 | W44: =Índice!$G$52*'Datos Generales'!W40 -> 0 | X44: =Índice!$G$52*'Datos Generales'!X40 -> 0 | Y44: =Índice!$G$52*'Datos Generales'!Y40 -> 0 | Z44: =Índice!$G$52*'Datos Generales'!Z40 -> 0 | AA44: =Índice!$G$52*'Datos Generales'!AA40 -> 0 | AB44: =Índice!$G$52*'Datos Generales'!AB40 -> 0 | AC44: =Índice!$G$52*'Datos Generales'!AC40 -> 0 | AD44: =Índice!$G$52*'Datos Generales'!AD40 -> 0 | AE44: =Índice!$G$52*'Datos Generales'!AE40 -> 0 | AF44: =Índice!$G$52*'Datos Generales'!AF40 -> 0 | AG44: =Índice!$G$52*'Datos Generales'!AG40 -> 0 | AH44: =Índice!$G$52*'Datos Generales'!AH40 -> 0 | AI44: =Índice!$G$52*'Datos Generales'!AI40 -> 0 | AJ44: =Índice!$G$52*'Datos Generales'!AJ40 -> 0 | AK44: =Índice!$G$52*'Datos Generales'!AK40 -> 0 | AL44: =Índice!$G$52*'Datos Generales'!AL40 -> 0 | AM44: =Índice!$G$52*'Datos Generales'!AM40 -> 0 | AN44: =Índice!$G$52*'Datos Generales'!AN40 -> 0 | AO44: =Índice!$G$52*'Datos Generales'!AO40 -> 0 | AP44: =Índice!$G$52*'Datos Generales'!AP40 -> 0 | AQ44: =Índice!$G$52*'Datos Generales'!AQ40 -> 0
B45: ='Datos Generales'!B41 -> 5.14.22.10 Participación Del Reaseguro En La Reserva Rentas Vitalicias | C45: =Índice!$G$52*'Datos Generales'!C41 -> 0 | D45: =Índice!$G$52*'Datos Generales'!D41 -> 0 | E45: =Índice!$G$52*'Datos Generales'!E41 -> 0 | F45: =Índice!$G$52*'Datos Generales'!F41 -> 0 | G45: =Índice!$G$52*'Datos Generales'!G41 -> 0 | H45: =Índice!$G$52*'Datos Generales'!H41 -> 0 | I45: =Índice!$G$52*'Datos Generales'!I41 -> 0 | J45: =Índice!$G$52*'Datos Generales'!J41 -> 0 | K45: =Índice!$G$52*'Datos Generales'!K41 -> 0 | L45: =Índice!$G$52*'Datos Generales'!L41 -> 0 | M45: =Índice!$G$52*'Datos Generales'!M41 -> 0 | N45: =Índice!$G$52*'Datos Generales'!N41 -> 0 | O45: =Índice!$G$52*'Datos Generales'!O41 -> 0 | P45: =Índice!$G$52*'Datos Generales'!P41 -> 0 | Q45: =Índice!$G$52*'Datos Generales'!Q41 -> 0 | R45: =Índice!$G$52*'Datos Generales'!R41 -> 0 | S45: =Índice!$G$52*'Datos Generales'!S41 -> 0 | T45: =Índice!$G$52*'Datos Generales'!T41 -> 0 | U45: =Índice!$G$52*'Datos Generales'!U41 -> 0 | V45: =Índice!$G$52*'Datos Generales'!V41 -> 0 | W45: =Índice!$G$52*'Datos Generales'!W41 -> 0 | X45: =Índice!$G$52*'Datos Generales'!X41 -> 0 | Y45: =Índice!$G$52*'Datos Generales'!Y41 -> 0 | Z45: =Índice!$G$52*'Datos Generales'!Z41 -> 0 | AA45: =Índice!$G$52*'Datos Generales'!AA41 -> 0 | AB45: =Índice!$G$52*'Datos Generales'!AB41 -> 0 | AC45: =Índice!$G$52*'Datos Generales'!AC41 -> 0 | AD45: =Índice!$G$52*'Datos Generales'!AD41 -> 0 | AE45: =Índice!$G$52*'Datos Generales'!AE41 -> 0 | AF45: =Índice!$G$52*'Datos Generales'!AF41 -> 0 | AG45: =Índice!$G$52*'Datos Generales'!AG41 -> 0 | AH45: =Índice!$G$52*'Datos Generales'!AH41 -> 0 | AI45: =Índice!$G$52*'Datos Generales'!AI41 -> 0 | AJ45: =Índice!$G$52*'Datos Generales'!AJ41 -> 0 | AK45: =Índice!$G$52*'Datos Generales'!AK41 -> 0 | AL45: =Índice!$G$52*'Datos Generales'!AL41 -> 0 | AM45: =Índice!$G$52*'Datos Generales'!AM41 -> 0 | AN45: =Índice!$G$52*'Datos Generales'!AN41 -> 0 | AO45: =Índice!$G$52*'Datos Generales'!AO41 -> 0 | AP45: =Índice!$G$52*'Datos Generales'!AP41 -> 0 | AQ45: =Índice!$G$52*'Datos Generales'!AQ41 -> 0
B46: ='Datos Generales'!B42 -> 5.14.22.20 Participación Del Reaseguro En La Reserva Seguro Invalidez Y Sobrevivencia | C46: =Índice!$G$52*'Datos Generales'!C42 -> 0 | D46: =Índice!$G$52*'Datos Generales'!D42 -> 0 | E46: =Índice!$G$52*'Datos Generales'!E42 -> 0 | F46: =Índice!$G$52*'Datos Generales'!F42 -> 0 | G46: =Índice!$G$52*'Datos Generales'!G42 -> 0 | H46: =Índice!$G$52*'Datos Generales'!H42 -> 0 | I46: =Índice!$G$52*'Datos Generales'!I42 -> 0 | J46: =Índice!$G$52*'Datos Generales'!J42 -> 0 | K46: =Índice!$G$52*'Datos Generales'!K42 -> 0 | L46: =Índice!$G$52*'Datos Generales'!L42 -> 0 | M46: =Índice!$G$52*'Datos Generales'!M42 -> 0 | N46: =Índice!$G$52*'Datos Generales'!N42 -> 0 | O46: =Índice!$G$52*'Datos Generales'!O42 -> 0 | P46: =Índice!$G$52*'Datos Generales'!P42 -> 0 | Q46: =Índice!$G$52*'Datos Generales'!Q42 -> 0 | R46: =Índice!$G$52*'Datos Generales'!R42 -> 0 | S46: =Índice!$G$52*'Datos Generales'!S42 -> 0 | T46: =Índice!$G$52*'Datos Generales'!T42 -> 0 | U46: =Índice!$G$52*'Datos Generales'!U42 -> 0 | V46: =Índice!$G$52*'Datos Generales'!V42 -> 0 | W46: =Índice!$G$52*'Datos Generales'!W42 -> 0 | X46: =Índice!$G$52*'Datos Generales'!X42 -> 0 | Y46: =Índice!$G$52*'Datos Generales'!Y42 -> 0 | Z46: =Índice!$G$52*'Datos Generales'!Z42 -> 0 | AA46: =Índice!$G$52*'Datos Generales'!AA42 -> 0 | AB46: =Índice!$G$52*'Datos Generales'!AB42 -> 0 | AC46: =Índice!$G$52*'Datos Generales'!AC42 -> 0 | AD46: =Índice!$G$52*'Datos Generales'!AD42 -> 0 | AE46: =Índice!$G$52*'Datos Generales'!AE42 -> 0 | AF46: =Índice!$G$52*'Datos Generales'!AF42 -> 0 | AG46: =Índice!$G$52*'Datos Generales'!AG42 -> 0 | AH46: =Índice!$G$52*'Datos Generales'!AH42 -> 0 | AI46: =Índice!$G$52*'Datos Generales'!AI42 -> 0 | AJ46: =Índice!$G$52*'Datos Generales'!AJ42 -> 0 | AK46: =Índice!$G$52*'Datos Generales'!AK42 -> 0 | AL46: =Índice!$G$52*'Datos Generales'!AL42 -> 0 | AM46: =Índice!$G$52*'Datos Generales'!AM42 -> 0 | AN46: =Índice!$G$52*'Datos Generales'!AN42 -> 0 | AO46: =Índice!$G$52*'Datos Generales'!AO42 -> 0 | AP46: =Índice!$G$52*'Datos Generales'!AP42 -> 0 | AQ46: =Índice!$G$52*'Datos Generales'!AQ42 -> 0
B47: ='Datos Generales'!B43 -> 5.14.23.00 Participación Del Reaseguro En La Reserva Matemática | C47: =Índice!$G$52*'Datos Generales'!C43 -> 0 | D47: =Índice!$G$52*'Datos Generales'!D43 -> 0 | E47: =Índice!$G$52*'Datos Generales'!E43 -> 0 | F47: =Índice!$G$52*'Datos Generales'!F43 -> 0 | G47: =Índice!$G$52*'Datos Generales'!G43 -> 0 | H47: =Índice!$G$52*'Datos Generales'!H43 -> 0 | I47: =Índice!$G$52*'Datos Generales'!I43 -> 0 | J47: =Índice!$G$52*'Datos Generales'!J43 -> 0 | K47: =Índice!$G$52*'Datos Generales'!K43 -> 0 | L47: =Índice!$G$52*'Datos Generales'!L43 -> 0 | M47: =Índice!$G$52*'Datos Generales'!M43 -> 0 | N47: =Índice!$G$52*'Datos Generales'!N43 -> 0 | O47: =Índice!$G$52*'Datos Generales'!O43 -> 0 | P47: =Índice!$G$52*'Datos Generales'!P43 -> 0 | Q47: =Índice!$G$52*'Datos Generales'!Q43 -> 0 | R47: =Índice!$G$52*'Datos Generales'!R43 -> 0 | S47: =Índice!$G$52*'Datos Generales'!S43 -> 0 | T47: =Índice!$G$52*'Datos Generales'!T43 -> 0 | U47: =Índice!$G$52*'Datos Generales'!U43 -> 0 | V47: =Índice!$G$52*'Datos Generales'!V43 -> 0 | W47: =Índice!$G$52*'Datos Generales'!W43 -> 0 | X47: =Índice!$G$52*'Datos Generales'!X43 -> 0 | Y47: =Índice!$G$52*'Datos Generales'!Y43 -> 0 | Z47: =Índice!$G$52*'Datos Generales'!Z43 -> 0 | AA47: =Índice!$G$52*'Datos Generales'!AA43 -> 0 | AB47: =Índice!$G$52*'Datos Generales'!AB43 -> 0 | AC47: =Índice!$G$52*'Datos Generales'!AC43 -> 0 | AD47: =Índice!$G$52*'Datos Generales'!AD43 -> 0 | AE47: =Índice!$G$52*'Datos Generales'!AE43 -> 0 | AF47: =Índice!$G$52*'Datos Generales'!AF43 -> 0 | AG47: =Índice!$G$52*'Datos Generales'!AG43 -> 0 | AH47: =Índice!$G$52*'Datos Generales'!AH43 -> 0 | AI47: =Índice!$G$52*'Datos Generales'!AI43 -> 0 | AJ47: =Índice!$G$52*'Datos Generales'!AJ43 -> 0 | AK47: =Índice!$G$52*'Datos Generales'!AK43 -> 0 | AL47: =Índice!$G$52*'Datos Generales'!AL43 -> 0 | AM47: =Índice!$G$52*'Datos Generales'!AM43 -> 0 | AN47: =Índice!$G$52*'Datos Generales'!AN43 -> 0 | AO47: =Índice!$G$52*'Datos Generales'!AO43 -> 0 | AP47: =Índice!$G$52*'Datos Generales'!AP43 -> 0 | AQ47: =Índice!$G$52*'Datos Generales'!AQ43 -> 0
B48: ='Datos Generales'!B44 -> 5.14.24.00 Participación Del Reaseguro En La Reserva Rentas Privadas | C48: =Índice!$G$52*'Datos Generales'!C44 -> 0 | D48: =Índice!$G$52*'Datos Generales'!D44 -> 0 | E48: =Índice!$G$52*'Datos Generales'!E44 -> 0 | F48: =Índice!$G$52*'Datos Generales'!F44 -> 0 | G48: =Índice!$G$52*'Datos Generales'!G44 -> 0 | H48: =Índice!$G$52*'Datos Generales'!H44 -> 0 | I48: =Índice!$G$52*'Datos Generales'!I44 -> 0 | J48: =Índice!$G$52*'Datos Generales'!J44 -> 0 | K48: =Índice!$G$52*'Datos Generales'!K44 -> 0 | L48: =Índice!$G$52*'Datos Generales'!L44 -> 0 | M48: =Índice!$G$52*'Datos Generales'!M44 -> 0 | N48: =Índice!$G$52*'Datos Generales'!N44 -> 0 | O48: =Índice!$G$52*'Datos Generales'!O44 -> 0 | P48: =Índice!$G$52*'Datos Generales'!P44 -> 0 | Q48: =Índice!$G$52*'Datos Generales'!Q44 -> 0 | R48: =Índice!$G$52*'Datos Generales'!R44 -> 0 | S48: =Índice!$G$52*'Datos Generales'!S44 -> 0 | T48: =Índice!$G$52*'Datos Generales'!T44 -> 0 | U48: =Índice!$G$52*'Datos Generales'!U44 -> 0 | V48: =Índice!$G$52*'Datos Generales'!V44 -> 0 | W48: =Índice!$G$52*'Datos Generales'!W44 -> 0 | X48: =Índice!$G$52*'Datos Generales'!X44 -> 0 | Y48: =Índice!$G$52*'Datos Generales'!Y44 -> 0 | Z48: =Índice!$G$52*'Datos Generales'!Z44 -> 0 | AA48: =Índice!$G$52*'Datos Generales'!AA44 -> 0 | AB48: =Índice!$G$52*'Datos Generales'!AB44 -> 0 | AC48: =Índice!$G$52*'Datos Generales'!AC44 -> 0 | AD48: =Índice!$G$52*'Datos Generales'!AD44 -> 0 | AE48: =Índice!$G$52*'Datos Generales'!AE44 -> 0 | AF48: =Índice!$G$52*'Datos Generales'!AF44 -> 0 | AG48: =Índice!$G$52*'Datos Generales'!AG44 -> 0 | AH48: =Índice!$G$52*'Datos Generales'!AH44 -> 0 | AI48: =Índice!$G$52*'Datos Generales'!AI44 -> 0 | AJ48: =Índice!$G$52*'Datos Generales'!AJ44 -> 0 | AK48: =Índice!$G$52*'Datos Generales'!AK44 -> 0 | AL48: =Índice!$G$52*'Datos Generales'!AL44 -> 0 | AM48: =Índice!$G$52*'Datos Generales'!AM44 -> 0 | AN48: =Índice!$G$52*'Datos Generales'!AN44 -> 0 | AO48: =Índice!$G$52*'Datos Generales'!AO44 -> 0 | AP48: =Índice!$G$52*'Datos Generales'!AP44 -> 0 | AQ48: =Índice!$G$52*'Datos Generales'!AQ44 -> 0
B49: ='Datos Generales'!B45 -> 5.14.25.00 Participación Del Reaseguro En La Reserva De Siniestros | C49: =Índice!$G$52*'Datos Generales'!C45 -> 14,048 | D49: =Índice!$G$52*'Datos Generales'!D45 -> 513,002 | E49: =Índice!$G$52*'Datos Generales'!E45 -> 1,328,773 | F49: =Índice!$G$52*'Datos Generales'!F45 -> 6,797 | G49: =Índice!$G$52*'Datos Generales'!G45 -> 117,467 | H49: =Índice!$G$52*'Datos Generales'!H45 -> 974,859 | I49: =Índice!$G$52*'Datos Generales'!I45 -> 2,752,533 | J49: =Índice!$G$52*'Datos Generales'!J45 -> 127,302 | K49: =Índice!$G$52*'Datos Generales'!K45 -> 130,063 | L49: =Índice!$G$52*'Datos Generales'!L45 -> 152,786 | M49: =Índice!$G$52*'Datos Generales'!M45 -> 437,865 | N49: =Índice!$G$52*'Datos Generales'!N45 -> 1,515,674 | O49: =Índice!$G$52*'Datos Generales'!O45 -> 215,289 | P49: =Índice!$G$52*'Datos Generales'!P45 -> 208,410 | Q49: =Índice!$G$52*'Datos Generales'!Q45 -> 2,622,004 | R49: =Índice!$G$52*'Datos Generales'!R45 -> 0 | S49: =Índice!$G$52*'Datos Generales'!S45 -> 1,800,459 | T49: =Índice!$G$52*'Datos Generales'!T45 -> 0 | U49: =Índice!$G$52*'Datos Generales'!U45 -> 4,887,720 | V49: =Índice!$G$52*'Datos Generales'!V45 -> 1,238 | W49: =Índice!$G$52*'Datos Generales'!W45 -> 700,253 | X49: =Índice!$G$52*'Datos Generales'!X45 -> 71,721 | Y49: =Índice!$G$52*'Datos Generales'!Y45 -> 243,293 | Z49: =Índice!$G$52*'Datos Generales'!Z45 -> 551,719 | AA49: =Índice!$G$52*'Datos Generales'!AA45 -> 295,961 | AB49: =Índice!$G$52*'Datos Generales'!AB45 -> 1,898 | AC49: =Índice!$G$52*'Datos Generales'!AC45 -> 281,375 | AD49: =Índice!$G$52*'Datos Generales'!AD45 -> 13,208,178 | AE49: =Índice!$G$52*'Datos Generales'!AE45 -> 508,672 | AF49: =Índice!$G$52*'Datos Generales'!AF45 -> 21,535 | AG49: =Índice!$G$52*'Datos Generales'!AG45 -> 4,576,912 | AH49: =Índice!$G$52*'Datos Generales'!AH45 -> 1,203,978 | AI49: =Índice!$G$52*'Datos Generales'!AI45 -> 3,927 | AJ49: =Índice!$G$52*'Datos Generales'!AJ45 -> 60,247 | AK49: =Índice!$G$52*'Datos Generales'!AK45 -> 0 | AL49: =Índice!$G$52*'Datos Generales'!AL45 -> 0 | AM49: =Índice!$G$52*'Datos Generales'!AM45 -> 0 | AN49: =Índice!$G$52*'Datos Generales'!AN45 -> 0 | AO49: =Índice!$G$52*'Datos Generales'!AO45 -> 0 | AP49: =Índice!$G$52*'Datos Generales'!AP45 -> 0 | AQ49: =Índice!$G$52*'Datos Generales'!AQ45 -> 39,535,961
B50: ='Datos Generales'!B46 -> 5.14.27.00 Participación Del Reaseguro En La Reserva De Insuficiencia De Primas | C50: =Índice!$G$52*'Datos Generales'!C46 -> 0 | D50: =Índice!$G$52*'Datos Generales'!D46 -> 0 | E50: =Índice!$G$52*'Datos Generales'!E46 -> 144,778 | F50: =Índice!$G$52*'Datos Generales'!F46 -> 516 | G50: =Índice!$G$52*'Datos Generales'!G46 -> 0 | H50: =Índice!$G$52*'Datos Generales'!H46 -> 400,393 | I50: =Índice!$G$52*'Datos Generales'!I46 -> 0 | J50: =Índice!$G$52*'Datos Generales'!J46 -> 31,825 | K50: =Índice!$G$52*'Datos Generales'!K46 -> 0 | L50: =Índice!$G$52*'Datos Generales'!L46 -> 6,959 | M50: =Índice!$G$52*'Datos Generales'!M46 -> 0 | N50: =Índice!$G$52*'Datos Generales'!N46 -> 70,926 | O50: =Índice!$G$52*'Datos Generales'!O46 -> 522,471 | P50: =Índice!$G$52*'Datos Generales'!P46 -> 46,152 | Q50: =Índice!$G$52*'Datos Generales'!Q46 -> 37,650 | R50: =Índice!$G$52*'Datos Generales'!R46 -> 0 | S50: =Índice!$G$52*'Datos Generales'!S46 -> 222,098 | T50: =Índice!$G$52*'Datos Generales'!T46 -> 0 | U50: =Índice!$G$52*'Datos Generales'!U46 -> 0 | V50: =Índice!$G$52*'Datos Generales'!V46 -> 33 | W50: =Índice!$G$52*'Datos Generales'!W46 -> 0 | X50: =Índice!$G$52*'Datos Generales'!X46 -> 2,969 | Y50: =Índice!$G$52*'Datos Generales'!Y46 -> 0 | Z50: =Índice!$G$52*'Datos Generales'!Z46 -> 772,185 | AA50: =Índice!$G$52*'Datos Generales'!AA46 -> 0 | AB50: =Índice!$G$52*'Datos Generales'!AB46 -> 0 | AC50: =Índice!$G$52*'Datos Generales'!AC46 -> 0 | AD50: =Índice!$G$52*'Datos Generales'!AD46 -> 0 | AE50: =Índice!$G$52*'Datos Generales'!AE46 -> 0 | AF50: =Índice!$G$52*'Datos Generales'!AF46 -> 0 | AG50: =Índice!$G$52*'Datos Generales'!AG46 -> 1,569,599 | AH50: =Índice!$G$52*'Datos Generales'!AH46 -> 0 | AI50: =Índice!$G$52*'Datos Generales'!AI46 -> 0 | AJ50: =Índice!$G$52*'Datos Generales'!AJ46 -> 0 | AK50: =Índice!$G$52*'Datos Generales'!AK46 -> 0 | AL50: =Índice!$G$52*'Datos Generales'!AL46 -> 0 | AM50: =Índice!$G$52*'Datos Generales'!AM46 -> 0 | AN50: =Índice!$G$52*'Datos Generales'!AN46 -> 0 | AO50: =Índice!$G$52*'Datos Generales'!AO46 -> 0 | AP50: =Índice!$G$52*'Datos Generales'!AP46 -> 0 | AQ50: =Índice!$G$52*'Datos Generales'!AQ46 -> 3,828,555
B51: ='Datos Generales'!B47 -> 5.14.28.00 Participación Del Reaseguro En Otras Reservas Técnicas | C51: =Índice!$G$52*'Datos Generales'!C47 -> 0 | D51: =Índice!$G$52*'Datos Generales'!D47 -> 0 | E51: =Índice!$G$52*'Datos Generales'!E47 -> 0 | F51: =Índice!$G$52*'Datos Generales'!F47 -> 0 | G51: =Índice!$G$52*'Datos Generales'!G47 -> 0 | H51: =Índice!$G$52*'Datos Generales'!H47 -> 0 | I51: =Índice!$G$52*'Datos Generales'!I47 -> 0 | J51: =Índice!$G$52*'Datos Generales'!J47 -> 0 | K51: =Índice!$G$52*'Datos Generales'!K47 -> 129 | L51: =Índice!$G$52*'Datos Generales'!L47 -> 0 | M51: =Índice!$G$52*'Datos Generales'!M47 -> 0 | N51: =Índice!$G$52*'Datos Generales'!N47 -> 0 | O51: =Índice!$G$52*'Datos Generales'!O47 -> 0 | P51: =Índice!$G$52*'Datos Generales'!P47 -> 0 | Q51: =Índice!$G$52*'Datos Generales'!Q47 -> 0 | R51: =Índice!$G$52*'Datos Generales'!R47 -> 0 | S51: =Índice!$G$52*'Datos Generales'!S47 -> 0 | T51: =Índice!$G$52*'Datos Generales'!T47 -> 0 | U51: =Índice!$G$52*'Datos Generales'!U47 -> 0 | V51: =Índice!$G$52*'Datos Generales'!V47 -> 0 | W51: =Índice!$G$52*'Datos Generales'!W47 -> 0 | X51: =Índice!$G$52*'Datos Generales'!X47 -> 0 | Y51: =Índice!$G$52*'Datos Generales'!Y47 -> 0 | Z51: =Índice!$G$52*'Datos Generales'!Z47 -> 0 | AA51: =Índice!$G$52*'Datos Generales'!AA47 -> 0 | AB51: =Índice!$G$52*'Datos Generales'!AB47 -> 0 | AC51: =Índice!$G$52*'Datos Generales'!AC47 -> 0 | AD51: =Índice!$G$52*'Datos Generales'!AD47 -> 0 | AE51: =Índice!$G$52*'Datos Generales'!AE47 -> 0 | AF51: =Índice!$G$52*'Datos Generales'!AF47 -> 0 | AG51: =Índice!$G$52*'Datos Generales'!AG47 -> 0 | AH51: =Índice!$G$52*'Datos Generales'!AH47 -> 0 | AI51: =Índice!$G$52*'Datos Generales'!AI47 -> 0 | AJ51: =Índice!$G$52*'Datos Generales'!AJ47 -> 0 | AK51: =Índice!$G$52*'Datos Generales'!AK47 -> 0 | AL51: =Índice!$G$52*'Datos Generales'!AL47 -> 0 | AM51: =Índice!$G$52*'Datos Generales'!AM47 -> 0 | AN51: =Índice!$G$52*'Datos Generales'!AN47 -> 0 | AO51: =Índice!$G$52*'Datos Generales'!AO47 -> 0 | AP51: =Índice!$G$52*'Datos Generales'!AP47 -> 0 | AQ51: =Índice!$G$52*'Datos Generales'!AQ47 -> 129
B52: ='Datos Generales'!B48 -> 5.15.00.00 Otros Activos | C52: =Índice!$G$52*'Datos Generales'!C48 -> 97,204 | D52: =Índice!$G$52*'Datos Generales'!D48 -> 65,651 | E52: =Índice!$G$52*'Datos Generales'!E48 -> 835,034 | F52: =Índice!$G$52*'Datos Generales'!F48 -> 869,032 | G52: =Índice!$G$52*'Datos Generales'!G48 -> 43,862 | H52: =Índice!$G$52*'Datos Generales'!H48 -> 459,157 | I52: =Índice!$G$52*'Datos Generales'!I48 -> 3,096,633 | J52: =Índice!$G$52*'Datos Generales'!J48 -> 59,523 | K52: =Índice!$G$52*'Datos Generales'!K48 -> 276,572 | L52: =Índice!$G$52*'Datos Generales'!L48 -> 89,092 | M52: =Índice!$G$52*'Datos Generales'!M48 -> 262,585 | N52: =Índice!$G$52*'Datos Generales'!N48 -> 97,685 | O52: =Índice!$G$52*'Datos Generales'!O48 -> 189,561 | P52: =Índice!$G$52*'Datos Generales'!P48 -> 57,399 | Q52: =Índice!$G$52*'Datos Generales'!Q48 -> 1,055,286 | R52: =Índice!$G$52*'Datos Generales'!R48 -> 770 | S52: =Índice!$G$52*'Datos Generales'!S48 -> 1,270,420 | T52: =Índice!$G$52*'Datos Generales'!T48 -> 0 | U52: =Índice!$G$52*'Datos Generales'!U48 -> 641,239 | V52: =Índice!$G$52*'Datos Generales'!V48 -> 84,712 | W52: =Índice!$G$52*'Datos Generales'!W48 -> 45,133 | X52: =Índice!$G$52*'Datos Generales'!X48 -> 57,758 | Y52: =Índice!$G$52*'Datos Generales'!Y48 -> 28,494 | Z52: =Índice!$G$52*'Datos Generales'!Z48 -> 460,113 | AA52: =Índice!$G$52*'Datos Generales'!AA48 -> 91,413 | AB52: =Índice!$G$52*'Datos Generales'!AB48 -> 5,154 | AC52: =Índice!$G$52*'Datos Generales'!AC48 -> 41,014 | AD52: =Índice!$G$52*'Datos Generales'!AD48 -> 280,633 | AE52: =Índice!$G$52*'Datos Generales'!AE48 -> 49,211 | AF52: =Índice!$G$52*'Datos Generales'!AF48 -> 52,261 | AG52: =Índice!$G$52*'Datos Generales'!AG48 -> 989,423 | AH52: =Índice!$G$52*'Datos Generales'!AH48 -> 144,924 | AI52: =Índice!$G$52*'Datos Generales'!AI48 -> 35,475 | AJ52: =Índice!$G$52*'Datos Generales'!AJ48 -> 342,741 | AK52: =Índice!$G$52*'Datos Generales'!AK48 -> 0 | AL52: =Índice!$G$52*'Datos Generales'!AL48 -> 0 | AM52: =Índice!$G$52*'Datos Generales'!AM48 -> 0 | AN52: =Índice!$G$52*'Datos Generales'!AN48 -> 0 | AO52: =Índice!$G$52*'Datos Generales'!AO48 -> 0 | AP52: =Índice!$G$52*'Datos Generales'!AP48 -> 0 | AQ52: =Índice!$G$52*'Datos Generales'!AQ48 -> 12,175,164
B53: ='Datos Generales'!B49 -> 5.15.10.00 Intangibles | C53: =Índice!$G$52*'Datos Generales'!C49 -> 0 | D53: =Índice!$G$52*'Datos Generales'!D49 -> 0 | E53: =Índice!$G$52*'Datos Generales'!E49 -> 0 | F53: =Índice!$G$52*'Datos Generales'!F49 -> 423,491 | G53: =Índice!$G$52*'Datos Generales'!G49 -> 583 | H53: =Índice!$G$52*'Datos Generales'!H49 -> 1,549 | I53: =Índice!$G$52*'Datos Generales'!I49 -> 2,637,562 | J53: =Índice!$G$52*'Datos Generales'!J49 -> 0 | K53: =Índice!$G$52*'Datos Generales'!K49 -> 9,659 | L53: =Índice!$G$52*'Datos Generales'!L49 -> 7,510 | M53: =Índice!$G$52*'Datos Generales'!M49 -> 0 | N53: =Índice!$G$52*'Datos Generales'!N49 -> 0 | O53: =Índice!$G$52*'Datos Generales'!O49 -> 57,926 | P53: =Índice!$G$52*'Datos Generales'!P49 -> 0 | Q53: =Índice!$G$52*'Datos Generales'!Q49 -> 9,846 | R53: =Índice!$G$52*'Datos Generales'!R49 -> 0 | S53: =Índice!$G$52*'Datos Generales'!S49 -> 11,871 | T53: =Índice!$G$52*'Datos Generales'!T49 -> 0 | U53: =Índice!$G$52*'Datos Generales'!U49 -> 5,404 | V53: =Índice!$G$52*'Datos Generales'!V49 -> 0 | W53: =Índice!$G$52*'Datos Generales'!W49 -> 1,356 | X53: =Índice!$G$52*'Datos Generales'!X49 -> 11,840 | Y53: =Índice!$G$52*'Datos Generales'!Y49 -> 424 | Z53: =Índice!$G$52*'Datos Generales'!Z49 -> 42,529 | AA53: =Índice!$G$52*'Datos Generales'!AA49 -> 7,704 | AB53: =Índice!$G$52*'Datos Generales'!AB49 -> 5 | AC53: =Índice!$G$52*'Datos Generales'!AC49 -> 1,086 | AD53: =Índice!$G$52*'Datos Generales'!AD49 -> 503 | AE53: =Índice!$G$52*'Datos Generales'!AE49 -> 0 | AF53: =Índice!$G$52*'Datos Generales'!AF49 -> 4,967 | AG53: =Índice!$G$52*'Datos Generales'!AG49 -> 200,841 | AH53: =Índice!$G$52*'Datos Generales'!AH49 -> 3,287 | AI53: =Índice!$G$52*'Datos Generales'!AI49 -> 0 | AJ53: =Índice!$G$52*'Datos Generales'!AJ49 -> 99,645 | AK53: =Índice!$G$52*'Datos Generales'!AK49 -> 0 | AL53: =Índice!$G$52*'Datos Generales'!AL49 -> 0 | AM53: =Índice!$G$52*'Datos Generales'!AM49 -> 0 | AN53: =Índice!$G$52*'Datos Generales'!AN49 -> 0 | AO53: =Índice!$G$52*'Datos Generales'!AO49 -> 0 | AP53: =Índice!$G$52*'Datos Generales'!AP49 -> 0 | AQ53: =Índice!$G$52*'Datos Generales'!AQ49 -> 3,539,588
B54: ='Datos Generales'!B50 -> 5.15.11.00 Goodwill | C54: =Índice!$G$52*'Datos Generales'!C50 -> 0 | D54: =Índice!$G$52*'Datos Generales'!D50 -> 0 | E54: =Índice!$G$52*'Datos Generales'!E50 -> 0 | F54: =Índice!$G$52*'Datos Generales'!F50 -> 0 | G54: =Índice!$G$52*'Datos Generales'!G50 -> 0 | H54: =Índice!$G$52*'Datos Generales'!H50 -> 0 | I54: =Índice!$G$52*'Datos Generales'!I50 -> 0 | J54: =Índice!$G$52*'Datos Generales'!J50 -> 0 | K54: =Índice!$G$52*'Datos Generales'!K50 -> 0 | L54: =Índice!$G$52*'Datos Generales'!L50 -> 0 | M54: =Índice!$G$52*'Datos Generales'!M50 -> 0 | N54: =Índice!$G$52*'Datos Generales'!N50 -> 0 | O54: =Índice!$G$52*'Datos Generales'!O50 -> 0 | P54: =Índice!$G$52*'Datos Generales'!P50 -> 0 | Q54: =Índice!$G$52*'Datos Generales'!Q50 -> 0 | R54: =Índice!$G$52*'Datos Generales'!R50 -> 0 | S54: =Índice!$G$52*'Datos Generales'!S50 -> 0 | T54: =Índice!$G$52*'Datos Generales'!T50 -> 0 | U54: =Índice!$G$52*'Datos Generales'!U50 -> 0 | V54: =Índice!$G$52*'Datos Generales'!V50 -> 0 | W54: =Índice!$G$52*'Datos Generales'!W50 -> 0 | X54: =Índice!$G$52*'Datos Generales'!X50 -> 0 | Y54: =Índice!$G$52*'Datos Generales'!Y50 -> 0 | Z54: =Índice!$G$52*'Datos Generales'!Z50 -> 0 | AA54: =Índice!$G$52*'Datos Generales'!AA50 -> 0 | AB54: =Índice!$G$52*'Datos Generales'!AB50 -> 0 | AC54: =Índice!$G$52*'Datos Generales'!AC50 -> 0 | AD54: =Índice!$G$52*'Datos Generales'!AD50 -> 0 | AE54: =Índice!$G$52*'Datos Generales'!AE50 -> 0 | AF54: =Índice!$G$52*'Datos Generales'!AF50 -> 0 | AG54: =Índice!$G$52*'Datos Generales'!AG50 -> 0 | AH54: =Índice!$G$52*'Datos Generales'!AH50 -> 0 | AI54: =Índice!$G$52*'Datos Generales'!AI50 -> 0 | AJ54: =Índice!$G$52*'Datos Generales'!AJ50 -> 0 | AK54: =Índice!$G$52*'Datos Generales'!AK50 -> 0 | AL54: =Índice!$G$52*'Datos Generales'!AL50 -> 0 | AM54: =Índice!$G$52*'Datos Generales'!AM50 -> 0 | AN54: =Índice!$G$52*'Datos Generales'!AN50 -> 0 | AO54: =Índice!$G$52*'Datos Generales'!AO50 -> 0 | AP54: =Índice!$G$52*'Datos Generales'!AP50 -> 0 | AQ54: =Índice!$G$52*'Datos Generales'!AQ50 -> 0
B55: ='Datos Generales'!B51 -> 5.15.12.00 Activos Intangibles Distintos A Goodwill | C55: =Índice!$G$52*'Datos Generales'!C51 -> 0 | D55: =Índice!$G$52*'Datos Generales'!D51 -> 0 | E55: =Índice!$G$52*'Datos Generales'!E51 -> 0 | F55: =Índice!$G$52*'Datos Generales'!F51 -> 423,491 | G55: =Índice!$G$52*'Datos Generales'!G51 -> 583 | H55: =Índice!$G$52*'Datos Generales'!H51 -> 1,549 | I55: =Índice!$G$52*'Datos Generales'!I51 -> 2,637,562 | J55: =Índice!$G$52*'Datos Generales'!J51 -> 0 | K55: =Índice!$G$52*'Datos Generales'!K51 -> 9,659 | L55: =Índice!$G$52*'Datos Generales'!L51 -> 7,510 | M55: =Índice!$G$52*'Datos Generales'!M51 -> 0 | N55: =Índice!$G$52*'Datos Generales'!N51 -> 0 | O55: =Índice!$G$52*'Datos Generales'!O51 -> 57,926 | P55: =Índice!$G$52*'Datos Generales'!P51 -> 0 | Q55: =Índice!$G$52*'Datos Generales'!Q51 -> 9,846 | R55: =Índice!$G$52*'Datos Generales'!R51 -> 0 | S55: =Índice!$G$52*'Datos Generales'!S51 -> 11,871 | T55: =Índice!$G$52*'Datos Generales'!T51 -> 0 | U55: =Índice!$G$52*'Datos Generales'!U51 -> 5,404 | V55: =Índice!$G$52*'Datos Generales'!V51 -> 0 | W55: =Índice!$G$52*'Datos Generales'!W51 -> 1,356 | X55: =Índice!$G$52*'Datos Generales'!X51 -> 11,840 | Y55: =Índice!$G$52*'Datos Generales'!Y51 -> 424 | Z55: =Índice!$G$52*'Datos Generales'!Z51 -> 42,529 | AA55: =Índice!$G$52*'Datos Generales'!AA51 -> 7,704 | AB55: =Índice!$G$52*'Datos Generales'!AB51 -> 5 | AC55: =Índice!$G$52*'Datos Generales'!AC51 -> 1,086 | AD55: =Índice!$G$52*'Datos Generales'!AD51 -> 503 | AE55: =Índice!$G$52*'Datos Generales'!AE51 -> 0 | AF55: =Índice!$G$52*'Datos Generales'!AF51 -> 4,967 | AG55: =Índice!$G$52*'Datos Generales'!AG51 -> 200,841 | AH55: =Índice!$G$52*'Datos Generales'!AH51 -> 3,287 | AI55: =Índice!$G$52*'Datos Generales'!AI51 -> 0 | AJ55: =Índice!$G$52*'Datos Generales'!AJ51 -> 99,645 | AK55: =Índice!$G$52*'Datos Generales'!AK51 -> 0 | AL55: =Índice!$G$52*'Datos Generales'!AL51 -> 0 | AM55: =Índice!$G$52*'Datos Generales'!AM51 -> 0 | AN55: =Índice!$G$52*'Datos Generales'!AN51 -> 0 | AO55: =Índice!$G$52*'Datos Generales'!AO51 -> 0 | AP55: =Índice!$G$52*'Datos Generales'!AP51 -> 0 | AQ55: =Índice!$G$52*'Datos Generales'!AQ51 -> 3,539,588
B56: ='Datos Generales'!B52 -> 5.15.20.00 Impuestos Por Cobrar | C56: =Índice!$G$52*'Datos Generales'!C52 -> 66,726 | D56: =Índice!$G$52*'Datos Generales'!D52 -> 33,165 | E56: =Índice!$G$52*'Datos Generales'!E52 -> 510,742 | F56: =Índice!$G$52*'Datos Generales'!F52 -> 123,693 | G56: =Índice!$G$52*'Datos Generales'!G52 -> 35,523 | H56: =Índice!$G$52*'Datos Generales'!H52 -> 255,104 | I56: =Índice!$G$52*'Datos Generales'!I52 -> 260,994 | J56: =Índice!$G$52*'Datos Generales'!J52 -> 42,704 | K56: =Índice!$G$52*'Datos Generales'!K52 -> 50,229 | L56: =Índice!$G$52*'Datos Generales'!L52 -> 43,364 | M56: =Índice!$G$52*'Datos Generales'!M52 -> 135,934 | N56: =Índice!$G$52*'Datos Generales'!N52 -> 39,099 | O56: =Índice!$G$52*'Datos Generales'!O52 -> 91,994 | P56: =Índice!$G$52*'Datos Generales'!P52 -> 31,930 | Q56: =Índice!$G$52*'Datos Generales'!Q52 -> 369,656 | R56: =Índice!$G$52*'Datos Generales'!R52 -> 760 | S56: =Índice!$G$52*'Datos Generales'!S52 -> 610,623 | T56: =Índice!$G$52*'Datos Generales'!T52 -> 0 | U56: =Índice!$G$52*'Datos Generales'!U52 -> 194,382 | V56: =Índice!$G$52*'Datos Generales'!V52 -> 83,623 | W56: =Índice!$G$52*'Datos Generales'!W52 -> 18,773 | X56: =Índice!$G$52*'Datos Generales'!X52 -> 36,470 | Y56: =Índice!$G$52*'Datos Generales'!Y52 -> 14,260 | Z56: =Índice!$G$52*'Datos Generales'!Z52 -> 354,501 | AA56: =Índice!$G$52*'Datos Generales'!AA52 -> 11,550 | AB56: =Índice!$G$52*'Datos Generales'!AB52 -> 5,146 | AC56: =Índice!$G$52*'Datos Generales'!AC52 -> 18,636 | AD56: =Índice!$G$52*'Datos Generales'!AD52 -> 209,624 | AE56: =Índice!$G$52*'Datos Generales'!AE52 -> 27,335 | AF56: =Índice!$G$52*'Datos Generales'!AF52 -> 26,464 | AG56: =Índice!$G$52*'Datos Generales'!AG52 -> 246,869 | AH56: =Índice!$G$52*'Datos Generales'!AH52 -> 111,458 | AI56: =Índice!$G$52*'Datos Generales'!AI52 -> 21,593 | AJ56: =Índice!$G$52*'Datos Generales'!AJ52 -> 204,194 | AK56: =Índice!$G$52*'Datos Generales'!AK52 -> 0 | AL56: =Índice!$G$52*'Datos Generales'!AL52 -> 0 | AM56: =Índice!$G$52*'Datos Generales'!AM52 -> 0 | AN56: =Índice!$G$52*'Datos Generales'!AN52 -> 0 | AO56: =Índice!$G$52*'Datos Generales'!AO52 -> 0 | AP56: =Índice!$G$52*'Datos Generales'!AP52 -> 0 | AQ56: =Índice!$G$52*'Datos Generales'!AQ52 -> 4,287,119
B57: ='Datos Generales'!B53 -> 5.15.21.00 Cuenta Por Cobrar Por Impuesto | C57: =Índice!$G$52*'Datos Generales'!C53 -> 30,524 | D57: =Índice!$G$52*'Datos Generales'!D53 -> 9,795 | E57: =Índice!$G$52*'Datos Generales'!E53 -> 40,091 | F57: =Índice!$G$52*'Datos Generales'!F53 -> 3,114 | G57: =Índice!$G$52*'Datos Generales'!G53 -> 5,303 | H57: =Índice!$G$52*'Datos Generales'!H53 -> 57,977 | I57: =Índice!$G$52*'Datos Generales'!I53 -> 55,745 | J57: =Índice!$G$52*'Datos Generales'!J53 -> 16,885 | K57: =Índice!$G$52*'Datos Generales'!K53 -> 1,872 | L57: =Índice!$G$52*'Datos Generales'!L53 -> 5,052 | M57: =Índice!$G$52*'Datos Generales'!M53 -> 67,130 | N57: =Índice!$G$52*'Datos Generales'!N53 -> 3,354 | O57: =Índice!$G$52*'Datos Generales'!O53 -> 5,877 | P57: =Índice!$G$52*'Datos Generales'!P53 -> 7,037 | Q57: =Índice!$G$52*'Datos Generales'!Q53 -> 221,816 | R57: =Índice!$G$52*'Datos Generales'!R53 -> 760 | S57: =Índice!$G$52*'Datos Generales'!S53 -> 65,792 | T57: =Índice!$G$52*'Datos Generales'!T53 -> 0 | U57: =Índice!$G$52*'Datos Generales'!U53 -> 55,474 | V57: =Índice!$G$52*'Datos Generales'!V53 -> 3,627 | W57: =Índice!$G$52*'Datos Generales'!W53 -> 530 | X57: =Índice!$G$52*'Datos Generales'!X53 -> 403 | Y57: =Índice!$G$52*'Datos Generales'!Y53 -> 10,763 | Z57: =Índice!$G$52*'Datos Generales'!Z53 -> 626 | AA57: =Índice!$G$52*'Datos Generales'!AA53 -> 11,550 | AB57: =Índice!$G$52*'Datos Generales'!AB53 -> 128 | AC57: =Índice!$G$52*'Datos Generales'!AC53 -> 0 | AD57: =Índice!$G$52*'Datos Generales'!AD53 -> 41,369 | AE57: =Índice!$G$52*'Datos Generales'!AE53 -> 10,596 | AF57: =Índice!$G$52*'Datos Generales'!AF53 -> 1,343 | AG57: =Índice!$G$52*'Datos Generales'!AG53 -> 9,702 | AH57: =Índice!$G$52*'Datos Generales'!AH53 -> 2,855 | AI57: =Índice!$G$52*'Datos Generales'!AI53 -> 837 | AJ57: =Índice!$G$52*'Datos Generales'!AJ53 -> 142,975 | AK57: =Índice!$G$52*'Datos Generales'!AK53 -> 0 | AL57: =Índice!$G$52*'Datos Generales'!AL53 -> 0 | AM57: =Índice!$G$52*'Datos Generales'!AM53 -> 0 | AN57: =Índice!$G$52*'Datos Generales'!AN53 -> 0 | AO57: =Índice!$G$52*'Datos Generales'!AO53 -> 0 | AP57: =Índice!$G$52*'Datos Generales'!AP53 -> 0 | AQ57: =Índice!$G$52*'Datos Generales'!AQ53 -> 890,901
B58: ='Datos Generales'!B54 -> 5.15.22.00 Activo Por Impuesto Diferido | C58: =Índice!$G$52*'Datos Generales'!C54 -> 36,202 | D58: =Índice!$G$52*'Datos Generales'!D54 -> 23,370 | E58: =Índice!$G$52*'Datos Generales'!E54 -> 470,651 | F58: =Índice!$G$52*'Datos Generales'!F54 -> 120,579 | G58: =Índice!$G$52*'Datos Generales'!G54 -> 30,221 | H58: =Índice!$G$52*'Datos Generales'!H54 -> 197,126 | I58: =Índice!$G$52*'Datos Generales'!I54 -> 205,249 | J58: =Índice!$G$52*'Datos Generales'!J54 -> 25,819 | K58: =Índice!$G$52*'Datos Generales'!K54 -> 48,357 | L58: =Índice!$G$52*'Datos Generales'!L54 -> 38,312 | M58: =Índice!$G$52*'Datos Generales'!M54 -> 68,804 | N58: =Índice!$G$52*'Datos Generales'!N54 -> 35,745 | O58: =Índice!$G$52*'Datos Generales'!O54 -> 86,117 | P58: =Índice!$G$52*'Datos Generales'!P54 -> 24,893 | Q58: =Índice!$G$52*'Datos Generales'!Q54 -> 147,840 | R58: =Índice!$G$52*'Datos Generales'!R54 -> 0 | S58: =Índice!$G$52*'Datos Generales'!S54 -> 544,831 | T58: =Índice!$G$52*'Datos Generales'!T54 -> 0 | U58: =Índice!$G$52*'Datos Generales'!U54 -> 138,908 | V58: =Índice!$G$52*'Datos Generales'!V54 -> 79,997 | W58: =Índice!$G$52*'Datos Generales'!W54 -> 18,243 | X58: =Índice!$G$52*'Datos Generales'!X54 -> 36,067 | Y58: =Índice!$G$52*'Datos Generales'!Y54 -> 3,497 | Z58: =Índice!$G$52*'Datos Generales'!Z54 -> 353,875 | AA58: =Índice!$G$52*'Datos Generales'!AA54 -> 0 | AB58: =Índice!$G$52*'Datos Generales'!AB54 -> 5,018 | AC58: =Índice!$G$52*'Datos Generales'!AC54 -> 18,636 | AD58: =Índice!$G$52*'Datos Generales'!AD54 -> 168,256 | AE58: =Índice!$G$52*'Datos Generales'!AE54 -> 16,740 | AF58: =Índice!$G$52*'Datos Generales'!AF54 -> 25,121 | AG58: =Índice!$G$52*'Datos Generales'!AG54 -> 237,167 | AH58: =Índice!$G$52*'Datos Generales'!AH54 -> 108,604 | AI58: =Índice!$G$52*'Datos Generales'!AI54 -> 20,756 | AJ58: =Índice!$G$52*'Datos Generales'!AJ54 -> 61,219 | AK58: =Índice!$G$52*'Datos Generales'!AK54 -> 0 | AL58: =Índice!$G$52*'Datos Generales'!AL54 -> 0 | AM58: =Índice!$G$52*'Datos Generales'!AM54 -> 0 | AN58: =Índice!$G$52*'Datos Generales'!AN54 -> 0 | AO58: =Índice!$G$52*'Datos Generales'!AO54 -> 0 | AP58: =Índice!$G$52*'Datos Generales'!AP54 -> 0 | AQ58: =Índice!$G$52*'Datos Generales'!AQ54 -> 3,396,219
B59: ='Datos Generales'!B55 -> 5.15.30.00 Otros Activos | C59: =Índice!$G$52*'Datos Generales'!C55 -> 30,478 | D59: =Índice!$G$52*'Datos Generales'!D55 -> 32,486 | E59: =Índice!$G$52*'Datos Generales'!E55 -> 324,292 | F59: =Índice!$G$52*'Datos Generales'!F55 -> 321,848 | G59: =Índice!$G$52*'Datos Generales'!G55 -> 7,756 | H59: =Índice!$G$52*'Datos Generales'!H55 -> 202,503 | I59: =Índice!$G$52*'Datos Generales'!I55 -> 198,077 | J59: =Índice!$G$52*'Datos Generales'!J55 -> 16,819 | K59: =Índice!$G$52*'Datos Generales'!K55 -> 216,684 | L59: =Índice!$G$52*'Datos Generales'!L55 -> 38,217 | M59: =Índice!$G$52*'Datos Generales'!M55 -> 126,652 | N59: =Índice!$G$52*'Datos Generales'!N55 -> 58,585 | O59: =Índice!$G$52*'Datos Generales'!O55 -> 39,641 | P59: =Índice!$G$52*'Datos Generales'!P55 -> 25,469 | Q59: =Índice!$G$52*'Datos Generales'!Q55 -> 675,784 | R59: =Índice!$G$52*'Datos Generales'!R55 -> 10 | S59: =Índice!$G$52*'Datos Generales'!S55 -> 647,926 | T59: =Índice!$G$52*'Datos Generales'!T55 -> 0 | U59: =Índice!$G$52*'Datos Generales'!U55 -> 441,454 | V59: =Índice!$G$52*'Datos Generales'!V55 -> 1,089 | W59: =Índice!$G$52*'Datos Generales'!W55 -> 25,003 | X59: =Índice!$G$52*'Datos Generales'!X55 -> 9,448 | Y59: =Índice!$G$52*'Datos Generales'!Y55 -> 13,810 | Z59: =Índice!$G$52*'Datos Generales'!Z55 -> 63,083 | AA59: =Índice!$G$52*'Datos Generales'!AA55 -> 72,159 | AB59: =Índice!$G$52*'Datos Generales'!AB55 -> 3 | AC59: =Índice!$G$52*'Datos Generales'!AC55 -> 21,292 | AD59: =Índice!$G$52*'Datos Generales'!AD55 -> 70,506 | AE59: =Índice!$G$52*'Datos Generales'!AE55 -> 21,875 | AF59: =Índice!$G$52*'Datos Generales'!AF55 -> 20,830 | AG59: =Índice!$G$52*'Datos Generales'!AG55 -> 541,713 | AH59: =Índice!$G$52*'Datos Generales'!AH55 -> 30,179 | AI59: =Índice!$G$52*'Datos Generales'!AI55 -> 13,881 | AJ59: =Índice!$G$52*'Datos Generales'!AJ55 -> 38,902 | AK59: =Índice!$G$52*'Datos Generales'!AK55 -> 0 | AL59: =Índice!$G$52*'Datos Generales'!AL55 -> 0 | AM59: =Índice!$G$52*'Datos Generales'!AM55 -> 0 | AN59: =Índice!$G$52*'Datos Generales'!AN55 -> 0 | AO59: =Índice!$G$52*'Datos Generales'!AO55 -> 0 | AP59: =Índice!$G$52*'Datos Generales'!AP55 -> 0 | AQ59: =Índice!$G$52*'Datos Generales'!AQ55 -> 4,348,457
B60: ='Datos Generales'!B56 -> 5.15.31.00 Deudas Del Personal | C60: =Índice!$G$52*'Datos Generales'!C56 -> 0 | D60: =Índice!$G$52*'Datos Generales'!D56 -> 0 | E60: =Índice!$G$52*'Datos Generales'!E56 -> 3,783 | F60: =Índice!$G$52*'Datos Generales'!F56 -> 13,442 | G60: =Índice!$G$52*'Datos Generales'!G56 -> 4,239 | H60: =Índice!$G$52*'Datos Generales'!H56 -> 6,105 | I60: =Índice!$G$52*'Datos Generales'!I56 -> 8,489 | J60: =Índice!$G$52*'Datos Generales'!J56 -> 0 | K60: =Índice!$G$52*'Datos Generales'!K56 -> 3,635 | L60: =Índice!$G$52*'Datos Generales'!L56 -> 0 | M60: =Índice!$G$52*'Datos Generales'!M56 -> 0 | N60: =Índice!$G$52*'Datos Generales'!N56 -> 0 | O60: =Índice!$G$52*'Datos Generales'!O56 -> 10 | P60: =Índice!$G$52*'Datos Generales'!P56 -> 0 | Q60: =Índice!$G$52*'Datos Generales'!Q56 -> 1,503 | R60: =Índice!$G$52*'Datos Generales'!R56 -> 0 | S60: =Índice!$G$52*'Datos Generales'!S56 -> 2,300 | T60: =Índice!$G$52*'Datos Generales'!T56 -> 0 | U60: =Índice!$G$52*'Datos Generales'!U56 -> 5,449 | V60: =Índice!$G$52*'Datos Generales'!V56 -> 0 | W60: =Índice!$G$52*'Datos Generales'!W56 -> 0 | X60: =Índice!$G$52*'Datos Generales'!X56 -> 0 | Y60: =Índice!$G$52*'Datos Generales'!Y56 -> 0 | Z60: =Índice!$G$52*'Datos Generales'!Z56 -> 2,234 | AA60: =Índice!$G$52*'Datos Generales'!AA56 -> 1,496 | AB60: =Índice!$G$52*'Datos Generales'!AB56 -> 0 | AC60: =Índice!$G$52*'Datos Generales'!AC56 -> 0 | AD60: =Índice!$G$52*'Datos Generales'!AD56 -> 1,495 | AE60: =Índice!$G$52*'Datos Generales'!AE56 -> 0 | AF60: =Índice!$G$52*'Datos Generales'!AF56 -> 0 | AG60: =Índice!$G$52*'Datos Generales'!AG56 -> 3,884 | AH60: =Índice!$G$52*'Datos Generales'!AH56 -> 2,392 | AI60: =Índice!$G$52*'Datos Generales'!AI56 -> 91 | AJ60: =Índice!$G$52*'Datos Generales'!AJ56 -> 0 | AK60: =Índice!$G$52*'Datos Generales'!AK56 -> 0 | AL60: =Índice!$G$52*'Datos Generales'!AL56 -> 0 | AM60: =Índice!$G$52*'Datos Generales'!AM56 -> 0 | AN60: =Índice!$G$52*'Datos Generales'!AN56 -> 0 | AO60: =Índice!$G$52*'Datos Generales'!AO56 -> 0 | AP60: =Índice!$G$52*'Datos Generales'!AP56 -> 0 | AQ60: =Índice!$G$52*'Datos Generales'!AQ56 -> 60,547
B61: ='Datos Generales'!B57 -> 5.15.32.00 Cuentas Por Cobrar Intermediarios | C61: =Índice!$G$52*'Datos Generales'!C57 -> 0 | D61: =Índice!$G$52*'Datos Generales'!D57 -> 1,289 | E61: =Índice!$G$52*'Datos Generales'!E57 -> 0 | F61: =Índice!$G$52*'Datos Generales'!F57 -> 45,199 | G61: =Índice!$G$52*'Datos Generales'!G57 -> 0 | H61: =Índice!$G$52*'Datos Generales'!H57 -> 999 | I61: =Índice!$G$52*'Datos Generales'!I57 -> 1 | J61: =Índice!$G$52*'Datos Generales'!J57 -> 0 | K61: =Índice!$G$52*'Datos Generales'!K57 -> 47,522 | L61: =Índice!$G$52*'Datos Generales'!L57 -> 44 | M61: =Índice!$G$52*'Datos Generales'!M57 -> 0 | N61: =Índice!$G$52*'Datos Generales'!N57 -> 999 | O61: =Índice!$G$52*'Datos Generales'!O57 -> 80 | P61: =Índice!$G$52*'Datos Generales'!P57 -> 214 | Q61: =Índice!$G$52*'Datos Generales'!Q57 -> 15,012 | R61: =Índice!$G$52*'Datos Generales'!R57 -> 0 | S61: =Índice!$G$52*'Datos Generales'!S57 -> 22,609 | T61: =Índice!$G$52*'Datos Generales'!T57 -> 0 | U61: =Índice!$G$52*'Datos Generales'!U57 -> 88,301 | V61: =Índice!$G$52*'Datos Generales'!V57 -> 0 | W61: =Índice!$G$52*'Datos Generales'!W57 -> 358 | X61: =Índice!$G$52*'Datos Generales'!X57 -> 0 | Y61: =Índice!$G$52*'Datos Generales'!Y57 -> 1,910 | Z61: =Índice!$G$52*'Datos Generales'!Z57 -> 33,261 | AA61: =Índice!$G$52*'Datos Generales'!AA57 -> 15,348 | AB61: =Índice!$G$52*'Datos Generales'!AB57 -> 0 | AC61: =Índice!$G$52*'Datos Generales'!AC57 -> 0 | AD61: =Índice!$G$52*'Datos Generales'!AD57 -> 0 | AE61: =Índice!$G$52*'Datos Generales'!AE57 -> 0 | AF61: =Índice!$G$52*'Datos Generales'!AF57 -> 0 | AG61: =Índice!$G$52*'Datos Generales'!AG57 -> 3,570 | AH61: =Índice!$G$52*'Datos Generales'!AH57 -> 0 | AI61: =Índice!$G$52*'Datos Generales'!AI57 -> 0 | AJ61: =Índice!$G$52*'Datos Generales'!AJ57 -> 0 | AK61: =Índice!$G$52*'Datos Generales'!AK57 -> 0 | AL61: =Índice!$G$52*'Datos Generales'!AL57 -> 0 | AM61: =Índice!$G$52*'Datos Generales'!AM57 -> 0 | AN61: =Índice!$G$52*'Datos Generales'!AN57 -> 0 | AO61: =Índice!$G$52*'Datos Generales'!AO57 -> 0 | AP61: =Índice!$G$52*'Datos Generales'!AP57 -> 0 | AQ61: =Índice!$G$52*'Datos Generales'!AQ57 -> 276,717
B62: ='Datos Generales'!B58 -> 5.15.33.00 Deudores Relacionados | C62: =Índice!$G$52*'Datos Generales'!C58 -> 6,178 | D62: =Índice!$G$52*'Datos Generales'!D58 -> 2,421 | E62: =Índice!$G$52*'Datos Generales'!E58 -> 69,939 | F62: =Índice!$G$52*'Datos Generales'!F58 -> 121,571 | G62: =Índice!$G$52*'Datos Generales'!G58 -> 92 | H62: =Índice!$G$52*'Datos Generales'!H58 -> 134,515 | I62: =Índice!$G$52*'Datos Generales'!I58 -> 21,481 | J62: =Índice!$G$52*'Datos Generales'!J58 -> 1,764 | K62: =Índice!$G$52*'Datos Generales'!K58 -> 12,593 | L62: =Índice!$G$52*'Datos Generales'!L58 -> 0 | M62: =Índice!$G$52*'Datos Generales'!M58 -> 35,485 | N62: =Índice!$G$52*'Datos Generales'!N58 -> 0 | O62: =Índice!$G$52*'Datos Generales'!O58 -> 0 | P62: =Índice!$G$52*'Datos Generales'!P58 -> 23,060 | Q62: =Índice!$G$52*'Datos Generales'!Q58 -> 421,064 | R62: =Índice!$G$52*'Datos Generales'!R58 -> 0 | S62: =Índice!$G$52*'Datos Generales'!S58 -> 107,847 | T62: =Índice!$G$52*'Datos Generales'!T58 -> 0 | U62: =Índice!$G$52*'Datos Generales'!U58 -> 1,646 | V62: =Índice!$G$52*'Datos Generales'!V58 -> 1,049 | W62: =Índice!$G$52*'Datos Generales'!W58 -> 0 | X62: =Índice!$G$52*'Datos Generales'!X58 -> 3,738 | Y62: =Índice!$G$52*'Datos Generales'!Y58 -> 0 | Z62: =Índice!$G$52*'Datos Generales'!Z58 -> 13,477 | AA62: =Índice!$G$52*'Datos Generales'!AA58 -> 0 | AB62: =Índice!$G$52*'Datos Generales'!AB58 -> 0 | AC62: =Índice!$G$52*'Datos Generales'!AC58 -> 2,479 | AD62: =Índice!$G$52*'Datos Generales'!AD58 -> 1,292 | AE62: =Índice!$G$52*'Datos Generales'!AE58 -> 0 | AF62: =Índice!$G$52*'Datos Generales'!AF58 -> 773 | AG62: =Índice!$G$52*'Datos Generales'!AG58 -> 256,649 | AH62: =Índice!$G$52*'Datos Generales'!AH58 -> 11,197 | AI62: =Índice!$G$52*'Datos Generales'!AI58 -> 6,982 | AJ62: =Índice!$G$52*'Datos Generales'!AJ58 -> 0 | AK62: =Índice!$G$52*'Datos Generales'!AK58 -> 0 | AL62: =Índice!$G$52*'Datos Generales'!AL58 -> 0 | AM62: =Índice!$G$52*'Datos Generales'!AM58 -> 0 | AN62: =Índice!$G$52*'Datos Generales'!AN58 -> 0 | AO62: =Índice!$G$52*'Datos Generales'!AO58 -> 0 | AP62: =Índice!$G$52*'Datos Generales'!AP58 -> 0 | AQ62: =Índice!$G$52*'Datos Generales'!AQ58 -> 1,257,294
B63: ='Datos Generales'!B59 -> 5.15.34.00 Gastos Anticipados | C63: =Índice!$G$52*'Datos Generales'!C59 -> 0 | D63: =Índice!$G$52*'Datos Generales'!D59 -> 384 | E63: =Índice!$G$52*'Datos Generales'!E59 -> 57,084 | F63: =Índice!$G$52*'Datos Generales'!F59 -> 8,202 | G63: =Índice!$G$52*'Datos Generales'!G59 -> 0 | H63: =Índice!$G$52*'Datos Generales'!H59 -> 0 | I63: =Índice!$G$52*'Datos Generales'!I59 -> 224 | J63: =Índice!$G$52*'Datos Generales'!J59 -> 1,736 | K63: =Índice!$G$52*'Datos Generales'!K59 -> 5,698 | L63: =Índice!$G$52*'Datos Generales'!L59 -> 20,802 | M63: =Índice!$G$52*'Datos Generales'!M59 -> 0 | N63: =Índice!$G$52*'Datos Generales'!N59 -> 2,670 | O63: =Índice!$G$52*'Datos Generales'!O59 -> 1,694 | P63: =Índice!$G$52*'Datos Generales'!P59 -> 0 | Q63: =Índice!$G$52*'Datos Generales'!Q59 -> 31,765 | R63: =Índice!$G$52*'Datos Generales'!R59 -> 7 | S63: =Índice!$G$52*'Datos Generales'!S59 -> 100,896 | T63: =Índice!$G$52*'Datos Generales'!T59 -> 0 | U63: =Índice!$G$52*'Datos Generales'!U59 -> 14,483 | V63: =Índice!$G$52*'Datos Generales'!V59 -> 0 | W63: =Índice!$G$52*'Datos Generales'!W59 -> 1,221 | X63: =Índice!$G$52*'Datos Generales'!X59 -> 5,411 | Y63: =Índice!$G$52*'Datos Generales'!Y59 -> 1,078 | Z63: =Índice!$G$52*'Datos Generales'!Z59 -> 6,615 | AA63: =Índice!$G$52*'Datos Generales'!AA59 -> 0 | AB63: =Índice!$G$52*'Datos Generales'!AB59 -> 0 | AC63: =Índice!$G$52*'Datos Generales'!AC59 -> 0 | AD63: =Índice!$G$52*'Datos Generales'!AD59 -> 0 | AE63: =Índice!$G$52*'Datos Generales'!AE59 -> 0 | AF63: =Índice!$G$52*'Datos Generales'!AF59 -> 0 | AG63: =Índice!$G$52*'Datos Generales'!AG59 -> 22,166 | AH63: =Índice!$G$52*'Datos Generales'!AH59 -> 2,256 | AI63: =Índice!$G$52*'Datos Generales'!AI59 -> 955 | AJ63: =Índice!$G$52*'Datos Generales'!AJ59 -> 3,946 | AK63: =Índice!$G$52*'Datos Generales'!AK59 -> 0 | AL63: =Índice!$G$52*'Datos Generales'!AL59 -> 0 | AM63: =Índice!$G$52*'Datos Generales'!AM59 -> 0 | AN63: =Índice!$G$52*'Datos Generales'!AN59 -> 0 | AO63: =Índice!$G$52*'Datos Generales'!AO59 -> 0 | AP63: =Índice!$G$52*'Datos Generales'!AP59 -> 0 | AQ63: =Índice!$G$52*'Datos Generales'!AQ59 -> 289,293
B64: ='Datos Generales'!B60 -> 5.15.35.00 Otros Activos | C64: =Índice!$G$52*'Datos Generales'!C60 -> 24,300 | D64: =Índice!$G$52*'Datos Generales'!D60 -> 28,391 | E64: =Índice!$G$52*'Datos Generales'!E60 -> 193,487 | F64: =Índice!$G$52*'Datos Generales'!F60 -> 133,433 | G64: =Índice!$G$52*'Datos Generales'!G60 -> 3,425 | H64: =Índice!$G$52*'Datos Generales'!H60 -> 60,884 | I64: =Índice!$G$52*'Datos Generales'!I60 -> 167,882 | J64: =Índice!$G$52*'Datos Generales'!J60 -> 13,318 | K64: =Índice!$G$52*'Datos Generales'!K60 -> 147,236 | L64: =Índice!$G$52*'Datos Generales'!L60 -> 17,371 | M64: =Índice!$G$52*'Datos Generales'!M60 -> 91,166 | N64: =Índice!$G$52*'Datos Generales'!N60 -> 54,916 | O64: =Índice!$G$52*'Datos Generales'!O60 -> 37,857 | P64: =Índice!$G$52*'Datos Generales'!P60 -> 2,195 | Q64: =Índice!$G$52*'Datos Generales'!Q60 -> 206,440 | R64: =Índice!$G$52*'Datos Generales'!R60 -> 3 | S64: =Índice!$G$52*'Datos Generales'!S60 -> 414,273 | T64: =Índice!$G$52*'Datos Generales'!T60 -> 0 | U64: =Índice!$G$52*'Datos Generales'!U60 -> 331,576 | V64: =Índice!$G$52*'Datos Generales'!V60 -> 40 | W64: =Índice!$G$52*'Datos Generales'!W60 -> 23,424 | X64: =Índice!$G$52*'Datos Generales'!X60 -> 300 | Y64: =Índice!$G$52*'Datos Generales'!Y60 -> 10,822 | Z64: =Índice!$G$52*'Datos Generales'!Z60 -> 7,496 | AA64: =Índice!$G$52*'Datos Generales'!AA60 -> 55,316 | AB64: =Índice!$G$52*'Datos Generales'!AB60 -> 3 | AC64: =Índice!$G$52*'Datos Generales'!AC60 -> 18,814 | AD64: =Índice!$G$52*'Datos Generales'!AD60 -> 67,719 | AE64: =Índice!$G$52*'Datos Generales'!AE60 -> 21,875 | AF64: =Índice!$G$52*'Datos Generales'!AF60 -> 20,057 | AG64: =Índice!$G$52*'Datos Generales'!AG60 -> 255,444 | AH64: =Índice!$G$52*'Datos Generales'!AH60 -> 14,334 | AI64: =Índice!$G$52*'Datos Generales'!AI60 -> 5,853 | AJ64: =Índice!$G$52*'Datos Generales'!AJ60 -> 34,956 | AK64: =Índice!$G$52*'Datos Generales'!AK60 -> 0 | AL64: =Índice!$G$52*'Datos Generales'!AL60 -> 0 | AM64: =Índice!$G$52*'Datos Generales'!AM60 -> 0 | AN64: =Índice!$G$52*'Datos Generales'!AN60 -> 0 | AO64: =Índice!$G$52*'Datos Generales'!AO60 -> 0 | AP64: =Índice!$G$52*'Datos Generales'!AP60 -> 0 | AQ64: =Índice!$G$52*'Datos Generales'!AQ60 -> 2,464,605
B66: Mostrar | C66: =INDEX(Benchmark!$D$9:$D$48,COLUMNS(Benchmark!$D$9:D48),) -> 1 | D66: =INDEX(Benchmark!$D$9:$D$48,COLUMNS(Benchmark!$D$9:E48),) -> 1 | E66: =INDEX(Benchmark!$D$9:$D$48,COLUMNS(Benchmark!$D$9:F48),) -> 1 | F66: =INDEX(Benchmark!$D$9:$D$48,COLUMNS(Benchmark!$D$9:G48),) -> 1 | G66: =INDEX(Benchmark!$D$9:$D$48,COLUMNS(Benchmark!$D$9:H48),) -> 1 | H66: =INDEX(Benchmark!$D$9:$D$48,COLUMNS(Benchmark!$D$9:I48),) -> 1 | I66: =INDEX(Benchmark!$D$9:$D$48,COLUMNS(Benchmark!$D$9:J48),) -> 1 | J66: =INDEX(Benchmark!$D$9:$D$48,COLUMNS(Benchmark!$D$9:K48),) -> 1 | K66: =INDEX(Benchmark!$D$9:$D$48,COLUMNS(Benchmark!$D$9:L48),) -> 1 | L66: =INDEX(Benchmark!$D$9:$D$48,COLUMNS(Benchmark!$D$9:M48),) -> 1 | M66: =INDEX(Benchmark!$D$9:$D$48,COLUMNS(Benchmark!$D$9:N48),) -> 1 | N66: =INDEX(Benchmark!$D$9:$D$48,COLUMNS(Benchmark!$D$9:O48),) -> 1 | O66: =INDEX(Benchmark!$D$9:$D$48,COLUMNS(Benchmark!$D$9:P48),) -> 1 | P66: =INDEX(Benchmark!$D$9:$D$48,COLUMNS(Benchmark!$D$9:Q48),) -> 1 | Q66: =INDEX(Benchmark!$D$9:$D$48,COLUMNS(Benchmark!$D$9:R48),) -> 1 | R66: =INDEX(Benchmark!$D$9:$D$48,COLUMNS(Benchmark!$D$9:S48),) -> 1 | S66: =INDEX(Benchmark!$D$9:$D$48,COLUMNS(Benchmark!$D$9:T48),) -> 1 | T66: =INDEX(Benchmark!$D$9:$D$48,COLUMNS(Benchmark!$D$9:U48),) -> 1 | U66: =INDEX(Benchmark!$D$9:$D$48,COLUMNS(Benchmark!$D$9:V48),) -> 1 | V66: =INDEX(Benchmark!$D$9:$D$48,COLUMNS(Benchmark!$D$9:W48),) -> 1 | W66: =INDEX(Benchmark!$D$9:$D$48,COLUMNS(Benchmark!$D$9:X48),) -> 1 | X66: =INDEX(Benchmark!$D$9:$D$48,COLUMNS(Benchmark!$D$9:Y48),) -> 1 | Y66: =INDEX(Benchmark!$D$9:$D$48,COLUMNS(Benchmark!$D$9:Z48),) -> 1 | Z66: =INDEX(Benchmark!$D$9:$D$48,COLUMNS(Benchmark!$D$9:AA48),) -> 1 | AA66: =INDEX(Benchmark!$D$9:$D$48,COLUMNS(Benchmark!$D$9:AB48),) -> 1 | AB66: =INDEX(Benchmark!$D$9:$D$48,COLUMNS(Benchmark!$D$9:AC48),) -> 1 | AC66: =INDEX(Benchmark!$D$9:$D$48,COLUMNS(Benchmark!$D$9:AD48),) -> 1 | AD66: =INDEX(Benchmark!$D$9:$D$48,COLUMNS(Benchmark!$D$9:AE48),) -> 1 | AE66: =INDEX(Benchmark!$D$9:$D$48,COLUMNS(Benchmark!$D$9:AF48),) -> 1 | AF66: =INDEX(Benchmark!$D$9:$D$48,COLUMNS(Benchmark!$D$9:AG48),) -> 1 | AG66: =INDEX(Benchmark!$D$9:$D$48,COLUMNS(Benchmark!$D$9:AH48),) -> 1 | AH66: =INDEX(Benchmark!$D$9:$D$48,COLUMNS(Benchmark!$D$9:AI48),) -> 1 | AI66: =INDEX(Benchmark!$D$9:$D$48,COLUMNS(Benchmark!$D$9:AJ48),) -> 1 | AJ66: =INDEX(Benchmark!$D$9:$D$48,COLUMNS(Benchmark!$D$9:AK48),) -> 1 | AK66: =INDEX(Benchmark!$D$9:$D$48,COLUMNS(Benchmark!$D$9:AL48),) -> 0 | AL66: =INDEX(Benchmark!$D$9:$D$48,COLUMNS(Benchmark!$D$9:AM48),) -> 0 | AM66: =INDEX(Benchmark!$D$9:$D$48,COLUMNS(Benchmark!$D$9:AN48),) -> 0 | AN66: =INDEX(Benchmark!$D$9:$D$48,COLUMNS(Benchmark!$D$9:AO48),) -> 0 | AO66: =INDEX(Benchmark!$D$9:$D$48,COLUMNS(Benchmark!$D$9:AP48),) -> 0 | AP66: =INDEX(Benchmark!$D$9:$D$48,COLUMNS(Benchmark!$D$9:AQ48),) -> 0
B68: Ranking | C68: =IFERROR(RANK(C70,$C$70:$AP$70,0),"") -> 30 | D68: =IFERROR(RANK(D70,$C$70:$AP$70,0),"") -> 19 | E68: 2 | F68: 8 | G68: 27 | H68: 9 | I68: 4 | J68: 23 | K68: 12 | L68: 24 | M68: 13 | N68: 14 | O68: 18 | P68: 25 | Q68: 6 | R68: 33 | S68: 5 | T68: 34 | U68: 7 | V68: 28 | W68: 17 | X68: 29 | Y68: 22 | Z68: 11 | AA68: 16 | AB68: 32 | AC68: 26 | AD68: 3 | AE68: 20 | AF68: 31 | AG68: 1 | AH68: 15 | AI68: 21 | AJ68: 10
C69: =C11 -> Assurant Chile | D69: =D11 -> AVLA Crédito | E69: BCI Seguros | F69: BNP Paribas Cardif | G69: Cesce Chile | H69: Chilena Consolidada | I69: Chubb Generales | J69: Coface Chile | K69: Consorcio Nacional | L69: Contempora | M69: Continental Crédito | N69: Continental Generales | O69: FID Chile | P69: HDI Gar. y Cré. | Q69: HDI Seguros | R69: Huelen | S69: Liberty Seguros | T69: M. de Carabineros | U69: Mapfre | V69: MetLife Generales | W69: Orion Seguros | X69: Orsan Crédito | Y69: Porvenir | Z69: Reale Chile | AA69: Renta Nacional | AB69: SegChile | AC69: Solunión Chile | AD69: Southbridge | AE69: Starr International | AF69: Suaval | AG69: Suramericana | AH69: Unnio | AI69: Zenit Seguros | AJ69: Zurich Santander
C70: =IFERROR(IF(C66=1,VLOOKUP($C$99,$B$12:$AQ$64,C73+1,FALSE)+C71/1000000,""),"") -> 404,588 | D70: 1,915,646 | E70: 22,725,751 | F70: 12,319,421 | G70: 506,460 | H70: 8,847,472 | I70: 16,859,175 | J70: 1,100,694 | K70: 4,054,994 | L70: 815,220 | M70: 3,643,627 | N70: 3,630,305 | O70: 2,436,560 | P70: 806,227 | Q70: 15,862,464 | R70: 118,575 | S70: 16,516,469 | T70: 0 | U70: 15,394,125 | V70: 460,068 | W70: 3,039,719 | X70: 444,922 | Y70: 1,335,176 | Z70: 4,724,367 | AA70: 3,094,407 | AB70: 241,387 | AC70: 671,451 | AD70: 20,791,013 | AE70: 1,858,509 | AF70: 383,103 | AG70: 24,815,597 | AH70: 3,485,287 | AI70: 1,727,778 | AJ70: 6,677,103
C71: 40 | D71: =C71-1 -> 39 | E71: =D71-1 -> 38 | F71: 37 | G71: 36 | H71: 35 | I71: 34 | J71: 33 | K71: 32 | L71: 31 | M71: 30 | N71: 29 | O71: 28 | P71: 27 | Q71: 26 | R71: 25 | S71: 24 | T71: 23 | U71: 22 | V71: 21 | W71: 20 | X71: 19 | Y71: 18 | Z71: 17 | AA71: 16 | AB71: 15 | AC71: 14 | AD71: 13 | AE71: 12 | AF71: 11 | AG71: 10 | AH71: 9 | AI71: 8 | AJ71: 7 | AK71: 6 | AL71: 5 | AM71: 4 | AN71: 3 | AO71: 2 | AP71: 1
B73: Ranking Ordenado | C73: 1 | D73: 2 | E73: 3 | F73: 4 | G73: 5 | H73: 6 | I73: 7 | J73: 8 | K73: 9 | L73: 10 | M73: 11 | N73: 12 | O73: 13 | P73: 14 | Q73: 15 | R73: 16 | S73: 17 | T73: 18 | U73: 19 | V73: 20 | W73: 21 | X73: 22 | Y73: 23 | Z73: 24 | AA73: 25 | AB73: 26 | AC73: 27 | AD73: 28 | AE73: 29 | AF73: 30 | AG73: 31 | AH73: 32 | AI73: 33 | AJ73: 34 | AK73: 35 | AL73: 36 | AM73: 37 | AN73: 38 | AO73: 39 | AP73: 40
C74: =IFERROR(HLOOKUP(C73,$C$68:$AP$69,2,FALSE),"") -> Suramericana | D74: =IFERROR(HLOOKUP(D73,$C$68:$AP$69,2,FALSE),"") -> BCI Seguros | E74: =IFERROR(HLOOKUP(E73,$C$68:$AP$69,2,FALSE),"") -> Southbridge | F74: Chubb Generales | G74: Liberty Seguros | H74: HDI Seguros | I74: Mapfre | J74: BNP Paribas Cardif | K74: Chilena Consolidada | L74: Zurich Santander | M74: Reale Chile | N74: Consorcio Nacional | O74: Continental Crédito | P74: Continental Generales | Q74: Unnio | R74: Renta Nacional | S74: Orion Seguros | T74: FID Chile | U74: AVLA Crédito | V74: Starr International | W74: Zenit Seguros | X74: Porvenir | Y74: Coface Chile | Z74: Contempora | AA74: HDI Gar. y Cré. | AB74: Solunión Chile | AC74: Cesce Chile | AD74: MetLife Generales | AE74: Orsan Crédito | AF74: Assurant Chile | AG74: Suaval | AH74: SegChile | AI74: Huelen | AJ74: M. de Carabineros
C75: =IFERROR((HLOOKUP(C73,$C$68:$AP$70,3,FALSE)-HLOOKUP(C73,$C$68:$AP$71,4,FALSE)/1000000)/$C$93,"") -> 24,816 | D75: =IFERROR((HLOOKUP(D73,$C$68:$AP$70,3,FALSE)-HLOOKUP(D73,$C$68:$AP$71,4,FALSE)/1000000)/$C$93,"") -> 22,726 | E75: 20,791 | F75: 16,859 | G75: 16,516 | H75: =IFERROR((HLOOKUP(H73,$C$68:$AP$70,3,FALSE)-HLOOKUP(H73,$C$68:$AP$71,4,FALSE)/1000000)/$C$93,"") -> 15,862 | I75: 15,394 | J75: 12,319 | K75: 8,847 | L75: 6,677 | M75: 4,724 | N75: 4,055 | O75: 3,644 | P75: 3,630 | Q75: 3,485 | R75: 3,094 | S75: 3,040 | T75: 2,437 | U75: 1,916 | V75: 1,859 | W75: 1,728 | X75: 1,335 | Y75: 1,101 | Z75: 815 | AA75: 806 | AB75: 671 | AC75: 506 | AD75: 460 | AE75: 445 | AF75: 405 | AG75: 383 | AH75: 241 | AI75: 119 | AJ75: 0
C76: =IF(ISNUMBER(C75),CONCATENATE(C74," - ",C73),"") -> Suramericana - 1 | D76: =IF(ISNUMBER(D75),CONCATENATE(D74," - ",D73),"") -> BCI Seguros - 2 | E76: Southbridge - 3 | F76: Chubb Generales - 4 | G76: Liberty Seguros - 5 | H76: HDI Seguros - 6 | I76: Mapfre - 7 | J76: BNP Paribas Cardif - 8 | K76: Chilena Consolidada - 9 | L76: Zurich Santander - 10 | M76: Reale Chile - 11 | N76: Consorcio Nacional - 12 | O76: Continental Crédito - 13 | P76: Continental Generales - 14 | Q76: Unnio - 15 | R76: Renta Nacional - 16 | S76: Orion Seguros - 17 | T76: FID Chile - 18 | U76: AVLA Crédito - 19 | V76: Starr International - 20 | W76: Zenit Seguros - 21 | X76: Porvenir - 22 | Y76: Coface Chile - 23 | Z76: Contempora - 24 | AA76: HDI Gar. y Cré. - 25 | AB76: Solunión Chile - 26 | AC76: Cesce Chile - 27 | AD76: MetLife Generales - 28 | AE76: Orsan Crédito - 29 | AF76: Assurant Chile - 30 | AG76: Suaval - 31 | AH76: SegChile - 32 | AI76: Huelen - 33 | AJ76: M. de Carabineros - 34
B78: A Destacar | C78: =IF($C$102=C74,C75,"") -> 
B80: Total Activo | C80: =HLOOKUP(C74,$C$11:$AP$64,2,FALSE) -> 24,815,597 | D80: 22,725,751 | E80: 20,791,013 | F80: 16,859,175 | G80: 16,516,469 | H80: 15,862,464 | I80: 15,394,125 | J80: 12,319,421 | K80: 8,847,472 | L80: 6,677,103 | M80: 4,724,367 | N80: 4,054,994 | O80: 3,643,627 | P80: 3,630,305 | Q80: 3,485,287 | R80: 3,094,407 | S80: 3,039,719 | T80: 2,436,560 | U80: 1,915,646 | V80: 1,858,509 | W80: 1,727,778 | X80: 1,335,176 | Y80: 1,100,694 | Z80: 815,220 | AA80: 806,227 | AB80: 671,451 | AC80: 506,460 | AD80: 460,068 | AE80: 444,922 | AF80: 404,588 | AG80: 383,103 | AH80: 241,387 | AI80: 118,575 | AJ80: 0 | AK80: 0 | AL80: 0 | AM80: 0 | AN80: 0 | AO80: 0 | AP80: 0
B81: Total Inversiones Financieras | C81: =HLOOKUP(C74,$C$11:$AP$64,3,FALSE) -> 5,605,176 | D81: 8,810,288 | E81: 2,171,994 | F81: 4,871,276 | G81: 7,112,781 | H81: 5,837,148 | I81: 3,522,234 | J81: 10,523,505 | K81: 3,071,461 | L81: 2,727,905 | M81: 835,337 | N81: 1,408,464 | O81: 2,112,963 | P81: 495,002 | Q81: 393,989 | R81: 688,583 | S81: 731,250 | T81: 202,396 | U81: 478,480 | V81: 362,669 | W81: 816,515 | X81: 414,445 | Y81: 454,829 | Z81: 163,098 | AA81: 362,247 | AB81: 123,966 | AC81: 147,026 | AD81: 330,620 | AE81: 132,699 | AF81: 242,996 | AG81: 158,710 | AH81: 203,059 | AI81: 112,475 | AJ81: 0 | AK81: 0 | AL81: 0 | AM81: 0 | AN81: 0 | AO81: 0 | AP81: 0
B82: Total Inversiones Inmobiliarias | C82: =HLOOKUP(C74,$C$11:$AP$64,14,FALSE) -> 232,993 | D82: 71,846 | E82: 26,963 | F82: 81,515 | G82: 308,146 | H82: 252,116 | I82: 51,256 | J82: 250,730 | K82: 11,035 | L82: 79,299 | M82: 31,683 | N82: 127,230 | O82: 172,499 | P82: 31,550 | Q82: 1,965 | R82: 76,135 | S82: 1,256 | T82: 9,783 | U82: 139,109 | V82: 10,742 | W82: 17 | X82: 467 | Y82: 3,854 | Z82: 762 | AA82: 26 | AB82: 1,454 | AC82: 14,574 | AD82: 0 | AE82: 32,214 | AF82: 0 | AG82: 2,201 | AH82: 320 | AI82: 612 | AJ82: 0 | AK82: 0 | AL82: 0 | AM82: 0 | AN82: 0 | AO82: 0 | AP82: 0
B83: Activos No Corrientes Mantenidos Para La Venta | C83: =HLOOKUP(C74,$C$11:$AP$64,20,FALSE) -> 0 | D83: 0 | E83: 0 | F83: 0 | G83: 0 | H83: 0 | I83: 0 | J83: 0 | K83: 0 | L83: 0 | M83: 0 | N83: 0 | O83: 0 | P83: 0 | Q83: 0 | R83: 0 | S83: 0 | T83: 0 | U83: 0 | V83: 0 | W83: 0 | X83: 0 | Y83: 0 | Z83: 0 | AA83: 0 | AB83: 0 | AC83: 0 | AD83: 0 | AE83: 0 | AF83: 0 | AG83: 0 | AH83: 0 | AI83: 0 | AJ83: 0 | AK83: 0 | AL83: 0 | AM83: 0 | AN83: 0 | AO83: 0 | AP83: 0
B84: Total Cuentas De Seguros | C84: =HLOOKUP(C74,$C$11:$AP$64,21,FALSE) -> 17,988,005 | D84: 13,008,583 | E84: 18,311,423 | F84: 8,809,751 | G84: 7,825,122 | H84: 8,717,914 | I84: 11,179,396 | J84: 676,154 | K84: 5,305,819 | L84: 3,527,158 | M84: 3,397,233 | N84: 2,242,728 | O84: 1,095,579 | P84: 3,006,067 | Q84: 2,944,408 | R84: 2,238,275 | S84: 2,262,080 | T84: 2,034,819 | U84: 1,232,404 | V84: 1,435,887 | W84: 875,771 | X84: 891,771 | Y84: 582,488 | Z84: 562,268 | AA84: 386,556 | AB84: 505,017 | AC84: 300,999 | AD84: 44,735 | AE84: 222,251 | AF84: 64,388 | AG84: 169,930 | AH84: 32,854 | AI84: 4,718 | AJ84: 0 | AK84: 0 | AL84: 0 | AM84: 0 | AN84: 0 | AO84: 0 | AP84: 0
B85: Otros Activos | C85: =HLOOKUP(C74,$C$11:$AP$64,43,FALSE) -> 200,841 | D85: 0 | E85: 503 | F85: 2,637,562 | G85: 11,871 | H85: 9,846 | I85: 5,404 | J85: 423,491 | K85: 1,549 | L85: 99,645 | M85: 42,529 | N85: 9,659 | O85: 0 | P85: 0 | Q85: 3,287 | R85: 7,704 | S85: 1,356 | T85: 57,926 | U85: 0 | V85: 0 | W85: 0 | X85: 424 | Y85: 0 | Z85: 7,510 | AA85: 0 | AB85: 1,086 | AC85: 583 | AD85: 0 | AE85: 11,840 | AF85: 0 | AG85: 4,967 | AH85: 5 | AI85: 0 | AJ85: 0 | AK85: 0 | AL85: 0 | AM85: 0 | AN85: 0 | AO85: 0 | AP85: 0
B87: Inversiones Financieras | C87: =IFERROR(C81/C$80,"") -> 22.6% | D87: =IFERROR(D81/D$80,"") -> 38.8% | E87: 10.4% | F87: 28.9% | G87: 43.1% | H87: 36.8% | I87: 22.9% | J87: 85.4% | K87: 34.7% | L87: 40.9% | M87: 17.7% | N87: 34.7% | O87: 58.0% | P87: 13.6% | Q87: 11.3% | R87: 22.3% | S87: 24.1% | T87: 8.3% | U87: 25.0% | V87: 19.5% | W87: 47.3% | X87: 31.0% | Y87: 41.3% | Z87: 20.0% | AA87: 44.9% | AB87: 18.5% | AC87: 29.0% | AD87: 71.9% | AE87: 29.8% | AF87: 60.1% | AG87: 41.4% | AH87: 84.1% | AI87: 94.9%
B88: Inversiones Inmobiliarias | C88: =IFERROR(C82/C$80,"") -> 0.9% | D88: =IFERROR(D82/D$80,"") -> 0.3% | E88: 0.1% | F88: 0.5% | G88: 1.9% | H88: 1.6% | I88: 0.3% | J88: 2.0% | K88: 0.1% | L88: 1.2% | M88: 0.7% | N88: 3.1% | O88: 4.7% | P88: 0.9% | Q88: 0.1% | R88: 2.5% | S88: 0.0% | T88: 0.4% | U88: 7.3% | V88: 0.6% | W88: 0.0% | X88: 0.0% | Y88: 0.4% | Z88: 0.1% | AA88: 0.0% | AB88: 0.2% | AC88: 2.9% | AD88: 0.0% | AE88: 7.2% | AF88: 0.0% | AG88: 0.6% | AH88: 0.1% | AI88: 0.5%
B89: Activos No Corrientes Mantenidos para la Venta | C89: =IFERROR(C83/C$80,"") -> 0.0% | D89: =IFERROR(D83/D$80,"") -> 0.0% | E89: 0.0% | F89: 0.0% | G89: 0.0% | H89: 0.0% | I89: 0.0% | J89: 0.0% | K89: 0.0% | L89: 0.0% | M89: 0.0% | N89: 0.0% | O89: 0.0% | P89: 0.0% | Q89: 0.0% | R89: 0.0% | S89: 0.0% | T89: 0.0% | U89: 0.0% | V89: 0.0% | W89: 0.0% | X89: 0.0% | Y89: 0.0% | Z89: 0.0% | AA89: 0.0% | AB89: 0.0% | AC89: 0.0% | AD89: 0.0% | AE89: 0.0% | AF89: 0.0% | AG89: 0.0% | AH89: 0.0% | AI89: 0.0%
B90: Cuentas de Seguros | C90: =IFERROR(C84/C$80,"") -> 72.5% | D90: =IFERROR(D84/D$80,"") -> 57.2% | E90: 88.1% | F90: 52.3% | G90: 47.4% | H90: 55.0% | I90: 72.6% | J90: 5.5% | K90: 60.0% | L90: 52.8% | M90: 71.9% | N90: 55.3% | O90: 30.1% | P90: 82.8% | Q90: 84.5% | R90: 72.3% | S90: 74.4% | T90: 83.5% | U90: 64.3% | V90: 77.3% | W90: 50.7% | X90: 66.8% | Y90: 52.9% | Z90: 69.0% | AA90: 47.9% | AB90: 75.2% | AC90: 59.4% | AD90: 9.7% | AE90: 50.0% | AF90: 15.9% | AG90: 44.4% | AH90: 13.6% | AI90: 4.0%
B91: Otros Activos | C91: =IFERROR(C85/C$80,"") -> 0.8% | D91: =IFERROR(D85/D$80,"") -> 0.0% | E91: 0.0% | F91: 15.6% | G91: 0.1% | H91: 0.1% | I91: 0.0% | J91: 3.4% | K91: 0.0% | L91: 1.5% | M91: 0.9% | N91: 0.2% | O91: 0.0% | P91: 0.0% | Q91: 0.1% | R91: 0.2% | S91: 0.0% | T91: 2.4% | U91: 0.0% | V91: 0.0% | W91: 0.0% | X91: 0.0% | Y91: 0.0% | Z91: 0.9% | AA91: 0.0% | AB91: 0.2% | AC91: 0.1% | AD91: 0.0% | AE91: 2.7% | AF91: 0.0% | AG91: 1.3% | AH91: 0.0% | AI91: 0.0%
B93: Unidades Gráfico | C93: =IF(MAX(C70:AP70)<100000,1,IF(AND(MAX(C70:AP70)>=100000,MAX(C70:AP70)<100000000),1000,IF(MAX(C70:AP70)>=100000000,1000000))) -> 1,000 | D93: 1,000,000 | E93: 1,000 | F93: 1 | G93: =INDEX(D94:F96,MATCH(Índice!$H$52,C94:C96,0),MATCH(C93,D93:F93,0)) -> Miles de UF
C94: =Índice!H53 -> Cifras en UF al 31.03.2021 | D94: Millones de UF | E94: Miles de UF | F94: UF
C95: =Índice!H54 -> Cifras en M$ al 31.03.2021 | D95: Miles de Millones de Pesos | E95: Millones de Pesos | F95: Miles de Pesos
C96: =Índice!H55 -> Cifras en US$ al 31.03.2021 | D96: Millones de USD | E96: Miles de USD | F96: USD
C98: Seleccionar Cuenta a Graficar
C99: 5.10.00.00 Total Activo
C101: Compañía a Destacar

Sheet Gen. Pasivos
C2: Volver al Índice
B8: Pasivos en Seguros Generales
B9: =Índice!H52 -> Cifras en UF al 31.03.2021
C11: =IF('Datos Generales'!C7="","",'Datos Generales'!C7) -> Assurant Chile | D11: =IF('Datos Generales'!D7="","",'Datos Generales'!D7) -> AVLA Crédito | E11: =IF('Datos Generales'!E7="","",'Datos Generales'!E7) -> BCI Seguros | F11: =IF('Datos Generales'!F7="","",'Datos Generales'!F7) -> BNP Paribas Cardif | G11: =IF('Datos Generales'!G7="","",'Datos Generales'!G7) -> Cesce Chile | H11: =IF('Datos Generales'!H7="","",'Datos Generales'!H7) -> Chilena Consolidada | I11: =IF('Datos Generales'!I7="","",'Datos Generales'!I7) -> Chubb Generales | J11: =IF('Datos Generales'!J7="","",'Datos Generales'!J7) -> Coface Chile | K11: =IF('Datos Generales'!K7="","",'Datos Generales'!K7) -> Consorcio Nacional | L11: =IF('Datos Generales'!L7="","",'Datos Generales'!L7) -> Contempora | M11: =IF('Datos Generales'!M7="","",'Datos Generales'!M7) -> Continental Crédito | N11: =IF('Datos Generales'!N7="","",'Datos Generales'!N7) -> Continental Generales | O11: =IF('Datos Generales'!O7="","",'Datos Generales'!O7) -> FID Chile | P11: =IF('Datos Generales'!P7="","",'Datos Generales'!P7) -> HDI Gar. y Cré. | Q11: =IF('Datos Generales'!Q7="","",'Datos Generales'!Q7) -> HDI Seguros | R11: =IF('Datos Generales'!R7="","",'Datos Generales'!R7) -> Huelen | S11: =IF('Datos Generales'!S7="","",'Datos Generales'!S7) -> Liberty Seguros | T11: =IF('Datos Generales'!T7="","",'Datos Generales'!T7) -> M. de Carabineros | U11: =IF('Datos Generales'!U7="","",'Datos Generales'!U7) -> Mapfre | V11: =IF('Datos Generales'!V7="","",'Datos Generales'!V7) -> MetLife Generales | W11: =IF('Datos Generales'!W7="","",'Datos Generales'!W7) -> Orion Seguros | X11: =IF('Datos Generales'!X7="","",'Datos Generales'!X7) -> Orsan Crédito | Y11: =IF('Datos Generales'!Y7="","",'Datos Generales'!Y7) -> Porvenir | Z11: =IF('Datos Generales'!Z7="","",'Datos Generales'!Z7) -> Reale Chile | AA11: =IF('Datos Generales'!AA7="","",'Datos Generales'!AA7) -> Renta Nacional | AB11: =IF('Datos Generales'!AB7="","",'Datos Generales'!AB7) -> SegChile | AC11: =IF('Datos Generales'!AC7="","",'Datos Generales'!AC7) -> Solunión Chile | AD11: =IF('Datos Generales'!AD7="","",'Datos Generales'!AD7) -> Southbridge | AE11: =IF('Datos Generales'!AE7="","",'Datos Generales'!AE7) -> Starr International | AF11: =IF('Datos Generales'!AF7="","",'Datos Generales'!AF7) -> Suaval | AG11: =IF('Datos Generales'!AG7="","",'Datos Generales'!AG7) -> Suramericana | AH11: =IF('Datos Generales'!AH7="","",'Datos Generales'!AH7) -> Unnio | AI11: =IF('Datos Generales'!AI7="","",'Datos Generales'!AI7) -> Zenit Seguros | AJ11: =IF('Datos Generales'!AJ7="","",'Datos Generales'!AJ7) -> Zurich Santander | AK11: =IF('Datos Generales'!AK7="","",'Datos Generales'!AK7) ->  | AL11: =IF('Datos Generales'!AL7="","",'Datos Generales'!AL7) ->  | AM11: =IF('Datos Generales'!AM7="","",'Datos Generales'!AM7) ->  | AN11: =IF('Datos Generales'!AN7="","",'Datos Generales'!AN7) ->  | AO11: =IF('Datos Generales'!AO7="","",'Datos Generales'!AO7) ->  | AP11: =IF('Datos Generales'!AP7="","",'Datos Generales'!AP7) ->  | AQ11: =IF('Datos Generales'!AQ7="","",'Datos Generales'!AQ7) -> Mercado
B12: ='Datos Generales'!B67 -> 5.21.00.00 Total Pasivo | C12: =Índice!$G$52*'Datos Generales'!C67 -> 163,397 | D12: =Índice!$G$52*'Datos Generales'!D67 -> 1,655,449 | E12: =Índice!$G$52*'Datos Generales'!E67 -> 18,626,804 | F12: =Índice!$G$52*'Datos Generales'!F67 -> 5,839,938 | G12: =Índice!$G$52*'Datos Generales'!G67 -> 390,830 | H12: =Índice!$G$52*'Datos Generales'!H67 -> 7,394,685 | I12: =Índice!$G$52*'Datos Generales'!I67 -> 11,326,291 | J12: =Índice!$G$52*'Datos Generales'!J67 -> 776,081 | K12: =Índice!$G$52*'Datos Generales'!K67 -> 2,864,200 | L12: =Índice!$G$52*'Datos Generales'!L67 -> 678,395 | M12: =Índice!$G$52*'Datos Generales'!M67 -> 1,639,930 | N12: =Índice!$G$52*'Datos Generales'!N67 -> 3,354,277 | O12: =Índice!$G$52*'Datos Generales'!O67 -> 2,251,990 | P12: =Índice!$G$52*'Datos Generales'!P67 -> 530,512 | Q12: =Índice!$G$52*'Datos Generales'!Q67 -> 13,124,983 | R12: =Índice!$G$52*'Datos Generales'!R67 -> 8,237 | S12: =Índice!$G$52*'Datos Generales'!S67 -> 12,982,299 | T12: =Índice!$G$52*'Datos Generales'!T67 -> 0 | U12: =Índice!$G$52*'Datos Generales'!U67 -> 13,466,647 | V12: =Índice!$G$52*'Datos Generales'!V67 -> 189,473 | W12: =Índice!$G$52*'Datos Generales'!W67 -> 2,659,724 | X12: =Índice!$G$52*'Datos Generales'!X67 -> 340,026 | Y12: =Índice!$G$52*'Datos Generales'!Y67 -> 1,137,668 | Z12: =Índice!$G$52*'Datos Generales'!Z67 -> 4,095,755 | AA12: =Índice!$G$52*'Datos Generales'!AA67 -> 2,554,817 | AB12: =Índice!$G$52*'Datos Generales'!AB67 -> 94,245 | AC12: =Índice!$G$52*'Datos Generales'!AC67 -> 483,021 | AD12: =Índice!$G$52*'Datos Generales'!AD67 -> 19,571,007 | AE12: =Índice!$G$52*'Datos Generales'!AE67 -> 1,657,164 | AF12: =Índice!$G$52*'Datos Generales'!AF67 -> 269,702 | AG12: =Índice!$G$52*'Datos Generales'!AG67 -> 20,900,154 | AH12: =Índice!$G$52*'Datos Generales'!AH67 -> 3,229,871 | AI12: =Índice!$G$52*'Datos Generales'!AI67 -> 1,297,428 | AJ12: =Índice!$G$52*'Datos Generales'!AJ67 -> 4,761,300 | AK12: =Índice!$G$52*'Datos Generales'!AK67 -> 0 | AL12: =Índice!$G$52*'Datos Generales'!AL67 -> 0 | AM12: =Índice!$G$52*'Datos Generales'!AM67 -> 0 | AN12: =Índice!$G$52*'Datos Generales'!AN67 -> 0 | AO12: =Índice!$G$52*'Datos Generales'!AO67 -> 0 | AP12: =Índice!$G$52*'Datos Generales'!AP67 -> 0 | AQ12: =Índice!$G$52*'Datos Generales'!AQ67 -> 160,316,298
B13: ='Datos Generales'!B68 -> 5.21.10.00 Pasivos Financieros | C13: =Índice!$G$52*'Datos Generales'!C68 -> 0 | D13: =Índice!$G$52*'Datos Generales'!D68 -> 0 | E13: =Índice!$G$52*'Datos Generales'!E68 -> 60,779 | F13: =Índice!$G$52*'Datos Generales'!F68 -> 0 | G13: =Índice!$G$52*'Datos Generales'!G68 -> 0 | H13: =Índice!$G$52*'Datos Generales'!H68 -> 827 | I13: =Índice!$G$52*'Datos Generales'!I68 -> 0 | J13: =Índice!$G$52*'Datos Generales'!J68 -> 0 | K13: =Índice!$G$52*'Datos Generales'!K68 -> 39,881 | L13: =Índice!$G$52*'Datos Generales'!L68 -> 0 | M13: =Índice!$G$52*'Datos Generales'!M68 -> 0 | N13: =Índice!$G$52*'Datos Generales'!N68 -> 0 | O13: =Índice!$G$52*'Datos Generales'!O68 -> 0 | P13: =Índice!$G$52*'Datos Generales'!P68 -> 0 | Q13: =Índice!$G$52*'Datos Generales'!Q68 -> 0 | R13: =Índice!$G$52*'Datos Generales'!R68 -> 0 | S13: =Índice!$G$52*'Datos Generales'!S68 -> 0 | T13: =Índice!$G$52*'Datos Generales'!T68 -> 0 | U13: =Índice!$G$52*'Datos Generales'!U68 -> 0 | V13: =Índice!$G$52*'Datos Generales'!V68 -> 0 | W13: =Índice!$G$52*'Datos Generales'!W68 -> 0 | X13: =Índice!$G$52*'Datos Generales'!X68 -> 13,083 | Y13: =Índice!$G$52*'Datos Generales'!Y68 -> 0 | Z13: =Índice!$G$52*'Datos Generales'!Z68 -> 0 | AA13: =Índice!$G$52*'Datos Generales'!AA68 -> 0 | AB13: =Índice!$G$52*'Datos Generales'!AB68 -> 0 | AC13: =Índice!$G$52*'Datos Generales'!AC68 -> 0 | AD13: =Índice!$G$52*'Datos Generales'!AD68 -> 0 | AE13: =Índice!$G$52*'Datos Generales'!AE68 -> 2,286 | AF13: =Índice!$G$52*'Datos Generales'!AF68 -> 66 | AG13: =Índice!$G$52*'Datos Generales'!AG68 -> 0 | AH13: =Índice!$G$52*'Datos Generales'!AH68 -> 0 | AI13: =Índice!$G$52*'Datos Generales'!AI68 -> 0 | AJ13: =Índice!$G$52*'Datos Generales'!AJ68 -> 18,458 | AK13: =Índice!$G$52*'Datos Generales'!AK68 -> 0 | AL13: =Índice!$G$52*'Datos Generales'!AL68 -> 0 | AM13: =Índice!$G$52*'Datos Generales'!AM68 -> 0 | AN13: =Índice!$G$52*'Datos Generales'!AN68 -> 0 | AO13: =Índice!$G$52*'Datos Generales'!AO68 -> 0 | AP13: =Índice!$G$52*'Datos Generales'!AP68 -> 0 | AQ13: =Índice!$G$52*'Datos Generales'!AQ68 -> 135,379
B14: ='Datos Generales'!B69 -> 5.21.20.00 Pasivos No Corrientes Mantenidos Para La Venta | C14: =Índice!$G$52*'Datos Generales'!C69 -> 0 | D14: =Índice!$G$52*'Datos Generales'!D69 -> 0 | E14: =Índice!$G$52*'Datos Generales'!E69 -> 0 | F14: =Índice!$G$52*'Datos Generales'!F69 -> 0 | G14: =Índice!$G$52*'Datos Generales'!G69 -> 0 | H14: =Índice!$G$52*'Datos Generales'!H69 -> 0 | I14: =Índice!$G$52*'Datos Generales'!I69 -> 0 | J14: =Índice!$G$52*'Datos Generales'!J69 -> 0 | K14: =Índice!$G$52*'Datos Generales'!K69 -> 0 | L14: =Índice!$G$52*'Datos Generales'!L69 -> 0 | M14: =Índice!$G$52*'Datos Generales'!M69 -> 0 | N14: =Índice!$G$52*'Datos Generales'!N69 -> 0 | O14: =Índice!$G$52*'Datos Generales'!O69 -> 0 | P14: =Índice!$G$52*'Datos Generales'!P69 -> 0 | Q14: =Índice!$G$52*'Datos Generales'!Q69 -> 0 | R14: =Índice!$G$52*'Datos Generales'!R69 -> 0 | S14: =Índice!$G$52*'Datos Generales'!S69 -> 0 | T14: =Índice!$G$52*'Datos Generales'!T69 -> 0 | U14: =Índice!$G$52*'Datos Generales'!U69 -> 0 | V14: =Índice!$G$52*'Datos Generales'!V69 -> 0 | W14: =Índice!$G$52*'Datos Generales'!W69 -> 0 | X14: =Índice!$G$52*'Datos Generales'!X69 -> 0 | Y14: =Índice!$G$52*'Datos Generales'!Y69 -> 0 | Z14: =Índice!$G$52*'Datos Generales'!Z69 -> 0 | AA14: =Índice!$G$52*'Datos Generales'!AA69 -> 0 | AB14: =Índice!$G$52*'Datos Generales'!AB69 -> 0 | AC14: =Índice!$G$52*'Datos Generales'!AC69 -> 0 | AD14: =Índice!$G$52*'Datos Generales'!AD69 -> 0 | AE14: =Índice!$G$52*'Datos Generales'!AE69 -> 0 | AF14: =Índice!$G$52*'Datos Generales'!AF69 -> 0 | AG14: =Índice!$G$52*'Datos Generales'!AG69 -> 0 | AH14: =Índice!$G$52*'Datos Generales'!AH69 -> 0 | AI14: =Índice!$G$52*'Datos Generales'!AI69 -> 0 | AJ14: =Índice!$G$52*'Datos Generales'!AJ69 -> 0 | AK14: =Índice!$G$52*'Datos Generales'!AK69 -> 0 | AL14: =Índice!$G$52*'Datos Generales'!AL69 -> 0 | AM14: =Índice!$G$52*'Datos Generales'!AM69 -> 0 | AN14: =Índice!$G$52*'Datos Generales'!AN69 -> 0 | AO14: =Índice!$G$52*'Datos Generales'!AO69 -> 0 | AP14: =Índice!$G$52*'Datos Generales'!AP69 -> 0 | AQ14: =Índice!$G$52*'Datos Generales'!AQ69 -> 0
B15: ='Datos Generales'!B70 -> 5.21.30.00 Total Cuentas De Seguros | C15: =Índice!$G$52*'Datos Generales'!C70 -> 77,490 | D15: =Índice!$G$52*'Datos Generales'!D70 -> 1,499,649 | E15: =Índice!$G$52*'Datos Generales'!E70 -> 16,801,738 | F15: =Índice!$G$52*'Datos Generales'!F70 -> 4,197,095 | G15: =Índice!$G$52*'Datos Generales'!G70 -> 381,506 | H15: =Índice!$G$52*'Datos Generales'!H70 -> 6,558,344 | I15: =Índice!$G$52*'Datos Generales'!I70 -> 9,527,500 | J15: =Índice!$G$52*'Datos Generales'!J70 -> 682,895 | K15: =Índice!$G$52*'Datos Generales'!K70 -> 2,312,832 | L15: =Índice!$G$52*'Datos Generales'!L70 -> 627,280 | M15: =Índice!$G$52*'Datos Generales'!M70 -> 1,453,201 | N15: =Índice!$G$52*'Datos Generales'!N70 -> 3,271,552 | O15: =Índice!$G$52*'Datos Generales'!O70 -> 2,147,123 | P15: =Índice!$G$52*'Datos Generales'!P70 -> 485,691 | Q15: =Índice!$G$52*'Datos Generales'!Q70 -> 11,404,783 | R15: =Índice!$G$52*'Datos Generales'!R70 -> 6,822 | S15: =Índice!$G$52*'Datos Generales'!S70 -> 11,244,839 | T15: =Índice!$G$52*'Datos Generales'!T70 -> 0 | U15: =Índice!$G$52*'Datos Generales'!U70 -> 12,683,766 | V15: =Índice!$G$52*'Datos Generales'!V70 -> 135,367 | W15: =Índice!$G$52*'Datos Generales'!W70 -> 2,537,146 | X15: =Índice!$G$52*'Datos Generales'!X70 -> 297,623 | Y15: =Índice!$G$52*'Datos Generales'!Y70 -> 1,091,086 | Z15: =Índice!$G$52*'Datos Generales'!Z70 -> 3,811,782 | AA15: =Índice!$G$52*'Datos Generales'!AA70 -> 2,357,357 | AB15: =Índice!$G$52*'Datos Generales'!AB70 -> 83,305 | AC15: =Índice!$G$52*'Datos Generales'!AC70 -> 387,249 | AD15: =Índice!$G$52*'Datos Generales'!AD70 -> 19,267,736 | AE15: =Índice!$G$52*'Datos Generales'!AE70 -> 1,593,601 | AF15: =Índice!$G$52*'Datos Generales'!AF70 -> 243,713 | AG15: =Índice!$G$52*'Datos Generales'!AG70 -> 18,808,528 | AH15: =Índice!$G$52*'Datos Generales'!AH70 -> 3,138,751 | AI15: =Índice!$G$52*'Datos Generales'!AI70 -> 1,048,716 | AJ15: =Índice!$G$52*'Datos Generales'!AJ70 -> 3,895,237 | AK15: =Índice!$G$52*'Datos Generales'!AK70 -> 0 | AL15: =Índice!$G$52*'Datos Generales'!AL70 -> 0 | AM15: =Índice!$G$52*'Datos Generales'!AM70 -> 0 | AN15: =Índice!$G$52*'Datos Generales'!AN70 -> 0 | AO15: =Índice!$G$52*'Datos Generales'!AO70 -> 0 | AP15: =Índice!$G$52*'Datos Generales'!AP70 -> 0 | AQ15: =Índice!$G$52*'Datos Generales'!AQ70 -> 144,061,301
B16: ='Datos Generales'!B71 -> 5.21.31.00 Reservas Técnicas | C16: =Índice!$G$52*'Datos Generales'!C71 -> 76,966 | D16: =Índice!$G$52*'Datos Generales'!D71 -> 1,337,321 | E16: =Índice!$G$52*'Datos Generales'!E71 -> 15,100,827 | F16: =Índice!$G$52*'Datos Generales'!F71 -> 4,036,833 | G16: =Índice!$G$52*'Datos Generales'!G71 -> 310,390 | H16: =Índice!$G$52*'Datos Generales'!H71 -> 5,850,433 | I16: =Índice!$G$52*'Datos Generales'!I71 -> 7,387,291 | J16: =Índice!$G$52*'Datos Generales'!J71 -> 455,268 | K16: =Índice!$G$52*'Datos Generales'!K71 -> 2,061,715 | L16: =Índice!$G$52*'Datos Generales'!L71 -> 425,737 | M16: =Índice!$G$52*'Datos Generales'!M71 -> 1,094,864 | N16: =Índice!$G$52*'Datos Generales'!N71 -> 2,600,877 | O16: =Índice!$G$52*'Datos Generales'!O71 -> 1,513,084 | P16: =Índice!$G$52*'Datos Generales'!P71 -> 416,083 | Q16: =Índice!$G$52*'Datos Generales'!Q71 -> 10,167,802 | R16: =Índice!$G$52*'Datos Generales'!R71 -> 6,822 | S16: =Índice!$G$52*'Datos Generales'!S71 -> 8,917,461 | T16: =Índice!$G$52*'Datos Generales'!T71 -> 0 | U16: =Índice!$G$52*'Datos Generales'!U71 -> 9,938,365 | V16: =Índice!$G$52*'Datos Generales'!V71 -> 105,091 | W16: =Índice!$G$52*'Datos Generales'!W71 -> 1,724,500 | X16: =Índice!$G$52*'Datos Generales'!X71 -> 227,507 | Y16: =Índice!$G$52*'Datos Generales'!Y71 -> 829,835 | Z16: =Índice!$G$52*'Datos Generales'!Z71 -> 3,353,519 | AA16: =Índice!$G$52*'Datos Generales'!AA71 -> 1,877,081 | AB16: =Índice!$G$52*'Datos Generales'!AB71 -> 57,049 | AC16: =Índice!$G$52*'Datos Generales'!AC71 -> 371,848 | AD16: =Índice!$G$52*'Datos Generales'!AD71 -> 17,514,251 | AE16: =Índice!$G$52*'Datos Generales'!AE71 -> 1,249,698 | AF16: =Índice!$G$52*'Datos Generales'!AF71 -> 163,302 | AG16: =Índice!$G$52*'Datos Generales'!AG71 -> 14,945,338 | AH16: =Índice!$G$52*'Datos Generales'!AH71 -> 2,507,222 | AI16: =Índice!$G$52*'Datos Generales'!AI71 -> 1,014,826 | AJ16: =Índice!$G$52*'Datos Generales'!AJ71 -> 2,899,208 | AK16: =Índice!$G$52*'Datos Generales'!AK71 -> 0 | AL16: =Índice!$G$52*'Datos Generales'!AL71 -> 0 | AM16: =Índice!$G$52*'Datos Generales'!AM71 -> 0 | AN16: =Índice!$G$52*'Datos Generales'!AN71 -> 0 | AO16: =Índice!$G$52*'Datos Generales'!AO71 -> 0 | AP16: =Índice!$G$52*'Datos Generales'!AP71 -> 0 | AQ16: =Índice!$G$52*'Datos Generales'!AQ71 -> 120,538,412
B17: ='Datos Generales'!B72 -> 5.21.31.10 Reserva De Riesgos En Curso | C17: =Índice!$G$52*'Datos Generales'!C72 -> 38,090 | D17: =Índice!$G$52*'Datos Generales'!D72 -> 676,937 | E17: =Índice!$G$52*'Datos Generales'!E72 -> 10,676,829 | F17: =Índice!$G$52*'Datos Generales'!F72 -> 3,403,421 | G17: =Índice!$G$52*'Datos Generales'!G72 -> 170,628 | H17: =Índice!$G$52*'Datos Generales'!H72 -> 3,061,159 | I17: =Índice!$G$52*'Datos Generales'!I72 -> 4,029,953 | J17: =Índice!$G$52*'Datos Generales'!J72 -> 140,708 | K17: =Índice!$G$52*'Datos Generales'!K72 -> 1,589,061 | L17: =Índice!$G$52*'Datos Generales'!L72 -> 235,121 | M17: =Índice!$G$52*'Datos Generales'!M72 -> 417,328 | N17: =Índice!$G$52*'Datos Generales'!N72 -> 938,775 | O17: =Índice!$G$52*'Datos Generales'!O72 -> 678,514 | P17: =Índice!$G$52*'Datos Generales'!P72 -> 93,262 | Q17: =Índice!$G$52*'Datos Generales'!Q72 -> 4,984,825 | R17: =Índice!$G$52*'Datos Generales'!R72 -> 5,360 | S17: =Índice!$G$52*'Datos Generales'!S72 -> 4,167,890 | T17: =Índice!$G$52*'Datos Generales'!T72 -> 0 | U17: =Índice!$G$52*'Datos Generales'!U72 -> 4,352,475 | V17: =Índice!$G$52*'Datos Generales'!V72 -> 25,782 | W17: =Índice!$G$52*'Datos Generales'!W72 -> 991,315 | X17: =Índice!$G$52*'Datos Generales'!X72 -> 134,758 | Y17: =Índice!$G$52*'Datos Generales'!Y72 -> 487,760 | Z17: =Índice!$G$52*'Datos Generales'!Z72 -> 1,460,774 | AA17: =Índice!$G$52*'Datos Generales'!AA72 -> 1,179,254 | AB17: =Índice!$G$52*'Datos Generales'!AB72 -> 53,828 | AC17: =Índice!$G$52*'Datos Generales'!AC72 -> 75,342 | AD17: =Índice!$G$52*'Datos Generales'!AD72 -> 3,617,063 | AE17: =Índice!$G$52*'Datos Generales'!AE72 -> 727,370 | AF17: =Índice!$G$52*'Datos Generales'!AF72 -> 132,557 | AG17: =Índice!$G$52*'Datos Generales'!AG72 -> 7,299,314 | AH17: =Índice!$G$52*'Datos Generales'!AH72 -> 1,198,669 | AI17: =Índice!$G$52*'Datos Generales'!AI72 -> 779,841 | AJ17: =Índice!$G$52*'Datos Generales'!AJ72 -> 2,524,476 | AK17: =Índice!$G$52*'Datos Generales'!AK72 -> 0 | AL17: =Índice!$G$52*'Datos Generales'!AL72 -> 0 | AM17: =Índice!$G$52*'Datos Generales'!AM72 -> 0 | AN17: =Índice!$G$52*'Datos Generales'!AN72 -> 0 | AO17: =Índice!$G$52*'Datos Generales'!AO72 -> 0 | AP17: =Índice!$G$52*'Datos Generales'!AP72 -> 0 | AQ17: =Índice!$G$52*'Datos Generales'!AQ72 -> 60,348,437
B18: ='Datos Generales'!B73 -> 5.21.31.20 Reservas Seguros Previsionales | C18: =Índice!$G$52*'Datos Generales'!C73 -> 0 | D18: =Índice!$G$52*'Datos Generales'!D73 -> 0 | E18: =Índice!$G$52*'Datos Generales'!E73 -> 0 | F18: =Índice!$G$52*'Datos Generales'!F73 -> 0 | G18: =Índice!$G$52*'Datos Generales'!G73 -> 0 | H18: =Índice!$G$52*'Datos Generales'!H73 -> 0 | I18: =Índice!$G$52*'Datos Generales'!I73 -> 0 | J18: =Índice!$G$52*'Datos Generales'!J73 -> 0 | K18: =Índice!$G$52*'Datos Generales'!K73 -> 0 | L18: =Índice!$G$52*'Datos Generales'!L73 -> 0 | M18: =Índice!$G$52*'Datos Generales'!M73 -> 0 | N18: =Índice!$G$52*'Datos Generales'!N73 -> 0 | O18: =Índice!$G$52*'Datos Generales'!O73 -> 0 | P18: =Índice!$G$52*'Datos Generales'!P73 -> 0 | Q18: =Índice!$G$52*'Datos Generales'!Q73 -> 0 | R18: =Índice!$G$52*'Datos Generales'!R73 -> 0 | S18: =Índice!$G$52*'Datos Generales'!S73 -> 0 | T18: =Índice!$G$52*'Datos Generales'!T73 -> 0 | U18: =Índice!$G$52*'Datos Generales'!U73 -> 0 | V18: =Índice!$G$52*'Datos Generales'!V73 -> 0 | W18: =Índice!$G$52*'Datos Generales'!W73 -> 0 | X18: =Índice!$G$52*'Datos Generales'!X73 -> 0 | Y18: =Índice!$G$52*'Datos Generales'!Y73 -> 0 | Z18: =Índice!$G$52*'Datos Generales'!Z73 -> 0 | AA18: =Índice!$G$52*'Datos Generales'!AA73 -> 0 | AB18: =Índice!$G$52*'Datos Generales'!AB73 -> 0 | AC18: =Índice!$G$52*'Datos Generales'!AC73 -> 0 | AD18: =Índice!$G$52*'Datos Generales'!AD73 -> 0 | AE18: =Índice!$G$52*'Datos Generales'!AE73 -> 0 | AF18: =Índice!$G$52*'Datos Generales'!AF73 -> 0 | AG18: =Índice!$G$52*'Datos Generales'!AG73 -> 0 | AH18: =Índice!$G$52*'Datos Generales'!AH73 -> 0 | AI18: =Índice!$G$52*'Datos Generales'!AI73 -> 0 | AJ18: =Índice!$G$52*'Datos Generales'!AJ73 -> 0 | AK18: =Índice!$G$52*'Datos Generales'!AK73 -> 0 | AL18: =Índice!$G$52*'Datos Generales'!AL73 -> 0 | AM18: =Índice!$G$52*'Datos Generales'!AM73 -> 0 | AN18: =Índice!$G$52*'Datos Generales'!AN73 -> 0 | AO18: =Índice!$G$52*'Datos Generales'!AO73 -> 0 | AP18: =Índice!$G$52*'Datos Generales'!AP73 -> 0 | AQ18: =Índice!$G$52*'Datos Generales'!AQ73 -> 0
B19: ='Datos Generales'!B74 -> 5.21.31.21 Reserva Rentas Vitalicias | C19: =Índice!$G$52*'Datos Generales'!C74 -> 0 | D19: =Índice!$G$52*'Datos Generales'!D74 -> 0 | E19: =Índice!$G$52*'Datos Generales'!E74 -> 0 | F19: =Índice!$G$52*'Datos Generales'!F74 -> 0 | G19: =Índice!$G$52*'Datos Generales'!G74 -> 0 | H19: =Índice!$G$52*'Datos Generales'!H74 -> 0 | I19: =Índice!$G$52*'Datos Generales'!I74 -> 0 | J19: =Índice!$G$52*'Datos Generales'!J74 -> 0 | K19: =Índice!$G$52*'Datos Generales'!K74 -> 0 | L19: =Índice!$G$52*'Datos Generales'!L74 -> 0 | M19: =Índice!$G$52*'Datos Generales'!M74 -> 0 | N19: =Índice!$G$52*'Datos Generales'!N74 -> 0 | O19: =Índice!$G$52*'Datos Generales'!O74 -> 0 | P19: =Índice!$G$52*'Datos Generales'!P74 -> 0 | Q19: =Índice!$G$52*'Datos Generales'!Q74 -> 0 | R19: =Índice!$G$52*'Datos Generales'!R74 -> 0 | S19: =Índice!$G$52*'Datos Generales'!S74 -> 0 | T19: =Índice!$G$52*'Datos Generales'!T74 -> 0 | U19: =Índice!$G$52*'Datos Generales'!U74 -> 0 | V19: =Índice!$G$52*'Datos Generales'!V74 -> 0 | W19: =Índice!$G$52*'Datos Generales'!W74 -> 0 | X19: =Índice!$G$52*'Datos Generales'!X74 -> 0 | Y19: =Índice!$G$52*'Datos Generales'!Y74 -> 0 | Z19: =Índice!$G$52*'Datos Generales'!Z74 -> 0 | AA19: =Índice!$G$52*'Datos Generales'!AA74 -> 0 | AB19: =Índice!$G$52*'Datos Generales'!AB74 -> 0 | AC19: =Índice!$G$52*'Datos Generales'!AC74 -> 0 | AD19: =Índice!$G$52*'Datos Generales'!AD74 -> 0 | AE19: =Índice!$G$52*'Datos Generales'!AE74 -> 0 | AF19: =Índice!$G$52*'Datos Generales'!AF74 -> 0 | AG19: =Índice!$G$52*'Datos Generales'!AG74 -> 0 | AH19: =Índice!$G$52*'Datos Generales'!AH74 -> 0 | AI19: =Índice!$G$52*'Datos Generales'!AI74 -> 0 | AJ19: =Índice!$G$52*'Datos Generales'!AJ74 -> 0 | AK19: =Índice!$G$52*'Datos Generales'!AK74 -> 0 | AL19: =Índice!$G$52*'Datos Generales'!AL74 -> 0 | AM19: =Índice!$G$52*'Datos Generales'!AM74 -> 0 | AN19: =Índice!$G$52*'Datos Generales'!AN74 -> 0 | AO19: =Índice!$G$52*'Datos Generales'!AO74 -> 0 | AP19: =Índice!$G$52*'Datos Generales'!AP74 -> 0 | AQ19: =Índice!$G$52*'Datos Generales'!AQ74 -> 0
B20: ='Datos Generales'!B75 -> 5.21.31.22 Reserva Seguro Invalidez Y Sobrevivencia | C20: =Índice!$G$52*'Datos Generales'!C75 -> 0 | D20: =Índice!$G$52*'Datos Generales'!D75 -> 0 | E20: =Índice!$G$52*'Datos Generales'!E75 -> 0 | F20: =Índice!$G$52*'Datos Generales'!F75 -> 0 | G20: =Índice!$G$52*'Datos Generales'!G75 -> 0 | H20: =Índice!$G$52*'Datos Generales'!H75 -> 0 | I20: =Índice!$G$52*'Datos Generales'!I75 -> 0 | J20: =Índice!$G$52*'Datos Generales'!J75 -> 0 | K20: =Índice!$G$52*'Datos Generales'!K75 -> 0 | L20: =Índice!$G$52*'Datos Generales'!L75 -> 0 | M20: =Índice!$G$52*'Datos Generales'!M75 -> 0 | N20: =Índice!$G$52*'Datos Generales'!N75 -> 0 | O20: =Índice!$G$52*'Datos Generales'!O75 -> 0 | P20: =Índice!$G$52*'Datos Generales'!P75 -> 0 | Q20: =Índice!$G$52*'Datos Generales'!Q75 -> 0 | R20: =Índice!$G$52*'Datos Generales'!R75 -> 0 | S20: =Índice!$G$52*'Datos Generales'!S75 -> 0 | T20: =Índice!$G$52*'Datos Generales'!T75 -> 0 | U20: =Índice!$G$52*'Datos Generales'!U75 -> 0 | V20: =Índice!$G$52*'Datos Generales'!V75 -> 0 | W20: =Índice!$G$52*'Datos Generales'!W75 -> 0 | X20: =Índice!$G$52*'Datos Generales'!X75 -> 0 | Y20: =Índice!$G$52*'Datos Generales'!Y75 -> 0 | Z20: =Índice!$G$52*'Datos Generales'!Z75 -> 0 | AA20: =Índice!$G$52*'Datos Generales'!AA75 -> 0 | AB20: =Índice!$G$52*'Datos Generales'!AB75 -> 0 | AC20: =Índice!$G$52*'Datos Generales'!AC75 -> 0 | AD20: =Índice!$G$52*'Datos Generales'!AD75 -> 0 | AE20: =Índice!$G$52*'Datos Generales'!AE75 -> 0 | AF20: =Índice!$G$52*'Datos Generales'!AF75 -> 0 | AG20: =Índice!$G$52*'Datos Generales'!AG75 -> 0 | AH20: =Índice!$G$52*'Datos Generales'!AH75 -> 0 | AI20: =Índice!$G$52*'Datos Generales'!AI75 -> 0 | AJ20: =Índice!$G$52*'Datos Generales'!AJ75 -> 0 | AK20: =Índice!$G$52*'Datos Generales'!AK75 -> 0 | AL20: =Índice!$G$52*'Datos Generales'!AL75 -> 0 | AM20: =Índice!$G$52*'Datos Generales'!AM75 -> 0 | AN20: =Índice!$G$52*'Datos Generales'!AN75 -> 0 | AO20: =Índice!$G$52*'Datos Generales'!AO75 -> 0 | AP20: =Índice!$G$52*'Datos Generales'!AP75 -> 0 | AQ20: =Índice!$G$52*'Datos Generales'!AQ75 -> 0
B21: ='Datos Generales'!B76 -> 5.21.31.30 Reserva Matemática | C21: =Índice!$G$52*'Datos Generales'!C76 -> 0 | D21: =Índice!$G$52*'Datos Generales'!D76 -> 0 | E21: =Índice!$G$52*'Datos Generales'!E76 -> 0 | F21: =Índice!$G$52*'Datos Generales'!F76 -> 0 | G21: =Índice!$G$52*'Datos Generales'!G76 -> 0 | H21: =Índice!$G$52*'Datos Generales'!H76 -> 0 | I21: =Índice!$G$52*'Datos Generales'!I76 -> 0 | J21: =Índice!$G$52*'Datos Generales'!J76 -> 0 | K21: =Índice!$G$52*'Datos Generales'!K76 -> 0 | L21: =Índice!$G$52*'Datos Generales'!L76 -> 0 | M21: =Índice!$G$52*'Datos Generales'!M76 -> 0 | N21: =Índice!$G$52*'Datos Generales'!N76 -> 0 | O21: =Índice!$G$52*'Datos Generales'!O76 -> 0 | P21: =Índice!$G$52*'Datos Generales'!P76 -> 0 | Q21: =Índice!$G$52*'Datos Generales'!Q76 -> 0 | R21: =Índice!$G$52*'Datos Generales'!R76 -> 0 | S21: =Índice!$G$52*'Datos Generales'!S76 -> 0 | T21: =Índice!$G$52*'Datos Generales'!T76 -> 0 | U21: =Índice!$G$52*'Datos Generales'!U76 -> 0 | V21: =Índice!$G$52*'Datos Generales'!V76 -> 0 | W21: =Índice!$G$52*'Datos Generales'!W76 -> 0 | X21: =Índice!$G$52*'Datos Generales'!X76 -> 0 | Y21: =Índice!$G$52*'Datos Generales'!Y76 -> 0 | Z21: =Índice!$G$52*'Datos Generales'!Z76 -> 0 | AA21: =Índice!$G$52*'Datos Generales'!AA76 -> 0 | AB21: =Índice!$G$52*'Datos Generales'!AB76 -> 0 | AC21: =Índice!$G$52*'Datos Generales'!AC76 -> 0 | AD21: =Índice!$G$52*'Datos Generales'!AD76 -> 0 | AE21: =Índice!$G$52*'Datos Generales'!AE76 -> 0 | AF21: =Índice!$G$52*'Datos Generales'!AF76 -> 0 | AG21: =Índice!$G$52*'Datos Generales'!AG76 -> 0 | AH21: =Índice!$G$52*'Datos Generales'!AH76 -> 0 | AI21: =Índice!$G$52*'Datos Generales'!AI76 -> 0 | AJ21: =Índice!$G$52*'Datos Generales'!AJ76 -> 0 | AK21: =Índice!$G$52*'Datos Generales'!AK76 -> 0 | AL21: =Índice!$G$52*'Datos Generales'!AL76 -> 0 | AM21: =Índice!$G$52*'Datos Generales'!AM76 -> 0 | AN21: =Índice!$G$52*'Datos Generales'!AN76 -> 0 | AO21: =Índice!$G$52*'Datos Generales'!AO76 -> 0 | AP21: =Índice!$G$52*'Datos Generales'!AP76 -> 0 | AQ21: =Índice!$G$52*'Datos Generales'!AQ76 -> 0
B22: ='Datos Generales'!B77 -> 5.21.31.40 Reserva Valor Del Fondo | C22: =Índice!$G$52*'Datos Generales'!C77 -> 0 | D22: =Índice!$G$52*'Datos Generales'!D77 -> 0 | E22: =Índice!$G$52*'Datos Generales'!E77 -> 0 | F22: =Índice!$G$52*'Datos Generales'!F77 -> 0 | G22: =Índice!$G$52*'Datos Generales'!G77 -> 0 | H22: =Índice!$G$52*'Datos Generales'!H77 -> 0 | I22: =Índice!$G$52*'Datos Generales'!I77 -> 0 | J22: =Índice!$G$52*'Datos Generales'!J77 -> 0 | K22: =Índice!$G$52*'Datos Generales'!K77 -> 0 | L22: =Índice!$G$52*'Datos Generales'!L77 -> 0 | M22: =Índice!$G$52*'Datos Generales'!M77 -> 0 | N22: =Índice!$G$52*'Datos Generales'!N77 -> 0 | O22: =Índice!$G$52*'Datos Generales'!O77 -> 0 | P22: =Índice!$G$52*'Datos Generales'!P77 -> 0 | Q22: =Índice!$G$52*'Datos Generales'!Q77 -> 0 | R22: =Índice!$G$52*'Datos Generales'!R77 -> 0 | S22: =Índice!$G$52*'Datos Generales'!S77 -> 0 | T22: =Índice!$G$52*'Datos Generales'!T77 -> 0 | U22: =Índice!$G$52*'Datos Generales'!U77 -> 0 | V22: =Índice!$G$52*'Datos Generales'!V77 -> 0 | W22: =Índice!$G$52*'Datos Generales'!W77 -> 0 | X22: =Índice!$G$52*'Datos Generales'!X77 -> 0 | Y22: =Índice!$G$52*'Datos Generales'!Y77 -> 0 | Z22: =Índice!$G$52*'Datos Generales'!Z77 -> 0 | AA22: =Índice!$G$52*'Datos Generales'!AA77 -> 0 | AB22: =Índice!$G$52*'Datos Generales'!AB77 -> 0 | AC22: =Índice!$G$52*'Datos Generales'!AC77 -> 0 | AD22: =Índice!$G$52*'Datos Generales'!AD77 -> 0 | AE22: =Índice!$G$52*'Datos Generales'!AE77 -> 0 | AF22: =Índice!$G$52*'Datos Generales'!AF77 -> 0 | AG22: =Índice!$G$52*'Datos Generales'!AG77 -> 0 | AH22: =Índice!$G$52*'Datos Generales'!AH77 -> 0 | AI22: =Índice!$G$52*'Datos Generales'!AI77 -> 0 | AJ22: =Índice!$G$52*'Datos Generales'!AJ77 -> 0 | AK22: =Índice!$G$52*'Datos Generales'!AK77 -> 0 | AL22: =Índice!$G$52*'Datos Generales'!AL77 -> 0 | AM22: =Índice!$G$52*'Datos Generales'!AM77 -> 0 | AN22: =Índice!$G$52*'Datos Generales'!AN77 -> 0 | AO22: =Índice!$G$52*'Datos Generales'!AO77 -> 0 | AP22: =Índice!$G$52*'Datos Generales'!AP77 -> 0 | AQ22: =Índice!$G$52*'Datos Generales'!AQ77 -> 0
B23: ='Datos Generales'!B78 -> 5.21.31.50 Reserva Rentas Privadas | C23: =Índice!$G$52*'Datos Generales'!C78 -> 0 | D23: =Índice!$G$52*'Datos Generales'!D78 -> 0 | E23: =Índice!$G$52*'Datos Generales'!E78 -> 0 | F23: =Índice!$G$52*'Datos Generales'!F78 -> 0 | G23: =Índice!$G$52*'Datos Generales'!G78 -> 0 | H23: =Índice!$G$52*'Datos Generales'!H78 -> 0 | I23: =Índice!$G$52*'Datos Generales'!I78 -> 0 | J23: =Índice!$G$52*'Datos Generales'!J78 -> 0 | K23: =Índice!$G$52*'Datos Generales'!K78 -> 0 | L23: =Índice!$G$52*'Datos Generales'!L78 -> 0 | M23: =Índice!$G$52*'Datos Generales'!M78 -> 0 | N23: =Índice!$G$52*'Datos Generales'!N78 -> 0 | O23: =Índice!$G$52*'Datos Generales'!O78 -> 0 | P23: =Índice!$G$52*'Datos Generales'!P78 -> 0 | Q23: =Índice!$G$52*'Datos Generales'!Q78 -> 0 | R23: =Índice!$G$52*'Datos Generales'!R78 -> 0 | S23: =Índice!$G$52*'Datos Generales'!S78 -> 0 | T23: =Índice!$G$52*'Datos Generales'!T78 -> 0 | U23: =Índice!$G$52*'Datos Generales'!U78 -> 0 | V23: =Índice!$G$52*'Datos Generales'!V78 -> 0 | W23: =Índice!$G$52*'Datos Generales'!W78 -> 0 | X23: =Índice!$G$52*'Datos Generales'!X78 -> 0 | Y23: =Índice!$G$52*'Datos Generales'!Y78 -> 0 | Z23: =Índice!$G$52*'Datos Generales'!Z78 -> 0 | AA23: =Índice!$G$52*'Datos Generales'!AA78 -> 0 | AB23: =Índice!$G$52*'Datos Generales'!AB78 -> 0 | AC23: =Índice!$G$52*'Datos Generales'!AC78 -> 0 | AD23: =Índice!$G$52*'Datos Generales'!AD78 -> 0 | AE23: =Índice!$G$52*'Datos Generales'!AE78 -> 0 | AF23: =Índice!$G$52*'Datos Generales'!AF78 -> 0 | AG23: =Índice!$G$52*'Datos Generales'!AG78 -> 0 | AH23: =Índice!$G$52*'Datos Generales'!AH78 -> 0 | AI23: =Índice!$G$52*'Datos Generales'!AI78 -> 0 | AJ23: =Índice!$G$52*'Datos Generales'!AJ78 -> 0 | AK23: =Índice!$G$52*'Datos Generales'!AK78 -> 0 | AL23: =Índice!$G$52*'Datos Generales'!AL78 -> 0 | AM23: =Índice!$G$52*'Datos Generales'!AM78 -> 0 | AN23: =Índice!$G$52*'Datos Generales'!AN78 -> 0 | AO23: =Índice!$G$52*'Datos Generales'!AO78 -> 0 | AP23: =Índice!$G$52*'Datos Generales'!AP78 -> 0 | AQ23: =Índice!$G$52*'Datos Generales'!AQ78 -> 0
B24: ='Datos Generales'!B79 -> 5.21.31.60 Reserva De Siniestros | C24: =Índice!$G$52*'Datos Generales'!C79 -> 38,876 | D24: =Índice!$G$52*'Datos Generales'!D79 -> 660,384 | E24: =Índice!$G$52*'Datos Generales'!E79 -> 4,103,650 | F24: =Índice!$G$52*'Datos Generales'!F79 -> 612,022 | G24: =Índice!$G$52*'Datos Generales'!G79 -> 139,762 | H24: =Índice!$G$52*'Datos Generales'!H79 -> 2,292,560 | I24: =Índice!$G$52*'Datos Generales'!I79 -> 3,303,315 | J24: =Índice!$G$52*'Datos Generales'!J79 -> 256,695 | K24: =Índice!$G$52*'Datos Generales'!K79 -> 456,009 | L24: =Índice!$G$52*'Datos Generales'!L79 -> 177,219 | M24: =Índice!$G$52*'Datos Generales'!M79 -> 677,536 | N24: =Índice!$G$52*'Datos Generales'!N79 -> 1,574,302 | O24: =Índice!$G$52*'Datos Generales'!O79 -> 267,242 | P24: =Índice!$G$52*'Datos Generales'!P79 -> 268,147 | Q24: =Índice!$G$52*'Datos Generales'!Q79 -> 5,098,713 | R24: =Índice!$G$52*'Datos Generales'!R79 -> 1,384 | S24: =Índice!$G$52*'Datos Generales'!S79 -> 4,011,937 | T24: =Índice!$G$52*'Datos Generales'!T79 -> 0 | U24: =Índice!$G$52*'Datos Generales'!U79 -> 5,558,390 | V24: =Índice!$G$52*'Datos Generales'!V79 -> 63,674 | W24: =Índice!$G$52*'Datos Generales'!W79 -> 724,935 | X24: =Índice!$G$52*'Datos Generales'!X79 -> 88,791 | Y24: =Índice!$G$52*'Datos Generales'!Y79 -> 334,376 | Z24: =Índice!$G$52*'Datos Generales'!Z79 -> 1,027,422 | AA24: =Índice!$G$52*'Datos Generales'!AA79 -> 690,127 | AB24: =Índice!$G$52*'Datos Generales'!AB79 -> 3,221 | AC24: =Índice!$G$52*'Datos Generales'!AC79 -> 296,506 | AD24: =Índice!$G$52*'Datos Generales'!AD79 -> 13,828,438 | AE24: =Índice!$G$52*'Datos Generales'!AE79 -> 514,224 | AF24: =Índice!$G$52*'Datos Generales'!AF79 -> 30,745 | AG24: =Índice!$G$52*'Datos Generales'!AG79 -> 5,938,001 | AH24: =Índice!$G$52*'Datos Generales'!AH79 -> 1,290,503 | AI24: =Índice!$G$52*'Datos Generales'!AI79 -> 234,435 | AJ24: =Índice!$G$52*'Datos Generales'!AJ79 -> 354,299 | AK24: =Índice!$G$52*'Datos Generales'!AK79 -> 0 | AL24: =Índice!$G$52*'Datos Generales'!AL79 -> 0 | AM24: =Índice!$G$52*'Datos Generales'!AM79 -> 0 | AN24: =Índice!$G$52*'Datos Generales'!AN79 -> 0 | AO24: =Índice!$G$52*'Datos Generales'!AO79 -> 0 | AP24: =Índice!$G$52*'Datos Generales'!AP79 -> 0 | AQ24: =Índice!$G$52*'Datos Generales'!AQ79 -> 54,917,840
B25: ='Datos Generales'!B80 -> 5.21.31.70 Reserva Catastrófica De Terremoto | C25: =Índice!$G$52*'Datos Generales'!C80 -> 0 | D25: =Índice!$G$52*'Datos Generales'!D80 -> 0 | E25: =Índice!$G$52*'Datos Generales'!E80 -> 44,000 | F25: =Índice!$G$52*'Datos Generales'!F80 -> 13,797 | G25: =Índice!$G$52*'Datos Generales'!G80 -> 0 | H25: =Índice!$G$52*'Datos Generales'!H80 -> 6,753 | I25: =Índice!$G$52*'Datos Generales'!I80 -> 54,023 | J25: =Índice!$G$52*'Datos Generales'!J80 -> 0 | K25: =Índice!$G$52*'Datos Generales'!K80 -> 5,500 | L25: =Índice!$G$52*'Datos Generales'!L80 -> 5,500 | M25: =Índice!$G$52*'Datos Generales'!M80 -> 0 | N25: =Índice!$G$52*'Datos Generales'!N80 -> 11,000 | O25: =Índice!$G$52*'Datos Generales'!O80 -> 8,250 | P25: =Índice!$G$52*'Datos Generales'!P80 -> 0 | Q25: =Índice!$G$52*'Datos Generales'!Q80 -> 27,500 | R25: =Índice!$G$52*'Datos Generales'!R80 -> 0 | S25: =Índice!$G$52*'Datos Generales'!S80 -> 31,435 | T25: =Índice!$G$52*'Datos Generales'!T80 -> 0 | U25: =Índice!$G$52*'Datos Generales'!U80 -> 27,500 | V25: =Índice!$G$52*'Datos Generales'!V80 -> 7,920 | W25: =Índice!$G$52*'Datos Generales'!W80 -> 8,250 | X25: =Índice!$G$52*'Datos Generales'!X80 -> 0 | Y25: =Índice!$G$52*'Datos Generales'!Y80 -> 7,700 | Z25: =Índice!$G$52*'Datos Generales'!Z80 -> 11,639 | AA25: =Índice!$G$52*'Datos Generales'!AA80 -> 7,700 | AB25: =Índice!$G$52*'Datos Generales'!AB80 -> 0 | AC25: =Índice!$G$52*'Datos Generales'!AC80 -> 0 | AD25: =Índice!$G$52*'Datos Generales'!AD80 -> 68,750 | AE25: =Índice!$G$52*'Datos Generales'!AE80 -> 8,104 | AF25: =Índice!$G$52*'Datos Generales'!AF80 -> 0 | AG25: =Índice!$G$52*'Datos Generales'!AG80 -> 27,500 | AH25: =Índice!$G$52*'Datos Generales'!AH80 -> 18,050 | AI25: =Índice!$G$52*'Datos Generales'!AI80 -> 550 | AJ25: =Índice!$G$52*'Datos Generales'!AJ80 -> 20,433 | AK25: =Índice!$G$52*'Datos Generales'!AK80 -> 0 | AL25: =Índice!$G$52*'Datos Generales'!AL80 -> 0 | AM25: =Índice!$G$52*'Datos Generales'!AM80 -> 0 | AN25: =Índice!$G$52*'Datos Generales'!AN80 -> 0 | AO25: =Índice!$G$52*'Datos Generales'!AO80 -> 0 | AP25: =Índice!$G$52*'Datos Generales'!AP80 -> 0 | AQ25: =Índice!$G$52*'Datos Generales'!AQ80 -> 421,854
B26: ='Datos Generales'!B81 -> 5.21.31.80 Reserva De Insuficiencia De Prima | C26: =Índice!$G$52*'Datos Generales'!C81 -> 0 | D26: =Índice!$G$52*'Datos Generales'!D81 -> 0 | E26: =Índice!$G$52*'Datos Generales'!E81 -> 276,348 | F26: =Índice!$G$52*'Datos Generales'!F81 -> 7,593 | G26: =Índice!$G$52*'Datos Generales'!G81 -> 0 | H26: =Índice!$G$52*'Datos Generales'!H81 -> 489,962 | I26: =Índice!$G$52*'Datos Generales'!I81 -> 0 | J26: =Índice!$G$52*'Datos Generales'!J81 -> 57,864 | K26: =Índice!$G$52*'Datos Generales'!K81 -> 0 | L26: =Índice!$G$52*'Datos Generales'!L81 -> 7,896 | M26: =Índice!$G$52*'Datos Generales'!M81 -> 0 | N26: =Índice!$G$52*'Datos Generales'!N81 -> 76,799 | O26: =Índice!$G$52*'Datos Generales'!O81 -> 559,078 | P26: =Índice!$G$52*'Datos Generales'!P81 -> 54,674 | Q26: =Índice!$G$52*'Datos Generales'!Q81 -> 51,686 | R26: =Índice!$G$52*'Datos Generales'!R81 -> 77 | S26: =Índice!$G$52*'Datos Generales'!S81 -> 706,199 | T26: =Índice!$G$52*'Datos Generales'!T81 -> 0 | U26: =Índice!$G$52*'Datos Generales'!U81 -> 0 | V26: =Índice!$G$52*'Datos Generales'!V81 -> 7,715 | W26: =Índice!$G$52*'Datos Generales'!W81 -> 0 | X26: =Índice!$G$52*'Datos Generales'!X81 -> 3,958 | Y26: =Índice!$G$52*'Datos Generales'!Y81 -> 0 | Z26: =Índice!$G$52*'Datos Generales'!Z81 -> 853,685 | AA26: =Índice!$G$52*'Datos Generales'!AA81 -> 0 | AB26: =Índice!$G$52*'Datos Generales'!AB81 -> 0 | AC26: =Índice!$G$52*'Datos Generales'!AC81 -> 0 | AD26: =Índice!$G$52*'Datos Generales'!AD81 -> 0 | AE26: =Índice!$G$52*'Datos Generales'!AE81 -> 0 | AF26: =Índice!$G$52*'Datos Generales'!AF81 -> 0 | AG26: =Índice!$G$52*'Datos Generales'!AG81 -> 1,680,523 | AH26: =Índice!$G$52*'Datos Generales'!AH81 -> 0 | AI26: =Índice!$G$52*'Datos Generales'!AI81 -> 0 | AJ26: =Índice!$G$52*'Datos Generales'!AJ81 -> 0 | AK26: =Índice!$G$52*'Datos Generales'!AK81 -> 0 | AL26: =Índice!$G$52*'Datos Generales'!AL81 -> 0 | AM26: =Índice!$G$52*'Datos Generales'!AM81 -> 0 | AN26: =Índice!$G$52*'Datos Generales'!AN81 -> 0 | AO26: =Índice!$G$52*'Datos Generales'!AO81 -> 0 | AP26: =Índice!$G$52*'Datos Generales'!AP81 -> 0 | AQ26: =Índice!$G$52*'Datos Generales'!AQ81 -> 4,834,059
B27: ='Datos Generales'!B82 -> 5.21.31.90 Otras Reservas Técnicas | C27: =Índice!$G$52*'Datos Generales'!C82 -> 0 | D27: =Índice!$G$52*'Datos Generales'!D82 -> 0 | E27: =Índice!$G$52*'Datos Generales'!E82 -> 0 | F27: =Índice!$G$52*'Datos Generales'!F82 -> 0 | G27: =Índice!$G$52*'Datos Generales'!G82 -> 0 | H27: =Índice!$G$52*'Datos Generales'!H82 -> 0 | I27: =Índice!$G$52*'Datos Generales'!I82 -> 0 | J27: =Índice!$G$52*'Datos Generales'!J82 -> 0 | K27: =Índice!$G$52*'Datos Generales'!K82 -> 11,145 | L27: =Índice!$G$52*'Datos Generales'!L82 -> 0 | M27: =Índice!$G$52*'Datos Generales'!M82 -> 0 | N27: =Índice!$G$52*'Datos Generales'!N82 -> 0 | O27: =Índice!$G$52*'Datos Generales'!O82 -> 0 | P27: =Índice!$G$52*'Datos Generales'!P82 -> 0 | Q27: =Índice!$G$52*'Datos Generales'!Q82 -> 5,078 | R27: =Índice!$G$52*'Datos Generales'!R82 -> 0 | S27: =Índice!$G$52*'Datos Generales'!S82 -> 0 | T27: =Índice!$G$52*'Datos Generales'!T82 -> 0 | U27: =Índice!$G$52*'Datos Generales'!U82 -> 0 | V27: =Índice!$G$52*'Datos Generales'!V82 -> 0 | W27: =Índice!$G$52*'Datos Generales'!W82 -> 0 | X27: =Índice!$G$52*'Datos Generales'!X82 -> 0 | Y27: =Índice!$G$52*'Datos Generales'!Y82 -> 0 | Z27: =Índice!$G$52*'Datos Generales'!Z82 -> 0 | AA27: =Índice!$G$52*'Datos Generales'!AA82 -> 0 | AB27: =Índice!$G$52*'Datos Generales'!AB82 -> 0 | AC27: =Índice!$G$52*'Datos Generales'!AC82 -> 0 | AD27: =Índice!$G$52*'Datos Generales'!AD82 -> 0 | AE27: =Índice!$G$52*'Datos Generales'!AE82 -> 0 | AF27: =Índice!$G$52*'Datos Generales'!AF82 -> 0 | AG27: =Índice!$G$52*'Datos Generales'!AG82 -> 0 | AH27: =Índice!$G$52*'Datos Generales'!AH82 -> 0 | AI27: =Índice!$G$52*'Datos Generales'!AI82 -> 0 | AJ27: =Índice!$G$52*'Datos Generales'!AJ82 -> 0 | AK27: =Índice!$G$52*'Datos Generales'!AK82 -> 0 | AL27: =Índice!$G$52*'Datos Generales'!AL82 -> 0 | AM27: =Índice!$G$52*'Datos Generales'!AM82 -> 0 | AN27: =Índice!$G$52*'Datos Generales'!AN82 -> 0 | AO27: =Índice!$G$52*'Datos Generales'!AO82 -> 0 | AP27: =Índice!$G$52*'Datos Generales'!AP82 -> 0 | AQ27: =Índice!$G$52*'Datos Generales'!AQ82 -> 16,223
B28: ='Datos Generales'!B83 -> 5.21.32.00 Deudas Por Operaciones De Seguro | C28: =Índice!$G$52*'Datos Generales'!C83 -> 525 | D28: =Índice!$G$52*'Datos Generales'!D83 -> 162,328 | E28: =Índice!$G$52*'Datos Generales'!E83 -> 1,700,911 | F28: =Índice!$G$52*'Datos Generales'!F83 -> 160,261 | G28: =Índice!$G$52*'Datos Generales'!G83 -> 71,116 | H28: =Índice!$G$52*'Datos Generales'!H83 -> 707,911 | I28: =Índice!$G$52*'Datos Generales'!I83 -> 2,140,209 | J28: =Índice!$G$52*'Datos Generales'!J83 -> 227,627 | K28: =Índice!$G$52*'Datos Generales'!K83 -> 251,117 | L28: =Índice!$G$52*'Datos Generales'!L83 -> 201,543 | M28: =Índice!$G$52*'Datos Generales'!M83 -> 358,337 | N28: =Índice!$G$52*'Datos Generales'!N83 -> 670,675 | O28: =Índice!$G$52*'Datos Generales'!O83 -> 634,040 | P28: =Índice!$G$52*'Datos Generales'!P83 -> 69,608 | Q28: =Índice!$G$52*'Datos Generales'!Q83 -> 1,236,981 | R28: =Índice!$G$52*'Datos Generales'!R83 -> 0 | S28: =Índice!$G$52*'Datos Generales'!S83 -> 2,327,379 | T28: =Índice!$G$52*'Datos Generales'!T83 -> 0 | U28: =Índice!$G$52*'Datos Generales'!U83 -> 2,745,401 | V28: =Índice!$G$52*'Datos Generales'!V83 -> 30,276 | W28: =Índice!$G$52*'Datos Generales'!W83 -> 812,646 | X28: =Índice!$G$52*'Datos Generales'!X83 -> 70,115 | Y28: =Índice!$G$52*'Datos Generales'!Y83 -> 261,251 | Z28: =Índice!$G$52*'Datos Generales'!Z83 -> 458,262 | AA28: =Índice!$G$52*'Datos Generales'!AA83 -> 480,276 | AB28: =Índice!$G$52*'Datos Generales'!AB83 -> 26,256 | AC28: =Índice!$G$52*'Datos Generales'!AC83 -> 15,401 | AD28: =Índice!$G$52*'Datos Generales'!AD83 -> 1,753,485 | AE28: =Índice!$G$52*'Datos Generales'!AE83 -> 343,904 | AF28: =Índice!$G$52*'Datos Generales'!AF83 -> 80,411 | AG28: =Índice!$G$52*'Datos Generales'!AG83 -> 3,863,190 | AH28: =Índice!$G$52*'Datos Generales'!AH83 -> 631,529 | AI28: =Índice!$G$52*'Datos Generales'!AI83 -> 33,890 | AJ28: =Índice!$G$52*'Datos Generales'!AJ83 -> 996,030 | AK28: =Índice!$G$52*'Datos Generales'!AK83 -> 0 | AL28: =Índice!$G$52*'Datos Generales'!AL83 -> 0 | AM28: =Índice!$G$52*'Datos Generales'!AM83 -> 0 | AN28: =Índice!$G$52*'Datos Generales'!AN83 -> 0 | AO28: =Índice!$G$52*'Datos Generales'!AO83 -> 0 | AP28: =Índice!$G$52*'Datos Generales'!AP83 -> 0 | AQ28: =Índice!$G$52*'Datos Generales'!AQ83 -> 23,522,889
B29: ='Datos Generales'!B84 -> 5.21.32.10 Deudas Con Asegurados | C29: =Índice!$G$52*'Datos Generales'!C84 -> 456 | D29: =Índice!$G$52*'Datos Generales'!D84 -> 11,330 | E29: =Índice!$G$52*'Datos Generales'!E84 -> 259,101 | F29: =Índice!$G$52*'Datos Generales'!F84 -> 67,322 | G29: =Índice!$G$52*'Datos Generales'!G84 -> 0 | H29: =Índice!$G$52*'Datos Generales'!H84 -> 88,837 | I29: =Índice!$G$52*'Datos Generales'!I84 -> 98,736 | J29: =Índice!$G$52*'Datos Generales'!J84 -> 601 | K29: =Índice!$G$52*'Datos Generales'!K84 -> 46,877 | L29: =Índice!$G$52*'Datos Generales'!L84 -> 0 | M29: =Índice!$G$52*'Datos Generales'!M84 -> 0 | N29: =Índice!$G$52*'Datos Generales'!N84 -> 0 | O29: =Índice!$G$52*'Datos Generales'!O84 -> 52,727 | P29: =Índice!$G$52*'Datos Generales'!P84 -> 5,478 | Q29: =Índice!$G$52*'Datos Generales'!Q84 -> 175,658 | R29: =Índice!$G$52*'Datos Generales'!R84 -> 0 | S29: =Índice!$G$52*'Datos Generales'!S84 -> 106,590 | T29: =Índice!$G$52*'Datos Generales'!T84 -> 0 | U29: =Índice!$G$52*'Datos Generales'!U84 -> 204,674 | V29: =Índice!$G$52*'Datos Generales'!V84 -> 0 | W29: =Índice!$G$52*'Datos Generales'!W84 -> 14,710 | X29: =Índice!$G$52*'Datos Generales'!X84 -> 0 | Y29: =Índice!$G$52*'Datos Generales'!Y84 -> 4,997 | Z29: =Índice!$G$52*'Datos Generales'!Z84 -> 0 | AA29: =Índice!$G$52*'Datos Generales'!AA84 -> 0 | AB29: =Índice!$G$52*'Datos Generales'!AB84 -> 0 | AC29: =Índice!$G$52*'Datos Generales'!AC84 -> 0 | AD29: =Índice!$G$52*'Datos Generales'!AD84 -> 13,603 | AE29: =Índice!$G$52*'Datos Generales'!AE84 -> 0 | AF29: =Índice!$G$52*'Datos Generales'!AF84 -> 0 | AG29: =Índice!$G$52*'Datos Generales'!AG84 -> 87,032 | AH29: =Índice!$G$52*'Datos Generales'!AH84 -> 13,175 | AI29: =Índice!$G$52*'Datos Generales'!AI84 -> 17,261 | AJ29: =Índice!$G$52*'Datos Generales'!AJ84 -> 37,486 | AK29: =Índice!$G$52*'Datos Generales'!AK84 -> 0 | AL29: =Índice!$G$52*'Datos Generales'!AL84 -> 0 | AM29: =Índice!$G$52*'Datos Generales'!AM84 -> 0 | AN29: =Índice!$G$52*'Datos Generales'!AN84 -> 0 | AO29: =Índice!$G$52*'Datos Generales'!AO84 -> 0 | AP29: =Índice!$G$52*'Datos Generales'!AP84 -> 0 | AQ29: =Índice!$G$52*'Datos Generales'!AQ84 -> 1,306,651
B30: ='Datos Generales'!B85 -> 5.21.32.20 Deudas Por Operaciones Reaseguro | C30: =Índice!$G$52*'Datos Generales'!C85 -> 68 | D30: =Índice!$G$52*'Datos Generales'!D85 -> 88,020 | E30: =Índice!$G$52*'Datos Generales'!E85 -> 1,136,362 | F30: =Índice!$G$52*'Datos Generales'!F85 -> 92,940 | G30: =Índice!$G$52*'Datos Generales'!G85 -> 33,603 | H30: =Índice!$G$52*'Datos Generales'!H85 -> 544,729 | I30: =Índice!$G$52*'Datos Generales'!I85 -> 855,655 | J30: =Índice!$G$52*'Datos Generales'!J85 -> 201,666 | K30: =Índice!$G$52*'Datos Generales'!K85 -> 154,406 | L30: =Índice!$G$52*'Datos Generales'!L85 -> 146,935 | M30: =Índice!$G$52*'Datos Generales'!M85 -> 290,058 | N30: =Índice!$G$52*'Datos Generales'!N85 -> 510,128 | O30: =Índice!$G$52*'Datos Generales'!O85 -> 545,879 | P30: =Índice!$G$52*'Datos Generales'!P85 -> 40,449 | Q30: =Índice!$G$52*'Datos Generales'!Q85 -> 647,779 | R30: =Índice!$G$52*'Datos Generales'!R85 -> 0 | S30: =Índice!$G$52*'Datos Generales'!S85 -> 1,595,774 | T30: =Índice!$G$52*'Datos Generales'!T85 -> 0 | U30: =Índice!$G$52*'Datos Generales'!U85 -> 1,969,787 | V30: =Índice!$G$52*'Datos Generales'!V85 -> 29,427 | W30: =Índice!$G$52*'Datos Generales'!W85 -> 732,592 | X30: =Índice!$G$52*'Datos Generales'!X85 -> 37,902 | Y30: =Índice!$G$52*'Datos Generales'!Y85 -> 143,813 | Z30: =Índice!$G$52*'Datos Generales'!Z85 -> 347,150 | AA30: =Índice!$G$52*'Datos Generales'!AA85 -> 392,477 | AB30: =Índice!$G$52*'Datos Generales'!AB85 -> 4,610 | AC30: =Índice!$G$52*'Datos Generales'!AC85 -> 0 | AD30: =Índice!$G$52*'Datos Generales'!AD85 -> 1,269,181 | AE30: =Índice!$G$52*'Datos Generales'!AE85 -> 273,881 | AF30: =Índice!$G$52*'Datos Generales'!AF85 -> 47,493 | AG30: =Índice!$G$52*'Datos Generales'!AG85 -> 2,836,685 | AH30: =Índice!$G$52*'Datos Generales'!AH85 -> 464,211 | AI30: =Índice!$G$52*'Datos Generales'!AI85 -> 4,026 | AJ30: =Índice!$G$52*'Datos Generales'!AJ85 -> 498,476 | AK30: =Índice!$G$52*'Datos Generales'!AK85 -> 0 | AL30: =Índice!$G$52*'Datos Generales'!AL85 -> 0 | AM30: =Índice!$G$52*'Datos Generales'!AM85 -> 0 | AN30: =Índice!$G$52*'Datos Generales'!AN85 -> 0 | AO30: =Índice!$G$52*'Datos Generales'!AO85 -> 0 | AP30: =Índice!$G$52*'Datos Generales'!AP85 -> 0 | AQ30: =Índice!$G$52*'Datos Generales'!AQ85 -> 15,936,164
